Workbook

Sheet Summary 2016
A1: Montana-Dakota Utilities Co.
A2: Gas Utility - South Dakota
A3: Conservation Portfolio Summary
A4: 2016 Actual
C7: 2016 | K7: Lifetime
A8: Programs | C8: Participants | E8: Cost | G8: Dk Savings | I8: Cost/Dk | K8: Dk Savings
A9: Residential Program
A10: Furnaces - 95+% AFUE - New | C10: =+'Total Program Inputs'!C10 -> 184 | E10: =+'Total Program Inputs'!M10 -> 58004 | G10: =+'Total Program Inputs'!E10 -> 1435 | I10: =+ROUND(E10/G10,2) -> 40.42 | K10: =+'Res .95+% Res Furnace - NEW'!M36 -> 28700
A11: Furnaces - 95+% AFUE - Repl. | C11: =+'Total Program Inputs'!C11 -> 229 | E11: =+'Total Program Inputs'!M11 -> 72189 | G11: =+'Total Program Inputs'!E11 -> 2950 | I11: 24.47 | K11: =+'Res .95+% Res Furnace - Replace'!M36 -> 59000
A12: Programmable Thermostats | C12: =+'Total Program Inputs'!C12 -> 196 | E12: =+'Total Program Inputs'!M12 -> 4119 | G12: =+'Total Program Inputs'!E12 -> 568 | I12: 7.25 | K12: =+'Programmable Thermostats'!M36 -> 5680
A13: Energy Audits | C13: =+'Total Program Inputs'!C23 -> 31 | E13: =+'Total Program Inputs'!M23 -> 12146
A14: Total Residential | C14: =SUM(C10:C13) -> 640 | E14: =SUM(E10:E13) -> 146458 | G14: =SUM(G10:G13) -> 4953 | I14: 29.57 | K14: =SUM(K10:K13) -> 93380
A16: Commercial Program
A17: Furnaces - 95+% AFUE - New | C17: =+'Total Program Inputs'!C16 -> 2 | E17: =+'Total Program Inputs'!M16 -> 630 | G17: =+'Total Program Inputs'!E16 -> 20 | I17: 31.5 | K17: =+'Comm 95+ Furnace - New'!M36 -> 400
A18: Furnaces - 95+% AFUE - Repl. | C18: =+'Total Program Inputs'!C17 -> 7 | E18: =+'Total Program Inputs'!M17 -> 2207 | G18: =+'Total Program Inputs'!E17 -> 162 | I18: 13.62 | K18: =+'Comm 95+% Furnace - Replace'!M36 -> 3240
A19: Custom Efficiency | C19: =+'Total Program Inputs'!C18 -> 0 | E19: =+'Total Program Inputs'!M18 -> 0 | G19: =+'Total Program Inputs'!E18 -> 0 | K19: =+Custom!M36 -> 0
A20: Total Commercial | C20: =SUM(C17:C19) -> 9 | E20: =SUM(E17:E19) -> 2837 | G20: =SUM(G17:G19) -> 182 | I20: 15.59 | K20: =SUM(K17:K19) -> 3640
A22: Total Programs | C22: =+C14+C20 -> 649 | E22: =+E14+E20 -> 149295 | G22: =+G14+G20 -> 5135 | I22: 29.07 | K22: =+K14+K20 -> 97020

Sheet Database Inputs
A1: South Dakota Natural Gas DSM Programs
A2: Technical Assumptions
I3: Cost Assumptions
D4: Technical Assumptions
B5: Participation | H5: Average
C6: Number of | F6: Average | G6: Average | H6: Non-Energy | L6: Average
B7: Customer | C7: Participants | D7: Project | E7: Baseline | F7: High | G7: dk Saved | H7: Benefits | I7: Cost | J7: Cost High | K7: incremental | L7: Incentive
A8: 2015 Program Year | B8: Class | C8: 2016 | D8: Life | E8: Efficiency | F8: Efficiency | G8: / part | H8: / Part | I8: Std Equip | J8: Eff Equip | K8: Cost | L8: / Part | M8: Technical Notes
A9: Residential
A10: Furnace Tier 2 - 95%+ AFUE - New | B10: Residential | C10: =+'Total Program Inputs'!C10 -> 184 | D10: 20 | E10: 90 | F10: 95 | G10: =+'Total Program Inputs'!Q10 -> 7.8 | H10: 732 | I10: 1380 | J10: 2000 | K10: 302 | L10: 300 | M10: 75,000 btuh Average | O10: 0
A11: Furnace Tier 2 - 95%+ AFUE - Replacement | B11: Residential | C11: =+'Total Program Inputs'!C11 -> 229 | D11: 20 | E11: 80 | F11: 95 | G11: =+'Total Program Inputs'!Q11 -> 12.9 | H11: 732 | I11: 880 | J11: 2000 | K11: 650 | L11: 300 | M11: 75,000 btuh Average | O11: 75,000 btuh Avg.
A12: Programmable Thermostats | B12: Residential | C12: =+'Total Program Inputs'!C12 -> 196 | D12: 10 | E12: NA | F12: NA | G12: =+'Total Program Inputs'!Q12 -> 2.9 | H12: 2.1 | K12: 60 | L12: 20
A13: Energy Audit | B13: Residential | C13: =+'Total Program Inputs'!C23 -> 31 | K13: 50
A15: Commercial
A16: Furnace Tier 2 - 95%+ AFUE - New | B16: Commercial | C16: =+'Total Program Inputs'!C16 -> 2 | D16: 20 | E16: 90 | F16: 95 | G16: =+'Total Program Inputs'!Q16 -> 10 | H16: 732 | I16: 880 | J16: 2000 | K16: 302 | L16: 300 | M16: 75,000 btuh Average
A17: Furnace Tier 2 - 95%+ AFUE - Replacement | B17: Commercial | C17: =+'Total Program Inputs'!C17 -> 7 | D17: 20 | E17: 80 | F17: 95 | G17: =+'Total Program Inputs'!Q17 -> 23.1 | H17: 732 | I17: 880 | J17: 2000 | K17: 650 | L17: 300 | M17: 75,000 btuh Average
A18: Custom Efficiency | B18: Commercial | C18: =+'Total Program Inputs'!C18 -> 0 | D18: 15 | E18: NA | F18: NA | G18: =+'Total Program Inputs'!Q18 ->  | H18: 0 | I18: NA | J18: NA | K18: 3000 | L18: 600
A19: Totals | C19: =SUM(C10:C18) -> 649

Sheet Total Program Inputs
A1: Montana-Dakota Utilities Co.
A2: Gas Utility - South Dakota
A3: DSM Summary
A4: 2016 Actual
G7: Incentive | I7: Admin | K7: Admin | M7: Total
C8: Participants | E8: Dk Savings | G8: Expense | I8: Allocation | K8: Expense 1/ | M8: Expense | O8: Incentive | Q8: dk/part.
A9: Residential
A10: High Efficiency Furnace - 95%+ (new) | C10: 184 | E10: 1435 | G10: 55200 | I10: =+ROUND(G10/$G$25,4) -> 0.3885 | K10: =+ROUND(I10*$C$31,0)+1 -> 2804 | M10: =+G10+K10 -> 58004 | O10: 300 | Q10: =ROUND(+E10/C10,1) -> 7.8
A11: High Efficiency Furnace - 95%+ (replacement) | C11: 229 | E11: 2950 | G11: 68700 | I11: =+ROUND(G11/$G$25,4) -> 0.4835 | K11: =+ROUND(I11*$C$31,0) -> 3489 | M11: 72189 | O11: 300 | Q11: =ROUND(+E11/C11,1) -> 12.9
A12: Programmable Thermostats | C12: 196 | E12: 568 | G12: 3920 | I12: 0.0276 | K12: =+ROUND(I12*$C$31,0) -> 199 | M12: 4119 | O12: 20 | Q12: 2.9
A13: Total Residential | C13: =SUM(C10:C12) -> 609 | E13: =SUM(E10:E12) -> 4953 | G13: =SUM(G10:G12) -> 127820 | I13: =SUM(I10:I12) -> 0.8996 | K13: =SUM(K10:K12) -> 6492 | M13: =SUM(M10:M12) -> 134312
A15: Commmercial & Industrial
A16: High Efficiency Furnace - 95%+ (new) | C16: 2 | E16: 20 | G16: 600 | I16: =+ROUND(G16/$G$25,4) -> 0.0042 | K16: =+ROUND(I16*$C$31,0) -> 30 | M16: =+G16+K16 -> 630 | O16: 300 | Q16: =ROUND(+E16/C16,1) -> 10
A17: High Efficiency Furnace - 95%+ (replacement) | C17: 7 | E17: 162 | G17: 2100 | I17: =+ROUND(G17/$G$25,4) -> 0.0148 | K17: =+ROUND(I17*$C$31,0) -> 107 | M17: =+G17+K17 -> 2207 | O17: 300 | Q17: =ROUND(+E17/C17,1) -> 23.1
A18: Custom | C18: 0 | E18: 0 | G18: 0 | I18: 0 | K18: =+ROUND(I18*$C$31,0) -> 0 | M18: =+G18+K18 -> 0 | O18: 600
A19: Total Commercial and Industrial | C19: =SUM(C16:C18) -> 9 | E19: =SUM(E16:E18) -> 182 | G19: =SUM(G16:G18) -> 2700 | I19: =SUM(I16:I18) -> 0.019 | K19: =SUM(K16:K18) -> 137 | M19: =SUM(M16:M18) -> 2837
A21: Subtotal | C21: =+C19+C13 -> 618 | E21: =+E19+E13 -> 5135 | G21: =+G19+G13 -> 130520 | I21: =+I19+I13 -> 0.9186 | K21: =+K19+K13 -> 6629 | M21: =+M19+M13 -> 137149
A23: Energy Audits | C23: 31 | G23: 11559 | I23: =+ROUND(G23/$G$25,4) -> 0.0814 | K23: =+ROUND(I23*$C$31,0) -> 587 | M23: =+G23+K23 -> 12146
A25: Total South Dakota | C25: =+C23+C21 -> 649 | E25: =+E23+E21 -> 5135 | G25: =+G23+G21 -> 142079 | I25: =+I23+I21 -> 1 | K25: =+K23+K21 -> 7216 | M25: =+M23+M21 -> 149295
A28: 1/ Administration expense allocated on incentive and program costs.
A31: Admin costs | C31: =1010+6206 -> 7216

Sheet Summary of Ratios
A1: Montana-Dakota Utilities Co.
A2: South Dakota Gas DSM Program Summary
A3: Benefit/Cost Ratios
A4: Actual 2016
G6: Total
B7: Customer | G7: Resource
A8: Program | B8: Class | C8: RIM | D8: Utility | E8: Societal | F8: Participant | G8: Cost
A9: Total Portfolio | C9: ='Total Program'!G42 -> 1.33 | D9: ='Total Program'!G43 -> 2.23 | E9: ='Total Program'!G44 -> 2.72 | F9: ='Total Program'!G45 -> 5.053882855 | G9: ='Total Program'!G46 -> 1.92
A11: Furnace (95+%) - New | B11: Residential | C11: =+'Res .95+% Res Furnace - NEW'!G42 -> 1.04 | D11: =+'Res .95+% Res Furnace - NEW'!G43 -> 1.54 | E11: =+'Res .95+% Res Furnace - NEW'!G44 -> 3.57 | F11: =+'Res .95+% Res Furnace - NEW'!G45 -> 7.681111431 | G11: =+'Res .95+% Res Furnace - NEW'!G46 -> 2.51
A12: Furnace (95+%) - Replacement | B12: Residential | C12: ='Res .95+% Res Furnace - Replace'!G42 -> 1.42 | D12: ='Res .95+% Res Furnace - Replace'!G43 -> 2.54 | E12: ='Res .95+% Res Furnace - Replace'!G44 -> 2.39 | F12: ='Res .95+% Res Furnace - Replace'!G45 -> 4.225119248 | G12: ='Res .95+% Res Furnace - Replace'!G46 -> 1.67
A13: Programmable Thermostats | B13: Residential | C13: ='Programmable Thermostats'!G42 -> 2.02 | D13: ='Programmable Thermostats'!G43 -> 5.17 | E13: ='Programmable Thermostats'!G44 -> 2.24 | F13: ='Programmable Thermostats'!G45 -> 3.001360544 | G13: ='Programmable Thermostats'!G46 -> 1.79
A14: Furnace (95+%) - New | B14: Commercial | C14: =+'Comm 95+ Furnace - New'!G42 -> 1.5 | D14: =+'Comm 95+ Furnace - New'!G43 -> 1.97 | E14: =+'Comm 95+ Furnace - New'!G44 -> 4.2 | F14: =+'Comm 95+ Furnace - New'!G45 -> 7.688741722 | G14: =+'Comm 95+ Furnace - New'!G46 -> 2.94
A15: Furnace (95+%) - Replacement | B15: Commercial | C15: ='Comm 95+% Furnace - Replace'!G42 -> 2.63 | D15: ='Comm 95+% Furnace - Replace'!G43 -> 4.55 | E15: ='Comm 95+% Furnace - Replace'!G44 -> 3.78 | F15: ='Comm 95+% Furnace - Replace'!G45 -> 5.035604396 | G15: ='Comm 95+% Furnace - Replace'!G46 -> 2.62
A16: Custom Efficiency | B16: Commercial

Sheet Gas Input Table Summary
A1: Montana-Dakota Utilities Co.
A2: 2016 Input Data Summary
A3: South Dakota Natural Gas Conservation Model - Authorized 2016
A6: Input No. | B6: Input Data Description | C6: Information Source | D6: SD Res. | E6: SD Comm.
B7: Retail Rate ($/dk) | C7: Weighted Average of SD retail rate using projected 2017 gas costs & February 2017 pipeline and distribution | D7: =+'Gas Costs'!C10 -> 6.574 | E7: =+'Gas Costs'!E10 -> 5.663
B8: Escalation Rate | D8: 0.035 | E8: 0.035
A9: 2 | B9: Non-Gas Fuel Retail ($/fuel/unit) | C9: Average retail cost of non gas fuel if measures also saves kWh, gallons of water, etc. (for analysis purposes, used electric as Non-Gas Fuel Retail Rate) | D9: =+'Gas Costs'!G40 -> 0.14609 | E9: =+'Gas Costs'!G53 -> 0.13915
B10: Escalation Rate | D10: 0.035 | E10: 0.035
B11: Non-Gas Fuel Units (ie. kWh, Gallons, etc) | D11: Kwh | E11: Kwh
A12: 3 | B12: Commodity Cost ($/dk) | C12: Estimated 2017 gas costs and February 2017 pipeline commodity | D12: =+'Gas Costs'!E16 -> 2.976 | E12: =+D12 -> 2.976
B13: Escalation Rate | D13: 0.035 | E13: 0.035
A14: 4 | B14: Demand Cost ($/dk/Yr) | C14: Annual cost of firm capacity on pipeline - Feburary 2017 PGA | D14: =+'Gas Costs'!C23 -> 142.34 | E14: =+D14 -> 142.34
B15: Escalation Rate | D15: 0.01 | E15: 0.01
A16: 5 | B16: Peak Reduction Factor | C16: Estimated average peak day reduction factor caused by implementing the measure (s) | D16: 0.01 | E16: 0.01
A17: 6 | B17: Variable O&M ($/dk) | C17: Estimated variable O&M that will be avoided due the implementing the measure | D17: 0 | E17: 0
B18: Escalation Rate | D18: 0 | E18: 0
A19: 7 | B19: Non-Gas Fuel Cost ($/Fuel Unit) | C19: Average commodity cost of non gas fuel if measures also saves kWh, gallons of water, etc. (for analysis purposes, used electric as Non-Gas Fuel Cost) | D19: =+'Gas Costs'!C58 -> 0.02589 | E19: =+D19 -> 0.02589
B20: Escalation Rate | D20: 0.035 | E20: 0.035
A21: 8 | B21: Non-Gas Fuel Loss Factor | C21: Non-Gas fuel loss factor (for analysis purposes, used Montana-Dakota 12 month ending July 2014loss factor) | D21: 0.051 | E21: =+D21 -> 0.051
A22: 9 | B22: Gas Environmental Damage Factor | C22: Per the 2013-2015 CIP triennium from Minnesota approved by the Minnesota Division of Energy Resources Staff | D22: 0.35 | E22: =+D22 -> 0.35
B23: Escalation Rate | D23: 0.023 | E23: 0.023
A24: 10 | B24: Non Gas Fuel Environmental Damage Factor | C24: Not Applicable | D24: 0 | E24: 0
B25: Escalation Rate | D25: 0 | E25: 0
A26: 11 | B26: Participant Discount Rate | D26: 0.1 | E26: 0.1
A27: 12 | B27: Utility Discount Rate | C27: Montana-Dakota's authorized average cost of capital NG15-005 | D27: 0.07216 | E27: =+D27 -> 0.07216
A28: 13 | B28: Societal Discount Rate | C28: Equal to the 30 year T-Bill rate average for Twelve Months Ending September 16, 2014 | D28: 0.0356 | E28: =+D28 -> 0.0356
A29: 14 | B29: General Input Data Year = | C29: Year data was input | D29: 2014 | E29: 2014
A30: 15 | B30: Project Analysis Year | C30: Year(s) program will be implemented | D30: 2015 | E30: 2015
D31: 2016 | E31: 2016
D32: 2017 | E32: 2017
A33: 16 | B33: Utility Project Costs | C33: Total direct cost to the utility caused by implementing the program(s)
A34: 17 | B34: Direct Participant Costs ($/Part.) | C34: Direct costs that the participant would have to participate in the program
A35: 18 | B35: Participant Non-Energy Costs (Annual $/Part.) Yr. 1 | C35: Annual participant non-energy costs if applicable caused by implementing the measure (Not Applicable) | D35: 0 | E35: 0
B36: Yr. 2 | D36: 0 | E36: 0
B37: Yr. 3 | D37: 0 | E37: 0
B38: Escalation Rate Yr. 1 | D38: 0 | E38: 0
B39: Escalation Rate Yr. 2 | D39: 0 | E39: 0
B40: Escalation Rate Yr. 3 | D40: 0 | E40: 0
A41: 19 | B41: Participant Non-Energy Savings (Annual $/Part) Yr. 1 | C41: Participant non energy savings if applicable caused by implementing the measure (Not Applicable) | D41: 0 | E41: 0
B42: Yr. 2 | D42: 0 | E42: 0
B43: Yr. 3 | D43: 0 | E43: 0
B44: Escalation Rate Yr. 1 | D44: 0 | E44: 0
B45: Escalation Rate Yr. 2 | D45: 0 | E45: 0
B46: Escalation Rate Yr. 3 | D46: 0.014 | E46: 0.014
A47: 20 | B47: Project Life (Years) | C47: Based on the estimated useful life of the energy saving equipment (20 years maximum)
A48: 21 | B48: Avg. Dk/Part. Saved | C48: Avg energy reduction (Dk) caused by the program(s)
A49: 22 | B49: Avg Non-Gas Fuel Units/Part. Saved Yr. 1 | C49: Average non-gas fuel units saved or added due to implementing the measure (for analysis purposes, used Kwh)
B50: Yr. 2 | D50: 0 | E50: 0
B51: Yr. 3 | D51: 0 | E51: 0
A52: 22a | B52: Avg Additional Non-Gas Fuel Units/ Part. Used Yr. 1 | D52: 0 | E52: 0
B53: Yr. 2 | D53: 0 | E53: 0
B54: Yr. 3 | D54: 0 | E54: 0
A55: 23 | B55: Number of Participants | C55: Total number of expected participants is the program(s)
A56: 24 | B56: Total Annual Dk Saved | C56: Total Dk saved from the program in the year implemented
A57: 25 | B57: Incentive/Participant | C57: Incentive provided to the participant
A58: 26 | B58: Distribution Delivery Charge | C58: Weighted Average of Montana-Dakota's Distribution Delivery Charge | D58: =+'Gas Costs'!C9 -> 1.891 | E58: =+'Gas Costs'!E9 -> 0.98
A59: 27 | B59: Effective Fed & State Income Tax Rate | C59: Montana-Dakota's effective tax rate | D59: 0.35 | E59: 0.35

Sheet Total Program
A1: NATURAL GAS CONSERVATION PROGRAMS/DEMAND-SIDE MANAGEMENT | K1: Table 1 | AD1: Table 2 | AP1: Table 3 | BG1: Table 4 | BV1: Table 5
A2: BEN/COST ANALYSIS FOR GAS CONSERVATION | K2: Ratepayer Impact Measure Test | AD2: Utility Cost Test | AP2: Societal Test | BG2: Participant Test | BV2: Total Resource Cost Test
A4: Company: | B4: Montana-Dakota Utilities Co. | K4: Company: | M4: =B4 -> Montana-Dakota Utilities Co. | AD4: Company: | AF4: =B4 -> Montana-Dakota Utilities Co. | AP4: Company: | AR4: =AF4 -> Montana-Dakota Utilities Co. | BH4: Company: | BI4: =AR4 -> Montana-Dakota Utilities Co. | BW4: Company: | BX4: =BI4 -> Montana-Dakota Utilities Co.
A5: Project: | B5: Total South Dakota Program | K5: Project: | M5: =$B$5 -> Total South Dakota Program | AD5: Project: | AF5: =$B$5 -> Total South Dakota Program | AP5: Project: | AR5: =$B$5 -> Total South Dakota Program | BH5: Project: | BI5: =$B$5 -> Total South Dakota Program | BW5: Project: | BX5: =$B$5 -> Total South Dakota Program
A6: Program Years: | B6: 2016 Actual
N7: Benefits | X7: Costs | AF7: Benefits | AJ7: Costs | AR7: Benefits | BB7: Costs | BI7: Benefits | BR7: Costs | BX7: Benefits | CC7: Costs
A8: Input Data | F8: 2016 | AB8: Annual | AN8: Annual | AT8: Non-Gas | BE8: Annual | BT8: Annual | CG8: Annual
M9: Total | N9: Gas | O9: Gas | P9: Variable | Q9: Variable | R9: Total | S9: Peak Dk | T9: Dmd | U9: Total | W9: Distribution | Y9: Program | AA9: Total | AB9: Benefits | AF9: Total | AG9: Total | AH9: Annual | AJ9: Program | AL9: Utility | AN9: Benefits | AR9: Total | AS9: Total | AT9: Energy | AU9: Non-Gas | AV9: Environmental | AW9: Environmental | AZ9: Annual | BB9: Utility | BC9: Participants' | BD9: Annual | BE9: Benefits | BJ9: Total | BL9: Gas | BM9: Non-Gas | BN9: Non-Gas | BP9: Total | BR9: Direct | BT9: Benefits | BX9: Total | BY9: Total | BZ9: Non-Gas | CA9: Total | CC9: Utility | CD9: Participants' | CG9: Benefits
A10: 1) Retail Rate ($/Dk) = | E10: 16) Utility Project Costs | M10: Energy | N10: Commodity | O10: Commodity | P10: O & M | Q10: O & M | R10: Energy | S10: Demand | T10: Savings | U10: Demand | V10: Total | W10: Delivery | X10: Lost | Y10: Admin | Z10: Incentive | AA10: Program | AB10: Less | AF10: Energy | AG10: Demand | AH10: Total | AJ10: Admin | AK10: Incentive | AL10: Program | AN10: Less | AR10: Energy | AS10: Demand | AT10: Savings | AU10: Energy | AV10: Damage | AW10: Damage | AZ10: Total | BB10: Program | BC10: Costs Net | BD10: Total | BE10: Less | BI10: Incentives | BJ10: Energy | BK10: Retail | BL10: Bill | BM10: Fuel | BN10: Energy | BP10: Annual | BR10: Participant | BT10: Less | BX10: Energy | BY10: Demand | BZ10: Energy | CA10: Annual | CC10: Program | CD10: Costs Net | CE10: Total | CG10: Less
A11: Escalation Rate = | E11: 16a) Administrative & Operating Costs | F11: =+'Res .95+% Res Furnace - NEW'!F11+'Res .95+% Res Furnace - Replace'!F11+'Programmable Thermostats'!F11+'Comm 95+ Furnace - New'!F11+'Comm 95+% Furnace - Replace'!F11 -> 6629 | J11: t | M11: Reduction | N11: Cost/Dk | O11: Savings | P11: Cost/Dk | Q11: Savings | R11: Savings | S11: Reduction | T11: '/ Unit | U11: Savings | V11: Savings | W11: Charge | X11: Margin | Y11: Costs | Z11: Costs | AA11: Costs | AB11: Costs | AF11: Savings | AG11: Savings | AH11: Savings | AJ11: Costs | AK11: Costs | AL11: Costs | AN11: Costs | AR11: Savings | AS11: Savings | AT11: ($/Part.) | AU11: Savings | AV11: Savings/Dk | AW11: Savings | AZ11: Savings | BB11: Costs | BC11: of Rebate | BD11: Costs | BE11: Costs | BI11: Received | BJ11: Reduction | BK11: Rate | BL11: Savings | BM11: Retail Rate | BN11: Savings | BP11: Benefits | BR11: Costs | BT11: Costs | BX11: Savings | BY11: Savings | BZ11: Savings | CA11: Benefits | CC11: Costs | CD11: of Rebate | CE11: Costs | CG11: Costs
E12: 16b) Incentive Costs = | F12: =+'Res .95+% Res Furnace - NEW'!F12+'Res .95+% Res Furnace - Replace'!F12+'Programmable Thermostats'!F12+'Comm 95+ Furnace - New'!F12+'Comm 95+% Furnace - Replace'!F12 -> 130520 | L12: Year | M12: (A) | N12: (B) | O12: (C) | P12: (D) | Q12: (E) | R12: (F) | S12: (G) | T12: (H) | U12: (I) | V12: (J) | W12: (K) | X12: (L) | Y12: (M) | Z12: (N) | AA12: (O) | AB12: (P) | AE12: Year | AF12: (A) | AG12: (B) | AH12: (C) | AJ12: (D) | AK12: (E) | AL12: (F) | AN12: (G) | AQ12: Year | AR12: (A) | AS12: (B) | AT12: (C) | AU12: (D) | AV12: (E) | AW12: (F) | AZ12: (G) | BB12: (H) | BC12: (I) | BD12: (J) | BE12: (K) | BH12: Year | BI12: (A) | BJ12: (B) | BK12: (C) | BL12: (D) | BM12: (E) | BN12: (F) | BP12: (G) | BR12: (H) | BT12: (I) | BW12: Year | BX12: (A) | BY12: (B) | BZ12: (C) | CA12: (D) | CC12: (E) | CD12: (F) | CE12: (G) | CG12: (H)
A13: 2) Non-Gas Fuel Retail Rate ($/Fuel Unit) = | E13: 16c) Total Utility Project Costs = | F13: =SUM(F11:F12) -> 137149
A14: Escalation Rate = | J14: =$C$47-$C$45 -> 2 | L14: =$C$47 -> 2016 | M14: =+ROUND('Res .95+% Res Furnace - NEW'!M14+'Res .95+% Res Furnace - Replace'!M14+'Programmable Thermostats'!M14+'Comm 95+ Furnace - New'!M14+'Comm 95+% Furnace - Replace'!M14+Custom!M14,0) -> 5135 | O14: =+ROUND('Res .95+% Res Furnace - NEW'!O14+'Res .95+% Res Furnace - Replace'!O14+'Programmable Thermostats'!O14+'Comm 95+ Furnace - New'!O14+'Comm 95+% Furnace - Replace'!O14+Custom!O14,0) -> 15282 | Q14: =+ROUND('Res .95+% Res Furnace - NEW'!Q14+'Res .95+% Res Furnace - Replace'!Q14+'Programmable Thermostats'!Q14+'Comm 95+ Furnace - New'!Q14+'Comm 95+% Furnace - Replace'!Q14+Custom!Q14,0) -> 0 | R14: =O14+Q14 -> 15282 | S14: =+ROUND('Res .95+% Res Furnace - NEW'!S14+'Res .95+% Res Furnace - Replace'!S14+'Programmable Thermostats'!S14+'Comm 95+ Furnace - New'!S14+'Comm 95+% Furnace - Replace'!S14+Custom!S14,0) -> 51 | U14: =+ROUND('Res .95+% Res Furnace - NEW'!U14+'Res .95+% Res Furnace - Replace'!U14+'Programmable Thermostats'!U14+'Comm 95+ Furnace - New'!U14+'Comm 95+% Furnace - Replace'!U14+Custom!U14,0) -> 7298 | V14: =ROUND(+U14+R14,0) -> 22580 | X14: =+ROUND('Res .95+% Res Furnace - NEW'!X14+'Res .95+% Res Furnace - Replace'!X14+'Programmable Thermostats'!X14+'Comm 95+ Furnace - New'!X14+'Comm 95+% Furnace - Replace'!X14+Custom!X14,0) -> 6648 | Y14: =+ROUND('Res .95+% Res Furnace - NEW'!Y14+'Res .95+% Res Furnace - Replace'!Y14+'Programmable Thermostats'!Y14+'Comm 95+ Furnace - New'!Y14+'Comm 95+% Furnace - Replace'!Y14+Custom!Y14,0) -> 6629 | Z14: =+ROUND('Res .95+% Res Furnace - NEW'!Z14+'Res .95+% Res Furnace - Replace'!Z14+'Programmable Thermostats'!Z14+'Comm 95+ Furnace - New'!Z14+'Comm 95+% Furnace - Replace'!Z14+Custom!Z14,0) -> 130520 | AA14: =SUM(X14:Z14) -> 143797 | AB14: =V14-AA14 -> -121217 | AE14: =$C$47 -> 2016 | AF14: =+R14 -> 15282 | AG14: =+U14 -> 7298 | AH14: =+AG14+AF14 -> 22580 | AJ14: =ROUND(Y14,0) -> 6629 | AK14: =ROUND(Z14,0) -> 130520 | AL14: =SUM(AJ14:AK14) -> 137149 | AN14: =+AH14-AL14 -> -114569 | AQ14: =$C$47 -> 2016 | AR14: =AF14 -> 15282 | AS14: =+AG14 -> 7298 | AU14: =+ROUND('Res .95+% Res Furnace - NEW'!AT14+'Res .95+% Res Furnace - Replace'!AU14+'Programmable Thermostats'!AU14+'Comm 95+ Furnace - New'!AU14+'Comm 95+% Furnace - Replace'!AU14+Custom!AU14,0) -> 8970 | AW14: =+ROUND('Res .95+% Res Furnace - NEW'!AV14+'Res .95+% Res Furnace - Replace'!AW14+'Programmable Thermostats'!AW14+'Comm 95+ Furnace - New'!AW14+'Comm 95+% Furnace - Replace'!AW14+Custom!AW14,0) -> 1879 | AZ14: =ROUND(AR14+AS14+AU14+AW14+AY14,0) -> 33429 | BB14: =+ROUND('Res .95+% Res Furnace - NEW'!BA14+'Res .95+% Res Furnace - Replace'!BB14+'Programmable Thermostats'!BB14+'Comm 95+ Furnace - New'!BB14+'Comm 95+% Furnace - Replace'!BB14+Custom!BB14,0) -> 137149 | BC14: =+ROUND('Res .95+% Res Furnace - NEW'!BB14+'Res .95+% Res Furnace - Replace'!BC14+'Programmable Thermostats'!BC14+'Comm 95+ Furnace - New'!BC14+'Comm 95+% Furnace - Replace'!BC14+Custom!BC14,0) -> 90812 | BD14: =BB14+BC14 -> 227961 | BE14: =AZ14-BD14 -> -194532 | BH14: =$C$47 -> 2016 | BI14: =+ROUND('Res .95+% Res Furnace - NEW'!BH14+'Res .95+% Res Furnace - Replace'!BI14+'Programmable Thermostats'!BI14+'Comm 95+ Furnace - New'!BI14+'Comm 95+% Furnace - Replace'!BI14+Custom!BI14,0) -> 130520 | BJ14: =+ROUND('Res .95+% Res Furnace - NEW'!BI14+'Res .95+% Res Furnace - Replace'!BJ14+'Programmable Thermostats'!BJ14+'Comm 95+ Furnace - New'!BJ14+'Comm 95+% Furnace - Replace'!BJ14+Custom!BJ14,0) -> 5135 | BL14: =+ROUND('Res .95+% Res Furnace - NEW'!BK14+'Res .95+% Res Furnace - Replace'!BL14+'Programmable Thermostats'!BL14+'Comm 95+ Furnace - New'!BL14+'Comm 95+% Furnace - Replace'!BL14+Custom!BL14,0) -> 35983 | BN14: =+ROUND('Res .95+% Res Furnace - NEW'!BM14+'Res .95+% Res Furnace - Replace'!BN14+'Programmable Thermostats'!BN14+'Comm 95+ Furnace - New'!BN14+'Comm 95+% Furnace - Replace'!BN14+Custom!BN14,0) -> 48206 | BP14: =BI14+BL14+BN14+BO14 -> 214709 | BR14: =+ROUND('Res .95+% Res Furnace - NEW'!BQ14+'Res .95+% Res Furnace - Replace'!BR14+'Programmable Thermostats'!BR14+'Comm 95+ Furnace - New'!BR14+'Comm 95+% Furnace - Replace'!BR14+Custom!BR14,0) -> 221332 | BT14: =BP14-BR14 -> -6623 | BW14: =$C$47 -> 2016 | BX14: =$R14 -> 15282 | BY14: =U14 -> 7298 | BZ14: =AU14 -> 8970 | CA14: =SUM(BX14:BZ14) -> 31550 | CC14: =BB14 -> 137149 | CD14: =BC14 -> 90812 | CE14: =SUM(CC14:CD14) -> 227961 | CG14: =CA14-CE14 -> -196411
A15: Non-Gas Fuel Units (ie. kWh,Gallons, etc) = | E15: 17) Direct Participant Costs ($/Part.) = | J15: =J14+1 -> 3 | L15: =L14+1 -> 2017 | M15: =+ROUND('Res .95+% Res Furnace - NEW'!M15+'Res .95+% Res Furnace - Replace'!M15+'Programmable Thermostats'!M15+'Comm 95+ Furnace - New'!M15+'Comm 95+% Furnace - Replace'!M15+Custom!M15,0) -> 5135 | O15: =+ROUND('Res .95+% Res Furnace - NEW'!O15+'Res .95+% Res Furnace - Replace'!O15+'Programmable Thermostats'!O15+'Comm 95+ Furnace - New'!O15+'Comm 95+% Furnace - Replace'!O15+Custom!O15,0) -> 16371 | Q15: =+ROUND('Res .95+% Res Furnace - NEW'!Q15+'Res .95+% Res Furnace - Replace'!Q15+'Programmable Thermostats'!Q15+'Comm 95+ Furnace - New'!Q15+'Comm 95+% Furnace - Replace'!Q15+Custom!Q15,0) -> 0 | R15: 16371 | S15: =+ROUND('Res .95+% Res Furnace - NEW'!S15+'Res .95+% Res Furnace - Replace'!S15+'Programmable Thermostats'!S15+'Comm 95+ Furnace - New'!S15+'Comm 95+% Furnace - Replace'!S15+Custom!S15,0) -> 51 | U15: =+ROUND('Res .95+% Res Furnace - NEW'!U15+'Res .95+% Res Furnace - Replace'!U15+'Programmable Thermostats'!U15+'Comm 95+ Furnace - New'!U15+'Comm 95+% Furnace - Replace'!U15+Custom!U15,0) -> 7454 | V15: =ROUND(+U15+R15,0) -> 23825 | X15: =+ROUND('Res .95+% Res Furnace - NEW'!X15+'Res .95+% Res Furnace - Replace'!X15+'Programmable Thermostats'!X15+'Comm 95+ Furnace - New'!X15+'Comm 95+% Furnace - Replace'!X15+Custom!X15,0) -> 6879 | Y15: =+ROUND('Res .95+% Res Furnace - NEW'!Y15+'Res .95+% Res Furnace - Replace'!Y15+'Programmable Thermostats'!Y15+'Comm 95+ Furnace - New'!Y15+'Comm 95+% Furnace - Replace'!Y15+Custom!Y15,0) -> 0 | Z15: =+ROUND('Res .95+% Res Furnace - NEW'!Z15+'Res .95+% Res Furnace - Replace'!Z15+'Programmable Thermostats'!Z15+'Comm 95+ Furnace - New'!Z15+'Comm 95+% Furnace - Replace'!Z15+Custom!Z15,0) -> 0 | AA15: =SUM(X15:Z15) -> 6879 | AB15: =V15-AA15 -> 16946 | AE15: =AE14+1 -> 2017 | AF15: 16371 | AG15: 7454 | AH15: =+AG15+AF15 -> 23825 | AJ15: =ROUND(Y15,0) -> 0 | AK15: 0 | AL15: 0 | AN15: 23825 | AQ15: =AQ14+1 -> 2017 | AR15: 16371 | AS15: 7454 | AU15: =+ROUND('Res .95+% Res Furnace - NEW'!AT15+'Res .95+% Res Furnace - Replace'!AU15+'Programmable Thermostats'!AU15+'Comm 95+ Furnace - New'!AU15+'Comm 95+% Furnace - Replace'!AU15+Custom!AU15,0) -> 9280 | AW15: =+ROUND('Res .95+% Res Furnace - NEW'!AV15+'Res .95+% Res Furnace - Replace'!AW15+'Programmable Thermostats'!AW15+'Comm 95+ Furnace - New'!AW15+'Comm 95+% Furnace - Replace'!AW15+Custom!AW15,0) -> 1926 | AZ15: =ROUND(AR15+AS15+AU15+AW15+AY15,0) -> 35031 | BB15: =+ROUND('Res .95+% Res Furnace - NEW'!BA15+'Res .95+% Res Furnace - Replace'!BB15+'Programmable Thermostats'!BB15+'Comm 95+ Furnace - New'!BB15+'Comm 95+% Furnace - Replace'!BB15+Custom!BB15,0) -> 0 | BC15: =+ROUND('Res .95+% Res Furnace - NEW'!BB15+'Res .95+% Res Furnace - Replace'!BC15+'Programmable Thermostats'!BC15+'Comm 95+ Furnace - New'!BC15+'Comm 95+% Furnace - Replace'!BC15+Custom!BC15,0) -> 0 | BD15: =BB15+BC15 -> 0 | BE15: 35031 | BH15: =BH14+1 -> 2017 | BI15: =+ROUND('Res .95+% Res Furnace - NEW'!BH15+'Res .95+% Res Furnace - Replace'!BI15+'Programmable Thermostats'!BI15+'Comm 95+ Furnace - New'!BI15+'Comm 95+% Furnace - Replace'!BI15+Custom!BI15,0) -> 0 | BJ15: =+ROUND('Res .95+% Res Furnace - NEW'!BI15+'Res .95+% Res Furnace - Replace'!BJ15+'Programmable Thermostats'!BJ15+'Comm 95+ Furnace - New'!BJ15+'Comm 95+% Furnace - Replace'!BJ15+Custom!BJ15,0) -> 5135 | BL15: =+ROUND('Res .95+% Res Furnace - NEW'!BK15+'Res .95+% Res Furnace - Replace'!BL15+'Programmable Thermostats'!BL15+'Comm 95+ Furnace - New'!BL15+'Comm 95+% Furnace - Replace'!BL15+Custom!BL15,0) -> 37246 | BN15: =+ROUND('Res .95+% Res Furnace - NEW'!BM15+'Res .95+% Res Furnace - Replace'!BN15+'Programmable Thermostats'!BN15+'Comm 95+ Furnace - New'!BN15+'Comm 95+% Furnace - Replace'!BN15+Custom!BN15,0) -> 50056 | BP15: 87302 | BR15: =+ROUND('Res .95+% Res Furnace - NEW'!BQ15+'Res .95+% Res Furnace - Replace'!BR15+'Programmable Thermostats'!BR15+'Comm 95+ Furnace - New'!BR15+'Comm 95+% Furnace - Replace'!BR15+Custom!BR15,0) -> 0 | BT15: =BP15-BR15 -> 87302 | BW15: =BW14+1 -> 2017 | BX15: 16371 | BY15: =U15 -> 7454 | BZ15: =AU15 -> 9280 | CA15: =SUM(BX15:BZ15) -> 33105 | CC15: =BB15 -> 0 | CD15: 0 | CE15: =SUM(CC15:CD15) -> 0 | CG15: =CA15-CE15 -> 33105
J16: 4 | L16: 2018 | M16: =+ROUND('Res .95+% Res Furnace - NEW'!M16+'Res .95+% Res Furnace - Replace'!M16+'Programmable Thermostats'!M16+'Comm 95+ Furnace - New'!M16+'Comm 95+% Furnace - Replace'!M16+Custom!M16,0) -> 5135 | O16: =+ROUND('Res .95+% Res Furnace - NEW'!O16+'Res .95+% Res Furnace - Replace'!O16+'Programmable Thermostats'!O16+'Comm 95+ Furnace - New'!O16+'Comm 95+% Furnace - Replace'!O16+Custom!O16,0) -> 16946 | Q16: =+ROUND('Res .95+% Res Furnace - NEW'!Q16+'Res .95+% Res Furnace - Replace'!Q16+'Programmable Thermostats'!Q16+'Comm 95+ Furnace - New'!Q16+'Comm 95+% Furnace - Replace'!Q16+Custom!Q16,0) -> 0 | R16: 16946 | S16: =+ROUND('Res .95+% Res Furnace - NEW'!S16+'Res .95+% Res Furnace - Replace'!S16+'Programmable Thermostats'!S16+'Comm 95+ Furnace - New'!S16+'Comm 95+% Furnace - Replace'!S16+Custom!S16,0) -> 51 | U16: =+ROUND('Res .95+% Res Furnace - NEW'!U16+'Res .95+% Res Furnace - Replace'!U16+'Programmable Thermostats'!U16+'Comm 95+ Furnace - New'!U16+'Comm 95+% Furnace - Replace'!U16+Custom!U16,0) -> 7556 | V16: 24502 | X16: =+ROUND('Res .95+% Res Furnace - NEW'!X16+'Res .95+% Res Furnace - Replace'!X16+'Programmable Thermostats'!X16+'Comm 95+ Furnace - New'!X16+'Comm 95+% Furnace - Replace'!X16+Custom!X16,0) -> 7119 | Y16: =+ROUND('Res .95+% Res Furnace - NEW'!Y16+'Res .95+% Res Furnace - Replace'!Y16+'Programmable Thermostats'!Y16+'Comm 95+ Furnace - New'!Y16+'Comm 95+% Furnace - Replace'!Y16+Custom!Y16,0) -> 0 | Z16: =+ROUND('Res .95+% Res Furnace - NEW'!Z16+'Res .95+% Res Furnace - Replace'!Z16+'Programmable Thermostats'!Z16+'Comm 95+ Furnace - New'!Z16+'Comm 95+% Furnace - Replace'!Z16+Custom!Z16,0) -> 0 | AA16: 7119 | AB16: 17383 | AE16: 2018 | AF16: 16946 | AG16: 7556 | AH16: =+AG16+AF16 -> 24502 | AJ16: 0 | AK16: 0 | AL16: 0 | AN16: 24502 | AQ16: 2018 | AR16: 16946 | AS16: 7556 | AU16: =+ROUND('Res .95+% Res Furnace - NEW'!AT16+'Res .95+% Res Furnace - Replace'!AU16+'Programmable Thermostats'!AU16+'Comm 95+ Furnace - New'!AU16+'Comm 95+% Furnace - Replace'!AU16+Custom!AU16,0) -> 9588 | AW16: =+ROUND('Res .95+% Res Furnace - NEW'!AV16+'Res .95+% Res Furnace - Replace'!AW16+'Programmable Thermostats'!AW16+'Comm 95+ Furnace - New'!AW16+'Comm 95+% Furnace - Replace'!AW16+Custom!AW16,0) -> 1968 | AZ16: 36058 | BB16: =+ROUND('Res .95+% Res Furnace - NEW'!BA16+'Res .95+% Res Furnace - Replace'!BB16+'Programmable Thermostats'!BB16+'Comm 95+ Furnace - New'!BB16+'Comm 95+% Furnace - Replace'!BB16+Custom!BB16,0) -> 0 | BC16: =+ROUND('Res .95+% Res Furnace - NEW'!BB16+'Res .95+% Res Furnace - Replace'!BC16+'Programmable Thermostats'!BC16+'Comm 95+ Furnace - New'!BC16+'Comm 95+% Furnace - Replace'!BC16+Custom!BC16,0) -> 0 | BD16: 0 | BE16: 36058 | BH16: 2018 | BI16: =+ROUND('Res .95+% Res Furnace - NEW'!BH16+'Res .95+% Res Furnace - Replace'!BI16+'Programmable Thermostats'!BI16+'Comm 95+ Furnace - New'!BI16+'Comm 95+% Furnace - Replace'!BI16+Custom!BI16,0) -> 0 | BJ16: =+ROUND('Res .95+% Res Furnace - NEW'!BI16+'Res .95+% Res Furnace - Replace'!BJ16+'Programmable Thermostats'!BJ16+'Comm 95+ Furnace - New'!BJ16+'Comm 95+% Furnace - Replace'!BJ16+Custom!BJ16,0) -> 5135 | BL16: =+ROUND('Res .95+% Res Furnace - NEW'!BK16+'Res .95+% Res Furnace - Replace'!BL16+'Programmable Thermostats'!BL16+'Comm 95+ Furnace - New'!BL16+'Comm 95+% Furnace - Replace'!BL16+Custom!BL16,0) -> 38549 | BN16: =+ROUND('Res .95+% Res Furnace - NEW'!BM16+'Res .95+% Res Furnace - Replace'!BN16+'Programmable Thermostats'!BN16+'Comm 95+ Furnace - New'!BN16+'Comm 95+% Furnace - Replace'!BN16+Custom!BN16,0) -> 51913 | BP16: 90462 | BR16: =+ROUND('Res .95+% Res Furnace - NEW'!BQ16+'Res .95+% Res Furnace - Replace'!BR16+'Programmable Thermostats'!BR16+'Comm 95+ Furnace - New'!BR16+'Comm 95+% Furnace - Replace'!BR16+Custom!BR16,0) -> 0 | BT16: 90462 | BW16: 2018 | BX16: 16946 | BY16: 7556 | BZ16: 9588 | CA16: 34090 | CC16: 0 | CD16: 0 | CE16: 0 | CG16: 34090
A17: 3) Commodity Cost ($/Dk) = | E17: 18) Participant Non-Energy Costs (Annual $/Part.) = | J17: 5 | L17: 2019 | M17: =+ROUND('Res .95+% Res Furnace - NEW'!M17+'Res .95+% Res Furnace - Replace'!M17+'Programmable Thermostats'!M17+'Comm 95+ Furnace - New'!M17+'Comm 95+% Furnace - Replace'!M17+Custom!M17,0) -> 5135 | O17: =+ROUND('Res .95+% Res Furnace - NEW'!O17+'Res .95+% Res Furnace - Replace'!O17+'Programmable Thermostats'!O17+'Comm 95+ Furnace - New'!O17+'Comm 95+% Furnace - Replace'!O17+Custom!O17,0) -> 17536 | Q17: =+ROUND('Res .95+% Res Furnace - NEW'!Q17+'Res .95+% Res Furnace - Replace'!Q17+'Programmable Thermostats'!Q17+'Comm 95+ Furnace - New'!Q17+'Comm 95+% Furnace - Replace'!Q17+Custom!Q17,0) -> 0 | R17: 17536 | S17: =+ROUND('Res .95+% Res Furnace - NEW'!S17+'Res .95+% Res Furnace - Replace'!S17+'Programmable Thermostats'!S17+'Comm 95+ Furnace - New'!S17+'Comm 95+% Furnace - Replace'!S17+Custom!S17,0) -> 51 | U17: =+ROUND('Res .95+% Res Furnace - NEW'!U17+'Res .95+% Res Furnace - Replace'!U17+'Programmable Thermostats'!U17+'Comm 95+ Furnace - New'!U17+'Comm 95+% Furnace - Replace'!U17+Custom!U17,0) -> 7608 | V17: 25144 | X17: =+ROUND('Res .95+% Res Furnace - NEW'!X17+'Res .95+% Res Furnace - Replace'!X17+'Programmable Thermostats'!X17+'Comm 95+ Furnace - New'!X17+'Comm 95+% Furnace - Replace'!X17+Custom!X17,0) -> 7369 | Y17: =+ROUND('Res .95+% Res Furnace - NEW'!Y17+'Res .95+% Res Furnace - Replace'!Y17+'Programmable Thermostats'!Y17+'Comm 95+ Furnace - New'!Y17+'Comm 95+% Furnace - Replace'!Y17+Custom!Y17,0) -> 0 | Z17: =+ROUND('Res .95+% Res Furnace - NEW'!Z17+'Res .95+% Res Furnace - Replace'!Z17+'Programmable Thermostats'!Z17+'Comm 95+ Furnace - New'!Z17+'Comm 95+% Furnace - Replace'!Z17+Custom!Z17,0) -> 0 | AA17: 7369 | AB17: 17775 | AE17: 2019 | AF17: 17536 | AG17: 7608 | AH17: 25144 | AJ17: 0 | AK17: 0 | AL17: 0 | AN17: 25144 | AQ17: 2019 | AR17: 17536 | AS17: 7608 | AU17: =+ROUND('Res .95+% Res Furnace - NEW'!AT17+'Res .95+% Res Furnace - Replace'!AU17+'Programmable Thermostats'!AU17+'Comm 95+ Furnace - New'!AU17+'Comm 95+% Furnace - Replace'!AU17+Custom!AU17,0) -> 9898 | AW17: =+ROUND('Res .95+% Res Furnace - NEW'!AV17+'Res .95+% Res Furnace - Replace'!AW17+'Programmable Thermostats'!AW17+'Comm 95+ Furnace - New'!AW17+'Comm 95+% Furnace - Replace'!AW17+Custom!AW17,0) -> 2014 | AZ17: 37056 | BB17: =+ROUND('Res .95+% Res Furnace - NEW'!BA17+'Res .95+% Res Furnace - Replace'!BB17+'Programmable Thermostats'!BB17+'Comm 95+ Furnace - New'!BB17+'Comm 95+% Furnace - Replace'!BB17+Custom!BB17,0) -> 0 | BC17: =+ROUND('Res .95+% Res Furnace - NEW'!BB17+'Res .95+% Res Furnace - Replace'!BC17+'Programmable Thermostats'!BC17+'Comm 95+ Furnace - New'!BC17+'Comm 95+% Furnace - Replace'!BC17+Custom!BC17,0) -> 0 | BD17: 0 | BE17: 37056 | BH17: 2019 | BI17: =+ROUND('Res .95+% Res Furnace - NEW'!BH17+'Res .95+% Res Furnace - Replace'!BI17+'Programmable Thermostats'!BI17+'Comm 95+ Furnace - New'!BI17+'Comm 95+% Furnace - Replace'!BI17+Custom!BI17,0) -> 0 | BJ17: =+ROUND('Res .95+% Res Furnace - NEW'!BI17+'Res .95+% Res Furnace - Replace'!BJ17+'Programmable Thermostats'!BJ17+'Comm 95+ Furnace - New'!BJ17+'Comm 95+% Furnace - Replace'!BJ17+Custom!BJ17,0) -> 5135 | BL17: =+ROUND('Res .95+% Res Furnace - NEW'!BK17+'Res .95+% Res Furnace - Replace'!BL17+'Programmable Thermostats'!BL17+'Comm 95+ Furnace - New'!BL17+'Comm 95+% Furnace - Replace'!BL17+Custom!BL17,0) -> 39898 | BN17: =+ROUND('Res .95+% Res Furnace - NEW'!BM17+'Res .95+% Res Furnace - Replace'!BN17+'Programmable Thermostats'!BN17+'Comm 95+ Furnace - New'!BN17+'Comm 95+% Furnace - Replace'!BN17+Custom!BN17,0) -> 53762 | BP17: 93660 | BR17: =+ROUND('Res .95+% Res Furnace - NEW'!BQ17+'Res .95+% Res Furnace - Replace'!BR17+'Programmable Thermostats'!BR17+'Comm 95+ Furnace - New'!BR17+'Comm 95+% Furnace - Replace'!BR17+Custom!BR17,0) -> 0 | BT17: 93660 | BW17: 2019 | BX17: 17536 | BY17: 7608 | BZ17: 9898 | CA17: 35042 | CC17: 0 | CD17: 0 | CE17: 0 | CG17: 35042
A18: Escalation Rate = | E18: Escalation Rate = | J18: 6 | L18: 2020 | M18: =+ROUND('Res .95+% Res Furnace - NEW'!M18+'Res .95+% Res Furnace - Replace'!M18+'Programmable Thermostats'!M18+'Comm 95+ Furnace - New'!M18+'Comm 95+% Furnace - Replace'!M18+Custom!M18,0) -> 5135 | O18: =+ROUND('Res .95+% Res Furnace - NEW'!O18+'Res .95+% Res Furnace - Replace'!O18+'Programmable Thermostats'!O18+'Comm 95+ Furnace - New'!O18+'Comm 95+% Furnace - Replace'!O18+Custom!O18,0) -> 18153 | Q18: =+ROUND('Res .95+% Res Furnace - NEW'!Q18+'Res .95+% Res Furnace - Replace'!Q18+'Programmable Thermostats'!Q18+'Comm 95+ Furnace - New'!Q18+'Comm 95+% Furnace - Replace'!Q18+Custom!Q18,0) -> 0 | R18: 18153 | S18: =+ROUND('Res .95+% Res Furnace - NEW'!S18+'Res .95+% Res Furnace - Replace'!S18+'Programmable Thermostats'!S18+'Comm 95+ Furnace - New'!S18+'Comm 95+% Furnace - Replace'!S18+Custom!S18,0) -> 51 | U18: =+ROUND('Res .95+% Res Furnace - NEW'!U18+'Res .95+% Res Furnace - Replace'!U18+'Programmable Thermostats'!U18+'Comm 95+ Furnace - New'!U18+'Comm 95+% Furnace - Replace'!U18+Custom!U18,0) -> 7710 | V18: 25863 | X18: =+ROUND('Res .95+% Res Furnace - NEW'!X18+'Res .95+% Res Furnace - Replace'!X18+'Programmable Thermostats'!X18+'Comm 95+ Furnace - New'!X18+'Comm 95+% Furnace - Replace'!X18+Custom!X18,0) -> 7628 | Y18: =+ROUND('Res .95+% Res Furnace - NEW'!Y18+'Res .95+% Res Furnace - Replace'!Y18+'Programmable Thermostats'!Y18+'Comm 95+ Furnace - New'!Y18+'Comm 95+% Furnace - Replace'!Y18+Custom!Y18,0) -> 0 | Z18: =+ROUND('Res .95+% Res Furnace - NEW'!Z18+'Res .95+% Res Furnace - Replace'!Z18+'Programmable Thermostats'!Z18+'Comm 95+ Furnace - New'!Z18+'Comm 95+% Furnace - Replace'!Z18+Custom!Z18,0) -> 0 | AA18: 7628 | AB18: 18235 | AE18: 2020 | AF18: 18153 | AG18: 7710 | AH18: 25863 | AJ18: 0 | AK18: 0 | AL18: 0 | AN18: 25863 | AQ18: 2020 | AR18: 18153 | AS18: 7710 | AU18: =+ROUND('Res .95+% Res Furnace - NEW'!AT18+'Res .95+% Res Furnace - Replace'!AU18+'Programmable Thermostats'!AU18+'Comm 95+ Furnace - New'!AU18+'Comm 95+% Furnace - Replace'!AU18+Custom!AU18,0) -> 10516 | AW18: =+ROUND('Res .95+% Res Furnace - NEW'!AV18+'Res .95+% Res Furnace - Replace'!AW18+'Programmable Thermostats'!AW18+'Comm 95+ Furnace - New'!AW18+'Comm 95+% Furnace - Replace'!AW18+Custom!AW18,0) -> 2059 | AZ18: 38438 | BB18: =+ROUND('Res .95+% Res Furnace - NEW'!BA18+'Res .95+% Res Furnace - Replace'!BB18+'Programmable Thermostats'!BB18+'Comm 95+ Furnace - New'!BB18+'Comm 95+% Furnace - Replace'!BB18+Custom!BB18,0) -> 0 | BC18: =+ROUND('Res .95+% Res Furnace - NEW'!BB18+'Res .95+% Res Furnace - Replace'!BC18+'Programmable Thermostats'!BC18+'Comm 95+ Furnace - New'!BC18+'Comm 95+% Furnace - Replace'!BC18+Custom!BC18,0) -> 0 | BD18: 0 | BE18: 38438 | BH18: 2020 | BI18: =+ROUND('Res .95+% Res Furnace - NEW'!BH18+'Res .95+% Res Furnace - Replace'!BI18+'Programmable Thermostats'!BI18+'Comm 95+ Furnace - New'!BI18+'Comm 95+% Furnace - Replace'!BI18+Custom!BI18,0) -> 0 | BJ18: =+ROUND('Res .95+% Res Furnace - NEW'!BI18+'Res .95+% Res Furnace - Replace'!BJ18+'Programmable Thermostats'!BJ18+'Comm 95+ Furnace - New'!BJ18+'Comm 95+% Furnace - Replace'!BJ18+Custom!BJ18,0) -> 5135 | BL18: =+ROUND('Res .95+% Res Furnace - NEW'!BK18+'Res .95+% Res Furnace - Replace'!BL18+'Programmable Thermostats'!BL18+'Comm 95+ Furnace - New'!BL18+'Comm 95+% Furnace - Replace'!BL18+Custom!BL18,0) -> 41292 | BN18: =+ROUND('Res .95+% Res Furnace - NEW'!BM18+'Res .95+% Res Furnace - Replace'!BN18+'Programmable Thermostats'!BN18+'Comm 95+ Furnace - New'!BN18+'Comm 95+% Furnace - Replace'!BN18+Custom!BN18,0) -> 55617 | BP18: 96909 | BR18: =+ROUND('Res .95+% Res Furnace - NEW'!BQ18+'Res .95+% Res Furnace - Replace'!BR18+'Programmable Thermostats'!BR18+'Comm 95+ Furnace - New'!BR18+'Comm 95+% Furnace - Replace'!BR18+Custom!BR18,0) -> 0 | BT18: 96909 | BW18: 2020 | BX18: 18153 | BY18: 7710 | BZ18: 10516 | CA18: 36379 | CC18: 0 | CD18: 0 | CE18: 0 | CG18: 36379 | DB18: t
J19: 7 | L19: 2021 | M19: =+ROUND('Res .95+% Res Furnace - NEW'!M19+'Res .95+% Res Furnace - Replace'!M19+'Programmable Thermostats'!M19+'Comm 95+ Furnace - New'!M19+'Comm 95+% Furnace - Replace'!M19+Custom!M19,0) -> 5135 | O19: =+ROUND('Res .95+% Res Furnace - NEW'!O19+'Res .95+% Res Furnace - Replace'!O19+'Programmable Thermostats'!O19+'Comm 95+ Furnace - New'!O19+'Comm 95+% Furnace - Replace'!O19+Custom!O19,0) -> 18784 | Q19: =+ROUND('Res .95+% Res Furnace - NEW'!Q19+'Res .95+% Res Furnace - Replace'!Q19+'Programmable Thermostats'!Q19+'Comm 95+ Furnace - New'!Q19+'Comm 95+% Furnace - Replace'!Q19+Custom!Q19,0) -> 0 | R19: 18784 | S19: =+ROUND('Res .95+% Res Furnace - NEW'!S19+'Res .95+% Res Furnace - Replace'!S19+'Programmable Thermostats'!S19+'Comm 95+ Furnace - New'!S19+'Comm 95+% Furnace - Replace'!S19+Custom!S19,0) -> 51 | U19: =+ROUND('Res .95+% Res Furnace - NEW'!U19+'Res .95+% Res Furnace - Replace'!U19+'Programmable Thermostats'!U19+'Comm 95+ Furnace - New'!U19+'Comm 95+% Furnace - Replace'!U19+Custom!U19,0) -> 7762 | V19: 26546 | X19: =+ROUND('Res .95+% Res Furnace - NEW'!X19+'Res .95+% Res Furnace - Replace'!X19+'Programmable Thermostats'!X19+'Comm 95+ Furnace - New'!X19+'Comm 95+% Furnace - Replace'!X19+Custom!X19,0) -> 7893 | Y19: =+ROUND('Res .95+% Res Furnace - NEW'!Y19+'Res .95+% Res Furnace - Replace'!Y19+'Programmable Thermostats'!Y19+'Comm 95+ Furnace - New'!Y19+'Comm 95+% Furnace - Replace'!Y19+Custom!Y19,0) -> 0 | Z19: =+ROUND('Res .95+% Res Furnace - NEW'!Z19+'Res .95+% Res Furnace - Replace'!Z19+'Programmable Thermostats'!Z19+'Comm 95+ Furnace - New'!Z19+'Comm 95+% Furnace - Replace'!Z19+Custom!Z19,0) -> 0 | AA19: 7893 | AB19: 18653 | AE19: 2021 | AF19: 18784 | AG19: 7762 | AH19: 26546 | AJ19: 0 | AK19: 0 | AL19: 0 | AN19: 26546 | AQ19: 2021 | AR19: 18784 | AS19: 7762 | AU19: =+ROUND('Res .95+% Res Furnace - NEW'!AT19+'Res .95+% Res Furnace - Replace'!AU19+'Programmable Thermostats'!AU19+'Comm 95+ Furnace - New'!AU19+'Comm 95+% Furnace - Replace'!AU19+Custom!AU19,0) -> 10825 | AW19: =+ROUND('Res .95+% Res Furnace - NEW'!AV19+'Res .95+% Res Furnace - Replace'!AW19+'Programmable Thermostats'!AW19+'Comm 95+ Furnace - New'!AW19+'Comm 95+% Furnace - Replace'!AW19+Custom!AW19,0) -> 2105 | AZ19: 39476 | BB19: =+ROUND('Res .95+% Res Furnace - NEW'!BA19+'Res .95+% Res Furnace - Replace'!BB19+'Programmable Thermostats'!BB19+'Comm 95+ Furnace - New'!BB19+'Comm 95+% Furnace - Replace'!BB19+Custom!BB19,0) -> 0 | BC19: =+ROUND('Res .95+% Res Furnace - NEW'!BB19+'Res .95+% Res Furnace - Replace'!BC19+'Programmable Thermostats'!BC19+'Comm 95+ Furnace - New'!BC19+'Comm 95+% Furnace - Replace'!BC19+Custom!BC19,0) -> 0 | BD19: 0 | BE19: 39476 | BH19: 2021 | BI19: =+ROUND('Res .95+% Res Furnace - NEW'!BH19+'Res .95+% Res Furnace - Replace'!BI19+'Programmable Thermostats'!BI19+'Comm 95+ Furnace - New'!BI19+'Comm 95+% Furnace - Replace'!BI19+Custom!BI19,0) -> 0 | BJ19: =+ROUND('Res .95+% Res Furnace - NEW'!BI19+'Res .95+% Res Furnace - Replace'!BJ19+'Programmable Thermostats'!BJ19+'Comm 95+ Furnace - New'!BJ19+'Comm 95+% Furnace - Replace'!BJ19+Custom!BJ19,0) -> 5135 | BL19: =+ROUND('Res .95+% Res Furnace - NEW'!BK19+'Res .95+% Res Furnace - Replace'!BL19+'Programmable Thermostats'!BL19+'Comm 95+ Furnace - New'!BL19+'Comm 95+% Furnace - Replace'!BL19+Custom!BL19,0) -> 42738 | BN19: =+ROUND('Res .95+% Res Furnace - NEW'!BM19+'Res .95+% Res Furnace - Replace'!BN19+'Programmable Thermostats'!BN19+'Comm 95+ Furnace - New'!BN19+'Comm 95+% Furnace - Replace'!BN19+Custom!BN19,0) -> 57474 | BP19: 100212 | BR19: =+ROUND('Res .95+% Res Furnace - NEW'!BQ19+'Res .95+% Res Furnace - Replace'!BR19+'Programmable Thermostats'!BR19+'Comm 95+ Furnace - New'!BR19+'Comm 95+% Furnace - Replace'!BR19+Custom!BR19,0) -> 0 | BT19: 100212 | BW19: 2021 | BX19: 18784 | BY19: 7762 | BZ19: 10825 | CA19: 37371 | CC19: 0 | CD19: 0 | CE19: 0 | CG19: 37371
A20: 4) Demand Cost ($/Unit/Yr) = | E20: 19) Participant Non-Energy Savings (Annual $/Part) = | J20: 8 | L20: 2022 | M20: =+ROUND('Res .95+% Res Furnace - NEW'!M20+'Res .95+% Res Furnace - Replace'!M20+'Programmable Thermostats'!M20+'Comm 95+ Furnace - New'!M20+'Comm 95+% Furnace - Replace'!M20+Custom!M20,0) -> 5135 | O20: =+ROUND('Res .95+% Res Furnace - NEW'!O20+'Res .95+% Res Furnace - Replace'!O20+'Programmable Thermostats'!O20+'Comm 95+ Furnace - New'!O20+'Comm 95+% Furnace - Replace'!O20+Custom!O20,0) -> 19441 | Q20: =+ROUND('Res .95+% Res Furnace - NEW'!Q20+'Res .95+% Res Furnace - Replace'!Q20+'Programmable Thermostats'!Q20+'Comm 95+ Furnace - New'!Q20+'Comm 95+% Furnace - Replace'!Q20+Custom!Q20,0) -> 0 | R20: 19441 | S20: =+ROUND('Res .95+% Res Furnace - NEW'!S20+'Res .95+% Res Furnace - Replace'!S20+'Programmable Thermostats'!S20+'Comm 95+ Furnace - New'!S20+'Comm 95+% Furnace - Replace'!S20+Custom!S20,0) -> 51 | U20: =+ROUND('Res .95+% Res Furnace - NEW'!U20+'Res .95+% Res Furnace - Replace'!U20+'Programmable Thermostats'!U20+'Comm 95+ Furnace - New'!U20+'Comm 95+% Furnace - Replace'!U20+Custom!U20,0) -> 7865 | V20: 27306 | X20: =+ROUND('Res .95+% Res Furnace - NEW'!X20+'Res .95+% Res Furnace - Replace'!X20+'Programmable Thermostats'!X20+'Comm 95+ Furnace - New'!X20+'Comm 95+% Furnace - Replace'!X20+Custom!X20,0) -> 8170 | Y20: =+ROUND('Res .95+% Res Furnace - NEW'!Y20+'Res .95+% Res Furnace - Replace'!Y20+'Programmable Thermostats'!Y20+'Comm 95+ Furnace - New'!Y20+'Comm 95+% Furnace - Replace'!Y20+Custom!Y20,0) -> 0 | Z20: =+ROUND('Res .95+% Res Furnace - NEW'!Z20+'Res .95+% Res Furnace - Replace'!Z20+'Programmable Thermostats'!Z20+'Comm 95+ Furnace - New'!Z20+'Comm 95+% Furnace - Replace'!Z20+Custom!Z20,0) -> 0 | AA20: 8170 | AB20: 19136 | AE20: 2022 | AF20: 19441 | AG20: 7865 | AH20: 27306 | AJ20: 0 | AK20: 0 | AL20: 0 | AN20: 27306 | AQ20: 2022 | AR20: 19441 | AS20: 7865 | AU20: =+ROUND('Res .95+% Res Furnace - NEW'!AT20+'Res .95+% Res Furnace - Replace'!AU20+'Programmable Thermostats'!AU20+'Comm 95+ Furnace - New'!AU20+'Comm 95+% Furnace - Replace'!AU20+Custom!AU20,0) -> 11136 | AW20: =+ROUND('Res .95+% Res Furnace - NEW'!AV20+'Res .95+% Res Furnace - Replace'!AW20+'Programmable Thermostats'!AW20+'Comm 95+ Furnace - New'!AW20+'Comm 95+% Furnace - Replace'!AW20+Custom!AW20,0) -> 2157 | AZ20: 40599 | BB20: =+ROUND('Res .95+% Res Furnace - NEW'!BA20+'Res .95+% Res Furnace - Replace'!BB20+'Programmable Thermostats'!BB20+'Comm 95+ Furnace - New'!BB20+'Comm 95+% Furnace - Replace'!BB20+Custom!BB20,0) -> 0 | BC20: =+ROUND('Res .95+% Res Furnace - NEW'!BB20+'Res .95+% Res Furnace - Replace'!BC20+'Programmable Thermostats'!BC20+'Comm 95+ Furnace - New'!BC20+'Comm 95+% Furnace - Replace'!BC20+Custom!BC20,0) -> 0 | BD20: 0 | BE20: 40599 | BH20: 2022 | BI20: =+ROUND('Res .95+% Res Furnace - NEW'!BH20+'Res .95+% Res Furnace - Replace'!BI20+'Programmable Thermostats'!BI20+'Comm 95+ Furnace - New'!BI20+'Comm 95+% Furnace - Replace'!BI20+Custom!BI20,0) -> 0 | BJ20: =+ROUND('Res .95+% Res Furnace - NEW'!BI20+'Res .95+% Res Furnace - Replace'!BJ20+'Programmable Thermostats'!BJ20+'Comm 95+ Furnace - New'!BJ20+'Comm 95+% Furnace - Replace'!BJ20+Custom!BJ20,0) -> 5135 | BL20: =+ROUND('Res .95+% Res Furnace - NEW'!BK20+'Res .95+% Res Furnace - Replace'!BL20+'Programmable Thermostats'!BL20+'Comm 95+ Furnace - New'!BL20+'Comm 95+% Furnace - Replace'!BL20+Custom!BL20,0) -> 44235 | BN20: =+ROUND('Res .95+% Res Furnace - NEW'!BM20+'Res .95+% Res Furnace - Replace'!BN20+'Programmable Thermostats'!BN20+'Comm 95+ Furnace - New'!BN20+'Comm 95+% Furnace - Replace'!BN20+Custom!BN20,0) -> 59330 | BP20: 103565 | BR20: =+ROUND('Res .95+% Res Furnace - NEW'!BQ20+'Res .95+% Res Furnace - Replace'!BR20+'Programmable Thermostats'!BR20+'Comm 95+ Furnace - New'!BR20+'Comm 95+% Furnace - Replace'!BR20+Custom!BR20,0) -> 0 | BT20: 103565 | BW20: 2022 | BX20: 19441 | BY20: 7865 | BZ20: 11136 | CA20: 38442 | CC20: 0 | CD20: 0 | CE20: 0 | CG20: 38442
A21: Escalation Rate = | E21: Escalation Rate = | J21: 9 | L21: 2023 | M21: =+ROUND('Res .95+% Res Furnace - NEW'!M21+'Res .95+% Res Furnace - Replace'!M21+'Programmable Thermostats'!M21+'Comm 95+ Furnace - New'!M21+'Comm 95+% Furnace - Replace'!M21+Custom!M21,0) -> 5135 | O21: =+ROUND('Res .95+% Res Furnace - NEW'!O21+'Res .95+% Res Furnace - Replace'!O21+'Programmable Thermostats'!O21+'Comm 95+ Furnace - New'!O21+'Comm 95+% Furnace - Replace'!O21+Custom!O21,0) -> 20124 | Q21: =+ROUND('Res .95+% Res Furnace - NEW'!Q21+'Res .95+% Res Furnace - Replace'!Q21+'Programmable Thermostats'!Q21+'Comm 95+ Furnace - New'!Q21+'Comm 95+% Furnace - Replace'!Q21+Custom!Q21,0) -> 0 | R21: 20124 | S21: =+ROUND('Res .95+% Res Furnace - NEW'!S21+'Res .95+% Res Furnace - Replace'!S21+'Programmable Thermostats'!S21+'Comm 95+ Furnace - New'!S21+'Comm 95+% Furnace - Replace'!S21+Custom!S21,0) -> 51 | U21: =+ROUND('Res .95+% Res Furnace - NEW'!U21+'Res .95+% Res Furnace - Replace'!U21+'Programmable Thermostats'!U21+'Comm 95+ Furnace - New'!U21+'Comm 95+% Furnace - Replace'!U21+Custom!U21,0) -> 7916 | V21: 28040 | X21: =+ROUND('Res .95+% Res Furnace - NEW'!X21+'Res .95+% Res Furnace - Replace'!X21+'Programmable Thermostats'!X21+'Comm 95+ Furnace - New'!X21+'Comm 95+% Furnace - Replace'!X21+Custom!X21,0) -> 8454 | Y21: =+ROUND('Res .95+% Res Furnace - NEW'!Y21+'Res .95+% Res Furnace - Replace'!Y21+'Programmable Thermostats'!Y21+'Comm 95+ Furnace - New'!Y21+'Comm 95+% Furnace - Replace'!Y21+Custom!Y21,0) -> 0 | Z21: =+ROUND('Res .95+% Res Furnace - NEW'!Z21+'Res .95+% Res Furnace - Replace'!Z21+'Programmable Thermostats'!Z21+'Comm 95+ Furnace - New'!Z21+'Comm 95+% Furnace - Replace'!Z21+Custom!Z21,0) -> 0 | AA21: 8454 | AB21: 19586 | AE21: 2023 | AF21: 20124 | AG21: 7916 | AH21: 28040 | AJ21: 0 | AK21: 0 | AL21: 0 | AN21: 28040 | AQ21: 2023 | AR21: 20124 | AS21: 7916 | AU21: =+ROUND('Res .95+% Res Furnace - NEW'!AT21+'Res .95+% Res Furnace - Replace'!AU21+'Programmable Thermostats'!AU21+'Comm 95+ Furnace - New'!AU21+'Comm 95+% Furnace - Replace'!AU21+Custom!AU21,0) -> 11444 | AW21: =+ROUND('Res .95+% Res Furnace - NEW'!AV21+'Res .95+% Res Furnace - Replace'!AW21+'Programmable Thermostats'!AW21+'Comm 95+ Furnace - New'!AW21+'Comm 95+% Furnace - Replace'!AW21+Custom!AW21,0) -> 2204 | AZ21: 41688 | BB21: =+ROUND('Res .95+% Res Furnace - NEW'!BA21+'Res .95+% Res Furnace - Replace'!BB21+'Programmable Thermostats'!BB21+'Comm 95+ Furnace - New'!BB21+'Comm 95+% Furnace - Replace'!BB21+Custom!BB21,0) -> 0 | BC21: =+ROUND('Res .95+% Res Furnace - NEW'!BB21+'Res .95+% Res Furnace - Replace'!BC21+'Programmable Thermostats'!BC21+'Comm 95+ Furnace - New'!BC21+'Comm 95+% Furnace - Replace'!BC21+Custom!BC21,0) -> 0 | BD21: 0 | BE21: 41688 | BH21: 2023 | BI21: =+ROUND('Res .95+% Res Furnace - NEW'!BH21+'Res .95+% Res Furnace - Replace'!BI21+'Programmable Thermostats'!BI21+'Comm 95+ Furnace - New'!BI21+'Comm 95+% Furnace - Replace'!BI21+Custom!BI21,0) -> 0 | BJ21: =+ROUND('Res .95+% Res Furnace - NEW'!BI21+'Res .95+% Res Furnace - Replace'!BJ21+'Programmable Thermostats'!BJ21+'Comm 95+ Furnace - New'!BJ21+'Comm 95+% Furnace - Replace'!BJ21+Custom!BJ21,0) -> 5135 | BL21: =+ROUND('Res .95+% Res Furnace - NEW'!BK21+'Res .95+% Res Furnace - Replace'!BL21+'Programmable Thermostats'!BL21+'Comm 95+ Furnace - New'!BL21+'Comm 95+% Furnace - Replace'!BL21+Custom!BL21,0) -> 45783 | BN21: =+ROUND('Res .95+% Res Furnace - NEW'!BM21+'Res .95+% Res Furnace - Replace'!BN21+'Programmable Thermostats'!BN21+'Comm 95+ Furnace - New'!BN21+'Comm 95+% Furnace - Replace'!BN21+Custom!BN21,0) -> 61495 | BP21: 107278 | BR21: =+ROUND('Res .95+% Res Furnace - NEW'!BQ21+'Res .95+% Res Furnace - Replace'!BR21+'Programmable Thermostats'!BR21+'Comm 95+ Furnace - New'!BR21+'Comm 95+% Furnace - Replace'!BR21+Custom!BR21,0) -> 0 | BT21: 107278 | BW21: 2023 | BX21: 20124 | BY21: 7916 | BZ21: 11444 | CA21: 39484 | CC21: 0 | CD21: 0 | CE21: 0 | CG21: 39484 | DB21: =$J14 -> 2
J22: 10 | L22: 2024 | M22: =+ROUND('Res .95+% Res Furnace - NEW'!M22+'Res .95+% Res Furnace - Replace'!M22+'Programmable Thermostats'!M22+'Comm 95+ Furnace - New'!M22+'Comm 95+% Furnace - Replace'!M22+Custom!M22,0) -> 5135 | O22: =+ROUND('Res .95+% Res Furnace - NEW'!O22+'Res .95+% Res Furnace - Replace'!O22+'Programmable Thermostats'!O22+'Comm 95+ Furnace - New'!O22+'Comm 95+% Furnace - Replace'!O22+Custom!O22,0) -> 20827 | Q22: =+ROUND('Res .95+% Res Furnace - NEW'!Q22+'Res .95+% Res Furnace - Replace'!Q22+'Programmable Thermostats'!Q22+'Comm 95+ Furnace - New'!Q22+'Comm 95+% Furnace - Replace'!Q22+Custom!Q22,0) -> 0 | R22: 20827 | S22: =+ROUND('Res .95+% Res Furnace - NEW'!S22+'Res .95+% Res Furnace - Replace'!S22+'Programmable Thermostats'!S22+'Comm 95+ Furnace - New'!S22+'Comm 95+% Furnace - Replace'!S22+Custom!S22,0) -> 51 | U22: =+ROUND('Res .95+% Res Furnace - NEW'!U22+'Res .95+% Res Furnace - Replace'!U22+'Programmable Thermostats'!U22+'Comm 95+ Furnace - New'!U22+'Comm 95+% Furnace - Replace'!U22+Custom!U22,0) -> 8018 | V22: 28845 | X22: =+ROUND('Res .95+% Res Furnace - NEW'!X22+'Res .95+% Res Furnace - Replace'!X22+'Programmable Thermostats'!X22+'Comm 95+ Furnace - New'!X22+'Comm 95+% Furnace - Replace'!X22+Custom!X22,0) -> 8751 | Y22: =+ROUND('Res .95+% Res Furnace - NEW'!Y22+'Res .95+% Res Furnace - Replace'!Y22+'Programmable Thermostats'!Y22+'Comm 95+ Furnace - New'!Y22+'Comm 95+% Furnace - Replace'!Y22+Custom!Y22,0) -> 0 | Z22: =+ROUND('Res .95+% Res Furnace - NEW'!Z22+'Res .95+% Res Furnace - Replace'!Z22+'Programmable Thermostats'!Z22+'Comm 95+ Furnace - New'!Z22+'Comm 95+% Furnace - Replace'!Z22+Custom!Z22,0) -> 0 | AA22: 8751 | AB22: 20094 | AE22: 2024 | AF22: 20827 | AG22: 8018 | AH22: 28845 | AJ22: 0 | AK22: 0 | AL22: 0 | AN22: 28845 | AQ22: 2024 | AR22: 20827 | AS22: 8018 | AU22: =+ROUND('Res .95+% Res Furnace - NEW'!AT22+'Res .95+% Res Furnace - Replace'!AU22+'Programmable Thermostats'!AU22+'Comm 95+ Furnace - New'!AU22+'Comm 95+% Furnace - Replace'!AU22+Custom!AU22,0) -> 11755 | AW22: =+ROUND('Res .95+% Res Furnace - NEW'!AV22+'Res .95+% Res Furnace - Replace'!AW22+'Programmable Thermostats'!AW22+'Comm 95+ Furnace - New'!AW22+'Comm 95+% Furnace - Replace'!AW22+Custom!AW22,0) -> 2254 | AZ22: 42854 | BB22: =+ROUND('Res .95+% Res Furnace - NEW'!BA22+'Res .95+% Res Furnace - Replace'!BB22+'Programmable Thermostats'!BB22+'Comm 95+ Furnace - New'!BB22+'Comm 95+% Furnace - Replace'!BB22+Custom!BB22,0) -> 0 | BC22: =+ROUND('Res .95+% Res Furnace - NEW'!BB22+'Res .95+% Res Furnace - Replace'!BC22+'Programmable Thermostats'!BC22+'Comm 95+ Furnace - New'!BC22+'Comm 95+% Furnace - Replace'!BC22+Custom!BC22,0) -> 0 | BD22: 0 | BE22: 42854 | BH22: 2024 | BI22: =+ROUND('Res .95+% Res Furnace - NEW'!BH22+'Res .95+% Res Furnace - Replace'!BI22+'Programmable Thermostats'!BI22+'Comm 95+ Furnace - New'!BI22+'Comm 95+% Furnace - Replace'!BI22+Custom!BI22,0) -> 0 | BJ22: =+ROUND('Res .95+% Res Furnace - NEW'!BI22+'Res .95+% Res Furnace - Replace'!BJ22+'Programmable Thermostats'!BJ22+'Comm 95+ Furnace - New'!BJ22+'Comm 95+% Furnace - Replace'!BJ22+Custom!BJ22,0) -> 5135 | BL22: =+ROUND('Res .95+% Res Furnace - NEW'!BK22+'Res .95+% Res Furnace - Replace'!BL22+'Programmable Thermostats'!BL22+'Comm 95+ Furnace - New'!BL22+'Comm 95+% Furnace - Replace'!BL22+Custom!BL22,0) -> 47383 | BN22: =+ROUND('Res .95+% Res Furnace - NEW'!BM22+'Res .95+% Res Furnace - Replace'!BN22+'Programmable Thermostats'!BN22+'Comm 95+ Furnace - New'!BN22+'Comm 95+% Furnace - Replace'!BN22+Custom!BN22,0) -> 63653 | BP22: 111036 | BR22: =+ROUND('Res .95+% Res Furnace - NEW'!BQ22+'Res .95+% Res Furnace - Replace'!BR22+'Programmable Thermostats'!BR22+'Comm 95+ Furnace - New'!BR22+'Comm 95+% Furnace - Replace'!BR22+Custom!BR22,0) -> 0 | BT22: 111036 | BW22: 2024 | BX22: 20827 | BY22: 8018 | BZ22: 11755 | CA22: 40600 | CC22: 0 | CD22: 0 | CE22: 0 | CG22: 40600 | DB22: =$J15 -> 3
A23: 5) Peak Reduction Factor = | E23: 20) Project Life (Years) = | J23: 11 | L23: 2025 | M23: =+ROUND('Res .95+% Res Furnace - NEW'!M23+'Res .95+% Res Furnace - Replace'!M23+'Programmable Thermostats'!M23+'Comm 95+ Furnace - New'!M23+'Comm 95+% Furnace - Replace'!M23+Custom!M23,0) -> 5135 | O23: =+ROUND('Res .95+% Res Furnace - NEW'!O23+'Res .95+% Res Furnace - Replace'!O23+'Programmable Thermostats'!O23+'Comm 95+ Furnace - New'!O23+'Comm 95+% Furnace - Replace'!O23+Custom!O23,0) -> 21556 | Q23: =+ROUND('Res .95+% Res Furnace - NEW'!Q23+'Res .95+% Res Furnace - Replace'!Q23+'Programmable Thermostats'!Q23+'Comm 95+ Furnace - New'!Q23+'Comm 95+% Furnace - Replace'!Q23+Custom!Q23,0) -> 0 | R23: 21556 | S23: =+ROUND('Res .95+% Res Furnace - NEW'!S23+'Res .95+% Res Furnace - Replace'!S23+'Programmable Thermostats'!S23+'Comm 95+ Furnace - New'!S23+'Comm 95+% Furnace - Replace'!S23+Custom!S23,0) -> 51 | U23: =+ROUND('Res .95+% Res Furnace - NEW'!U23+'Res .95+% Res Furnace - Replace'!U23+'Programmable Thermostats'!U23+'Comm 95+ Furnace - New'!U23+'Comm 95+% Furnace - Replace'!U23+Custom!U23,0) -> 8070 | V23: 29626 | X23: =+ROUND('Res .95+% Res Furnace - NEW'!X23+'Res .95+% Res Furnace - Replace'!X23+'Programmable Thermostats'!X23+'Comm 95+ Furnace - New'!X23+'Comm 95+% Furnace - Replace'!X23+Custom!X23,0) -> 9058 | Y23: =+ROUND('Res .95+% Res Furnace - NEW'!Y23+'Res .95+% Res Furnace - Replace'!Y23+'Programmable Thermostats'!Y23+'Comm 95+ Furnace - New'!Y23+'Comm 95+% Furnace - Replace'!Y23+Custom!Y23,0) -> 0 | Z23: =+ROUND('Res .95+% Res Furnace - NEW'!Z23+'Res .95+% Res Furnace - Replace'!Z23+'Programmable Thermostats'!Z23+'Comm 95+ Furnace - New'!Z23+'Comm 95+% Furnace - Replace'!Z23+Custom!Z23,0) -> 0 | AA23: 9058 | AB23: 20568 | AE23: 2025 | AF23: 21556 | AG23: 8070 | AH23: 29626 | AJ23: 0 | AK23: 0 | AL23: 0 | AN23: 29626 | AQ23: 2025 | AR23: 21556 | AS23: 8070 | AU23: =+ROUND('Res .95+% Res Furnace - NEW'!AT23+'Res .95+% Res Furnace - Replace'!AU23+'Programmable Thermostats'!AU23+'Comm 95+ Furnace - New'!AU23+'Comm 95+% Furnace - Replace'!AU23+Custom!AU23,0) -> 12373 | AW23: =+ROUND('Res .95+% Res Furnace - NEW'!AV23+'Res .95+% Res Furnace - Replace'!AW23+'Programmable Thermostats'!AW23+'Comm 95+ Furnace - New'!AW23+'Comm 95+% Furnace - Replace'!AW23+Custom!AW23,0) -> 2306 | AZ23: 44305 | BB23: =+ROUND('Res .95+% Res Furnace - NEW'!BA23+'Res .95+% Res Furnace - Replace'!BB23+'Programmable Thermostats'!BB23+'Comm 95+ Furnace - New'!BB23+'Comm 95+% Furnace - Replace'!BB23+Custom!BB23,0) -> 0 | BC23: =+ROUND('Res .95+% Res Furnace - NEW'!BB23+'Res .95+% Res Furnace - Replace'!BC23+'Programmable Thermostats'!BC23+'Comm 95+ Furnace - New'!BC23+'Comm 95+% Furnace - Replace'!BC23+Custom!BC23,0) -> 0 | BD23: 0 | BE23: 44305 | BH23: 2025 | BI23: =+ROUND('Res .95+% Res Furnace - NEW'!BH23+'Res .95+% Res Furnace - Replace'!BI23+'Programmable Thermostats'!BI23+'Comm 95+ Furnace - New'!BI23+'Comm 95+% Furnace - Replace'!BI23+Custom!BI23,0) -> 0 | BJ23: =+ROUND('Res .95+% Res Furnace - NEW'!BI23+'Res .95+% Res Furnace - Replace'!BJ23+'Programmable Thermostats'!BJ23+'Comm 95+ Furnace - New'!BJ23+'Comm 95+% Furnace - Replace'!BJ23+Custom!BJ23,0) -> 5135 | BL23: =+ROUND('Res .95+% Res Furnace - NEW'!BK23+'Res .95+% Res Furnace - Replace'!BL23+'Programmable Thermostats'!BL23+'Comm 95+ Furnace - New'!BL23+'Comm 95+% Furnace - Replace'!BL23+Custom!BL23,0) -> 49043 | BN23: =+ROUND('Res .95+% Res Furnace - NEW'!BM23+'Res .95+% Res Furnace - Replace'!BN23+'Programmable Thermostats'!BN23+'Comm 95+ Furnace - New'!BN23+'Comm 95+% Furnace - Replace'!BN23+Custom!BN23,0) -> 65819 | BP23: 114862 | BR23: =+ROUND('Res .95+% Res Furnace - NEW'!BQ23+'Res .95+% Res Furnace - Replace'!BR23+'Programmable Thermostats'!BR23+'Comm 95+ Furnace - New'!BR23+'Comm 95+% Furnace - Replace'!BR23+Custom!BR23,0) -> 0 | BT23: 114862 | BW23: 2025 | BX23: 21556 | BY23: 8070 | BZ23: 12373 | CA23: 41999 | CC23: 0 | CD23: 0 | CE23: 0 | CG23: 41999 | DB23: =$J16 -> 4
J24: 12 | L24: 2026 | M24: =+ROUND('Res .95+% Res Furnace - NEW'!M24+'Res .95+% Res Furnace - Replace'!M24+'Programmable Thermostats'!M24+'Comm 95+ Furnace - New'!M24+'Comm 95+% Furnace - Replace'!M24+Custom!M24,0) -> 4567 | O24: =+ROUND('Res .95+% Res Furnace - NEW'!O24+'Res .95+% Res Furnace - Replace'!O24+'Programmable Thermostats'!O24+'Comm 95+ Furnace - New'!O24+'Comm 95+% Furnace - Replace'!O24+Custom!O24,0) -> 19844 | Q24: =+ROUND('Res .95+% Res Furnace - NEW'!Q24+'Res .95+% Res Furnace - Replace'!Q24+'Programmable Thermostats'!Q24+'Comm 95+ Furnace - New'!Q24+'Comm 95+% Furnace - Replace'!Q24+Custom!Q24,0) -> 0 | R24: 19844 | S24: =+ROUND('Res .95+% Res Furnace - NEW'!S24+'Res .95+% Res Furnace - Replace'!S24+'Programmable Thermostats'!S24+'Comm 95+ Furnace - New'!S24+'Comm 95+% Furnace - Replace'!S24+Custom!S24,0) -> 46 | U24: =+ROUND('Res .95+% Res Furnace - NEW'!U24+'Res .95+% Res Furnace - Replace'!U24+'Programmable Thermostats'!U24+'Comm 95+ Furnace - New'!U24+'Comm 95+% Furnace - Replace'!U24+Custom!U24,0) -> 7267 | V24: 27111 | X24: =+ROUND('Res .95+% Res Furnace - NEW'!X24+'Res .95+% Res Furnace - Replace'!X24+'Programmable Thermostats'!X24+'Comm 95+ Furnace - New'!X24+'Comm 95+% Furnace - Replace'!X24+Custom!X24,0) -> 8318 | Y24: =+ROUND('Res .95+% Res Furnace - NEW'!Y24+'Res .95+% Res Furnace - Replace'!Y24+'Programmable Thermostats'!Y24+'Comm 95+ Furnace - New'!Y24+'Comm 95+% Furnace - Replace'!Y24+Custom!Y24,0) -> 0 | Z24: =+ROUND('Res .95+% Res Furnace - NEW'!Z24+'Res .95+% Res Furnace - Replace'!Z24+'Programmable Thermostats'!Z24+'Comm 95+ Furnace - New'!Z24+'Comm 95+% Furnace - Replace'!Z24+Custom!Z24,0) -> 0 | AA24: 8318 | AB24: 18793 | AE24: 2026 | AF24: 19844 | AG24: 7267 | AH24: 27111 | AJ24: 0 | AK24: 0 | AL24: 0 | AN24: 27111 | AQ24: 2026 | AR24: 19844 | AS24: 7267 | AU24: =+ROUND('Res .95+% Res Furnace - NEW'!AT24+'Res .95+% Res Furnace - Replace'!AU24+'Programmable Thermostats'!AU24+'Comm 95+ Furnace - New'!AU24+'Comm 95+% Furnace - Replace'!AU24+Custom!AU24,0) -> 12665 | AW24: =+ROUND('Res .95+% Res Furnace - NEW'!AV24+'Res .95+% Res Furnace - Replace'!AW24+'Programmable Thermostats'!AW24+'Comm 95+ Furnace - New'!AW24+'Comm 95+% Furnace - Replace'!AW24+Custom!AW24,0) -> 2101 | AZ24: 41877 | BB24: =+ROUND('Res .95+% Res Furnace - NEW'!BA24+'Res .95+% Res Furnace - Replace'!BB24+'Programmable Thermostats'!BB24+'Comm 95+ Furnace - New'!BB24+'Comm 95+% Furnace - Replace'!BB24+Custom!BB24,0) -> 0 | BC24: =+ROUND('Res .95+% Res Furnace - NEW'!BB24+'Res .95+% Res Furnace - Replace'!BC24+'Programmable Thermostats'!BC24+'Comm 95+ Furnace - New'!BC24+'Comm 95+% Furnace - Replace'!BC24+Custom!BC24,0) -> 0 | BD24: 0 | BE24: 41877 | BH24: 2026 | BI24: =+ROUND('Res .95+% Res Furnace - NEW'!BH24+'Res .95+% Res Furnace - Replace'!BI24+'Programmable Thermostats'!BI24+'Comm 95+ Furnace - New'!BI24+'Comm 95+% Furnace - Replace'!BI24+Custom!BI24,0) -> 0 | BJ24: =+ROUND('Res .95+% Res Furnace - NEW'!BI24+'Res .95+% Res Furnace - Replace'!BJ24+'Programmable Thermostats'!BJ24+'Comm 95+ Furnace - New'!BJ24+'Comm 95+% Furnace - Replace'!BJ24+Custom!BJ24,0) -> 4567 | BL24: =+ROUND('Res .95+% Res Furnace - NEW'!BK24+'Res .95+% Res Furnace - Replace'!BL24+'Programmable Thermostats'!BL24+'Comm 95+ Furnace - New'!BL24+'Comm 95+% Furnace - Replace'!BL24+Custom!BL24,0) -> 45117 | BN24: =+ROUND('Res .95+% Res Furnace - NEW'!BM24+'Res .95+% Res Furnace - Replace'!BN24+'Programmable Thermostats'!BN24+'Comm 95+ Furnace - New'!BN24+'Comm 95+% Furnace - Replace'!BN24+Custom!BN24,0) -> 68195 | BP24: 113312 | BR24: =+ROUND('Res .95+% Res Furnace - NEW'!BQ24+'Res .95+% Res Furnace - Replace'!BR24+'Programmable Thermostats'!BR24+'Comm 95+ Furnace - New'!BR24+'Comm 95+% Furnace - Replace'!BR24+Custom!BR24,0) -> 0 | BT24: 113312 | BW24: 2026 | BX24: 19844 | BY24: 7267 | BZ24: 12665 | CA24: 39776 | CC24: 0 | CD24: 0 | CE24: 0 | CG24: 39776 | DB24: =$J17 -> 5
A25: 6) Variable O&M ($/Dk) = | E25: 21) Avg. Dk/Part. Saved = | J25: 13 | L25: 2027 | M25: =+ROUND('Res .95+% Res Furnace - NEW'!M25+'Res .95+% Res Furnace - Replace'!M25+'Programmable Thermostats'!M25+'Comm 95+ Furnace - New'!M25+'Comm 95+% Furnace - Replace'!M25+Custom!M25,0) -> 4567 | O25: =+ROUND('Res .95+% Res Furnace - NEW'!O25+'Res .95+% Res Furnace - Replace'!O25+'Programmable Thermostats'!O25+'Comm 95+ Furnace - New'!O25+'Comm 95+% Furnace - Replace'!O25+Custom!O25,0) -> 20538 | Q25: =+ROUND('Res .95+% Res Furnace - NEW'!Q25+'Res .95+% Res Furnace - Replace'!Q25+'Programmable Thermostats'!Q25+'Comm 95+ Furnace - New'!Q25+'Comm 95+% Furnace - Replace'!Q25+Custom!Q25,0) -> 0 | R25: 20538 | S25: =+ROUND('Res .95+% Res Furnace - NEW'!S25+'Res .95+% Res Furnace - Replace'!S25+'Programmable Thermostats'!S25+'Comm 95+ Furnace - New'!S25+'Comm 95+% Furnace - Replace'!S25+Custom!S25,0) -> 46 | U25: =+ROUND('Res .95+% Res Furnace - NEW'!U25+'Res .95+% Res Furnace - Replace'!U25+'Programmable Thermostats'!U25+'Comm 95+ Furnace - New'!U25+'Comm 95+% Furnace - Replace'!U25+Custom!U25,0) -> 7312 | V25: 27850 | X25: =+ROUND('Res .95+% Res Furnace - NEW'!X25+'Res .95+% Res Furnace - Replace'!X25+'Programmable Thermostats'!X25+'Comm 95+ Furnace - New'!X25+'Comm 95+% Furnace - Replace'!X25+Custom!X25,0) -> 8609 | Y25: =+ROUND('Res .95+% Res Furnace - NEW'!Y25+'Res .95+% Res Furnace - Replace'!Y25+'Programmable Thermostats'!Y25+'Comm 95+ Furnace - New'!Y25+'Comm 95+% Furnace - Replace'!Y25+Custom!Y25,0) -> 0 | Z25: =+ROUND('Res .95+% Res Furnace - NEW'!Z25+'Res .95+% Res Furnace - Replace'!Z25+'Programmable Thermostats'!Z25+'Comm 95+ Furnace - New'!Z25+'Comm 95+% Furnace - Replace'!Z25+Custom!Z25,0) -> 0 | AA25: 8609 | AB25: 19241 | AE25: 2027 | AF25: 20538 | AG25: 7312 | AH25: 27850 | AJ25: 0 | AK25: 0 | AL25: 0 | AN25: 27850 | AQ25: 2027 | AR25: 20538 | AS25: 7312 | AU25: =+ROUND('Res .95+% Res Furnace - NEW'!AT25+'Res .95+% Res Furnace - Replace'!AU25+'Programmable Thermostats'!AU25+'Comm 95+ Furnace - New'!AU25+'Comm 95+% Furnace - Replace'!AU25+Custom!AU25,0) -> 13283 | AW25: =+ROUND('Res .95+% Res Furnace - NEW'!AV25+'Res .95+% Res Furnace - Replace'!AW25+'Programmable Thermostats'!AW25+'Comm 95+ Furnace - New'!AW25+'Comm 95+% Furnace - Replace'!AW25+Custom!AW25,0) -> 2146 | AZ25: 43279 | BB25: =+ROUND('Res .95+% Res Furnace - NEW'!BA25+'Res .95+% Res Furnace - Replace'!BB25+'Programmable Thermostats'!BB25+'Comm 95+ Furnace - New'!BB25+'Comm 95+% Furnace - Replace'!BB25+Custom!BB25,0) -> 0 | BC25: =+ROUND('Res .95+% Res Furnace - NEW'!BB25+'Res .95+% Res Furnace - Replace'!BC25+'Programmable Thermostats'!BC25+'Comm 95+ Furnace - New'!BC25+'Comm 95+% Furnace - Replace'!BC25+Custom!BC25,0) -> 0 | BD25: 0 | BE25: 43279 | BH25: 2027 | BI25: =+ROUND('Res .95+% Res Furnace - NEW'!BH25+'Res .95+% Res Furnace - Replace'!BI25+'Programmable Thermostats'!BI25+'Comm 95+ Furnace - New'!BI25+'Comm 95+% Furnace - Replace'!BI25+Custom!BI25,0) -> 0 | BJ25: =+ROUND('Res .95+% Res Furnace - NEW'!BI25+'Res .95+% Res Furnace - Replace'!BJ25+'Programmable Thermostats'!BJ25+'Comm 95+ Furnace - New'!BJ25+'Comm 95+% Furnace - Replace'!BJ25+Custom!BJ25,0) -> 4567 | BL25: =+ROUND('Res .95+% Res Furnace - NEW'!BK25+'Res .95+% Res Furnace - Replace'!BL25+'Programmable Thermostats'!BL25+'Comm 95+ Furnace - New'!BL25+'Comm 95+% Furnace - Replace'!BL25+Custom!BL25,0) -> 46694 | BN25: =+ROUND('Res .95+% Res Furnace - NEW'!BM25+'Res .95+% Res Furnace - Replace'!BN25+'Programmable Thermostats'!BN25+'Comm 95+ Furnace - New'!BN25+'Comm 95+% Furnace - Replace'!BN25+Custom!BN25,0) -> 70364 | BP25: 117058 | BR25: =+ROUND('Res .95+% Res Furnace - NEW'!BQ25+'Res .95+% Res Furnace - Replace'!BR25+'Programmable Thermostats'!BR25+'Comm 95+ Furnace - New'!BR25+'Comm 95+% Furnace - Replace'!BR25+Custom!BR25,0) -> 0 | BT25: 117058 | BW25: 2027 | BX25: 20538 | BY25: 7312 | BZ25: 13283 | CA25: 41133 | CC25: 0 | CD25: 0 | CE25: 0 | CG25: 41133
A26: Escalation Rate = | J26: 14 | L26: 2028 | M26: =+ROUND('Res .95+% Res Furnace - NEW'!M26+'Res .95+% Res Furnace - Replace'!M26+'Programmable Thermostats'!M26+'Comm 95+ Furnace - New'!M26+'Comm 95+% Furnace - Replace'!M26+Custom!M26,0) -> 4567 | O26: =+ROUND('Res .95+% Res Furnace - NEW'!O26+'Res .95+% Res Furnace - Replace'!O26+'Programmable Thermostats'!O26+'Comm 95+ Furnace - New'!O26+'Comm 95+% Furnace - Replace'!O26+Custom!O26,0) -> 21254 | Q26: =+ROUND('Res .95+% Res Furnace - NEW'!Q26+'Res .95+% Res Furnace - Replace'!Q26+'Programmable Thermostats'!Q26+'Comm 95+ Furnace - New'!Q26+'Comm 95+% Furnace - Replace'!Q26+Custom!Q26,0) -> 0 | R26: 21254 | S26: =+ROUND('Res .95+% Res Furnace - NEW'!S26+'Res .95+% Res Furnace - Replace'!S26+'Programmable Thermostats'!S26+'Comm 95+ Furnace - New'!S26+'Comm 95+% Furnace - Replace'!S26+Custom!S26,0) -> 46 | U26: =+ROUND('Res .95+% Res Furnace - NEW'!U26+'Res .95+% Res Furnace - Replace'!U26+'Programmable Thermostats'!U26+'Comm 95+ Furnace - New'!U26+'Comm 95+% Furnace - Replace'!U26+Custom!U26,0) -> 7403 | V26: 28657 | X26: =+ROUND('Res .95+% Res Furnace - NEW'!X26+'Res .95+% Res Furnace - Replace'!X26+'Programmable Thermostats'!X26+'Comm 95+ Furnace - New'!X26+'Comm 95+% Furnace - Replace'!X26+Custom!X26,0) -> 8912 | Y26: =+ROUND('Res .95+% Res Furnace - NEW'!Y26+'Res .95+% Res Furnace - Replace'!Y26+'Programmable Thermostats'!Y26+'Comm 95+ Furnace - New'!Y26+'Comm 95+% Furnace - Replace'!Y26+Custom!Y26,0) -> 0 | Z26: =+ROUND('Res .95+% Res Furnace - NEW'!Z26+'Res .95+% Res Furnace - Replace'!Z26+'Programmable Thermostats'!Z26+'Comm 95+ Furnace - New'!Z26+'Comm 95+% Furnace - Replace'!Z26+Custom!Z26,0) -> 0 | AA26: 8912 | AB26: 19745 | AE26: 2028 | AF26: 21254 | AG26: 7403 | AH26: 28657 | AJ26: 0 | AK26: 0 | AL26: 0 | AN26: 28657 | AQ26: 2028 | AR26: 21254 | AS26: 7403 | AU26: =+ROUND('Res .95+% Res Furnace - NEW'!AT26+'Res .95+% Res Furnace - Replace'!AU26+'Programmable Thermostats'!AU26+'Comm 95+ Furnace - New'!AU26+'Comm 95+% Furnace - Replace'!AU26+Custom!AU26,0) -> 13591 | AW26: =+ROUND('Res .95+% Res Furnace - NEW'!AV26+'Res .95+% Res Furnace - Replace'!AW26+'Programmable Thermostats'!AW26+'Comm 95+ Furnace - New'!AW26+'Comm 95+% Furnace - Replace'!AW26+Custom!AW26,0) -> 2197 | AZ26: 44445 | BB26: =+ROUND('Res .95+% Res Furnace - NEW'!BA26+'Res .95+% Res Furnace - Replace'!BB26+'Programmable Thermostats'!BB26+'Comm 95+ Furnace - New'!BB26+'Comm 95+% Furnace - Replace'!BB26+Custom!BB26,0) -> 0 | BC26: =+ROUND('Res .95+% Res Furnace - NEW'!BB26+'Res .95+% Res Furnace - Replace'!BC26+'Programmable Thermostats'!BC26+'Comm 95+ Furnace - New'!BC26+'Comm 95+% Furnace - Replace'!BC26+Custom!BC26,0) -> 0 | BD26: 0 | BE26: 44445 | BH26: 2028 | BI26: =+ROUND('Res .95+% Res Furnace - NEW'!BH26+'Res .95+% Res Furnace - Replace'!BI26+'Programmable Thermostats'!BI26+'Comm 95+ Furnace - New'!BI26+'Comm 95+% Furnace - Replace'!BI26+Custom!BI26,0) -> 0 | BJ26: =+ROUND('Res .95+% Res Furnace - NEW'!BI26+'Res .95+% Res Furnace - Replace'!BJ26+'Programmable Thermostats'!BJ26+'Comm 95+ Furnace - New'!BJ26+'Comm 95+% Furnace - Replace'!BJ26+Custom!BJ26,0) -> 4567 | BL26: =+ROUND('Res .95+% Res Furnace - NEW'!BK26+'Res .95+% Res Furnace - Replace'!BL26+'Programmable Thermostats'!BL26+'Comm 95+ Furnace - New'!BL26+'Comm 95+% Furnace - Replace'!BL26+Custom!BL26,0) -> 48329 | BN26: =+ROUND('Res .95+% Res Furnace - NEW'!BM26+'Res .95+% Res Furnace - Replace'!BN26+'Programmable Thermostats'!BN26+'Comm 95+ Furnace - New'!BN26+'Comm 95+% Furnace - Replace'!BN26+Custom!BN26,0) -> 72828 | BP26: 121157 | BR26: =+ROUND('Res .95+% Res Furnace - NEW'!BQ26+'Res .95+% Res Furnace - Replace'!BR26+'Programmable Thermostats'!BR26+'Comm 95+ Furnace - New'!BR26+'Comm 95+% Furnace - Replace'!BR26+Custom!BR26,0) -> 0 | BT26: 121157 | BW26: 2028 | BX26: 21254 | BY26: 7403 | BZ26: 13591 | CA26: 42248 | CC26: 0 | CD26: 0 | CE26: 0 | CG26: 42248
E27: 22) Avg Non-Gas Fuel Units/Part. Saved = | J27: 15 | L27: 2029 | M27: =+ROUND('Res .95+% Res Furnace - NEW'!M27+'Res .95+% Res Furnace - Replace'!M27+'Programmable Thermostats'!M27+'Comm 95+ Furnace - New'!M27+'Comm 95+% Furnace - Replace'!M27+Custom!M27,0) -> 4567 | O27: =+ROUND('Res .95+% Res Furnace - NEW'!O27+'Res .95+% Res Furnace - Replace'!O27+'Programmable Thermostats'!O27+'Comm 95+ Furnace - New'!O27+'Comm 95+% Furnace - Replace'!O27+Custom!O27,0) -> 21998 | Q27: =+ROUND('Res .95+% Res Furnace - NEW'!Q27+'Res .95+% Res Furnace - Replace'!Q27+'Programmable Thermostats'!Q27+'Comm 95+ Furnace - New'!Q27+'Comm 95+% Furnace - Replace'!Q27+Custom!Q27,0) -> 0 | R27: 21998 | S27: =+ROUND('Res .95+% Res Furnace - NEW'!S27+'Res .95+% Res Furnace - Replace'!S27+'Programmable Thermostats'!S27+'Comm 95+ Furnace - New'!S27+'Comm 95+% Furnace - Replace'!S27+Custom!S27,0) -> 46 | U27: =+ROUND('Res .95+% Res Furnace - NEW'!U27+'Res .95+% Res Furnace - Replace'!U27+'Programmable Thermostats'!U27+'Comm 95+ Furnace - New'!U27+'Comm 95+% Furnace - Replace'!U27+Custom!U27,0) -> 7495 | V27: 29493 | X27: =+ROUND('Res .95+% Res Furnace - NEW'!X27+'Res .95+% Res Furnace - Replace'!X27+'Programmable Thermostats'!X27+'Comm 95+ Furnace - New'!X27+'Comm 95+% Furnace - Replace'!X27+Custom!X27,0) -> 9224 | Y27: =+ROUND('Res .95+% Res Furnace - NEW'!Y27+'Res .95+% Res Furnace - Replace'!Y27+'Programmable Thermostats'!Y27+'Comm 95+ Furnace - New'!Y27+'Comm 95+% Furnace - Replace'!Y27+Custom!Y27,0) -> 0 | Z27: =+ROUND('Res .95+% Res Furnace - NEW'!Z27+'Res .95+% Res Furnace - Replace'!Z27+'Programmable Thermostats'!Z27+'Comm 95+ Furnace - New'!Z27+'Comm 95+% Furnace - Replace'!Z27+Custom!Z27,0) -> 0 | AA27: 9224 | AB27: 20269 | AE27: 2029 | AF27: 21998 | AG27: 7495 | AH27: 29493 | AJ27: 0 | AK27: 0 | AL27: 0 | AN27: 29493 | AQ27: 2029 | AR27: 21998 | AS27: 7495 | AU27: =+ROUND('Res .95+% Res Furnace - NEW'!AT27+'Res .95+% Res Furnace - Replace'!AU27+'Programmable Thermostats'!AU27+'Comm 95+ Furnace - New'!AU27+'Comm 95+% Furnace - Replace'!AU27+Custom!AU27,0) -> 14210 | AW27: =+ROUND('Res .95+% Res Furnace - NEW'!AV27+'Res .95+% Res Furnace - Replace'!AW27+'Programmable Thermostats'!AW27+'Comm 95+ Furnace - New'!AW27+'Comm 95+% Furnace - Replace'!AW27+Custom!AW27,0) -> 2247 | AZ27: 45950 | BB27: =+ROUND('Res .95+% Res Furnace - NEW'!BA27+'Res .95+% Res Furnace - Replace'!BB27+'Programmable Thermostats'!BB27+'Comm 95+ Furnace - New'!BB27+'Comm 95+% Furnace - Replace'!BB27+Custom!BB27,0) -> 0 | BC27: =+ROUND('Res .95+% Res Furnace - NEW'!BB27+'Res .95+% Res Furnace - Replace'!BC27+'Programmable Thermostats'!BC27+'Comm 95+ Furnace - New'!BC27+'Comm 95+% Furnace - Replace'!BC27+Custom!BC27,0) -> 0 | BD27: 0 | BE27: 45950 | BH27: 2029 | BI27: =+ROUND('Res .95+% Res Furnace - NEW'!BH27+'Res .95+% Res Furnace - Replace'!BI27+'Programmable Thermostats'!BI27+'Comm 95+ Furnace - New'!BI27+'Comm 95+% Furnace - Replace'!BI27+Custom!BI27,0) -> 0 | BJ27: =+ROUND('Res .95+% Res Furnace - NEW'!BI27+'Res .95+% Res Furnace - Replace'!BJ27+'Programmable Thermostats'!BJ27+'Comm 95+ Furnace - New'!BJ27+'Comm 95+% Furnace - Replace'!BJ27+Custom!BJ27,0) -> 4567 | BL27: =+ROUND('Res .95+% Res Furnace - NEW'!BK27+'Res .95+% Res Furnace - Replace'!BL27+'Programmable Thermostats'!BL27+'Comm 95+ Furnace - New'!BL27+'Comm 95+% Furnace - Replace'!BL27+Custom!BL27,0) -> 50023 | BN27: =+ROUND('Res .95+% Res Furnace - NEW'!BM27+'Res .95+% Res Furnace - Replace'!BN27+'Programmable Thermostats'!BN27+'Comm 95+ Furnace - New'!BN27+'Comm 95+% Furnace - Replace'!BN27+Custom!BN27,0) -> 75603 | BP27: 125626 | BR27: =+ROUND('Res .95+% Res Furnace - NEW'!BQ27+'Res .95+% Res Furnace - Replace'!BR27+'Programmable Thermostats'!BR27+'Comm 95+ Furnace - New'!BR27+'Comm 95+% Furnace - Replace'!BR27+Custom!BR27,0) -> 0 | BT27: 125626 | BW27: 2029 | BX27: 21998 | BY27: 7495 | BZ27: 14210 | CA27: 43703 | CC27: 0 | CD27: 0 | CE27: 0 | CG27: 43703
A28: 7) Non-Gas Fuel Cost ($/Fuel Unit) = | E28: 22a) Avg Additional Non-Gas Fuel Units/ Part. Used = | J28: 16 | L28: 2030 | M28: =+ROUND('Res .95+% Res Furnace - NEW'!M28+'Res .95+% Res Furnace - Replace'!M28+'Programmable Thermostats'!M28+'Comm 95+ Furnace - New'!M28+'Comm 95+% Furnace - Replace'!M28+Custom!M28,0) -> 4567 | O28: =+ROUND('Res .95+% Res Furnace - NEW'!O28+'Res .95+% Res Furnace - Replace'!O28+'Programmable Thermostats'!O28+'Comm 95+ Furnace - New'!O28+'Comm 95+% Furnace - Replace'!O28+Custom!O28,0) -> 22772 | Q28: =+ROUND('Res .95+% Res Furnace - NEW'!Q28+'Res .95+% Res Furnace - Replace'!Q28+'Programmable Thermostats'!Q28+'Comm 95+ Furnace - New'!Q28+'Comm 95+% Furnace - Replace'!Q28+Custom!Q28,0) -> 0 | R28: 22772 | S28: =+ROUND('Res .95+% Res Furnace - NEW'!S28+'Res .95+% Res Furnace - Replace'!S28+'Programmable Thermostats'!S28+'Comm 95+ Furnace - New'!S28+'Comm 95+% Furnace - Replace'!S28+Custom!S28,0) -> 46 | U28: =+ROUND('Res .95+% Res Furnace - NEW'!U28+'Res .95+% Res Furnace - Replace'!U28+'Programmable Thermostats'!U28+'Comm 95+ Furnace - New'!U28+'Comm 95+% Furnace - Replace'!U28+Custom!U28,0) -> 7541 | V28: 30313 | X28: =+ROUND('Res .95+% Res Furnace - NEW'!X28+'Res .95+% Res Furnace - Replace'!X28+'Programmable Thermostats'!X28+'Comm 95+ Furnace - New'!X28+'Comm 95+% Furnace - Replace'!X28+Custom!X28,0) -> 9546 | Y28: =+ROUND('Res .95+% Res Furnace - NEW'!Y28+'Res .95+% Res Furnace - Replace'!Y28+'Programmable Thermostats'!Y28+'Comm 95+ Furnace - New'!Y28+'Comm 95+% Furnace - Replace'!Y28+Custom!Y28,0) -> 0 | Z28: =+ROUND('Res .95+% Res Furnace - NEW'!Z28+'Res .95+% Res Furnace - Replace'!Z28+'Programmable Thermostats'!Z28+'Comm 95+ Furnace - New'!Z28+'Comm 95+% Furnace - Replace'!Z28+Custom!Z28,0) -> 0 | AA28: 9546 | AB28: 20767 | AE28: 2030 | AF28: 22772 | AG28: 7541 | AH28: 30313 | AJ28: 0 | AK28: 0 | AL28: 0 | AN28: 30313 | AQ28: 2030 | AR28: 22772 | AS28: 7541 | AU28: =+ROUND('Res .95+% Res Furnace - NEW'!AT28+'Res .95+% Res Furnace - Replace'!AU28+'Programmable Thermostats'!AU28+'Comm 95+ Furnace - New'!AU28+'Comm 95+% Furnace - Replace'!AU28+Custom!AU28,0) -> 14519 | AW28: =+ROUND('Res .95+% Res Furnace - NEW'!AV28+'Res .95+% Res Furnace - Replace'!AW28+'Programmable Thermostats'!AW28+'Comm 95+ Furnace - New'!AW28+'Comm 95+% Furnace - Replace'!AW28+Custom!AW28,0) -> 2302 | AZ28: 47134 | BB28: =+ROUND('Res .95+% Res Furnace - NEW'!BA28+'Res .95+% Res Furnace - Replace'!BB28+'Programmable Thermostats'!BB28+'Comm 95+ Furnace - New'!BB28+'Comm 95+% Furnace - Replace'!BB28+Custom!BB28,0) -> 0 | BC28: =+ROUND('Res .95+% Res Furnace - NEW'!BB28+'Res .95+% Res Furnace - Replace'!BC28+'Programmable Thermostats'!BC28+'Comm 95+ Furnace - New'!BC28+'Comm 95+% Furnace - Replace'!BC28+Custom!BC28,0) -> 0 | BD28: 0 | BE28: 47134 | BH28: 2030 | BI28: =+ROUND('Res .95+% Res Furnace - NEW'!BH28+'Res .95+% Res Furnace - Replace'!BI28+'Programmable Thermostats'!BI28+'Comm 95+ Furnace - New'!BI28+'Comm 95+% Furnace - Replace'!BI28+Custom!BI28,0) -> 0 | BJ28: =+ROUND('Res .95+% Res Furnace - NEW'!BI28+'Res .95+% Res Furnace - Replace'!BJ28+'Programmable Thermostats'!BJ28+'Comm 95+ Furnace - New'!BJ28+'Comm 95+% Furnace - Replace'!BJ28+Custom!BJ28,0) -> 4567 | BL28: =+ROUND('Res .95+% Res Furnace - NEW'!BK28+'Res .95+% Res Furnace - Replace'!BL28+'Programmable Thermostats'!BL28+'Comm 95+ Furnace - New'!BL28+'Comm 95+% Furnace - Replace'!BL28+Custom!BL28,0) -> 51772 | BN28: =+ROUND('Res .95+% Res Furnace - NEW'!BM28+'Res .95+% Res Furnace - Replace'!BN28+'Programmable Thermostats'!BN28+'Comm 95+ Furnace - New'!BN28+'Comm 95+% Furnace - Replace'!BN28+Custom!BN28,0) -> 78074 | BP28: 129846 | BR28: =+ROUND('Res .95+% Res Furnace - NEW'!BQ28+'Res .95+% Res Furnace - Replace'!BR28+'Programmable Thermostats'!BR28+'Comm 95+ Furnace - New'!BR28+'Comm 95+% Furnace - Replace'!BR28+Custom!BR28,0) -> 0 | BT28: 129846 | BW28: 2030 | BX28: 22772 | BY28: 7541 | BZ28: 14519 | CA28: 44832 | CC28: 0 | CD28: 0 | CE28: 0 | CG28: 44832
A29: Escalation Rate = | J29: 17 | L29: 2031 | M29: =+ROUND('Res .95+% Res Furnace - NEW'!M29+'Res .95+% Res Furnace - Replace'!M29+'Programmable Thermostats'!M29+'Comm 95+ Furnace - New'!M29+'Comm 95+% Furnace - Replace'!M29+Custom!M29,0) -> 4567 | O29: =+ROUND('Res .95+% Res Furnace - NEW'!O29+'Res .95+% Res Furnace - Replace'!O29+'Programmable Thermostats'!O29+'Comm 95+ Furnace - New'!O29+'Comm 95+% Furnace - Replace'!O29+Custom!O29,0) -> 23566 | Q29: =+ROUND('Res .95+% Res Furnace - NEW'!Q29+'Res .95+% Res Furnace - Replace'!Q29+'Programmable Thermostats'!Q29+'Comm 95+ Furnace - New'!Q29+'Comm 95+% Furnace - Replace'!Q29+Custom!Q29,0) -> 0 | R29: 23566 | S29: =+ROUND('Res .95+% Res Furnace - NEW'!S29+'Res .95+% Res Furnace - Replace'!S29+'Programmable Thermostats'!S29+'Comm 95+ Furnace - New'!S29+'Comm 95+% Furnace - Replace'!S29+Custom!S29,0) -> 46 | U29: =+ROUND('Res .95+% Res Furnace - NEW'!U29+'Res .95+% Res Furnace - Replace'!U29+'Programmable Thermostats'!U29+'Comm 95+ Furnace - New'!U29+'Comm 95+% Furnace - Replace'!U29+Custom!U29,0) -> 7632 | V29: 31198 | X29: =+ROUND('Res .95+% Res Furnace - NEW'!X29+'Res .95+% Res Furnace - Replace'!X29+'Programmable Thermostats'!X29+'Comm 95+ Furnace - New'!X29+'Comm 95+% Furnace - Replace'!X29+Custom!X29,0) -> 9882 | Y29: =+ROUND('Res .95+% Res Furnace - NEW'!Y29+'Res .95+% Res Furnace - Replace'!Y29+'Programmable Thermostats'!Y29+'Comm 95+ Furnace - New'!Y29+'Comm 95+% Furnace - Replace'!Y29+Custom!Y29,0) -> 0 | Z29: =+ROUND('Res .95+% Res Furnace - NEW'!Z29+'Res .95+% Res Furnace - Replace'!Z29+'Programmable Thermostats'!Z29+'Comm 95+ Furnace - New'!Z29+'Comm 95+% Furnace - Replace'!Z29+Custom!Z29,0) -> 0 | AA29: 9882 | AB29: 21316 | AE29: 2031 | AF29: 23566 | AG29: 7632 | AH29: 31198 | AJ29: 0 | AK29: 0 | AL29: 0 | AN29: 31198 | AQ29: 2031 | AR29: 23566 | AS29: 7632 | AU29: =+ROUND('Res .95+% Res Furnace - NEW'!AT29+'Res .95+% Res Furnace - Replace'!AU29+'Programmable Thermostats'!AU29+'Comm 95+ Furnace - New'!AU29+'Comm 95+% Furnace - Replace'!AU29+Custom!AU29,0) -> 15137 | AW29: =+ROUND('Res .95+% Res Furnace - NEW'!AV29+'Res .95+% Res Furnace - Replace'!AW29+'Programmable Thermostats'!AW29+'Comm 95+ Furnace - New'!AW29+'Comm 95+% Furnace - Replace'!AW29+Custom!AW29,0) -> 2351 | AZ29: 48686 | BB29: =+ROUND('Res .95+% Res Furnace - NEW'!BA29+'Res .95+% Res Furnace - Replace'!BB29+'Programmable Thermostats'!BB29+'Comm 95+ Furnace - New'!BB29+'Comm 95+% Furnace - Replace'!BB29+Custom!BB29,0) -> 0 | BC29: =+ROUND('Res .95+% Res Furnace - NEW'!BB29+'Res .95+% Res Furnace - Replace'!BC29+'Programmable Thermostats'!BC29+'Comm 95+ Furnace - New'!BC29+'Comm 95+% Furnace - Replace'!BC29+Custom!BC29,0) -> 0 | BD29: 0 | BE29: 48686 | BH29: 2031 | BI29: =+ROUND('Res .95+% Res Furnace - NEW'!BH29+'Res .95+% Res Furnace - Replace'!BI29+'Programmable Thermostats'!BI29+'Comm 95+ Furnace - New'!BI29+'Comm 95+% Furnace - Replace'!BI29+Custom!BI29,0) -> 0 | BJ29: =+ROUND('Res .95+% Res Furnace - NEW'!BI29+'Res .95+% Res Furnace - Replace'!BJ29+'Programmable Thermostats'!BJ29+'Comm 95+ Furnace - New'!BJ29+'Comm 95+% Furnace - Replace'!BJ29+Custom!BJ29,0) -> 4567 | BL29: =+ROUND('Res .95+% Res Furnace - NEW'!BK29+'Res .95+% Res Furnace - Replace'!BL29+'Programmable Thermostats'!BL29+'Comm 95+ Furnace - New'!BL29+'Comm 95+% Furnace - Replace'!BL29+Custom!BL29,0) -> 53583 | BN29: =+ROUND('Res .95+% Res Furnace - NEW'!BM29+'Res .95+% Res Furnace - Replace'!BN29+'Programmable Thermostats'!BN29+'Comm 95+ Furnace - New'!BN29+'Comm 95+% Furnace - Replace'!BN29+Custom!BN29,0) -> 80854 | BP29: 134437 | BR29: =+ROUND('Res .95+% Res Furnace - NEW'!BQ29+'Res .95+% Res Furnace - Replace'!BR29+'Programmable Thermostats'!BR29+'Comm 95+ Furnace - New'!BR29+'Comm 95+% Furnace - Replace'!BR29+Custom!BR29,0) -> 0 | BT29: 134437 | BW29: 2031 | BX29: 23566 | BY29: 7632 | BZ29: 15137 | CA29: 46335 | CC29: 0 | CD29: 0 | CE29: 0 | CG29: 46335
E30: 23) Number of Participants = | F30: =+'Res .95+% Res Furnace - NEW'!F30+'Res .95+% Res Furnace - Replace'!F30+'Programmable Thermostats'!F30+'Comm 95+ Furnace - New'!F30+'Comm 95+% Furnace - Replace'!F30+Custom!F30 -> 618 | J30: 18 | L30: 2032 | M30: =+ROUND('Res .95+% Res Furnace - NEW'!M30+'Res .95+% Res Furnace - Replace'!M30+'Programmable Thermostats'!M30+'Comm 95+ Furnace - New'!M30+'Comm 95+% Furnace - Replace'!M30+Custom!M30,0) -> 4567 | O30: =+ROUND('Res .95+% Res Furnace - NEW'!O30+'Res .95+% Res Furnace - Replace'!O30+'Programmable Thermostats'!O30+'Comm 95+ Furnace - New'!O30+'Comm 95+% Furnace - Replace'!O30+Custom!O30,0) -> 24392 | Q30: =+ROUND('Res .95+% Res Furnace - NEW'!Q30+'Res .95+% Res Furnace - Replace'!Q30+'Programmable Thermostats'!Q30+'Comm 95+ Furnace - New'!Q30+'Comm 95+% Furnace - Replace'!Q30+Custom!Q30,0) -> 0 | R30: 24392 | S30: =+ROUND('Res .95+% Res Furnace - NEW'!S30+'Res .95+% Res Furnace - Replace'!S30+'Programmable Thermostats'!S30+'Comm 95+ Furnace - New'!S30+'Comm 95+% Furnace - Replace'!S30+Custom!S30,0) -> 46 | U30: =+ROUND('Res .95+% Res Furnace - NEW'!U30+'Res .95+% Res Furnace - Replace'!U30+'Programmable Thermostats'!U30+'Comm 95+ Furnace - New'!U30+'Comm 95+% Furnace - Replace'!U30+Custom!U30,0) -> 7724 | V30: 32116 | X30: =+ROUND('Res .95+% Res Furnace - NEW'!X30+'Res .95+% Res Furnace - Replace'!X30+'Programmable Thermostats'!X30+'Comm 95+ Furnace - New'!X30+'Comm 95+% Furnace - Replace'!X30+Custom!X30,0) -> 10229 | Y30: =+ROUND('Res .95+% Res Furnace - NEW'!Y30+'Res .95+% Res Furnace - Replace'!Y30+'Programmable Thermostats'!Y30+'Comm 95+ Furnace - New'!Y30+'Comm 95+% Furnace - Replace'!Y30+Custom!Y30,0) -> 0 | Z30: =+ROUND('Res .95+% Res Furnace - NEW'!Z30+'Res .95+% Res Furnace - Replace'!Z30+'Programmable Thermostats'!Z30+'Comm 95+ Furnace - New'!Z30+'Comm 95+% Furnace - Replace'!Z30+Custom!Z30,0) -> 0 | AA30: 10229 | AB30: 21887 | AE30: 2032 | AF30: 24392 | AG30: 7724 | AH30: 32116 | AJ30: 0 | AK30: 0 | AL30: 0 | AN30: 32116 | AQ30: 2032 | AR30: 24392 | AS30: 7724 | AU30: =+ROUND('Res .95+% Res Furnace - NEW'!AT30+'Res .95+% Res Furnace - Replace'!AU30+'Programmable Thermostats'!AU30+'Comm 95+ Furnace - New'!AU30+'Comm 95+% Furnace - Replace'!AU30+Custom!AU30,0) -> 15754 | AW30: =+ROUND('Res .95+% Res Furnace - NEW'!AV30+'Res .95+% Res Furnace - Replace'!AW30+'Programmable Thermostats'!AW30+'Comm 95+ Furnace - New'!AW30+'Comm 95+% Furnace - Replace'!AW30+Custom!AW30,0) -> 2407 | AZ30: 50277 | BB30: =+ROUND('Res .95+% Res Furnace - NEW'!BA30+'Res .95+% Res Furnace - Replace'!BB30+'Programmable Thermostats'!BB30+'Comm 95+ Furnace - New'!BB30+'Comm 95+% Furnace - Replace'!BB30+Custom!BB30,0) -> 0 | BC30: =+ROUND('Res .95+% Res Furnace - NEW'!BB30+'Res .95+% Res Furnace - Replace'!BC30+'Programmable Thermostats'!BC30+'Comm 95+ Furnace - New'!BC30+'Comm 95+% Furnace - Replace'!BC30+Custom!BC30,0) -> 0 | BD30: 0 | BE30: 50277 | BH30: 2032 | BI30: =+ROUND('Res .95+% Res Furnace - NEW'!BH30+'Res .95+% Res Furnace - Replace'!BI30+'Programmable Thermostats'!BI30+'Comm 95+ Furnace - New'!BI30+'Comm 95+% Furnace - Replace'!BI30+Custom!BI30,0) -> 0 | BJ30: =+ROUND('Res .95+% Res Furnace - NEW'!BI30+'Res .95+% Res Furnace - Replace'!BJ30+'Programmable Thermostats'!BJ30+'Comm 95+ Furnace - New'!BJ30+'Comm 95+% Furnace - Replace'!BJ30+Custom!BJ30,0) -> 4567 | BL30: =+ROUND('Res .95+% Res Furnace - NEW'!BK30+'Res .95+% Res Furnace - Replace'!BL30+'Programmable Thermostats'!BL30+'Comm 95+ Furnace - New'!BL30+'Comm 95+% Furnace - Replace'!BL30+Custom!BL30,0) -> 55459 | BN30: =+ROUND('Res .95+% Res Furnace - NEW'!BM30+'Res .95+% Res Furnace - Replace'!BN30+'Programmable Thermostats'!BN30+'Comm 95+ Furnace - New'!BN30+'Comm 95+% Furnace - Replace'!BN30+Custom!BN30,0) -> 83627 | BP30: 139086 | BR30: =+ROUND('Res .95+% Res Furnace - NEW'!BQ30+'Res .95+% Res Furnace - Replace'!BR30+'Programmable Thermostats'!BR30+'Comm 95+ Furnace - New'!BR30+'Comm 95+% Furnace - Replace'!BR30+Custom!BR30,0) -> 0 | BT30: 139086 | BW30: 2032 | BX30: 24392 | BY30: 7724 | BZ30: 15754 | CA30: 47870 | CC30: 0 | CD30: 0 | CE30: 0 | CG30: 47870 | DB30: =$J18 -> 6
A31: 8) Non-Gas Fuel Loss Factor | J31: 19 | L31: 2033 | M31: =+ROUND('Res .95+% Res Furnace - NEW'!M31+'Res .95+% Res Furnace - Replace'!M31+'Programmable Thermostats'!M31+'Comm 95+ Furnace - New'!M31+'Comm 95+% Furnace - Replace'!M31+Custom!M31,0) -> 4567 | O31: =+ROUND('Res .95+% Res Furnace - NEW'!O31+'Res .95+% Res Furnace - Replace'!O31+'Programmable Thermostats'!O31+'Comm 95+ Furnace - New'!O31+'Comm 95+% Furnace - Replace'!O31+Custom!O31,0) -> 25248 | Q31: =+ROUND('Res .95+% Res Furnace - NEW'!Q31+'Res .95+% Res Furnace - Replace'!Q31+'Programmable Thermostats'!Q31+'Comm 95+ Furnace - New'!Q31+'Comm 95+% Furnace - Replace'!Q31+Custom!Q31,0) -> 0 | R31: 25248 | S31: =+ROUND('Res .95+% Res Furnace - NEW'!S31+'Res .95+% Res Furnace - Replace'!S31+'Programmable Thermostats'!S31+'Comm 95+ Furnace - New'!S31+'Comm 95+% Furnace - Replace'!S31+Custom!S31,0) -> 46 | U31: =+ROUND('Res .95+% Res Furnace - NEW'!U31+'Res .95+% Res Furnace - Replace'!U31+'Programmable Thermostats'!U31+'Comm 95+ Furnace - New'!U31+'Comm 95+% Furnace - Replace'!U31+Custom!U31,0) -> 7769 | V31: 33017 | X31: =+ROUND('Res .95+% Res Furnace - NEW'!X31+'Res .95+% Res Furnace - Replace'!X31+'Programmable Thermostats'!X31+'Comm 95+ Furnace - New'!X31+'Comm 95+% Furnace - Replace'!X31+Custom!X31,0) -> 10583 | Y31: =+ROUND('Res .95+% Res Furnace - NEW'!Y31+'Res .95+% Res Furnace - Replace'!Y31+'Programmable Thermostats'!Y31+'Comm 95+ Furnace - New'!Y31+'Comm 95+% Furnace - Replace'!Y31+Custom!Y31,0) -> 0 | Z31: =+ROUND('Res .95+% Res Furnace - NEW'!Z31+'Res .95+% Res Furnace - Replace'!Z31+'Programmable Thermostats'!Z31+'Comm 95+ Furnace - New'!Z31+'Comm 95+% Furnace - Replace'!Z31+Custom!Z31,0) -> 0 | AA31: 10583 | AB31: 22434 | AE31: 2033 | AF31: 25248 | AG31: 7769 | AH31: 33017 | AJ31: 0 | AK31: 0 | AL31: 0 | AN31: 33017 | AQ31: 2033 | AR31: 25248 | AS31: 7769 | AU31: =+ROUND('Res .95+% Res Furnace - NEW'!AT31+'Res .95+% Res Furnace - Replace'!AU31+'Programmable Thermostats'!AU31+'Comm 95+ Furnace - New'!AU31+'Comm 95+% Furnace - Replace'!AU31+Custom!AU31,0) -> 16063 | AW31: =+ROUND('Res .95+% Res Furnace - NEW'!AV31+'Res .95+% Res Furnace - Replace'!AW31+'Programmable Thermostats'!AW31+'Comm 95+ Furnace - New'!AW31+'Comm 95+% Furnace - Replace'!AW31+Custom!AW31,0) -> 2461 | AZ31: 51541 | BB31: =+ROUND('Res .95+% Res Furnace - NEW'!BA31+'Res .95+% Res Furnace - Replace'!BB31+'Programmable Thermostats'!BB31+'Comm 95+ Furnace - New'!BB31+'Comm 95+% Furnace - Replace'!BB31+Custom!BB31,0) -> 0 | BC31: =+ROUND('Res .95+% Res Furnace - NEW'!BB31+'Res .95+% Res Furnace - Replace'!BC31+'Programmable Thermostats'!BC31+'Comm 95+ Furnace - New'!BC31+'Comm 95+% Furnace - Replace'!BC31+Custom!BC31,0) -> 0 | BD31: 0 | BE31: 51541 | BH31: 2033 | BI31: =+ROUND('Res .95+% Res Furnace - NEW'!BH31+'Res .95+% Res Furnace - Replace'!BI31+'Programmable Thermostats'!BI31+'Comm 95+ Furnace - New'!BI31+'Comm 95+% Furnace - Replace'!BI31+Custom!BI31,0) -> 0 | BJ31: =+ROUND('Res .95+% Res Furnace - NEW'!BI31+'Res .95+% Res Furnace - Replace'!BJ31+'Programmable Thermostats'!BJ31+'Comm 95+ Furnace - New'!BJ31+'Comm 95+% Furnace - Replace'!BJ31+Custom!BJ31,0) -> 4567 | BL31: =+ROUND('Res .95+% Res Furnace - NEW'!BK31+'Res .95+% Res Furnace - Replace'!BL31+'Programmable Thermostats'!BL31+'Comm 95+ Furnace - New'!BL31+'Comm 95+% Furnace - Replace'!BL31+Custom!BL31,0) -> 57404 | BN31: =+ROUND('Res .95+% Res Furnace - NEW'!BM31+'Res .95+% Res Furnace - Replace'!BN31+'Programmable Thermostats'!BN31+'Comm 95+ Furnace - New'!BN31+'Comm 95+% Furnace - Replace'!BN31+Custom!BN31,0) -> 86715 | BP31: 144119 | BR31: =+ROUND('Res .95+% Res Furnace - NEW'!BQ31+'Res .95+% Res Furnace - Replace'!BR31+'Programmable Thermostats'!BR31+'Comm 95+ Furnace - New'!BR31+'Comm 95+% Furnace - Replace'!BR31+Custom!BR31,0) -> 0 | BT31: 144119 | BW31: 2033 | BX31: 25248 | BY31: 7769 | BZ31: 16063 | CA31: 49080 | CC31: 0 | CD31: 0 | CE31: 0 | CG31: 49080 | DB31: =$J19 -> 7
E32: 24) Total Annual Dk Saved = | F32: =+'Res .95+% Res Furnace - NEW'!F32+'Res .95+% Res Furnace - Replace'!F32+'Programmable Thermostats'!F32+'Comm 95+ Furnace - New'!F32+'Comm 95+% Furnace - Replace'!F32+Custom!F32 -> 5135 | J32: 20 | L32: 2034 | M32: =+ROUND('Res .95+% Res Furnace - NEW'!M32+'Res .95+% Res Furnace - Replace'!M32+'Programmable Thermostats'!M32+'Comm 95+ Furnace - New'!M32+'Comm 95+% Furnace - Replace'!M32+Custom!M32,0) -> 4567 | O32: =+ROUND('Res .95+% Res Furnace - NEW'!O32+'Res .95+% Res Furnace - Replace'!O32+'Programmable Thermostats'!O32+'Comm 95+ Furnace - New'!O32+'Comm 95+% Furnace - Replace'!O32+Custom!O32,0) -> 26128 | Q32: =+ROUND('Res .95+% Res Furnace - NEW'!Q32+'Res .95+% Res Furnace - Replace'!Q32+'Programmable Thermostats'!Q32+'Comm 95+ Furnace - New'!Q32+'Comm 95+% Furnace - Replace'!Q32+Custom!Q32,0) -> 0 | R32: 26128 | S32: =+ROUND('Res .95+% Res Furnace - NEW'!S32+'Res .95+% Res Furnace - Replace'!S32+'Programmable Thermostats'!S32+'Comm 95+ Furnace - New'!S32+'Comm 95+% Furnace - Replace'!S32+Custom!S32,0) -> 46 | U32: =+ROUND('Res .95+% Res Furnace - NEW'!U32+'Res .95+% Res Furnace - Replace'!U32+'Programmable Thermostats'!U32+'Comm 95+ Furnace - New'!U32+'Comm 95+% Furnace - Replace'!U32+Custom!U32,0) -> 7860 | V32: 33988 | X32: =+ROUND('Res .95+% Res Furnace - NEW'!X32+'Res .95+% Res Furnace - Replace'!X32+'Programmable Thermostats'!X32+'Comm 95+ Furnace - New'!X32+'Comm 95+% Furnace - Replace'!X32+Custom!X32,0) -> 10956 | Y32: =+ROUND('Res .95+% Res Furnace - NEW'!Y32+'Res .95+% Res Furnace - Replace'!Y32+'Programmable Thermostats'!Y32+'Comm 95+ Furnace - New'!Y32+'Comm 95+% Furnace - Replace'!Y32+Custom!Y32,0) -> 0 | Z32: =+ROUND('Res .95+% Res Furnace - NEW'!Z32+'Res .95+% Res Furnace - Replace'!Z32+'Programmable Thermostats'!Z32+'Comm 95+ Furnace - New'!Z32+'Comm 95+% Furnace - Replace'!Z32+Custom!Z32,0) -> 0 | AA32: 10956 | AB32: 23032 | AE32: 2034 | AF32: 26128 | AG32: 7860 | AH32: 33988 | AJ32: 0 | AK32: 0 | AL32: 0 | AN32: 33988 | AQ32: 2034 | AR32: 26128 | AS32: 7860 | AU32: =+ROUND('Res .95+% Res Furnace - NEW'!AT32+'Res .95+% Res Furnace - Replace'!AU32+'Programmable Thermostats'!AU32+'Comm 95+ Furnace - New'!AU32+'Comm 95+% Furnace - Replace'!AU32+Custom!AU32,0) -> 16681 | AW32: =+ROUND('Res .95+% Res Furnace - NEW'!AV32+'Res .95+% Res Furnace - Replace'!AW32+'Programmable Thermostats'!AW32+'Comm 95+ Furnace - New'!AW32+'Comm 95+% Furnace - Replace'!AW32+Custom!AW32,0) -> 2520 | AZ32: 53189 | BB32: =+ROUND('Res .95+% Res Furnace - NEW'!BA32+'Res .95+% Res Furnace - Replace'!BB32+'Programmable Thermostats'!BB32+'Comm 95+ Furnace - New'!BB32+'Comm 95+% Furnace - Replace'!BB32+Custom!BB32,0) -> 0 | BC32: =+ROUND('Res .95+% Res Furnace - NEW'!BB32+'Res .95+% Res Furnace - Replace'!BC32+'Programmable Thermostats'!BC32+'Comm 95+ Furnace - New'!BC32+'Comm 95+% Furnace - Replace'!BC32+Custom!BC32,0) -> 0 | BD32: 0 | BE32: 53189 | BH32: 2034 | BI32: =+ROUND('Res .95+% Res Furnace - NEW'!BH32+'Res .95+% Res Furnace - Replace'!BI32+'Programmable Thermostats'!BI32+'Comm 95+ Furnace - New'!BI32+'Comm 95+% Furnace - Replace'!BI32+Custom!BI32,0) -> 0 | BJ32: =+ROUND('Res .95+% Res Furnace - NEW'!BI32+'Res .95+% Res Furnace - Replace'!BJ32+'Programmable Thermostats'!BJ32+'Comm 95+ Furnace - New'!BJ32+'Comm 95+% Furnace - Replace'!BJ32+Custom!BJ32,0) -> 4567 | BL32: =+ROUND('Res .95+% Res Furnace - NEW'!BK32+'Res .95+% Res Furnace - Replace'!BL32+'Programmable Thermostats'!BL32+'Comm 95+ Furnace - New'!BL32+'Comm 95+% Furnace - Replace'!BL32+Custom!BL32,0) -> 59410 | BN32: =+ROUND('Res .95+% Res Furnace - NEW'!BM32+'Res .95+% Res Furnace - Replace'!BN32+'Programmable Thermostats'!BN32+'Comm 95+ Furnace - New'!BN32+'Comm 95+% Furnace - Replace'!BN32+Custom!BN32,0) -> 89799 | BP32: 149209 | BR32: =+ROUND('Res .95+% Res Furnace - NEW'!BQ32+'Res .95+% Res Furnace - Replace'!BR32+'Programmable Thermostats'!BR32+'Comm 95+ Furnace - New'!BR32+'Comm 95+% Furnace - Replace'!BR32+Custom!BR32,0) -> 0 | BT32: 149209 | BW32: 2034 | BX32: 26128 | BY32: 7860 | BZ32: 16681 | CA32: 50669 | CC32: 0 | CD32: 0 | CE32: 0 | CG32: 50669 | DB32: =$J20 -> 8
A33: 9) Gas Environmental Damage Factor = | J33: 21 | L33: 2035 | M33: =+ROUND('Res .95+% Res Furnace - NEW'!M33+'Res .95+% Res Furnace - Replace'!M33+'Programmable Thermostats'!M33+'Comm 95+ Furnace - New'!M33+'Comm 95+% Furnace - Replace'!M33+Custom!M33,0) -> 4567 | O33: =+ROUND('Res .95+% Res Furnace - NEW'!O33+'Res .95+% Res Furnace - Replace'!O33+'Programmable Thermostats'!O33+'Comm 95+ Furnace - New'!O33+'Comm 95+% Furnace - Replace'!O33+Custom!O33,0) -> 27045 | Q33: =+ROUND('Res .95+% Res Furnace - NEW'!Q33+'Res .95+% Res Furnace - Replace'!Q33+'Programmable Thermostats'!Q33+'Comm 95+ Furnace - New'!Q33+'Comm 95+% Furnace - Replace'!Q33+Custom!Q33,0) -> 0 | R33: 27045 | S33: =+ROUND('Res .95+% Res Furnace - NEW'!S33+'Res .95+% Res Furnace - Replace'!S33+'Programmable Thermostats'!S33+'Comm 95+ Furnace - New'!S33+'Comm 95+% Furnace - Replace'!S33+Custom!S33,0) -> 46 | U33: =+ROUND('Res .95+% Res Furnace - NEW'!U33+'Res .95+% Res Furnace - Replace'!U33+'Programmable Thermostats'!U33+'Comm 95+ Furnace - New'!U33+'Comm 95+% Furnace - Replace'!U33+Custom!U33,0) -> 7952 | V33: 34997 | X33: =+ROUND('Res .95+% Res Furnace - NEW'!X33+'Res .95+% Res Furnace - Replace'!X33+'Programmable Thermostats'!X33+'Comm 95+ Furnace - New'!X33+'Comm 95+% Furnace - Replace'!X33+Custom!X33,0) -> 11337 | Y33: =+ROUND('Res .95+% Res Furnace - NEW'!Y33+'Res .95+% Res Furnace - Replace'!Y33+'Programmable Thermostats'!Y33+'Comm 95+ Furnace - New'!Y33+'Comm 95+% Furnace - Replace'!Y33+Custom!Y33,0) -> 0 | Z33: =+ROUND('Res .95+% Res Furnace - NEW'!Z33+'Res .95+% Res Furnace - Replace'!Z33+'Programmable Thermostats'!Z33+'Comm 95+ Furnace - New'!Z33+'Comm 95+% Furnace - Replace'!Z33+Custom!Z33,0) -> 0 | AA33: 11337 | AB33: 23660 | AE33: 2035 | AF33: 27045 | AG33: 7952 | AH33: 34997 | AJ33: 0 | AK33: 0 | AL33: 0 | AN33: 34997 | AQ33: 2035 | AR33: 27045 | AS33: 7952 | AU33: =+ROUND('Res .95+% Res Furnace - NEW'!AT33+'Res .95+% Res Furnace - Replace'!AU33+'Programmable Thermostats'!AU33+'Comm 95+ Furnace - New'!AU33+'Comm 95+% Furnace - Replace'!AU33+Custom!AU33,0) -> 17299 | AW33: =+ROUND('Res .95+% Res Furnace - NEW'!AV33+'Res .95+% Res Furnace - Replace'!AW33+'Programmable Thermostats'!AW33+'Comm 95+ Furnace - New'!AW33+'Comm 95+% Furnace - Replace'!AW33+Custom!AW33,0) -> 2575 | AZ33: 54871 | BB33: =+ROUND('Res .95+% Res Furnace - NEW'!BA33+'Res .95+% Res Furnace - Replace'!BB33+'Programmable Thermostats'!BB33+'Comm 95+ Furnace - New'!BB33+'Comm 95+% Furnace - Replace'!BB33+Custom!BB33,0) -> 0 | BC33: =+ROUND('Res .95+% Res Furnace - NEW'!BB33+'Res .95+% Res Furnace - Replace'!BC33+'Programmable Thermostats'!BC33+'Comm 95+ Furnace - New'!BC33+'Comm 95+% Furnace - Replace'!BC33+Custom!BC33,0) -> 0 | BD33: 0 | BE33: 54871 | BH33: 2035 | BI33: =+ROUND('Res .95+% Res Furnace - NEW'!BH33+'Res .95+% Res Furnace - Replace'!BI33+'Programmable Thermostats'!BI33+'Comm 95+ Furnace - New'!BI33+'Comm 95+% Furnace - Replace'!BI33+Custom!BI33,0) -> 0 | BJ33: =+ROUND('Res .95+% Res Furnace - NEW'!BI33+'Res .95+% Res Furnace - Replace'!BJ33+'Programmable Thermostats'!BJ33+'Comm 95+ Furnace - New'!BJ33+'Comm 95+% Furnace - Replace'!BJ33+Custom!BJ33,0) -> 4567 | BL33: =+ROUND('Res .95+% Res Furnace - NEW'!BK33+'Res .95+% Res Furnace - Replace'!BL33+'Programmable Thermostats'!BL33+'Comm 95+ Furnace - New'!BL33+'Comm 95+% Furnace - Replace'!BL33+Custom!BL33,0) -> 61490 | BN33: =+ROUND('Res .95+% Res Furnace - NEW'!BM33+'Res .95+% Res Furnace - Replace'!BN33+'Programmable Thermostats'!BN33+'Comm 95+ Furnace - New'!BN33+'Comm 95+% Furnace - Replace'!BN33+Custom!BN33,0) -> 92888 | BP33: 154378 | BR33: =+ROUND('Res .95+% Res Furnace - NEW'!BQ33+'Res .95+% Res Furnace - Replace'!BR33+'Programmable Thermostats'!BR33+'Comm 95+ Furnace - New'!BR33+'Comm 95+% Furnace - Replace'!BR33+Custom!BR33,0) -> 0 | BT33: 154378 | BW33: 2035 | BX33: 27045 | BY33: 7952 | BZ33: 17299 | CA33: 52296 | CC33: 0 | CD33: 0 | CE33: 0 | CG33: 52296
A34: Escalation Rate = | E34: 25) Incentive/Participant = | J34: 22 | L34: 2036 | M34: =+ROUND('Res .95+% Res Furnace - NEW'!M34+'Res .95+% Res Furnace - Replace'!M34+'Programmable Thermostats'!M34+'Comm 95+ Furnace - New'!M34+'Comm 95+% Furnace - Replace'!M34+Custom!M34,0) -> 0 | O34: =+ROUND('Res .95+% Res Furnace - NEW'!O34+'Res .95+% Res Furnace - Replace'!O34+'Programmable Thermostats'!O34+'Comm 95+ Furnace - New'!O34+'Comm 95+% Furnace - Replace'!O34+Custom!O34,0) -> 0 | Q34: =+ROUND('Res .95+% Res Furnace - NEW'!Q34+'Res .95+% Res Furnace - Replace'!Q34+'Programmable Thermostats'!Q34+'Comm 95+ Furnace - New'!Q34+'Comm 95+% Furnace - Replace'!Q34+Custom!Q34,0) -> 0 | R34: 0 | S34: =+ROUND('Res .95+% Res Furnace - NEW'!S34+'Res .95+% Res Furnace - Replace'!S34+'Programmable Thermostats'!S34+'Comm 95+ Furnace - New'!S34+'Comm 95+% Furnace - Replace'!S34+Custom!S34,0) -> 0 | U34: =+ROUND('Res .95+% Res Furnace - NEW'!U34+'Res .95+% Res Furnace - Replace'!U34+'Programmable Thermostats'!U34+'Comm 95+ Furnace - New'!U34+'Comm 95+% Furnace - Replace'!U34+Custom!U34,0) -> 0 | V34: 0 | X34: =+ROUND('Res .95+% Res Furnace - NEW'!X34+'Res .95+% Res Furnace - Replace'!X34+'Programmable Thermostats'!X34+'Comm 95+ Furnace - New'!X34+'Comm 95+% Furnace - Replace'!X34+Custom!X34,0) -> 0 | Y34: =+ROUND('Res .95+% Res Furnace - NEW'!Y34+'Res .95+% Res Furnace - Replace'!Y34+'Programmable Thermostats'!Y34+'Comm 95+ Furnace - New'!Y34+'Comm 95+% Furnace - Replace'!Y34+Custom!Y34,0) -> 0 | Z34: =+ROUND('Res .95+% Res Furnace - NEW'!Z34+'Res .95+% Res Furnace - Replace'!Z34+'Programmable Thermostats'!Z34+'Comm 95+ Furnace - New'!Z34+'Comm 95+% Furnace - Replace'!Z34+Custom!Z34,0) -> 0 | AA34: 0 | AB34: 0 | AE34: 2036 | AF34: 0 | AG34: 0 | AH34: 0 | AJ34: 0 | AK34: 0 | AL34: 0 | AN34: 0 | AQ34: 2036 | AR34: 0 | AS34: 0 | AU34: =+ROUND('Res .95+% Res Furnace - NEW'!AT34+'Res .95+% Res Furnace - Replace'!AU34+'Programmable Thermostats'!AU34+'Comm 95+ Furnace - New'!AU34+'Comm 95+% Furnace - Replace'!AU34+Custom!AU34,0) -> 0 | AW34: =+ROUND('Res .95+% Res Furnace - NEW'!AV34+'Res .95+% Res Furnace - Replace'!AW34+'Programmable Thermostats'!AW34+'Comm 95+ Furnace - New'!AW34+'Comm 95+% Furnace - Replace'!AW34+Custom!AW34,0) -> 0 | AZ34: 0 | BB34: =+ROUND('Res .95+% Res Furnace - NEW'!BA34+'Res .95+% Res Furnace - Replace'!BB34+'Programmable Thermostats'!BB34+'Comm 95+ Furnace - New'!BB34+'Comm 95+% Furnace - Replace'!BB34+Custom!BB34,0) -> 0 | BC34: =+ROUND('Res .95+% Res Furnace - NEW'!BB34+'Res .95+% Res Furnace - Replace'!BC34+'Programmable Thermostats'!BC34+'Comm 95+ Furnace - New'!BC34+'Comm 95+% Furnace - Replace'!BC34+Custom!BC34,0) -> 0 | BD34: 0 | BE34: 0 | BH34: 2036 | BI34: =+ROUND('Res .95+% Res Furnace - NEW'!BH34+'Res .95+% Res Furnace - Replace'!BI34+'Programmable Thermostats'!BI34+'Comm 95+ Furnace - New'!BI34+'Comm 95+% Furnace - Replace'!BI34+Custom!BI34,0) -> 0 | BJ34: =+ROUND('Res .95+% Res Furnace - NEW'!BI34+'Res .95+% Res Furnace - Replace'!BJ34+'Programmable Thermostats'!BJ34+'Comm 95+ Furnace - New'!BJ34+'Comm 95+% Furnace - Replace'!BJ34+Custom!BJ34,0) -> 0 | BL34: =+ROUND('Res .95+% Res Furnace - NEW'!BK34+'Res .95+% Res Furnace - Replace'!BL34+'Programmable Thermostats'!BL34+'Comm 95+ Furnace - New'!BL34+'Comm 95+% Furnace - Replace'!BL34+Custom!BL34,0) -> 0 | BN34: =+ROUND('Res .95+% Res Furnace - NEW'!BM34+'Res .95+% Res Furnace - Replace'!BN34+'Programmable Thermostats'!BN34+'Comm 95+ Furnace - New'!BN34+'Comm 95+% Furnace - Replace'!BN34+Custom!BN34,0) -> 0 | BP34: 0 | BR34: =+ROUND('Res .95+% Res Furnace - NEW'!BQ34+'Res .95+% Res Furnace - Replace'!BR34+'Programmable Thermostats'!BR34+'Comm 95+ Furnace - New'!BR34+'Comm 95+% Furnace - Replace'!BR34+Custom!BR34,0) -> 0 | BT34: 0 | BW34: 2036 | BX34: 0 | BY34: 0 | BZ34: 0 | CA34: 0 | CC34: 0 | CD34: 0 | CE34: 0 | CG34: 0
J35: 23 | L35: 2037 | M35: =+ROUND('Res .95+% Res Furnace - NEW'!M35+'Res .95+% Res Furnace - Replace'!M35+'Programmable Thermostats'!M35+'Comm 95+ Furnace - New'!M35+'Comm 95+% Furnace - Replace'!M35+Custom!M35,0) -> 0 | O35: =+ROUND('Res .95+% Res Furnace - NEW'!O35+'Res .95+% Res Furnace - Replace'!O35+'Programmable Thermostats'!O35+'Comm 95+ Furnace - New'!O35+'Comm 95+% Furnace - Replace'!O35+Custom!O35,0) -> 0 | Q35: =+ROUND('Res .95+% Res Furnace - NEW'!Q35+'Res .95+% Res Furnace - Replace'!Q35+'Programmable Thermostats'!Q35+'Comm 95+ Furnace - New'!Q35+'Comm 95+% Furnace - Replace'!Q35+Custom!Q35,0) -> 0 | R35: 0 | S35: =+ROUND('Res .95+% Res Furnace - NEW'!S35+'Res .95+% Res Furnace - Replace'!S35+'Programmable Thermostats'!S35+'Comm 95+ Furnace - New'!S35+'Comm 95+% Furnace - Replace'!S35+Custom!S35,0) -> 0 | U35: =+ROUND('Res .95+% Res Furnace - NEW'!U35+'Res .95+% Res Furnace - Replace'!U35+'Programmable Thermostats'!U35+'Comm 95+ Furnace - New'!U35+'Comm 95+% Furnace - Replace'!U35+Custom!U35,0) -> 0 | V35: 0 | X35: =+ROUND('Res .95+% Res Furnace - NEW'!X35+'Res .95+% Res Furnace - Replace'!X35+'Programmable Thermostats'!X35+'Comm 95+ Furnace - New'!X35+'Comm 95+% Furnace - Replace'!X35+Custom!X35,0) -> 0 | Y35: =+ROUND('Res .95+% Res Furnace - NEW'!Y35+'Res .95+% Res Furnace - Replace'!Y35+'Programmable Thermostats'!Y35+'Comm 95+ Furnace - New'!Y35+'Comm 95+% Furnace - Replace'!Y35+Custom!Y35,0) -> 0 | Z35: =+ROUND('Res .95+% Res Furnace - NEW'!Z35+'Res .95+% Res Furnace - Replace'!Z35+'Programmable Thermostats'!Z35+'Comm 95+ Furnace - New'!Z35+'Comm 95+% Furnace - Replace'!Z35+Custom!Z35,0) -> 0 | AA35: 0 | AB35: 0 | AE35: 2037 | AF35: =+R35 -> 0 | AG35: =+U35 -> 0 | AH35: =+AG35+AF35 -> 0 | AJ35: =ROUND(Y35,0) -> 0 | AK35: =ROUND(Z35,0) -> 0 | AL35: =SUM(AJ35:AK35) -> 0 | AN35: =+AH35-AL35 -> 0 | AQ35: 2037 | AR35: =AF35 -> 0 | AS35: =+AG35 -> 0 | AU35: =+ROUND('Res .95+% Res Furnace - NEW'!AT35+'Res .95+% Res Furnace - Replace'!AU35+'Programmable Thermostats'!AU35+'Comm 95+ Furnace - New'!AU35+'Comm 95+% Furnace - Replace'!AU35+Custom!AU35,0) -> 0 | AW35: =+ROUND('Res .95+% Res Furnace - NEW'!AV35+'Res .95+% Res Furnace - Replace'!AW35+'Programmable Thermostats'!AW35+'Comm 95+ Furnace - New'!AW35+'Comm 95+% Furnace - Replace'!AW35+Custom!AW35,0) -> 0 | AZ35: =ROUND(AR35+AS35+AU35+AW35+AY35,0) -> 0 | BB35: =+ROUND('Res .95+% Res Furnace - NEW'!BA35+'Res .95+% Res Furnace - Replace'!BB35+'Programmable Thermostats'!BB35+'Comm 95+ Furnace - New'!BB35+'Comm 95+% Furnace - Replace'!BB35+Custom!BB35,0) -> 0 | BC35: =+ROUND('Res .95+% Res Furnace - NEW'!BB35+'Res .95+% Res Furnace - Replace'!BC35+'Programmable Thermostats'!BC35+'Comm 95+ Furnace - New'!BC35+'Comm 95+% Furnace - Replace'!BC35+Custom!BC35,0) -> 0 | BD35: =BB35+BC35 -> 0 | BE35: =AZ35-BD35 -> 0 | BH35: 2037 | BI35: =+ROUND('Res .95+% Res Furnace - NEW'!BH35+'Res .95+% Res Furnace - Replace'!BI35+'Programmable Thermostats'!BI35+'Comm 95+ Furnace - New'!BI35+'Comm 95+% Furnace - Replace'!BI35+Custom!BI35,0) -> 0 | BJ35: =+ROUND('Res .95+% Res Furnace - NEW'!BI35+'Res .95+% Res Furnace - Replace'!BJ35+'Programmable Thermostats'!BJ35+'Comm 95+ Furnace - New'!BJ35+'Comm 95+% Furnace - Replace'!BJ35+Custom!BJ35,0) -> 0 | BL35: =+ROUND('Res .95+% Res Furnace - NEW'!BK35+'Res .95+% Res Furnace - Replace'!BL35+'Programmable Thermostats'!BL35+'Comm 95+ Furnace - New'!BL35+'Comm 95+% Furnace - Replace'!BL35+Custom!BL35,0) -> 0 | BN35: =+ROUND('Res .95+% Res Furnace - NEW'!BM35+'Res .95+% Res Furnace - Replace'!BN35+'Programmable Thermostats'!BN35+'Comm 95+ Furnace - New'!BN35+'Comm 95+% Furnace - Replace'!BN35+Custom!BN35,0) -> 0 | BP35: =BI35+BL35+BN35+BO35 -> 0 | BR35: =+ROUND('Res .95+% Res Furnace - NEW'!BQ35+'Res .95+% Res Furnace - Replace'!BR35+'Programmable Thermostats'!BR35+'Comm 95+ Furnace - New'!BR35+'Comm 95+% Furnace - Replace'!BR35+Custom!BR35,0) -> 0 | BT35: 0 | BW35: 2037 | BX35: 0 | BY35: =U35 -> 0 | BZ35: =AU35 -> 0 | CA35: =SUM(BX35:BZ35) -> 0 | CC35: =BB35 -> 0 | CD35: =BC35 -> 0 | CE35: =SUM(CC35:CD35) -> 0 | CG35: 0 | DB35: =$J21 -> 9
A36: 10) Non Gas Fuel Environmental Damage Factor = | E36: 26) Distribution Delivery Charge
A37: Escalation Rate = | K37: Total = | M37: =SUM(M14:M35) -> 97020 | V37: =SUM(V14:V35) -> 571017 | AA37: =SUM(AA14:AA35) -> 312714 | AB37: =SUM(AB14:AB35) -> 258303 | AD37: Total = | AH37: =SUM(AH14:AH35) -> 571017 | AL37: =SUM(AL14:AL35) -> 137149 | AN37: =SUM(AN14:AN35) -> 433868 | AP37: Total = | AZ37: =SUM(AZ14:AZ35) -> 870183 | BD37: =SUM(BD14:BD35) -> 227961 | BE37: =SUM(BE14:BE35) -> 642222 | BG37: Total = | BJ37: =SUM(BJ14:BJ35) -> 97020 | BP37: =SUM(BP14:BP35) -> 2448223 | BR37: =SUM(BR14:BR35) -> 221332 | BT37: =SUM(BT14:BT35) -> 2226891 | BZ37: Total = | CA37: =SUM(CA14:CA35) -> 826004 | CE37: =SUM(CE14:CE35) -> 227961 | CG37: =SUM(CG14:CG35) -> 598043 | DB37: =$J22 -> 10
E38: 27) Effective Income Tax Rate = | T38: NPV = | V38: =ROUND(V14+NPV($C$41,V15:V35),0) -> 305197 | AA38: =ROUND(AA14+NPV($C$41,AA15:AA35),0) -> 229693 | AB38: =ROUND(AB14+NPV($C$41,AB15:AB35),0) -> 75504 | AG38: NPV = | AH38: =ROUND(AH14+NPV($C$41,AH15:AH35),0) -> 305197 | AL38: =ROUND(AL14+NPV($C$41,AL15:AL35),0) -> 137149 | AN38: =+AH38-AL38 -> 168048 | AW38: NPV = | AZ38: =ROUND(AZ14+NPV($C$43,AZ15:AZ35),0) -> 619844 | BD38: =ROUND(BD14+NPV($C$43,BD15:BD35),0) -> 227961 | BE38: =AZ38-BD38 -> 391883 | BN38: NPV = | BP38: =ROUND(BP14+NPV($C$39,BP15:BP35),0) -> 1118586 | BR38: =ROUND(BR14+NPV($C$39,BR15:BR35),0) -> 221332 | BT38: =ROUND(BT14+NPV($C$39,BT15:BT35),0) -> 897254 | BZ38: NPV = | CA38: =ROUND(CA14+NPV($C$41,CA15:CA35),0) -> 436849 | CE38: =ROUND(CE14+NPV($C$41,CE15:CE35),0) -> 227961 | CG38: =ROUND(CG14+NPV($C$41,CG15:CG35),0) -> 208888
A39: 11) Participant Discount Rate = | C39: =+'Gas Input Table Summary'!D26 -> 0.1 | E39: (Federal & State Taxes)
K40: Total NPV = | N40: =AB38 -> 75504 | AD40: Total NPV = | AG40: =AN38 -> 168048 | AP40: Total NPV = | AS40: =BE38 -> 391883 | BG40: Total NPV = | BJ40: =BT38 -> 897254 | BV40: Total NPV = | BY40: =CG38 -> 208888 | DB40: =$J23 -> 11
A41: 12) Utility Discount Rate = | C41: =+'Gas Input Table Summary'!D27 -> 0.07216 | E41: Test Results | F41: NPV | G41: B/C | K41: Benefit/Cost Ratio = | N41: =ROUND(V38/AA38,2) -> 1.33 | AD41: Benefit/Cost Ratio = | AG41: =ROUND(AH38/AL38,2) -> 2.23 | AP41: Benefit/Cost Ratio = | AS41: =ROUND(AZ38/BD38,2) -> 2.72 | BG41: Benefit/Cost Ratio = | BJ41: =ROUND(BP38/BR38,20) -> 5.053882855 | BV41: Benefit/Cost Ratio = | BY41: =ROUND(CA38/CE38,2) -> 1.92 | DB41: =$J24 -> 12
E42: Ratepayer Impact Measure Test | F42: =N40 -> 75504 | G42: =N41 -> 1.33 | DB42: =$J25 -> 13
A43: 13) Societal Discount Rate = | C43: =+'Gas Input Table Summary'!D28 -> 0.0356 | E43: Utility Cost Test | F43: =AG40 -> 168048 | G43: =AG41 -> 2.23 | BG43: Worksheet Calculations | BV43: Worksheet Calculations | DB43: =$J26 -> 14
E44: Societal Test | F44: =AS40 -> 391883 | G44: =AS41 -> 2.72 | J44: Worksheet Calculations | AD44: Worksheet Calculations | AP44: Worksheet Calculations | BG44: (A) | BH44: = Table 1 (N) | BV44: (A) | BW44: = Table 1 (F)
A45: 14) General Input Data Year = | C45: =+'Gas Input Table Summary'!D29 -> 2014 | E45: Participant Test | F45: =BJ40 -> 897254 | G45: =BJ41 -> 5.053882855 | J45: (A) | K45: = Average Dk/Participant Saved (21) x Number of Participants (23) for Project Life (20) | T45: (I) | U45: = (G) x (H) | AD45: (A) | AE45: = Table 1 (F) | AP45: (A) | AQ45: = Table 1 (F) | AW45: (H) | AZ45: = Table 2 (F) | BG45: (B) | BH45: = Table 1 (A) | BV45: (B) | BW45: = Table 1 (I)
E46: Total Resource Cost Test | F46: =BY40 -> 208888 | G46: =BY41 -> 1.92 | J46: (B) | K46: = Commodity Cost (3) escalated | T46: (J) | U46: = (F) + (I) | AD46: (B) | AE46: = Table 1 (I) | AP46: (G) | AQ46: = Table 1 (I) | AW46: (I) | AZ46: = Direct Part. Costs (17) x No. of Part. (23) - Table 1 (N) | BG46: (C) | BH46: = Retail Rate (1) escalated. | BV46: (C) | BW46: = Table 3 (D)
A47: 15) Project Analysis Year 1 = | C47: 2016 | J47: (C) | K47: = (A) x (B) | T47: (K) | U47: = Distribution Delivery Charge (26) escalated. | AD47: (C) | AE47: = Table 1 (J) | AP47: (C) | AQ47: = Non-Gas Fuel Cost (7), adjusted for losses (8), escalated.. | AW47: (J) | AZ47: = (H) + (I) | BG47: (D) | BH47: =(B) x (C) | BV47: (D) | BW47: = (A) + (B) + (C)
J48: (D) | K48: = Variable O&M Cost (6), escalated | T48: (L) | U48: = (A) x (K) x (1-Inverse of Tax Rate (27) | AD48: (D) | AE48: = Table 1 (M) | AP48: (D) | AQ48: = (C) x [Avg. Non-Gas Fuel Units/Part.Saved (22) x No. of Part. (23) | AW48: (K) | AZ48: = (G) - (J) | BG48: (E) | BH48: = Non-Gas Fuel Retail Rate (2), escalated. | BV48: (E) | BW48: = Table 3 (H)
J49: (E) | K49: = (A) x (D) | T49: (M) | U49: = Admin & Operating Costs (16a) | AD49: (E) | AE49: = Table 1 (N) | AP49: (E) | AQ49: = Gas Environmental Damage Factor (9), escalated | BG49: (F) | BH49: = (E) x [Avg. Non-Gas Fuel Units/Part.Saved (22) x No. of Part. (23) | BV49: (F) | BW49: = Table 3 (I) | DB49: =$J27 -> 15
J50: (F) | K50: = (C) + (E) | T50: (N) | U50: = Incentive Costs (16b) | AD50: (F) | AE50: = (D) + (E) | AP50: (F) | AQ50: = Table 1 (A) x (E) | BG50: (G) | BH50: = (A) + (D) + (F) | BV50: (G) | BW50: = (E) + (F) | DB50: =$J28 -> 16
J51: (G) | K51: = (A) x Peak Reduction Factor (5) | T51: (O) | U51: = (L) + (M) + (N) | AD51: (G) | AE51: = (C) - (F) | AP51: (G) | AQ51: = (A) + (B) + (D) + (F) | BG51: (H) | BH51: = Direct Participant Costs (17) x Number of Participants (23) | BV51: (H) | BW51: = (D) - (G) | DB51: =$J29 -> 17
J52: (H) | K52: = Demand Cost (4) escalated. | T52: (P) | U52: = (J) - (O) | BG52: (I) | BH52: = (G) - (H)

Sheet Res .95+% Res Furnace - NEW
A1: NATURAL GAS CONSERVATION PROGRAMS/DEMAND-SIDE MANAGEMENT | K1: Table 1 | AC1: Table 2 | AO1: Table 3 | BF1: Table 4 | BU1: Table 5
A2: BEN/COST ANALYSIS FOR GAS CONSERVATION | K2: Ratepayer Impact Measure Test | AC2: Utility Cost Test | AO2: Societal Test | BF2: Participant Test | BU2: Total Resource Cost Test
A4: Company: | B4: Montana-Dakota Utilities Co. | K4: Company: | M4: =B4 -> Montana-Dakota Utilities Co. | AC4: Company: | AE4: =B4 -> Montana-Dakota Utilities Co. | AO4: Company: | AQ4: =AE4 -> Montana-Dakota Utilities Co. | BG4: Company: | BH4: =AQ4 -> Montana-Dakota Utilities Co. | BV4: Company: | BW4: =BH4 -> Montana-Dakota Utilities Co.
A5: Project: | B5: Residential 95+% AFUE Furnace - New | K5: Project: | M5: =$B$5 -> Residential 95+% AFUE Furnace - New | AC5: Project: | AE5: =$B$5 -> Residential 95+% AFUE Furnace - New | AO5: Project: | AQ5: =$B$5 -> Residential 95+% AFUE Furnace - New | BG5: Project: | BH5: =$B$5 -> Residential 95+% AFUE Furnace - New | BV5: Project: | BW5: =$B$5 -> Residential 95+% AFUE Furnace - New
A6: Program Years: | B6: =+'Total Program'!B6 -> 2016 Actual
N7: Benefits | X7: Costs | AE7: Benefits | AI7: Costs | AQ7: Benefits | BA7: Costs | BH7: Benefits | BQ7: Costs | BW7: Benefits | CB7: Costs
A8: Input Data | F8: 2016 | AB8: Annual | AM8: Annual | AS8: Non-Gas | BD8: Annual | BS8: Annual | CF8: Annual
M9: Total | N9: Gas | O9: Gas | P9: Variable | Q9: Variable | R9: Total | S9: Peak Dk | T9: Demand | U9: Total | W9: Distribution | Y9: Program | AA9: Total | AB9: Benefits | AE9: Total | AF9: Total | AG9: Annual | AI9: Program | AK9: Utility | AM9: Benefits | AQ9: Total | AR9: Total | AS9: Energy | AT9: Non-Gas | AU9: Environmental | AV9: Environmental | AY9: Annual | BA9: Utility | BB9: Participants' | BC9: Annual | BD9: Benefits | BI9: Total | BK9: Gas | BL9: Non-Gas | BM9: Non-Gas | BO9: Total | BQ9: Direct | BS9: Benefits | BW9: Total | BX9: Total | BY9: Non-Gas | BZ9: Total | CB9: Utility | CC9: Participants' | CF9: Benefits
A10: 1) Retail Rate ($/Dk) = | C10: =+'Gas Input Table Summary'!$D$7 -> 6.574 | E10: 16) Utility Project Costs | M10: Energy | N10: Commodity | O10: Commodity | P10: O & M | Q10: O & M | R10: Energy | S10: Demand | T10: Savings | U10: Demand | V10: Total | W10: Delivery | X10: Lost | Y10: Admin | Z10: Incentive | AA10: Program | AB10: Less | AE10: Energy | AF10: Demand | AG10: Total | AI10: Admin | AJ10: Incentive | AK10: Program | AM10: Less | AQ10: Energy | AR10: Demand | AS10: Savings | AT10: Energy | AU10: Damage | AV10: Damage | AY10: Total | BA10: Program | BB10: Costs Net | BC10: Total | BD10: Less | BH10: Incentives | BI10: Energy | BJ10: Retail | BK10: Bill | BL10: Fuel | BM10: Energy | BO10: Annual | BQ10: Participant | BS10: Less | BW10: Energy | BX10: Demand | BY10: Energy | BZ10: Annual | CB10: Program | CC10: Costs Net | CD10: Total | CF10: Less
A11: Escalation Rate = | C11: =+'Gas Input Table Summary'!$D$8 -> 0.035 | E11: 16a) Administrative & Operating Costs = | F11: =+'Total Program Inputs'!K10 -> 2804 | J11: t | M11: Reduction | N11: Cost/Dk | O11: Savings | P11: Cost/Dk | Q11: Savings | R11: Savings | S11: Reduction | T11: Per Unit | U11: Savings | V11: Savings | W11: Charge | X11: Margin | Y11: Costs | Z11: Costs | AA11: Costs | AB11: Costs | AE11: Savings | AF11: Savings | AG11: Savings | AI11: Costs | AJ11: Costs | AK11: Costs | AM11: Costs | AQ11: Savings | AR11: Savings | AS11: ($/Part.) | AT11: Savings | AU11: Savings/Dk | AV11: Savings | AY11: Savings | BA11: Costs | BB11: of Rebate | BC11: Costs | BD11: Costs | BH11: Received | BI11: Reduction | BJ11: Rate | BK11: Savings | BL11: Retail Rate | BM11: Savings | BO11: Benefits | BQ11: Costs | BS11: Costs | BW11: Savings | BX11: Savings | BY11: Savings | BZ11: Benefits | CB11: Costs | CC11: of Rebate | CD11: Costs | CF11: Costs
E12: 16b) Incentive Costs = | F12: =+'Total Program Inputs'!G10 -> 55200 | L12: Year | M12: (A) | N12: (B) | O12: (C) | P12: (D) | Q12: (E) | R12: (F) | S12: (G) | T12: (H) | U12: (I) | V12: (J) | W12: (K) | X12: (L) | Y12: (M) | Z12: (N) | AA12: (O) | AB12: (P) | AD12: Year | AE12: (A) | AF12: (B) | AG12: (C) | AI12: (D) | AJ12: (E) | AK12: (F) | AM12: (G) | AP12: Year | AQ12: (A) | AR12: (B) | AS12: (C) | AT12: (D) | AU12: (E) | AV12: (F) | AY12: (G) | BA12: (H) | BB12: (I) | BC12: (J) | BD12: (K) | BG12: Year | BH12: (A) | BI12: (B) | BJ12: (C) | BK12: (D) | BL12: (E) | BM12: (F) | BO12: (G) | BQ12: (H) | BS12: (I) | BV12: Year | BW12: (A) | BX12: (B) | BY12: (C) | BZ12: (D) | CB12: (E) | CC12: (F) | CD12: (G) | CF12: (H)
A13: 2) Non-Gas Fuel Retail Rate ($/Fuel Unit) = | C13: =+'Gas Input Table Summary'!$D$9 -> 0.14609 | E13: 16c) Total Utility Project Costs = | F13: =SUM(F11:F12) -> 58004
A14: Escalation Rate = | C14: =+'Gas Input Table Summary'!$D$10 -> 0.035 | J14: =$C$47-$C$45 -> 2 | L14: =$C$47 -> 2016 | M14: =ROUND(IF($C$47+$F$23>L14,F25*F30,0),0) -> 1435 | N14: =ROUND($C$17*(1),3) -> 2.976 | O14: =ROUND(M14*N14,0) -> 4271 | P14: =ROUND($C$25*(1+$C$26)^J14,3) -> 0 | Q14: =ROUND(M14*P14,0) -> 0 | R14: =O14+Q14 -> 4271 | S14: =ROUND(M14*$C$23,1) -> 14.4 | T14: =ROUND($C$20*(1),0) -> 142 | U14: =ROUND(S14*T14,0) -> 2045 | V14: =ROUND(+U14+R14,0) -> 6316 | W14: =ROUND($F$36*(1+$C$11)^J14,3) -> 2.026 | X14: =ROUND((1-$F$38)*(W14*M14),0) -> 1890 | Y14: =ROUND($F$11,0) -> 2804 | Z14: =ROUND($F$12,0) -> 55200 | AA14: =SUM(X14:Z14) -> 59894 | AB14: =V14-AA14 -> -53578 | AD14: =$C$47 -> 2016 | AE14: =+R14 -> 4271 | AF14: =+U14 -> 2045 | AG14: =+AF14+AE14 -> 6316 | AI14: =ROUND(Y14,0) -> 2804 | AJ14: =ROUND(Z14,0) -> 55200 | AK14: =SUM(AI14:AJ14) -> 58004 | AM14: =+AG14-AK14 -> -51688 | AP14: =$C$47 -> 2016 | AQ14: =AE14 -> 4271 | AR14: =+AF14 -> 2045 | AS14: =ROUND(($C$28/(1-$C$31))*(1+$C$29)^J14,3) -> 0.029 | AT14: =ROUND(IF($C$47+$F$23>$AP14,$F$30*$F$27,0)*AS14,0) -> 3906 | AU14: =ROUND($C$33*(1+$C$34)^J14,3) -> 0.366 | AV14: =ROUND(AU14*M14,0) -> 525 | AY14: =ROUND(AQ14+AR14+AT14+AV14+AX14,0) -> 10747 | BA14: =ROUND($F$13,0) -> 58004 | BB14: =ROUND((F15*F30)-Z14,0) -> 368 | BC14: =BA14+BB14 -> 58372 | BD14: =AY14-BC14 -> -47625 | BG14: =$C$47 -> 2016 | BH14: =+F12 -> 55200 | BI14: =+M14 -> 1435 | BJ14: =ROUND($C$10*(1+$C$11)^J14,3) -> 7.042 | BK14: =ROUND(BI14*BJ14,0) -> 10105 | BL14: =ROUND($C$13*(1+$C$14)^J14,3) -> 0.156 | BM14: =ROUND(IF($C$47+$F$23>$BG14,$F$30*$F$27,0)*BL14,0) -> 21011 | BO14: =BH14+BK14+BM14+BN14 -> 86316 | BQ14: =ROUND(F15*F30,0) -> 55568 | BS14: =BO14-BQ14 -> 30748 | BV14: =$C$47 -> 2016 | BW14: =$R14 -> 4271 | BX14: =U14 -> 2045 | BY14: =AT14 -> 3906 | BZ14: =SUM(BW14:BY14) -> 10222 | CB14: =BA14 -> 58004 | CC14: =BB14 -> 368 | CD14: =SUM(CB14:CC14) -> 58372 | CF14: =BZ14-CD14 -> -48150
A15: Non-Gas Fuel Units (ie. kWh,Gallons, etc) = | C15: =+'Gas Input Table Summary'!$D$11 -> Kwh | E15: 17) Direct Participant Costs ($/Part.) = | F15: =ROUND('Database Inputs'!K10,0) -> 302 | J15: =J14+1 -> 3 | L15: =L14+1 -> 2017 | M15: =ROUND(IF($C$47+$F$23>L15,$F$25*$F$30,0)+IF($C$48+$G$23>L15,$G$25*$G$30,0),0) -> 1435 | N15: =ROUND($C$17*(1+$C$18)^J14,3) -> 3.188 | O15: 4575 | P15: 0 | Q15: =ROUND(M15*P15,0) -> 0 | R15: 4575 | S15: =ROUND(M15*$C$23,1) -> 14.4 | T15: =ROUND($C$20*(1+$C$21)^J14,0) -> 145 | U15: =ROUND(S15*T15,0) -> 2088 | V15: =ROUND(+U15+R15,0) -> 6663 | W15: 2.097 | X15: 1956 | Y15: =ROUND($G$11,0) -> 0 | Z15: =ROUND($G$12,0) -> 0 | AA15: 1956 | AB15: 4707 | AD15: =AD14+1 -> 2017 | AE15: 4575 | AF15: 2088 | AG15: =+AF15+AE15 -> 6663 | AI15: 0 | AJ15: 0 | AK15: 0 | AM15: 6663 | AP15: =AP14+1 -> 2017 | AQ15: 4575 | AR15: 2088 | AS15: 0.03 | AT15: =ROUND((IF($C$47+$F$23>$AP15,$F$27*$F$30,0)+IF($C$48+$G$23>AP15,$G$27*$G$30,0))*AS15,0) -> 4041 | AU15: 0.375 | AV15: 538 | AY15: =ROUND(AQ15+AR15+AT15+AV15+AX15,0) -> 11242 | BA15: =ROUND($G$13,0) -> 0 | BB15: =ROUND(($G$15*$G$30)-$Z$15,0) -> 0 | BC15: =BA15+BB15 -> 0 | BD15: 11242 | BG15: =BG14+1 -> 2017 | BH15: =+G12 -> 0 | BI15: 1435 | BJ15: 7.289 | BK15: =ROUND(BI15*BJ15,0) -> 10460 | BL15: 0.162 | BM15: =ROUND((IF($C$47+$F$23>BG15,$F$27*$F$30,0)+IF($C$48+$G$23>BG15,$G$27*$G$30,0))*BL15,0) -> 21819 | BO15: 32279 | BQ15: =ROUND($G$15*$G$30,0) -> 0 | BS15: =BO15-BQ15 -> 32279 | BV15: =BV14+1 -> 2017 | BW15: 4575 | BX15: 2088 | BY15: =AT15 -> 4041 | BZ15: =SUM(BW15:BY15) -> 10704 | CB15: =BA15 -> 0 | CC15: 0 | CD15: =SUM(CB15:CC15) -> 0 | CF15: =BZ15-CD15 -> 10704
J16: 4 | L16: 2018 | M16: =ROUND(IF($C$47+$F$23>L16,$F$25*$F$30,0)+IF($C$48+$G$23>L16,$G$25*$G$30,0)+IF($C$49+$H$23>L16,$H$25*$H$30,0),0) -> 1435 | N16: =ROUND($C$17*(1+$C$18)^J15,3) -> 3.3 | O16: 4736 | P16: 0 | Q16: 0 | R16: 4736 | S16: 14.4 | T16: =ROUND($C$20*(1+$C$21)^J15,0) -> 147 | U16: =ROUND(S16*T16,0) -> 2117 | V16: 6853 | W16: 2.17 | X16: 2024 | Y16: =ROUND($H$11,0) -> 0 | Z16: =ROUND($H$12,0) -> 0 | AA16: 2024 | AB16: 4829 | AD16: 2018 | AE16: 4736 | AF16: 2117 | AG16: =+AF16+AE16 -> 6853 | AI16: 0 | AJ16: 0 | AK16: 0 | AM16: 6853 | AP16: 2018 | AQ16: 4736 | AR16: 2117 | AS16: 0.031 | AT16: =ROUND((IF($C$47+$F$23>$AP16,$F$27*$F$30,0)+IF($C$48+$G$23>AP16,$G$27*$G$30,0)+IF($C$49+$H$23>AP16,$H$27*$H$30,0))*AS16,0) -> 4175 | AU16: 0.383 | AV16: 550 | AY16: 11578 | BA16: =ROUND($H$13,0) -> 0 | BB16: =ROUND(($H$15*$H$30)-$Z$16,0) -> 0 | BC16: 0 | BD16: 11578 | BG16: 2018 | BH16: =ROUND(H12,0) -> 0 | BI16: 1435 | BJ16: 7.544 | BK16: =ROUND(BI16*BJ16,0) -> 10826 | BL16: 0.168 | BM16: =ROUND((IF($C$47+$F$23>BG16,$F$27*$F$30,0)+IF($C$49+$H$23>BG16,$H$27*$H$30,0)+IF($C$48+$G$23>BG16,$G$27*$G$30,0))*BL16,0) -> 22628 | BO16: 33454 | BQ16: =ROUND($H$15*$H$30,0) -> 0 | BS16: 33454 | BV16: 2018 | BW16: 4736 | BX16: 2117 | BY16: 4175 | BZ16: 11028 | CB16: 0 | CC16: 0 | CD16: 0 | CF16: =BZ16-CD16 -> 11028
A17: 3) Commodity Cost ($/Dk) = | C17: =+'Gas Input Table Summary'!$D$12 -> 2.976 | E17: 18) Participant Non-Energy Costs (Annual $/Part.) = | F17: =+'Gas Input Table Summary'!$D$35 -> 0 | J17: 5 | L17: 2019 | M17: =ROUND(IF($C$47+$F$23>L17,$F$25*$F$30,0)+IF($C$48+$G$23>L17,$G$25*$G$30,0)+IF($C$49+$H$23>L17,$H$25*$H$30,0),0) -> 1435 | N17: 3.415 | O17: 4901 | P17: 0 | Q17: 0 | R17: 4901 | S17: 14.4 | T17: 148 | U17: 2131 | V17: 7032 | W17: 2.246 | X17: 2095 | Y17: 0 | Z17: 0 | AA17: 2095 | AB17: 4937 | AD17: 2019 | AE17: 4901 | AF17: 2131 | AG17: 7032 | AI17: 0 | AJ17: 0 | AK17: 0 | AM17: 7032 | AP17: 2019 | AQ17: 4901 | AR17: 2131 | AS17: 0.032 | AT17: 4310 | AU17: 0.392 | AV17: 563 | AY17: 11905 | BA17: 0 | BB17: 0 | BC17: 0 | BD17: 11905 | BG17: 2019 | BH17: 0 | BI17: 1435 | BJ17: 7.808 | BK17: 11204 | BL17: 0.174 | BM17: =ROUND((IF($C$47+$F$23>BG17,$F$27*$F$30,0)+IF($C$49+$H$23>BG17,$H$27*$H$30,0)+IF($C$48+$G$23>BG17,$G$27*$G$30,0))*BL17,0) -> 23436 | BO17: 34640 | BQ17: =+BB17 -> 0 | BS17: 34640 | BV17: 2019 | BW17: 4901 | BX17: 2131 | BY17: 4310 | BZ17: 11342 | CB17: 0 | CC17: 0 | CD17: 0 | CF17: 11342
A18: Escalation Rate = | C18: =+'Gas Input Table Summary'!$D$13 -> 0.035 | E18: Escalation Rate = | F18: =+'Gas Input Table Summary'!$D$38 -> 0 | J18: 6 | L18: 2020 | M18: 1435 | N18: 3.535 | O18: 5073 | P18: 0 | Q18: 0 | R18: 5073 | S18: 14.4 | T18: 150 | U18: 2160 | V18: 7233 | W18: 2.325 | X18: 2169 | Y18: 0 | Z18: 0 | AA18: 2169 | AB18: 5064 | AD18: 2020 | AE18: 5073 | AF18: 2160 | AG18: 7233 | AI18: 0 | AJ18: 0 | AK18: 0 | AM18: 7233 | AP18: 2020 | AQ18: 5073 | AR18: 2160 | AS18: 0.034 | AT18: 4579 | AU18: 0.401 | AV18: 575 | AY18: 12387 | BA18: 0 | BB18: 0 | BC18: 0 | BD18: 12387 | BG18: 2020 | BH18: 0 | BI18: 1435 | BJ18: 8.081 | BK18: 11596 | BL18: 0.18 | BM18: 24244 | BO18: 35840 | BQ18: 0 | BS18: 35840 | BV18: 2020 | BW18: 5073 | BX18: 2160 | BY18: 4579 | BZ18: 11812 | CB18: 0 | CC18: 0 | CD18: 0 | CF18: 11812 | DA18: t
J19: 7 | L19: 2021 | M19: 1435 | N19: 3.658 | O19: 5249 | P19: 0 | Q19: 0 | R19: 5249 | S19: 14.4 | T19: 151 | U19: 2174 | V19: 7423 | W19: 2.406 | X19: 2244 | Y19: 0 | Z19: 0 | AA19: 2244 | AB19: 5179 | AD19: 2021 | AE19: 5249 | AF19: 2174 | AG19: 7423 | AI19: 0 | AJ19: 0 | AK19: 0 | AM19: 7423 | AP19: 2021 | AQ19: 5249 | AR19: 2174 | AS19: 0.035 | AT19: 4714 | AU19: 0.41 | AV19: 588 | AY19: 12725 | BA19: 0 | BB19: 0 | BC19: 0 | BD19: 12725 | BG19: 2021 | BH19: 0 | BI19: 1435 | BJ19: 8.364 | BK19: 12002 | BL19: 0.186 | BM19: 25052 | BO19: 37054 | BQ19: 0 | BS19: 37054 | BV19: 2021 | BW19: 5249 | BX19: 2174 | BY19: 4714 | BZ19: 12137 | CB19: 0 | CC19: 0 | CD19: 0 | CF19: 12137
A20: 4) Demand Cost ($/Unit/Yr) = | C20: =+'Gas Input Table Summary'!$D$14 -> 142.34 | E20: 19) Participant Non-Energy Savings (Annual $/Part) = | F20: =+'Gas Input Table Summary'!$D$41 -> 0 | J20: 8 | L20: 2022 | M20: 1435 | N20: 3.786 | O20: 5433 | P20: 0 | Q20: 0 | R20: 5433 | S20: 14.4 | T20: 153 | U20: 2203 | V20: 7636 | W20: 2.49 | X20: 2323 | Y20: 0 | Z20: 0 | AA20: 2323 | AB20: 5313 | AD20: 2022 | AE20: 5433 | AF20: 2203 | AG20: 7636 | AI20: 0 | AJ20: 0 | AK20: 0 | AM20: 7636 | AP20: 2022 | AQ20: 5433 | AR20: 2203 | AS20: 0.036 | AT20: 4849 | AU20: 0.42 | AV20: 603 | AY20: 13088 | BA20: 0 | BB20: 0 | BC20: 0 | BD20: 13088 | BG20: 2022 | BH20: 0 | BI20: 1435 | BJ20: 8.657 | BK20: 12423 | BL20: 0.192 | BM20: 25860 | BO20: 38283 | BQ20: 0 | BS20: 38283 | BV20: 2022 | BW20: 5433 | BX20: 2203 | BY20: 4849 | BZ20: 12485 | CB20: 0 | CC20: 0 | CD20: 0 | CF20: 12485
A21: Escalation Rate = | C21: =+'Gas Input Table Summary'!$D$15 -> 0.01 | E21: Escalation Rate = | F21: =+'Gas Input Table Summary'!$D$44 -> 0 | J21: 9 | L21: 2023 | M21: 1435 | N21: 3.919 | O21: 5624 | P21: 0 | Q21: 0 | R21: 5624 | S21: 14.4 | T21: 154 | U21: 2218 | V21: 7842 | W21: 2.577 | X21: 2404 | Y21: 0 | Z21: 0 | AA21: 2404 | AB21: 5438 | AD21: 2023 | AE21: 5624 | AF21: 2218 | AG21: 7842 | AI21: 0 | AJ21: 0 | AK21: 0 | AM21: 7842 | AP21: 2023 | AQ21: 5624 | AR21: 2218 | AS21: 0.037 | AT21: 4983 | AU21: 0.429 | AV21: 616 | AY21: 13441 | BA21: 0 | BB21: 0 | BC21: 0 | BD21: 13441 | BG21: 2023 | BH21: 0 | BI21: 1435 | BJ21: 8.96 | BK21: 12858 | BL21: 0.199 | BM21: 26803 | BO21: 39661 | BQ21: 0 | BS21: 39661 | BV21: 2023 | BW21: 5624 | BX21: 2218 | BY21: 4983 | BZ21: 12825 | CB21: 0 | CC21: 0 | CD21: 0 | CF21: 12825 | DA21: =$J14 -> 2
J22: 10 | L22: 2024 | M22: 1435 | N22: 4.056 | O22: 5820 | P22: 0 | Q22: 0 | R22: 5820 | S22: 14.4 | T22: 156 | U22: 2246 | V22: 8066 | W22: 2.667 | X22: 2488 | Y22: 0 | Z22: 0 | AA22: 2488 | AB22: 5578 | AD22: 2024 | AE22: 5820 | AF22: 2246 | AG22: 8066 | AI22: 0 | AJ22: 0 | AK22: 0 | AM22: 8066 | AP22: 2024 | AQ22: 5820 | AR22: 2246 | AS22: 0.038 | AT22: 5118 | AU22: 0.439 | AV22: 630 | AY22: 13814 | BA22: 0 | BB22: 0 | BC22: 0 | BD22: 13814 | BG22: 2024 | BH22: 0 | BI22: 1435 | BJ22: 9.273 | BK22: 13307 | BL22: 0.206 | BM22: 27746 | BO22: 41053 | BQ22: 0 | BS22: 41053 | BV22: 2024 | BW22: 5820 | BX22: 2246 | BY22: 5118 | BZ22: 13184 | CB22: 0 | CC22: 0 | CD22: 0 | CF22: 13184 | DA22: =$J15 -> 3
A23: 5) Peak Reduction Factor = | C23: =+'Gas Input Table Summary'!$D$16 -> 0.01 | E23: 20) Project Life (Years) = | F23: =ROUND('Database Inputs'!D10,0) -> 20 | J23: 11 | L23: 2025 | M23: 1435 | N23: 4.198 | O23: 6024 | P23: 0 | Q23: 0 | R23: 6024 | S23: 14.4 | T23: 157 | U23: 2261 | V23: 8285 | W23: 2.761 | X23: 2575 | Y23: 0 | Z23: 0 | AA23: 2575 | AB23: 5710 | AD23: 2025 | AE23: 6024 | AF23: 2261 | AG23: 8285 | AI23: 0 | AJ23: 0 | AK23: 0 | AM23: 8285 | AP23: 2025 | AQ23: 6024 | AR23: 2261 | AS23: 0.04 | AT23: 5388 | AU23: 0.449 | AV23: 644 | AY23: 14317 | BA23: 0 | BB23: 0 | BC23: 0 | BD23: 14317 | BG23: 2025 | BH23: 0 | BI23: 1435 | BJ23: 9.598 | BK23: 13773 | BL23: 0.213 | BM23: 28689 | BO23: 42462 | BQ23: 0 | BS23: 42462 | BV23: 2025 | BW23: 6024 | BX23: 2261 | BY23: 5388 | BZ23: 13673 | CB23: 0 | CC23: 0 | CD23: 0 | CF23: 13673 | DA23: =$J16 -> 4
J24: 12 | L24: 2026 | M24: 1435 | N24: 4.345 | O24: 6235 | P24: 0 | Q24: 0 | R24: 6235 | S24: 14.4 | T24: 159 | U24: 2290 | V24: 8525 | W24: 2.857 | X24: 2665 | Y24: 0 | Z24: 0 | AA24: 2665 | AB24: 5860 | AD24: 2026 | AE24: 6235 | AF24: 2290 | AG24: 8525 | AI24: 0 | AJ24: 0 | AK24: 0 | AM24: 8525 | AP24: 2026 | AQ24: 6235 | AR24: 2290 | AS24: 0.041 | AT24: 5522 | AU24: 0.46 | AV24: 660 | AY24: 14707 | BA24: 0 | BB24: 0 | BC24: 0 | BD24: 14707 | BG24: 2026 | BH24: 0 | BI24: 1435 | BJ24: 9.934 | BK24: 14255 | BL24: 0.221 | BM24: 29766 | BO24: 44021 | BQ24: 0 | BS24: 44021 | BV24: 2026 | BW24: 6235 | BX24: 2290 | BY24: 5522 | BZ24: 14047 | CB24: 0 | CC24: 0 | CD24: 0 | CF24: 14047 | DA24: =$J17 -> 5
A25: 6) Variable O&M ($/Dk) = | C25: =+'Gas Input Table Summary'!$D$17 -> 0 | E25: 21) Avg. Dk/Part. Saved = | F25: =+ROUND(F32/F30,3) -> 7.799 | J25: 13 | L25: 2027 | M25: 1435 | N25: 4.497 | O25: 6453 | P25: 0 | Q25: 0 | R25: 6453 | S25: 14.4 | T25: 160 | U25: 2304 | V25: 8757 | W25: 2.957 | X25: 2758 | Y25: 0 | Z25: 0 | AA25: 2758 | AB25: 5999 | AD25: 2027 | AE25: 6453 | AF25: 2304 | AG25: 8757 | AI25: 0 | AJ25: 0 | AK25: 0 | AM25: 8757 | AP25: 2027 | AQ25: 6453 | AR25: 2304 | AS25: 0.043 | AT25: 5792 | AU25: 0.47 | AV25: 674 | AY25: 15223 | BA25: 0 | BB25: 0 | BC25: 0 | BD25: 15223 | BG25: 2027 | BH25: 0 | BI25: 1435 | BJ25: 10.281 | BK25: 14753 | BL25: 0.228 | BM25: 30709 | BO25: 45462 | BQ25: 0 | BS25: 45462 | BV25: 2027 | BW25: 6453 | BX25: 2304 | BY25: 5792 | BZ25: 14549 | CB25: 0 | CC25: 0 | CD25: 0 | CF25: 14549
A26: Escalation Rate = | C26: =+'Gas Input Table Summary'!$D$18 -> 0 | J26: 14 | L26: 2028 | M26: 1435 | N26: 4.654 | O26: 6678 | P26: 0 | Q26: 0 | R26: 6678 | S26: 14.4 | T26: 162 | U26: 2333 | V26: 9011 | W26: 3.061 | X26: 2855 | Y26: 0 | Z26: 0 | AA26: 2855 | AB26: 6156 | AD26: 2028 | AE26: 6678 | AF26: 2333 | AG26: 9011 | AI26: 0 | AJ26: 0 | AK26: 0 | AM26: 9011 | AP26: 2028 | AQ26: 6678 | AR26: 2333 | AS26: 0.044 | AT26: 5926 | AU26: 0.481 | AV26: 690 | AY26: 15627 | BA26: 0 | BB26: 0 | BC26: 0 | BD26: 15627 | BG26: 2028 | BH26: 0 | BI26: 1435 | BJ26: 10.641 | BK26: 15270 | BL26: 0.236 | BM26: 31786 | BO26: 47056 | BQ26: 0 | BS26: 47056 | BV26: 2028 | BW26: 6678 | BX26: 2333 | BY26: 5926 | BZ26: 14937 | CB26: 0 | CC26: 0 | CD26: 0 | CF26: 14937
E27: 22) Avg Non-Gas Fuel Units/Part. Saved = | F27: =+'Database Inputs'!H10 -> 732 | J27: 15 | L27: 2029 | M27: 1435 | N27: 4.817 | O27: 6912 | P27: 0 | Q27: 0 | R27: 6912 | S27: 14.4 | T27: 164 | U27: 2362 | V27: 9274 | W27: 3.168 | X27: 2955 | Y27: 0 | Z27: 0 | AA27: 2955 | AB27: 6319 | AD27: 2029 | AE27: 6912 | AF27: 2362 | AG27: 9274 | AI27: 0 | AJ27: 0 | AK27: 0 | AM27: 9274 | AP27: 2029 | AQ27: 6912 | AR27: 2362 | AS27: 0.046 | AT27: 6196 | AU27: 0.492 | AV27: 706 | AY27: 16176 | BA27: 0 | BB27: 0 | BC27: 0 | BD27: 16176 | BG27: 2029 | BH27: 0 | BI27: 1435 | BJ27: 11.014 | BK27: 15805 | BL27: 0.245 | BM27: 32999 | BO27: 48804 | BQ27: 0 | BS27: 48804 | BV27: 2029 | BW27: 6912 | BX27: 2362 | BY27: 6196 | BZ27: 15470 | CB27: 0 | CC27: 0 | CD27: 0 | CF27: 15470
A28: 7) Non-Gas Fuel Cost ($/Fuel Unit) = | C28: =+'Gas Input Table Summary'!$D$19 -> 0.02589 | E28: 22a) Avg Additional Non-Gas Fuel Units/ Part. Used = | F28: 0 | J28: 16 | L28: 2030 | M28: 1435 | N28: 4.986 | O28: 7155 | P28: 0 | Q28: 0 | R28: 7155 | S28: 14.4 | T28: 165 | U28: 2376 | V28: 9531 | W28: 3.279 | X28: 3058 | Y28: 0 | Z28: 0 | AA28: 3058 | AB28: 6473 | AD28: 2030 | AE28: 7155 | AF28: 2376 | AG28: 9531 | AI28: 0 | AJ28: 0 | AK28: 0 | AM28: 9531 | AP28: 2030 | AQ28: 7155 | AR28: 2376 | AS28: 0.047 | AT28: 6330 | AU28: 0.504 | AV28: 723 | AY28: 16584 | BA28: 0 | BB28: 0 | BC28: 0 | BD28: 16584 | BG28: 2030 | BH28: 0 | BI28: 1435 | BJ28: 11.399 | BK28: 16358 | BL28: 0.253 | BM28: 34076 | BO28: 50434 | BQ28: 0 | BS28: 50434 | BV28: 2030 | BW28: 7155 | BX28: 2376 | BY28: 6330 | BZ28: 15861 | CB28: 0 | CC28: 0 | CD28: 0 | CF28: 15861
A29: Escalation Rate = | C29: =+'Gas Input Table Summary'!$D$20 -> 0.035 | J29: 17 | L29: 2031 | M29: 1435 | N29: 5.16 | O29: 7405 | P29: 0 | Q29: 0 | R29: 7405 | S29: 14.4 | T29: 167 | U29: 2405 | V29: 9810 | W29: 3.394 | X29: 3166 | Y29: 0 | Z29: 0 | AA29: 3166 | AB29: 6644 | AD29: 2031 | AE29: 7405 | AF29: 2405 | AG29: 9810 | AI29: 0 | AJ29: 0 | AK29: 0 | AM29: 9810 | AP29: 2031 | AQ29: 7405 | AR29: 2405 | AS29: 0.049 | AT29: 6600 | AU29: 0.515 | AV29: 739 | AY29: 17149 | BA29: 0 | BB29: 0 | BC29: 0 | BD29: 17149 | BG29: 2031 | BH29: 0 | BI29: 1435 | BJ29: 11.798 | BK29: 16930 | BL29: 0.262 | BM29: 35288 | BO29: 52218 | BQ29: 0 | BS29: 52218 | BV29: 2031 | BW29: 7405 | BX29: 2405 | BY29: 6600 | BZ29: 16410 | CB29: 0 | CC29: 0 | CD29: 0 | CF29: 16410
E30: 23) Number of Participants = | F30: =+'Total Program Inputs'!C10 -> 184 | J30: 18 | L30: 2032 | M30: 1435 | N30: 5.341 | O30: 7664 | P30: 0 | Q30: 0 | R30: 7664 | S30: 14.4 | T30: 169 | U30: 2434 | V30: 10098 | W30: 3.513 | X30: 3277 | Y30: 0 | Z30: 0 | AA30: 3277 | AB30: 6821 | AD30: 2032 | AE30: 7664 | AF30: 2434 | AG30: 10098 | AI30: 0 | AJ30: 0 | AK30: 0 | AM30: 10098 | AP30: 2032 | AQ30: 7664 | AR30: 2434 | AS30: 0.051 | AT30: 6869 | AU30: 0.527 | AV30: 756 | AY30: 17723 | BA30: 0 | BB30: 0 | BC30: 0 | BD30: 17723 | BG30: 2032 | BH30: 0 | BI30: 1435 | BJ30: 12.211 | BK30: 17523 | BL30: 0.271 | BM30: 36500 | BO30: 54023 | BQ30: 0 | BS30: 54023 | BV30: 2032 | BW30: 7664 | BX30: 2434 | BY30: 6869 | BZ30: 16967 | CB30: 0 | CC30: 0 | CD30: 0 | CF30: 16967 | DA30: =$J18 -> 6
A31: 8) Non-Gas Fuel Loss Factor | C31: =+'Gas Input Table Summary'!$D$21 -> 0.051 | J31: 19 | L31: 2033 | M31: 1435 | N31: 5.528 | O31: 7933 | P31: 0 | Q31: 0 | R31: 7933 | S31: 14.4 | T31: 170 | U31: 2448 | V31: 10381 | W31: 3.635 | X31: 3391 | Y31: 0 | Z31: 0 | AA31: 3391 | AB31: 6990 | AD31: 2033 | AE31: 7933 | AF31: 2448 | AG31: 10381 | AI31: 0 | AJ31: 0 | AK31: 0 | AM31: 10381 | AP31: 2033 | AQ31: 7933 | AR31: 2448 | AS31: 0.052 | AT31: 7004 | AU31: 0.539 | AV31: 773 | AY31: 18158 | BA31: 0 | BB31: 0 | BC31: 0 | BD31: 18158 | BG31: 2033 | BH31: 0 | BI31: 1435 | BJ31: 12.639 | BK31: 18137 | BL31: 0.281 | BM31: 37847 | BO31: 55984 | BQ31: 0 | BS31: 55984 | BV31: 2033 | BW31: 7933 | BX31: 2448 | BY31: 7004 | BZ31: 17385 | CB31: 0 | CC31: 0 | CD31: 0 | CF31: 17385 | DA31: =$J19 -> 7
E32: 24) Total Annual Dk Saved = | F32: =+'Total Program Inputs'!E10 -> 1435 | J32: 20 | L32: 2034 | M32: 1435 | N32: 5.721 | O32: 8210 | P32: 0 | Q32: 0 | R32: 8210 | S32: 14.4 | T32: 172 | U32: 2477 | V32: 10687 | W32: 3.763 | X32: 3510 | Y32: 0 | Z32: 0 | AA32: 3510 | AB32: 7177 | AD32: 2034 | AE32: 8210 | AF32: 2477 | AG32: 10687 | AI32: 0 | AJ32: 0 | AK32: 0 | AM32: 10687 | AP32: 2034 | AQ32: 8210 | AR32: 2477 | AS32: 0.054 | AT32: 7273 | AU32: 0.552 | AV32: 792 | AY32: 18752 | BA32: 0 | BB32: 0 | BC32: 0 | BD32: 18752 | BG32: 2034 | BH32: 0 | BI32: 1435 | BJ32: 13.081 | BK32: 18771 | BL32: 0.291 | BM32: 39194 | BO32: 57965 | BQ32: 0 | BS32: 57965 | BV32: 2034 | BW32: 8210 | BX32: 2477 | BY32: 7273 | BZ32: 17960 | CB32: 0 | CC32: 0 | CD32: 0 | CF32: 17960 | DA32: =$J20 -> 8
A33: 9) Gas Environmental Damage Factor = | C33: =+'Gas Input Table Summary'!$D$22 -> 0.35 | J33: 21 | L33: 2035 | M33: 1435 | N33: 5.922 | O33: 8498 | P33: 0 | Q33: 0 | R33: 8498 | S33: 14.4 | T33: 174 | U33: 2506 | V33: 11004 | W33: 3.894 | X33: 3632 | Y33: 0 | Z33: 0 | AA33: 3632 | AB33: 7372 | AD33: 2035 | AE33: 8498 | AF33: 2506 | AG33: 11004 | AI33: 0 | AJ33: 0 | AK33: 0 | AM33: 11004 | AP33: 2035 | AQ33: 8498 | AR33: 2506 | AS33: 0.056 | AT33: 7543 | AU33: 0.564 | AV33: 809 | AY33: 19356 | BA33: 0 | BB33: 0 | BC33: 0 | BD33: 19356 | BG33: 2035 | BH33: 0 | BI33: 1435 | BJ33: 13.539 | BK33: 19428 | BL33: 0.301 | BM33: 40541 | BO33: 59969 | BQ33: 0 | BS33: 59969 | BV33: 2035 | BW33: 8498 | BX33: 2506 | BY33: 7543 | BZ33: 18547 | CB33: 0 | CC33: 0 | CD33: 0 | CF33: 18547
A34: Escalation Rate = | C34: =+'Gas Input Table Summary'!$D$23 -> 0.023 | E34: 25) Incentive/Participant = | F34: =+ROUND(F12/F30,0) -> 300 | J34: 22 | L34: 2036 | M34: 0 | N34: 6.129 | O34: 0 | P34: 0 | Q34: 0 | R34: 0 | S34: 0 | T34: 175 | U34: 0 | V34: 0 | W34: 4.031 | X34: 0 | Y34: 0 | Z34: 0 | AA34: 0 | AB34: 0 | AD34: 2036 | AE34: 0 | AF34: 0 | AG34: 0 | AI34: 0 | AJ34: 0 | AK34: 0 | AM34: 0 | AP34: 2036 | AQ34: 0 | AR34: 0 | AS34: 0.058 | AT34: 0 | AU34: 0.577 | AV34: 0 | AY34: 0 | BA34: 0 | BB34: 0 | BC34: 0 | BD34: 0 | BG34: 2036 | BH34: 0 | BI34: 0 | BJ34: 14.013 | BK34: 0 | BL34: 0.311 | BM34: 0 | BO34: 0 | BQ34: 0 | BS34: 0 | BV34: 2036 | BW34: 0 | BX34: 0 | BY34: 0 | BZ34: 0 | CB34: 0 | CC34: 0 | CD34: 0 | CF34: 0
DA35: =$J21 -> 9
A36: 10) Non Gas Fuel Environmental Damage Factor = | C36: =+'Gas Input Table Summary'!$D$24 -> 0 | E36: 26) Distribution Delivery Charge | F36: =+'Gas Input Table Summary'!$D$58 -> 1.891 | K36: Total = | M36: =SUM(M14:M34) -> 28700 | V36: =SUM(V14:V34) -> 170427 | AA36: =SUM(AA14:AA34) -> 111439 | AB36: =SUM(AB14:AB34) -> 58988 | AC36: Total = | AG36: =SUM(AG14:AG34) -> 170427 | AK36: =SUM(AK14:AK34) -> 58004 | AM36: =SUM(AM14:AM34) -> 112423 | AO36: Total = | AY36: =SUM(AY14:AY34) -> 294699 | BC36: =SUM(BC14:BC34) -> 58372 | BD36: =SUM(BD14:BD34) -> 236327 | BF36: Total = | BI36: =SUM(BI14:BI34) -> 28700 | BO36: =SUM(BO14:BO34) -> 936978 | BQ36: =SUM(BQ14:BQ34) -> 55568 | BS36: =SUM(BS14:BS34) -> 881410 | BY36: Total = | BZ36: =SUM(BZ14:BZ34) -> 281545 | CD36: =SUM(CD14:CD34) -> 58372 | CF36: =SUM(CF14:CF34) -> 223173
A37: Escalation Rate = | C37: =+'Gas Input Table Summary'!$D$25 -> 0 | T37: NPV = | V37: =ROUND(V14+NPV($C$41,V15:V34),0) -> 89276 | AA37: =ROUND(AA14+NPV($C$41,AA15:AA34),0) -> 85597 | AB37: =ROUND(AB14+NPV($C$41,AB15:AB34),0) -> 3679 | AF37: NPV = | AG37: =ROUND(AG14+NPV($C$41,AG15:AG34),0) -> 89276 | AK37: =ROUND(AK14+NPV($C$41,AK15:AK34),0) -> 58004 | AM37: =+AG37-AK37 -> 31272 | AV37: NPV = | AY37: =ROUND(AY14+NPV($C$43,AY15:AY34),0) -> 208259 | BC37: =ROUND(BC14+NPV($C$43,BC15:BC34),0) -> 58372 | BD37: =AY37-BC37 -> 149887 | BM37: NPV = | BO37: =ROUND(BO14+NPV($C$39,BO15:BO34),0) -> 426824 | BQ37: =ROUND(BQ14+NPV($C$39,BQ15:BQ34),0) -> 55568 | BS37: =ROUND(BS14+NPV($C$39,BS15:BS34),0) -> 371256 | BY37: NPV = | BZ37: =ROUND(BZ14+NPV($C$41,BZ15:BZ34),0) -> 146634 | CD37: =ROUND(CD14+NPV($C$41,CD15:CD34),0) -> 58372 | CF37: =ROUND(CF14+NPV($C$41,CF15:CF34),0) -> 88262 | DA37: =$J22 -> 10
E38: 27) Effective Income Tax Rate = | F38: =+'Gas Input Table Summary'!$D$59 -> 0.35
A39: 11) Participant Discount Rate = | C39: =+'Gas Input Table Summary'!$D$26 -> 0.1 | E39: (Federal & State Taxes) | K39: Total NPV = | N39: =AB37 -> 3679 | AC39: Total NPV = | AF39: =AM37 -> 31272 | AO39: Total NPV = | AR39: =BD37 -> 149887 | BF39: Total NPV = | BI39: =BS37 -> 371256 | BU39: Total NPV = | BX39: =CF37 -> 88262
K40: Benefit/Cost Ratio = | N40: =ROUND(V37/AA37,2) -> 1.04 | AC40: Benefit/Cost Ratio = | AF40: =ROUND(AG37/AK37,2) -> 1.54 | AO40: Benefit/Cost Ratio = | AR40: =ROUND(AY37/BC37,2) -> 3.57 | BF40: Benefit/Cost Ratio = | BI40: =ROUND(BO37/BQ37,20) -> 7.681111431 | BU40: Benefit/Cost Ratio = | BX40: =ROUND(BZ37/CD37,2) -> 2.51 | DA40: =$J23 -> 11
A41: 12) Utility Discount Rate = | C41: =+'Gas Input Table Summary'!$D$27 -> 0.07216 | E41: Test Results | F41: NPV | G41: B/C | DA41: =$J24 -> 12
E42: Ratepayer Impact Measure Test | F42: =N39 -> 3679 | G42: =N40 -> 1.04 | DA42: =$J25 -> 13
A43: 13) Societal Discount Rate = | C43: =+'Gas Input Table Summary'!$D$28 -> 0.0356 | E43: Utility Cost Test | F43: =AF39 -> 31272 | G43: =AF40 -> 1.54 | J43: Worksheet Calculations | AC43: Worksheet Calculations | AO43: Worksheet Calculations | BF43: Worksheet Calculations | BU43: Worksheet Calculations | DA43: =$J26 -> 14
E44: Societal Test | F44: =AR39 -> 149887 | G44: =AR40 -> 3.57 | J44: (A) | K44: = Average Dk/Participant Saved (21) x Number of Participants (23) for Project Life (20) | T44: (I) | U44: = (G) x (H) | AC44: (A) | AD44: = Table 1 (F) | AO44: (A) | AP44: = Table 1 (F) | AV44: (H) | AY44: = Table 2 (F) | BF44: (A) | BG44: = Table 1 (N) | BU44: (A) | BV44: = Table 1 (F)
A45: 14) General Input Data Year = | C45: =+'Total Program'!C45 -> 2014 | E45: Participant Test | F45: =BI39 -> 371256 | G45: =BI40 -> 7.681111431 | J45: (B) | K45: = Commodity Cost (3) escalated | T45: (J) | U45: = (F) + (I) | AC45: (B) | AD45: = Table 1 (I) | AO45: (G) | AP45: = Table 1 (I) | AV45: (I) | AY45: = Direct Part. Costs (17) x No. of Part. (23) - Table 1 (N) | BF45: (B) | BG45: = Table 1 (A) | BU45: (B) | BV45: = Table 1 (I)
E46: Total Resource Cost Test | F46: =BX39 -> 88262 | G46: =BX40 -> 2.51 | J46: (C) | K46: = (A) x (B) | T46: (K) | U46: = Distribution Delivery Charge (26) escalated. | AC46: (C) | AD46: = Table 1 (J) | AO46: (C) | AP46: = Non-Gas Fuel Cost (7), adjusted for losses (8), escalated.. | AV46: (J) | AY46: = (H) + (I) | BF46: (C) | BG46: = Retail Rate (1) escalated. | BU46: (C) | BV46: = Table 3 (D)
A47: 15) Project Analysis Year 1 = | C47: 2016 | J47: (D) | K47: = Variable O&M Cost (6), escalated | T47: (L) | U47: = (A) x (K) x (1-Inverse of Tax Rate (27) | AC47: (D) | AD47: = Table 1 (M) | AO47: (D) | AP47: = (C) x [Avg. Non-Gas Fuel Units/Part.Saved (22) x No. of Part. (23) | AV47: (K) | AY47: = (G) - (J) | BF47: (D) | BG47: =(B) x (C) | BU47: (D) | BV47: = (A) + (B) + (C)
J48: (E) | K48: = (A) x (D) | T48: (M) | U48: = Admin & Operating Costs (16a) | AC48: (E) | AD48: = Table 1 (N) | AO48: (E) | AP48: = Gas Environmental Damage Factor (9), escalated | BF48: (E) | BG48: = Non-Gas Fuel Retail Rate (2), escalated. | BU48: (E) | BV48: = Table 3 (H)
J49: (F) | K49: = (C) + (E) | T49: (N) | U49: = Incentive Costs (16b) | AC49: (F) | AD49: = (D) + (E) | AO49: (F) | AP49: = Table 1 (A) x (E) | BF49: (F) | BG49: = (E) x [Avg. Non-Gas Fuel Units/Part.Saved (22) x No. of Part. (23) | BU49: (F) | BV49: = Table 3 (I) | DA49: =$J27 -> 15
J50: (G) | K50: = (A) x Peak Reduction Factor (5) | T50: (O) | U50: = (L) + (M) + (N) | AC50: (G) | AD50: = (C) - (F) | AO50: (G) | AP50: = (A) + (B) + (D) + (F) | BF50: (G) | BG50: = (A) + (D) + (F) | BU50: (G) | BV50: = (E) + (F) | DA50: =$J28 -> 16
J51: (H) | K51: = Demand Cost (4) escalated. | T51: (P) | U51: = (J) - (O) | BF51: (H) | BG51: = Direct Participant Costs (17) x Number of Participants (23) | BU51: (H) | BV51: = (D) - (G) | DA51: =$J29 -> 17
BF52: (I) | BG52: = (G) - (H)

Sheet Res .95+% Res Furnace - Replace
A1: NATURAL GAS CONSERVATION PROGRAMS/DEMAND-SIDE MANAGEMENT | K1: Table 1 | AD1: Table 2 | AP1: Table 3 | BG1: Table 4 | BV1: Table 5
A2: BEN/COST ANALYSIS FOR GAS CONSERVATION | K2: Ratepayer Impact Measure Test | AD2: Utility Cost Test | AP2: Societal Test | BG2: Participant Test | BV2: Total Resource Cost Test
A4: Company: | B4: Montana-Dakota Utilities Co. | K4: Company: | M4: =B4 -> Montana-Dakota Utilities Co. | AD4: Company: | AF4: =B4 -> Montana-Dakota Utilities Co. | AP4: Company: | AR4: =AF4 -> Montana-Dakota Utilities Co. | BH4: Company: | BI4: =AR4 -> Montana-Dakota Utilities Co. | BW4: Company: | BX4: =BI4 -> Montana-Dakota Utilities Co.
A5: Project: | B5: Residential 95+% AFUE Furnace - Replacement | K5: Project: | M5: =$B$5 -> Residential 95+% AFUE Furnace - Replacement | AD5: Project: | AF5: =$B$5 -> Residential 95+% AFUE Furnace - Replacement | AP5: Project: | AR5: =$B$5 -> Residential 95+% AFUE Furnace - Replacement | BH5: Project: | BI5: =$B$5 -> Residential 95+% AFUE Furnace - Replacement | BW5: Project: | BX5: =$B$5 -> Residential 95+% AFUE Furnace - Replacement
A6: Program Years: | B6: =+'Res .95+% Res Furnace - NEW'!B6 -> 2016 Actual
N7: Benefits | X7: Costs | AF7: Benefits | AJ7: Costs | AR7: Benefits | BB7: Costs | BI7: Benefits | BR7: Costs | BX7: Benefits | CC7: Costs
A8: Input Data | F8: 2016 | AB8: Annual | AN8: Annual | AT8: Non-Gas | BE8: Annual | BT8: Annual | CG8: Annual
M9: Total | N9: Gas | O9: Gas | P9: Variable | Q9: Variable | R9: Total | S9: Peak Dk | T9: Demand | U9: Total | W9: Distribution | Y9: Program | AA9: Total | AB9: Benefits | AF9: Total | AG9: Total | AH9: Annual | AJ9: Program | AL9: Utility | AN9: Benefits | AR9: Total | AS9: Total | AT9: Energy | AU9: Non-Gas | AV9: Environmental | AW9: Environmental | AZ9: Annual | BB9: Utility | BC9: Participants' | BD9: Annual | BE9: Benefits | BJ9: Total | BL9: Gas | BM9: Non-Gas | BN9: Non-Gas | BP9: Total | BR9: Direct | BT9: Benefits | BX9: Total | BY9: Total | BZ9: Non-Gas | CA9: Total | CC9: Utility | CD9: Participants' | CG9: Benefits
A10: 1) Retail Rate ($/Dk) = | C10: =+'Gas Input Table Summary'!$D$7 -> 6.574 | E10: 16) Utility Project Costs | M10: Energy | N10: Commodity | O10: Commodity | P10: O & M | Q10: O & M | R10: Energy | S10: Demand | T10: Savings | U10: Demand | V10: Total | W10: Delivery | X10: Lost | Y10: Admin | Z10: Incentive | AA10: Program | AB10: Less | AF10: Energy | AG10: Demand | AH10: Total | AJ10: Admin | AK10: Incentive | AL10: Program | AN10: Less | AR10: Energy | AS10: Demand | AT10: Savings | AU10: Energy | AV10: Damage | AW10: Damage | AZ10: Total | BB10: Program | BC10: Costs Net | BD10: Total | BE10: Less | BI10: Incentives | BJ10: Energy | BK10: Retail | BL10: Bill | BM10: Fuel | BN10: Energy | BP10: Annual | BR10: Participant | BT10: Less | BX10: Energy | BY10: Demand | BZ10: Energy | CA10: Annual | CC10: Program | CD10: Costs Net | CE10: Total | CG10: Less
A11: Escalation Rate = | C11: =+'Gas Input Table Summary'!$D$8 -> 0.035 | E11: 16a) Administrative & Operating Costs = | F11: =+'Total Program Inputs'!K11 -> 3489 | J11: t | M11: Reduction | N11: Cost/Dk | O11: Savings | P11: Cost/Dk | Q11: Savings | R11: Savings | S11: Reduction | T11: Per Unit | U11: Savings | V11: Savings | W11: Charge | X11: Margin | Y11: Costs | Z11: Costs | AA11: Costs | AB11: Costs | AF11: Savings | AG11: Savings | AH11: Savings | AJ11: Costs | AK11: Costs | AL11: Costs | AN11: Costs | AR11: Savings | AS11: Savings | AT11: ($/Part.) | AU11: Savings | AV11: Savings/Dk | AW11: Savings | AZ11: Savings | BB11: Costs | BC11: of Rebate | BD11: Costs | BE11: Costs | BI11: Received | BJ11: Reduction | BK11: Rate | BL11: Savings | BM11: Retail Rate | BN11: Savings | BP11: Benefits | BR11: Costs | BT11: Costs | BX11: Savings | BY11: Savings | BZ11: Savings | CA11: Benefits | CC11: Costs | CD11: of Rebate | CE11: Costs | CG11: Costs
E12: 16b) Incentive Costs = | F12: =+'Total Program Inputs'!G11 -> 68700 | L12: Year | M12: (A) | N12: (B) | O12: (C) | P12: (D) | Q12: (E) | R12: (F) | S12: (G) | T12: (H) | U12: (I) | V12: (J) | W12: (K) | X12: (L) | Y12: (M) | Z12: (N) | AA12: (O) | AB12: (P) | AE12: Year | AF12: (A) | AG12: (B) | AH12: (C) | AJ12: (D) | AK12: (E) | AL12: (F) | AN12: (G) | AQ12: Year | AR12: (A) | AS12: (B) | AT12: (C) | AU12: (D) | AV12: (E) | AW12: (F) | AZ12: (G) | BB12: (H) | BC12: (I) | BD12: (J) | BE12: (K) | BH12: Year | BI12: (A) | BJ12: (B) | BK12: (C) | BL12: (D) | BM12: (E) | BN12: (F) | BP12: (G) | BR12: (H) | BT12: (I) | BW12: Year | BX12: (A) | BY12: (B) | BZ12: (C) | CA12: (D) | CC12: (E) | CD12: (F) | CE12: (G) | CG12: (H)
A13: 2) Non-Gas Fuel Retail Rate ($/Fuel Unit) = | C13: =+'Gas Input Table Summary'!$D$9 -> 0.14609 | E13: 16c) Total Utility Project Costs = | F13: =SUM(F11:F12) -> 72189
A14: Escalation Rate = | C14: =+'Gas Input Table Summary'!$D$10 -> 0.035 | J14: =$C$47-$C$45 -> 2 | L14: =$C$47 -> 2016 | M14: =ROUND(IF($C$47+$F$23>L14,F25*F30,0),0) -> 2950 | N14: =ROUND($C$17*(1),3) -> 2.976 | O14: =ROUND(M14*N14,0) -> 8779 | P14: =ROUND($C$25*(1+$C$26)^J14,3) -> 0 | Q14: =ROUND(M14*P14,0) -> 0 | R14: =O14+Q14 -> 8779 | S14: =ROUND(M14*$C$23,1) -> 29.5 | T14: =ROUND($C$20*(1),0) -> 142 | U14: =ROUND(S14*T14,0) -> 4189 | V14: =ROUND(+U14+R14,0) -> 12968 | W14: =ROUND($F$36*(1+$C$11)^J14,3) -> 2.026 | X14: =ROUND((1-$F$38)*(W14*M14),0) -> 3885 | Y14: =ROUND($F$11,0) -> 3489 | Z14: =ROUND($F$12,0) -> 68700 | AA14: =SUM(X14:Z14) -> 76074 | AB14: =V14-AA14 -> -63106 | AE14: =$C$47 -> 2016 | AF14: =+R14 -> 8779 | AG14: =+U14 -> 4189 | AH14: =+AG14+AF14 -> 12968 | AJ14: =ROUND(Y14,0) -> 3489 | AK14: =ROUND(Z14,0) -> 68700 | AL14: =SUM(AJ14:AK14) -> 72189 | AN14: =+AH14-AL14 -> -59221 | AQ14: =$C$47 -> 2016 | AR14: =AF14 -> 8779 | AS14: =+AG14 -> 4189 | AT14: =ROUND(($C$28/(1-$C$31))*(1+$C$29)^J14,3) -> 0.029 | AU14: =ROUND(IF($C$47+$F$23>$AQ14,$F$30*$F$27,0)*AT14,0) -> 4861 | AV14: =ROUND($C$33*(1+$C$34)^J14,3) -> 0.366 | AW14: =ROUND(AV14*M14,0) -> 1080 | AZ14: =ROUND(AR14+AS14+AU14+AW14+AY14,0) -> 18909 | BB14: =ROUND($F$13,0) -> 72189 | BC14: =ROUND((F15*F30)-Z14,0) -> 80150 | BD14: =BB14+BC14 -> 152339 | BE14: =AZ14-BD14 -> -133430 | BH14: =$C$47 -> 2016 | BI14: =+F12 -> 68700 | BJ14: =+M14 -> 2950 | BK14: =ROUND($C$10*(1+$C$11)^J14,3) -> 7.042 | BL14: =ROUND(BJ14*BK14,0) -> 20774 | BM14: =ROUND($C$13*(1+$C$14)^J14,3) -> 0.156 | BN14: =ROUND(IF($C$47+$F$23>$BH14,$F$30*$F$27,0)*BM14,0) -> 26150 | BP14: =BI14+BL14+BN14+BO14 -> 115624 | BR14: =ROUND(F15*F30,0) -> 148850 | BT14: =BP14-BR14 -> -33226 | BW14: =$C$47 -> 2016 | BX14: =$R14 -> 8779 | BY14: =U14 -> 4189 | BZ14: =AU14 -> 4861 | CA14: =SUM(BX14:BZ14) -> 17829 | CC14: =BB14 -> 72189 | CD14: =BC14 -> 80150 | CE14: =SUM(CC14:CD14) -> 152339 | CG14: =CA14-CE14 -> -134510
A15: Non-Gas Fuel Units (ie. kWh,Gallons, etc) = | C15: =+'Gas Input Table Summary'!$D$11 -> Kwh | E15: 17) Direct Participant Costs ($/Part.) = | F15: =ROUND('Database Inputs'!K11,0) -> 650 | J15: =J14+1 -> 3 | L15: =L14+1 -> 2017 | M15: =ROUND(IF($C$47+$F$23>L15,$F$25*$F$30,0)+IF($C$48+$G$23>L15,$G$25*$G$30,0),0) -> 2950 | N15: =ROUND($C$17*(1+$C$18)^J14,3) -> 3.188 | O15: 9405 | P15: 0 | Q15: =ROUND(M15*P15,0) -> 0 | R15: 9405 | S15: 29.5 | T15: =ROUND($C$20*(1+$C$21)^J14,0) -> 145 | U15: =ROUND(S15*T15,0) -> 4278 | V15: =ROUND(+U15+R15,0) -> 13683 | W15: 2.097 | X15: 4021 | Y15: =ROUND($G$11,0) -> 0 | Z15: =ROUND($G$12,0) -> 0 | AA15: 4021 | AB15: 9662 | AE15: =AE14+1 -> 2017 | AF15: 9405 | AG15: 4278 | AH15: =+AG15+AF15 -> 13683 | AJ15: =ROUND(Y15,0) -> 0 | AK15: 0 | AL15: 0 | AN15: 13683 | AQ15: =AQ14+1 -> 2017 | AR15: 9405 | AS15: 4278 | AT15: 0.03 | AU15: =ROUND((IF($C$47+$F$23>$AQ15,$F$27*$F$30,0)+IF($C$48+$G$23>AQ15,$G$27*$G$30,0))*AT15,0) -> 5029 | AV15: 0.375 | AW15: 1106 | AZ15: =ROUND(AR15+AS15+AU15+AW15+AY15,0) -> 19818 | BB15: =ROUND($G$13,0) -> 0 | BC15: =ROUND(($G$15*$G$30)-$Z$15,0) -> 0 | BD15: =BB15+BC15 -> 0 | BE15: 19818 | BH15: =BH14+1 -> 2017 | BI15: =+G12 -> 0 | BJ15: 2950 | BK15: 7.289 | BL15: =ROUND(BJ15*BK15,0) -> 21503 | BM15: 0.162 | BN15: =ROUND((IF($C$47+$F$23>BH15,$F$27*$F$30,0)+IF($C$48+$G$23>BH15,$G$27*$G$30,0))*BM15,0) -> 27156 | BP15: 48659 | BR15: =ROUND($G$15*$G$30,0) -> 0 | BT15: =BP15-BR15 -> 48659 | BW15: =BW14+1 -> 2017 | BX15: 9405 | BY15: =U15 -> 4278 | BZ15: =AU15 -> 5029 | CA15: =SUM(BX15:BZ15) -> 18712 | CC15: =BB15 -> 0 | CD15: 0 | CE15: =SUM(CC15:CD15) -> 0 | CG15: =CA15-CE15 -> 18712
J16: 4 | L16: 2018 | M16: =ROUND(IF($C$47+$F$23>L16,$F$25*$F$30,0)+IF($C$48+$G$23>L16,$G$25*$G$30,0)+IF($C$49+$H$23>L16,$H$25*$H$30,0),0) -> 2950 | N16: =ROUND($C$17*(1+$C$18)^J15,3) -> 3.3 | O16: 9735 | P16: 0 | Q16: 0 | R16: 9735 | S16: 29.5 | T16: =ROUND($C$20*(1+$C$21)^J15,0) -> 147 | U16: =ROUND(S16*T16,0) -> 4337 | V16: 14072 | W16: 2.17 | X16: 4161 | Y16: =ROUND($H$11,0) -> 0 | Z16: =ROUND($H$12,0) -> 0 | AA16: 4161 | AB16: 9911 | AE16: 2018 | AF16: 9735 | AG16: 4337 | AH16: =+AG16+AF16 -> 14072 | AJ16: 0 | AK16: 0 | AL16: 0 | AN16: 14072 | AQ16: 2018 | AR16: 9735 | AS16: 4337 | AT16: 0.031 | AU16: =ROUND((IF($C$47+$F$23>$AQ16,$F$27*$F$30,0)+IF($C$48+$G$23>AQ16,$G$27*$G$30,0)+IF($C$49+$H$23>AQ16,$H$27*$H$30,0))*AT16,0) -> 5196 | AV16: 0.383 | AW16: 1130 | AZ16: 20398 | BB16: =ROUND($H$13,0) -> 0 | BC16: =ROUND(($H$15*$H$30)-$Z$16,0) -> 0 | BD16: 0 | BE16: 20398 | BH16: 2018 | BI16: =ROUND(H12,0) -> 0 | BJ16: 2950 | BK16: 7.544 | BL16: =ROUND(BJ16*BK16,0) -> 22255 | BM16: 0.168 | BN16: =ROUND((IF($C$47+$F$23>BH16,$F$27*$F$30,0)+IF($C$49+$H$23>BH16,$H$27*$H$30,0)+IF($C$48+$G$23>BH16,$G$27*$G$30,0))*BM16,0) -> 28162 | BP16: 50417 | BR16: =ROUND($H$15*$H$30,0) -> 0 | BT16: 50417 | BW16: 2018 | BX16: 9735 | BY16: 4337 | BZ16: 5196 | CA16: 19268 | CC16: 0 | CD16: 0 | CE16: 0 | CG16: =CA16-CE16 -> 19268
A17: 3) Commodity Cost ($/Dk) = | C17: =+'Gas Input Table Summary'!$D$12 -> 2.976 | E17: 18) Participant Non-Energy Costs (Annual $/Part.) = | F17: =+'Gas Input Table Summary'!$D$35 -> 0 | J17: 5 | L17: 2019 | M17: =ROUND(IF($C$47+$F$23>L17,$F$25*$F$30,0)+IF($C$48+$G$23>L17,$G$25*$G$30,0)+IF($C$49+$H$23>L17,$H$25*$H$30,0),0) -> 2950 | N17: 3.415 | O17: 10074 | P17: 0 | Q17: 0 | R17: 10074 | S17: 29.5 | T17: 148 | U17: 4366 | V17: 14440 | W17: 2.246 | X17: 4307 | Y17: 0 | Z17: 0 | AA17: 4307 | AB17: 10133 | AE17: 2019 | AF17: 10074 | AG17: 4366 | AH17: 14440 | AJ17: 0 | AK17: 0 | AL17: 0 | AN17: 14440 | AQ17: 2019 | AR17: 10074 | AS17: 4366 | AT17: 0.032 | AU17: =ROUND((IF($C$47+$F$23>$AQ17,$F$27*$F$30,0)+IF($C$48+$G$23>AQ17,$G$27*$G$30,0)+IF($C$49+$H$23>AQ17,$H$27*$H$30,0))*AT17,0) -> 5364 | AV17: 0.392 | AW17: 1156 | AZ17: 20960 | BB17: 0 | BC17: 0 | BD17: 0 | BE17: 20960 | BH17: 2019 | BI17: 0 | BJ17: 2950 | BK17: 7.808 | BL17: 23034 | BM17: 0.174 | BN17: =ROUND((IF($C$47+$F$23>BH17,$F$27*$F$30,0)+IF($C$49+$H$23>BH17,$H$27*$H$30,0)+IF($C$48+$G$23>BH17,$G$27*$G$30,0))*BM17,0) -> 29167 | BP17: 52201 | BR17: =+BC17 -> 0 | BT17: 52201 | BW17: 2019 | BX17: 10074 | BY17: 4366 | BZ17: 5364 | CA17: 19804 | CC17: 0 | CD17: 0 | CE17: 0 | CG17: 19804
A18: Escalation Rate = | C18: =+'Gas Input Table Summary'!$D$13 -> 0.035 | E18: Escalation Rate = | F18: =+'Gas Input Table Summary'!$D$38 -> 0 | J18: 6 | L18: 2020 | M18: 2950 | N18: 3.535 | O18: 10428 | P18: 0 | Q18: 0 | R18: 10428 | S18: 29.5 | T18: 150 | U18: 4425 | V18: 14853 | W18: 2.325 | X18: 4458 | Y18: 0 | Z18: 0 | AA18: 4458 | AB18: 10395 | AE18: 2020 | AF18: 10428 | AG18: 4425 | AH18: 14853 | AJ18: 0 | AK18: 0 | AL18: 0 | AN18: 14853 | AQ18: 2020 | AR18: 10428 | AS18: 4425 | AT18: 0.034 | AU18: 5699 | AV18: 0.401 | AW18: 1183 | AZ18: 21735 | BB18: 0 | BC18: 0 | BD18: 0 | BE18: 21735 | BH18: 2020 | BI18: 0 | BJ18: 2950 | BK18: 8.081 | BL18: 23839 | BM18: 0.18 | BN18: 30173 | BP18: 54012 | BR18: 0 | BT18: 54012 | BW18: 2020 | BX18: 10428 | BY18: 4425 | BZ18: 5699 | CA18: 20552 | CC18: 0 | CD18: 0 | CE18: 0 | CG18: 20552 | DB18: t
J19: 7 | L19: 2021 | M19: 2950 | N19: 3.658 | O19: 10791 | P19: 0 | Q19: 0 | R19: 10791 | S19: 29.5 | T19: 151 | U19: 4455 | V19: 15246 | W19: 2.406 | X19: 4614 | Y19: 0 | Z19: 0 | AA19: 4614 | AB19: 10632 | AE19: 2021 | AF19: 10791 | AG19: 4455 | AH19: 15246 | AJ19: 0 | AK19: 0 | AL19: 0 | AN19: 15246 | AQ19: 2021 | AR19: 10791 | AS19: 4455 | AT19: 0.035 | AU19: 5867 | AV19: 0.41 | AW19: 1210 | AZ19: 22323 | BB19: 0 | BC19: 0 | BD19: 0 | BE19: 22323 | BH19: 2021 | BI19: 0 | BJ19: 2950 | BK19: 8.364 | BL19: 24674 | BM19: 0.186 | BN19: 31179 | BP19: 55853 | BR19: 0 | BT19: 55853 | BW19: 2021 | BX19: 10791 | BY19: 4455 | BZ19: 5867 | CA19: 21113 | CC19: 0 | CD19: 0 | CE19: 0 | CG19: 21113
A20: 4) Demand Cost ($/Unit/Yr) = | C20: =+'Gas Input Table Summary'!$D$14 -> 142.34 | E20: 19) Participant Non-Energy Savings (Annual $/Part) = | F20: =+'Gas Input Table Summary'!$D$41 -> 0 | J20: 8 | L20: 2022 | M20: 2950 | N20: 3.786 | O20: 11169 | P20: 0 | Q20: 0 | R20: 11169 | S20: 29.5 | T20: 153 | U20: 4514 | V20: 15683 | W20: 2.49 | X20: 4775 | Y20: 0 | Z20: 0 | AA20: 4775 | AB20: 10908 | AE20: 2022 | AF20: 11169 | AG20: 4514 | AH20: 15683 | AJ20: 0 | AK20: 0 | AL20: 0 | AN20: 15683 | AQ20: 2022 | AR20: 11169 | AS20: 4514 | AT20: 0.036 | AU20: 6035 | AV20: 0.42 | AW20: 1239 | AZ20: 22957 | BB20: 0 | BC20: 0 | BD20: 0 | BE20: 22957 | BH20: 2022 | BI20: 0 | BJ20: 2950 | BK20: 8.657 | BL20: 25538 | BM20: 0.192 | BN20: 32185 | BP20: 57723 | BR20: 0 | BT20: 57723 | BW20: 2022 | BX20: 11169 | BY20: 4514 | BZ20: 6035 | CA20: 21718 | CC20: 0 | CD20: 0 | CE20: 0 | CG20: 21718
A21: Escalation Rate = | C21: =+'Gas Input Table Summary'!$D$15 -> 0.01 | E21: Escalation Rate = | F21: =+'Gas Input Table Summary'!$D$44 -> 0 | J21: 9 | L21: 2023 | M21: 2950 | N21: 3.919 | O21: 11561 | P21: 0 | Q21: 0 | R21: 11561 | S21: 29.5 | T21: 154 | U21: 4543 | V21: 16104 | W21: 2.577 | X21: 4941 | Y21: 0 | Z21: 0 | AA21: 4941 | AB21: 11163 | AE21: 2023 | AF21: 11561 | AG21: 4543 | AH21: 16104 | AJ21: 0 | AK21: 0 | AL21: 0 | AN21: 16104 | AQ21: 2023 | AR21: 11561 | AS21: 4543 | AT21: 0.037 | AU21: 6202 | AV21: 0.429 | AW21: 1266 | AZ21: 23572 | BB21: 0 | BC21: 0 | BD21: 0 | BE21: 23572 | BH21: 2023 | BI21: 0 | BJ21: 2950 | BK21: 8.96 | BL21: 26432 | BM21: 0.199 | BN21: 33358 | BP21: 59790 | BR21: 0 | BT21: 59790 | BW21: 2023 | BX21: 11561 | BY21: 4543 | BZ21: 6202 | CA21: 22306 | CC21: 0 | CD21: 0 | CE21: 0 | CG21: 22306 | DB21: =$J14 -> 2
J22: 10 | L22: 2024 | M22: 2950 | N22: 4.056 | O22: 11965 | P22: 0 | Q22: 0 | R22: 11965 | S22: 29.5 | T22: 156 | U22: 4602 | V22: 16567 | W22: 2.667 | X22: 5114 | Y22: 0 | Z22: 0 | AA22: 5114 | AB22: 11453 | AE22: 2024 | AF22: 11965 | AG22: 4602 | AH22: 16567 | AJ22: 0 | AK22: 0 | AL22: 0 | AN22: 16567 | AQ22: 2024 | AR22: 11965 | AS22: 4602 | AT22: 0.038 | AU22: 6370 | AV22: 0.439 | AW22: 1295 | AZ22: 24232 | BB22: 0 | BC22: 0 | BD22: 0 | BE22: 24232 | BH22: 2024 | BI22: 0 | BJ22: 2950 | BK22: 9.273 | BL22: 27355 | BM22: 0.206 | BN22: 34531 | BP22: 61886 | BR22: 0 | BT22: 61886 | BW22: 2024 | BX22: 11965 | BY22: 4602 | BZ22: 6370 | CA22: 22937 | CC22: 0 | CD22: 0 | CE22: 0 | CG22: 22937 | DB22: =$J15 -> 3
A23: 5) Peak Reduction Factor = | C23: =+'Gas Input Table Summary'!$D$16 -> 0.01 | E23: 20) Project Life (Years) = | F23: =ROUND('Database Inputs'!D11,0) -> 20 | J23: 11 | L23: 2025 | M23: 2950 | N23: 4.198 | O23: 12384 | P23: 0 | Q23: 0 | R23: 12384 | S23: 29.5 | T23: 157 | U23: 4632 | V23: 17016 | W23: 2.761 | X23: 5294 | Y23: 0 | Z23: 0 | AA23: 5294 | AB23: 11722 | AE23: 2025 | AF23: 12384 | AG23: 4632 | AH23: 17016 | AJ23: 0 | AK23: 0 | AL23: 0 | AN23: 17016 | AQ23: 2025 | AR23: 12384 | AS23: 4632 | AT23: 0.04 | AU23: 6705 | AV23: 0.449 | AW23: 1325 | AZ23: 25046 | BB23: 0 | BC23: 0 | BD23: 0 | BE23: 25046 | BH23: 2025 | BI23: 0 | BJ23: 2950 | BK23: 9.598 | BL23: 28314 | BM23: 0.213 | BN23: 35705 | BP23: 64019 | BR23: 0 | BT23: 64019 | BW23: 2025 | BX23: 12384 | BY23: 4632 | BZ23: 6705 | CA23: 23721 | CC23: 0 | CD23: 0 | CE23: 0 | CG23: 23721 | DB23: =$J16 -> 4
J24: 12 | L24: 2026 | M24: 2950 | N24: 4.345 | O24: 12818 | P24: 0 | Q24: 0 | R24: 12818 | S24: 29.5 | T24: 159 | U24: 4691 | V24: 17509 | W24: 2.857 | X24: 5478 | Y24: 0 | Z24: 0 | AA24: 5478 | AB24: 12031 | AE24: 2026 | AF24: 12818 | AG24: 4691 | AH24: 17509 | AJ24: 0 | AK24: 0 | AL24: 0 | AN24: 17509 | AQ24: 2026 | AR24: 12818 | AS24: 4691 | AT24: 0.041 | AU24: 6873 | AV24: 0.46 | AW24: 1357 | AZ24: 25739 | BB24: 0 | BC24: 0 | BD24: 0 | BE24: 25739 | BH24: 2026 | BI24: 0 | BJ24: 2950 | BK24: 9.934 | BL24: 29305 | BM24: 0.221 | BN24: 37046 | BP24: 66351 | BR24: 0 | BT24: 66351 | BW24: 2026 | BX24: 12818 | BY24: 4691 | BZ24: 6873 | CA24: 24382 | CC24: 0 | CD24: 0 | CE24: 0 | CG24: 24382 | DB24: =$J17 -> 5
A25: 6) Variable O&M ($/Dk) = | C25: =+'Gas Input Table Summary'!$D$17 -> 0 | E25: 21) Avg. Dk/Part. Saved = | F25: =+ROUND(F32/F30,3) -> 12.882 | J25: 13 | L25: 2027 | M25: 2950 | N25: 4.497 | O25: 13266 | P25: 0 | Q25: 0 | R25: 13266 | S25: 29.5 | T25: 160 | U25: 4720 | V25: 17986 | W25: 2.957 | X25: 5670 | Y25: 0 | Z25: 0 | AA25: 5670 | AB25: 12316 | AE25: 2027 | AF25: 13266 | AG25: 4720 | AH25: 17986 | AJ25: 0 | AK25: 0 | AL25: 0 | AN25: 17986 | AQ25: 2027 | AR25: 13266 | AS25: 4720 | AT25: 0.043 | AU25: 7208 | AV25: 0.47 | AW25: 1387 | AZ25: 26581 | BB25: 0 | BC25: 0 | BD25: 0 | BE25: 26581 | BH25: 2027 | BI25: 0 | BJ25: 2950 | BK25: 10.281 | BL25: 30329 | BM25: 0.228 | BN25: 38219 | BP25: 68548 | BR25: 0 | BT25: 68548 | BW25: 2027 | BX25: 13266 | BY25: 4720 | BZ25: 7208 | CA25: 25194 | CC25: 0 | CD25: 0 | CE25: 0 | CG25: 25194
A26: Escalation Rate = | C26: =+'Gas Input Table Summary'!$D$18 -> 0 | J26: 14 | L26: 2028 | M26: 2950 | N26: 4.654 | O26: 13729 | P26: 0 | Q26: 0 | R26: 13729 | S26: 29.5 | T26: 162 | U26: 4779 | V26: 18508 | W26: 3.061 | X26: 5869 | Y26: 0 | Z26: 0 | AA26: 5869 | AB26: 12639 | AE26: 2028 | AF26: 13729 | AG26: 4779 | AH26: 18508 | AJ26: 0 | AK26: 0 | AL26: 0 | AN26: 18508 | AQ26: 2028 | AR26: 13729 | AS26: 4779 | AT26: 0.044 | AU26: 7376 | AV26: 0.481 | AW26: 1419 | AZ26: 27303 | BB26: 0 | BC26: 0 | BD26: 0 | BE26: 27303 | BH26: 2028 | BI26: 0 | BJ26: 2950 | BK26: 10.641 | BL26: 31391 | BM26: 0.236 | BN26: 39560 | BP26: 70951 | BR26: 0 | BT26: 70951 | BW26: 2028 | BX26: 13729 | BY26: 4779 | BZ26: 7376 | CA26: 25884 | CC26: 0 | CD26: 0 | CE26: 0 | CG26: 25884
E27: 22) Avg Non-Gas Fuel Units/Part. Saved = | F27: =+'Database Inputs'!H11 -> 732 | J27: 15 | L27: 2029 | M27: 2950 | N27: 4.817 | O27: 14210 | P27: 0 | Q27: 0 | R27: 14210 | S27: 29.5 | T27: 164 | U27: 4838 | V27: 19048 | W27: 3.168 | X27: 6075 | Y27: 0 | Z27: 0 | AA27: 6075 | AB27: 12973 | AE27: 2029 | AF27: 14210 | AG27: 4838 | AH27: 19048 | AJ27: 0 | AK27: 0 | AL27: 0 | AN27: 19048 | AQ27: 2029 | AR27: 14210 | AS27: 4838 | AT27: 0.046 | AU27: 7711 | AV27: 0.492 | AW27: 1451 | AZ27: 28210 | BB27: 0 | BC27: 0 | BD27: 0 | BE27: 28210 | BH27: 2029 | BI27: 0 | BJ27: 2950 | BK27: 11.014 | BL27: 32491 | BM27: 0.245 | BN27: 41069 | BP27: 73560 | BR27: 0 | BT27: 73560 | BW27: 2029 | BX27: 14210 | BY27: 4838 | BZ27: 7711 | CA27: 26759 | CC27: 0 | CD27: 0 | CE27: 0 | CG27: 26759
A28: 7) Non-Gas Fuel Cost ($/Fuel Unit) = | C28: =+'Gas Input Table Summary'!$D$19 -> 0.02589 | E28: 22a) Avg Additional Non-Gas Fuel Units/ Part. Used = | F28: 0 | J28: 16 | L28: 2030 | M28: 2950 | N28: 4.986 | O28: 14709 | P28: 0 | Q28: 0 | R28: 14709 | S28: 29.5 | T28: 165 | U28: 4868 | V28: 19577 | W28: 3.279 | X28: 6287 | Y28: 0 | Z28: 0 | AA28: 6287 | AB28: 13290 | AE28: 2030 | AF28: 14709 | AG28: 4868 | AH28: 19577 | AJ28: 0 | AK28: 0 | AL28: 0 | AN28: 19577 | AQ28: 2030 | AR28: 14709 | AS28: 4868 | AT28: 0.047 | AU28: 7879 | AV28: 0.504 | AW28: 1487 | AZ28: 28943 | BB28: 0 | BC28: 0 | BD28: 0 | BE28: 28943 | BH28: 2030 | BI28: 0 | BJ28: 2950 | BK28: 11.399 | BL28: 33627 | BM28: 0.253 | BN28: 42410 | BP28: 76037 | BR28: 0 | BT28: 76037 | BW28: 2030 | BX28: 14709 | BY28: 4868 | BZ28: 7879 | CA28: 27456 | CC28: 0 | CD28: 0 | CE28: 0 | CG28: 27456
A29: Escalation Rate = | C29: =+'Gas Input Table Summary'!$D$20 -> 0.035 | J29: 17 | L29: 2031 | M29: 2950 | N29: 5.16 | O29: 15222 | P29: 0 | Q29: 0 | R29: 15222 | S29: 29.5 | T29: 167 | U29: 4927 | V29: 20149 | W29: 3.394 | X29: 6508 | Y29: 0 | Z29: 0 | AA29: 6508 | AB29: 13641 | AE29: 2031 | AF29: 15222 | AG29: 4927 | AH29: 20149 | AJ29: 0 | AK29: 0 | AL29: 0 | AN29: 20149 | AQ29: 2031 | AR29: 15222 | AS29: 4927 | AT29: 0.049 | AU29: 8214 | AV29: 0.515 | AW29: 1519 | AZ29: 29882 | BB29: 0 | BC29: 0 | BD29: 0 | BE29: 29882 | BH29: 2031 | BI29: 0 | BJ29: 2950 | BK29: 11.798 | BL29: 34804 | BM29: 0.262 | BN29: 43919 | BP29: 78723 | BR29: 0 | BT29: 78723 | BW29: 2031 | BX29: 15222 | BY29: 4927 | BZ29: 8214 | CA29: 28363 | CC29: 0 | CD29: 0 | CE29: 0 | CG29: 28363
E30: 23) Number of Participants = | F30: =+'Total Program Inputs'!C11 -> 229 | J30: 18 | L30: 2032 | M30: 2950 | N30: 5.341 | O30: 15756 | P30: 0 | Q30: 0 | R30: 15756 | S30: 29.5 | T30: 169 | U30: 4986 | V30: 20742 | W30: 3.513 | X30: 6736 | Y30: 0 | Z30: 0 | AA30: 6736 | AB30: 14006 | AE30: 2032 | AF30: 15756 | AG30: 4986 | AH30: 20742 | AJ30: 0 | AK30: 0 | AL30: 0 | AN30: 20742 | AQ30: 2032 | AR30: 15756 | AS30: 4986 | AT30: 0.051 | AU30: 8549 | AV30: 0.527 | AW30: 1555 | AZ30: 30846 | BB30: 0 | BC30: 0 | BD30: 0 | BE30: 30846 | BH30: 2032 | BI30: 0 | BJ30: 2950 | BK30: 12.211 | BL30: 36022 | BM30: 0.271 | BN30: 45427 | BP30: 81449 | BR30: 0 | BT30: 81449 | BW30: 2032 | BX30: 15756 | BY30: 4986 | BZ30: 8549 | CA30: 29291 | CC30: 0 | CD30: 0 | CE30: 0 | CG30: 29291 | DB30: =$J18 -> 6
A31: 8) Non-Gas Fuel Loss Factor | C31: =+'Gas Input Table Summary'!$D$21 -> 0.051 | J31: 19 | L31: 2033 | M31: 2950 | N31: 5.528 | O31: 16308 | P31: 0 | Q31: 0 | R31: 16308 | S31: 29.5 | T31: 170 | U31: 5015 | V31: 21323 | W31: 3.635 | X31: 6970 | Y31: 0 | Z31: 0 | AA31: 6970 | AB31: 14353 | AE31: 2033 | AF31: 16308 | AG31: 5015 | AH31: 21323 | AJ31: 0 | AK31: 0 | AL31: 0 | AN31: 21323 | AQ31: 2033 | AR31: 16308 | AS31: 5015 | AT31: 0.052 | AU31: 8717 | AV31: 0.539 | AW31: 1590 | AZ31: 31630 | BB31: 0 | BC31: 0 | BD31: 0 | BE31: 31630 | BH31: 2033 | BI31: 0 | BJ31: 2950 | BK31: 12.639 | BL31: 37285 | BM31: 0.281 | BN31: 47103 | BP31: 84388 | BR31: 0 | BT31: 84388 | BW31: 2033 | BX31: 16308 | BY31: 5015 | BZ31: 8717 | CA31: 30040 | CC31: 0 | CD31: 0 | CE31: 0 | CG31: 30040 | DB31: =$J19 -> 7
E32: 24) Total Annual Dk Saved = | F32: =+'Total Program Inputs'!E11 -> 2950 | J32: 20 | L32: 2034 | M32: 2950 | N32: 5.721 | O32: 16877 | P32: 0 | Q32: 0 | R32: 16877 | S32: 29.5 | T32: 172 | U32: 5074 | V32: 21951 | W32: 3.763 | X32: 7216 | Y32: 0 | Z32: 0 | AA32: 7216 | AB32: 14735 | AE32: 2034 | AF32: 16877 | AG32: 5074 | AH32: 21951 | AJ32: 0 | AK32: 0 | AL32: 0 | AN32: 21951 | AQ32: 2034 | AR32: 16877 | AS32: 5074 | AT32: 0.054 | AU32: 9052 | AV32: 0.552 | AW32: 1628 | AZ32: 32631 | BB32: 0 | BC32: 0 | BD32: 0 | BE32: 32631 | BH32: 2034 | BI32: 0 | BJ32: 2950 | BK32: 13.081 | BL32: 38589 | BM32: 0.291 | BN32: 48780 | BP32: 87369 | BR32: 0 | BT32: 87369 | BW32: 2034 | BX32: 16877 | BY32: 5074 | BZ32: 9052 | CA32: 31003 | CC32: 0 | CD32: 0 | CE32: 0 | CG32: 31003 | DB32: =$J20 -> 8
A33: 9) Gas Environmental Damage Factor = | C33: =+'Gas Input Table Summary'!$D$22 -> 0.35 | J33: 21 | L33: 2035 | M33: 2950 | N33: 5.922 | O33: 17470 | P33: 0 | Q33: 0 | R33: 17470 | S33: 29.5 | T33: 174 | U33: 5133 | V33: 22603 | W33: 3.894 | X33: 7467 | Y33: 0 | Z33: 0 | AA33: 7467 | AB33: 15136 | AE33: 2035 | AF33: 17470 | AG33: 5133 | AH33: 22603 | AJ33: 0 | AK33: 0 | AL33: 0 | AN33: 22603 | AQ33: 2035 | AR33: 17470 | AS33: 5133 | AT33: 0.056 | AU33: 9387 | AV33: 0.564 | AW33: 1664 | AZ33: 33654 | BB33: 0 | BC33: 0 | BD33: 0 | BE33: 33654 | BH33: 2035 | BI33: 0 | BJ33: 2950 | BK33: 13.539 | BL33: 39940 | BM33: 0.301 | BN33: 50456 | BP33: 90396 | BR33: 0 | BT33: 90396 | BW33: 2035 | BX33: 17470 | BY33: 5133 | BZ33: 9387 | CA33: 31990 | CC33: 0 | CD33: 0 | CE33: 0 | CG33: 31990
A34: Escalation Rate = | C34: =+'Gas Input Table Summary'!$D$23 -> 0.023 | E34: 25) Incentive/Participant = | F34: =+ROUND(F12/F30,0) -> 300 | J34: 22 | L34: 2036 | M34: 0 | N34: 6.129 | O34: 0 | P34: 0 | Q34: 0 | R34: 0 | S34: 0 | T34: 175 | U34: 0 | V34: 0 | W34: 4.031 | X34: 0 | Y34: 0 | Z34: 0 | AA34: 0 | AB34: 0 | AE34: 2036 | AF34: 0 | AG34: 0 | AH34: 0 | AJ34: 0 | AK34: 0 | AL34: 0 | AN34: 0 | AQ34: 2036 | AR34: 0 | AS34: 0 | AT34: 0.058 | AU34: 0 | AV34: 0.577 | AW34: 0 | AZ34: 0 | BB34: 0 | BC34: 0 | BD34: 0 | BE34: 0 | BH34: 2036 | BI34: 0 | BJ34: 0 | BK34: 14.013 | BL34: 0 | BM34: 0.311 | BN34: 0 | BP34: 0 | BR34: 0 | BT34: 0 | BW34: 2036 | BX34: 0 | BY34: 0 | BZ34: 0 | CA34: 0 | CC34: 0 | CD34: 0 | CE34: 0 | CG34: 0
DB35: =$J21 -> 9
A36: 10) Non Gas Fuel Environmental Damage Factor = | C36: =+'Gas Input Table Summary'!$D$24 -> 0 | E36: 26) Distribution Delivery Charge | F36: =+'Gas Input Table Summary'!D58 -> 1.891 | K36: Total = | M36: =SUM(M14:M34) -> 59000 | V36: =SUM(V14:V34) -> 350028 | AA36: =SUM(AA14:AA34) -> 182035 | AB36: =SUM(AB14:AB34) -> 167993 | AD36: Total = | AH36: =SUM(AH14:AH34) -> 350028 | AL36: =SUM(AL14:AL34) -> 72189 | AN36: =SUM(AN14:AN34) -> 277839 | AP36: Total = | AZ36: =SUM(AZ14:AZ34) -> 515369 | BD36: =SUM(BD14:BD34) -> 152339 | BE36: =SUM(BE14:BE34) -> 363030 | BG36: Total = | BJ36: =SUM(BJ14:BJ34) -> 59000 | BP36: =SUM(BP14:BP34) -> 1397956 | BR36: =SUM(BR14:BR34) -> 148850 | BT36: =SUM(BT14:BT34) -> 1249106 | BZ36: Total = | CA36: =SUM(CA14:CA34) -> 488322 | CE36: =SUM(CE14:CE34) -> 152339 | CG36: =SUM(CG14:CG34) -> 335983
A37: Escalation Rate = | C37: =+'Gas Input Table Summary'!$D$25 -> 0 | T37: NPV = | V37: =ROUND(V14+NPV($C$41,V15:V34),0) -> 183350 | AA37: =ROUND(AA14+NPV($C$41,AA15:AA34),0) -> 128912 | AB37: =ROUND(AB14+NPV($C$41,AB15:AB34),0) -> 54438 | AG37: NPV = | AH37: =ROUND(AH14+NPV($C$41,AH15:AH34),0) -> 183350 | AL37: =ROUND(AL14+NPV($C$41,AL15:AL34),0) -> 72189 | AN37: =+AH37-AL37 -> 111161 | AW37: NPV = | AZ37: =ROUND(AZ14+NPV($C$43,AZ15:AZ34),0) -> 364507 | BD37: =ROUND(BD14+NPV($C$43,BD15:BD34),0) -> 152339 | BE37: =AZ37-BD37 -> 212168 | BN37: NPV = | BP37: =ROUND(BP14+NPV($C$39,BP15:BP34),0) -> 628909 | BR37: =ROUND(BR14+NPV($C$39,BR15:BR34),0) -> 148850 | BT37: =ROUND(BT14+NPV($C$39,BT15:BT34),0) -> 480059 | BZ37: NPV = | CA37: =ROUND(CA14+NPV($C$41,CA15:CA34),0) -> 254736 | CE37: =ROUND(CE14+NPV($C$41,CE15:CE34),0) -> 152339 | CG37: =ROUND(CG14+NPV($C$41,CG15:CG34),0) -> 102397 | DB37: =$J22 -> 10
E38: 27) Effective Income Tax Rate = | F38: =+'Gas Input Table Summary'!D59 -> 0.35
A39: 11) Participant Discount Rate = | C39: =+'Gas Input Table Summary'!$D$26 -> 0.1 | E39: (Federal & State Taxes) | K39: Total NPV = | N39: =AB37 -> 54438 | AD39: Total NPV = | AG39: =AN37 -> 111161 | AP39: Total NPV = | AS39: =BE37 -> 212168 | BG39: Total NPV = | BJ39: =BT37 -> 480059 | BV39: Total NPV = | BY39: =CG37 -> 102397
K40: Benefit/Cost Ratio = | N40: =ROUND(V37/AA37,2) -> 1.42 | AD40: Benefit/Cost Ratio = | AG40: =ROUND(AH37/AL37,2) -> 2.54 | AP40: Benefit/Cost Ratio = | AS40: =ROUND(AZ37/BD37,2) -> 2.39 | BG40: Benefit/Cost Ratio = | BJ40: =ROUND(BP37/BR37,20) -> 4.225119248 | BV40: Benefit/Cost Ratio = | BY40: =ROUND(CA37/CE37,2) -> 1.67 | DB40: =$J23 -> 11
A41: 12) Utility Discount Rate = | C41: =+'Gas Input Table Summary'!$D$27 -> 0.07216 | E41: Test Results | F41: NPV | G41: B/C | DB41: =$J24 -> 12
E42: Ratepayer Impact Measure Test | F42: =N39 -> 54438 | G42: =N40 -> 1.42 | DB42: =$J25 -> 13
A43: 13) Societal Discount Rate = | C43: =+'Gas Input Table Summary'!$D$28 -> 0.0356 | E43: Utility Cost Test | F43: =AG39 -> 111161 | G43: =AG40 -> 2.54 | J43: Worksheet Calculations | AD43: Worksheet Calculations | AP43: Worksheet Calculations | BG43: Worksheet Calculations | BV43: Worksheet Calculations | DB43: =$J26 -> 14
E44: Societal Test | F44: =AS39 -> 212168 | G44: =AS40 -> 2.39 | J44: (A) | K44: = Average Dk/Participant Saved (21) x Number of Participants (23) for Project Life (20) | T44: (I) | U44: = (G) x (H) | AD44: (A) | AE44: = Table 1 (F) | AP44: (A) | AQ44: = Table 1 (F) | AW44: (H) | AZ44: = Table 2 (F) | BG44: (A) | BH44: = Table 1 (N) | BV44: (A) | BW44: = Table 1 (F)
A45: 14) General Input Data Year = | C45: =+'Res .95+% Res Furnace - NEW'!C45 -> 2014 | E45: Participant Test | F45: =BJ39 -> 480059 | G45: =BJ40 -> 4.225119248 | J45: (B) | K45: = Commodity Cost (3) escalated | T45: (J) | U45: = (F) + (I) | AD45: (B) | AE45: = Table 1 (I) | AP45: (G) | AQ45: = Table 1 (I) | AW45: (I) | AZ45: = Direct Part. Costs (17) x No. of Part. (23) - Table 1 (N) | BG45: (B) | BH45: = Table 1 (A) | BV45: (B) | BW45: = Table 1 (I)
E46: Total Resource Cost Test | F46: =BY39 -> 102397 | G46: =BY40 -> 1.67 | J46: (C) | K46: = (A) x (B) | T46: (K) | U46: = Distribution Delivery Charge (26) escalated. | AD46: (C) | AE46: = Table 1 (J) | AP46: (C) | AQ46: = Non-Gas Fuel Cost (7), adjusted for losses (8), escalated.. | AW46: (J) | AZ46: = (H) + (I) | BG46: (C) | BH46: = Retail Rate (1) escalated. | BV46: (C) | BW46: = Table 3 (D)
A47: 15) Project Analysis Year 1 = | C47: =+'Res .95+% Res Furnace - NEW'!C47 -> 2016 | J47: (D) | K47: = Variable O&M Cost (6), escalated | T47: (L) | U47: = (A) x (K) x (1-Inverse of Tax Rate (27) | AD47: (D) | AE47: = Table 1 (M) | AP47: (D) | AQ47: = (C) x [Avg. Non-Gas Fuel Units/Part.Saved (22) x No. of Part. (23) | AW47: (K) | AZ47: = (G) - (J) | BG47: (D) | BH47: =(B) x (C) | BV47: (D) | BW47: = (A) + (B) + (C)
J48: (E) | K48: = (A) x (D) | T48: (M) | U48: = Admin & Operating Costs (16a) | AD48: (E) | AE48: = Table 1 (N) | AP48: (E) | AQ48: = Gas Environmental Damage Factor (9), escalated | BG48: (E) | BH48: = Non-Gas Fuel Retail Rate (2), escalated. | BV48: (E) | BW48: = Table 3 (H)
J49: (F) | K49: = (C) + (E) | T49: (N) | U49: = Incentive Costs (16b) | AD49: (F) | AE49: = (D) + (E) | AP49: (F) | AQ49: = Table 1 (A) x (E) | BG49: (F) | BH49: = (E) x [Avg. Non-Gas Fuel Units/Part.Saved (22) x No. of Part. (23) | BV49: (F) | BW49: = Table 3 (I) | DB49: =$J27 -> 15
J50: (G) | K50: = (A) x Peak Reduction Factor (5) | T50: (O) | U50: = (L) + (M) + (N) | AD50: (G) | AE50: = (C) - (F) | AP50: (G) | AQ50: = (A) + (B) + (D) + (F) | BG50: (G) | BH50: = (A) + (D) + (F) | BV50: (G) | BW50: = (E) + (F) | DB50: =$J28 -> 16
J51: (H) | K51: = Demand Cost (4) escalated. | T51: (P) | U51: = (J) - (O) | BG51: (H) | BH51: = Direct Participant Costs (17) x Number of Participants (23) | BV51: (H) | BW51: = (D) - (G) | DB51: =$J29 -> 17
BG52: (I) | BH52: = (G) - (H)

Sheet Programmable Thermostats
A1: NATURAL GAS CONSERVATION PROGRAMS/DEMAND-SIDE MANAGEMENT | K1: Table 1 | AD1: Table 2 | AP1: Table 3 | BG1: Table 4 | BV1: Table 5
A2: BEN/COST ANALYSIS FOR GAS CONSERVATION | K2: Ratepayer Impact Measure Test | AD2: Utility Cost Test | AP2: Societal Test | BG2: Participant Test | BV2: Total Resource Cost Test
A4: Company: | B4: Montana-Dakota Utilities Co. | K4: Company: | M4: =B4 -> Montana-Dakota Utilities Co. | AD4: Company: | AF4: =B4 -> Montana-Dakota Utilities Co. | AP4: Company: | AR4: =AF4 -> Montana-Dakota Utilities Co. | BH4: Company: | BI4: =AR4 -> Montana-Dakota Utilities Co. | BW4: Company: | BX4: =BI4 -> Montana-Dakota Utilities Co.
A5: Project: | B5: ='Database Inputs'!A12 -> Programmable Thermostats | K5: Project: | M5: =$B$5 -> Programmable Thermostats | AD5: Project: | AF5: =$B$5 -> Programmable Thermostats | AP5: Project: | AR5: =$B$5 -> Programmable Thermostats | BH5: Project: | BI5: =$B$5 -> Programmable Thermostats | BW5: Project: | BX5: =$B$5 -> Programmable Thermostats
A6: Program Years: | B6: =+'Res .95+% Res Furnace - Replace'!B6 -> 2016 Actual
N7: Benefits | X7: Costs | AF7: Benefits | AJ7: Costs | AR7: Benefits | BB7: Costs | BI7: Benefits | BR7: Costs | BX7: Benefits | CC7: Costs
A8: Input Data | F8: 2016 | AB8: Annual | AN8: Annual | AT8: Non-Gas | BE8: Annual | BT8: Annual | CG8: Annual
M9: Total | N9: Gas | O9: Gas | P9: Variable | Q9: Variable | R9: Total | S9: Peak Dk | T9: Demand | U9: Total | W9: Distribution | Y9: Program | AA9: Total | AB9: Benefits | AF9: Total | AG9: Total | AH9: Annual | AJ9: Program | AL9: Utility | AN9: Benefits | AR9: Total | AS9: Total | AT9: Energy | AU9: Non-Gas | AV9: Environmental | AW9: Environmental | AZ9: Annual | BB9: Utility | BC9: Participants' | BD9: Annual | BE9: Benefits | BJ9: Total | BL9: Gas | BM9: Non-Gas | BN9: Non-Gas | BP9: Total | BR9: Direct | BT9: Benefits | BX9: Total | BY9: Total | BZ9: Non-Gas | CA9: Total | CC9: Utility | CD9: Participants' | CG9: Benefits
A10: 1) Retail Rate ($/Dk) = | C10: =+'Gas Input Table Summary'!$D$7 -> 6.574 | E10: 16) Utility Project Costs | M10: Energy | N10: Commodity | O10: Commodity | P10: O & M | Q10: O & M | R10: Energy | S10: Demand | T10: Savings | U10: Demand | V10: Total | W10: Delivery | X10: Lost | Y10: Admin | Z10: Incentive | AA10: Program | AB10: Less | AF10: Energy | AG10: Demand | AH10: Total | AJ10: Admin | AK10: Incentive | AL10: Program | AN10: Less | AR10: Energy | AS10: Demand | AT10: Savings | AU10: Energy | AV10: Damage | AW10: Damage | AZ10: Total | BB10: Program | BC10: Costs Net | BD10: Total | BE10: Less | BI10: Incentives | BJ10: Energy | BK10: Retail | BL10: Bill | BM10: Fuel | BN10: Energy | BP10: Annual | BR10: Participant | BT10: Less | BX10: Energy | BY10: Demand | BZ10: Energy | CA10: Annual | CC10: Program | CD10: Costs Net | CE10: Total | CG10: Less
A11: Escalation Rate = | C11: =+'Gas Input Table Summary'!$D$8 -> 0.035 | E11: 16a) Administrative & Operating Costs = | F11: =+'Total Program Inputs'!K12 -> 199 | J11: t | M11: Reduction | N11: Cost/Dk | O11: Savings | P11: Cost/Dk | Q11: Savings | R11: Savings | S11: Reduction | T11: Per Unit | U11: Savings | V11: Savings | W11: Charge | X11: Margin | Y11: Costs | Z11: Costs | AA11: Costs | AB11: Costs | AF11: Savings | AG11: Savings | AH11: Savings | AJ11: Costs | AK11: Costs | AL11: Costs | AN11: Costs | AR11: Savings | AS11: Savings | AT11: ($/Part.) | AU11: Savings | AV11: Savings/Dk | AW11: Savings | AZ11: Savings | BB11: Costs | BC11: of Rebate | BD11: Costs | BE11: Costs | BI11: Received | BJ11: Reduction | BK11: Rate | BL11: Savings | BM11: Retail Rate | BN11: Savings | BP11: Benefits | BR11: Costs | BT11: Costs | BX11: Savings | BY11: Savings | BZ11: Savings | CA11: Benefits | CC11: Costs | CD11: of Rebate | CE11: Costs | CG11: Costs
E12: 16b) Incentive Costs = | F12: =+'Total Program Inputs'!G12 -> 3920 | L12: Year | M12: (A) | N12: (B) | O12: (C) | P12: (D) | Q12: (E) | R12: (F) | S12: (G) | T12: (H) | U12: (I) | V12: (J) | W12: (K) | X12: (L) | Y12: (M) | Z12: (N) | AA12: (O) | AB12: (P) | AE12: Year | AF12: (A) | AG12: (B) | AH12: (C) | AJ12: (D) | AK12: (E) | AL12: (F) | AN12: (G) | AQ12: Year | AR12: (A) | AS12: (B) | AT12: (C) | AU12: (D) | AV12: (E) | AW12: (F) | AZ12: (G) | BB12: (H) | BC12: (I) | BD12: (J) | BE12: (K) | BH12: Year | BI12: (A) | BJ12: (B) | BK12: (C) | BL12: (D) | BM12: (E) | BN12: (F) | BP12: (G) | BR12: (H) | BT12: (I) | BW12: Year | BX12: (A) | BY12: (B) | BZ12: (C) | CA12: (D) | CC12: (E) | CD12: (F) | CE12: (G) | CG12: (H)
A13: 2) Non-Gas Fuel Retail Rate ($/Fuel Unit) = | C13: =+'Gas Input Table Summary'!$D$9 -> 0.14609 | E13: 16c) Total Utility Project Costs = | F13: =SUM(F11:F12) -> 4119
A14: Escalation Rate = | C14: =+'Gas Input Table Summary'!$D$10 -> 0.035 | J14: =$C$47-$C$45 -> 2 | L14: =$C$47 -> 2016 | M14: =ROUND(IF($C$47+$F$23>L14,F25*F30,0),0) -> 568 | N14: =ROUND($C$17*(1),3) -> 2.976 | O14: =ROUND(M14*N14,0) -> 1690 | P14: =ROUND($C$25*(1+$C$26)^J14,3) -> 0 | Q14: =ROUND(M14*P14,0) -> 0 | R14: =O14+Q14 -> 1690 | S14: =ROUND(M14*$C$23,1) -> 5.7 | T14: =ROUND($C$20*(1),0) -> 142 | U14: =ROUND(S14*T14,0) -> 809 | V14: =ROUND(+U14+R14,0) -> 2499 | W14: =ROUND($F$36*(1+$C$11)^J14,3) -> 2.026 | X14: =ROUND((1-$F$38)*(W14*M14),0) -> 748 | Y14: =ROUND($F$11,0) -> 199 | Z14: =ROUND($F$12,0) -> 3920 | AA14: =SUM(X14:Z14) -> 4867 | AB14: =V14-AA14 -> -2368 | AE14: =$C$47 -> 2016 | AF14: =+R14 -> 1690 | AG14: =+U14 -> 809 | AH14: =+AG14+AF14 -> 2499 | AJ14: =ROUND(Y14,0) -> 199 | AK14: =ROUND(Z14,0) -> 3920 | AL14: =SUM(AJ14:AK14) -> 4119 | AN14: =+AH14-AL14 -> -1620 | AQ14: =$C$47 -> 2016 | AR14: =AF14 -> 1690 | AS14: =+AG14 -> 809 | AT14: =ROUND(($C$28/(1-$C$31))*(1+$C$29)^J14,3) -> 0.029 | AU14: =ROUND(IF($C$47+$F$23>$AQ14,$F$30*$F$27,0)*AT14,0) -> 12 | AV14: =ROUND($C$33*(1+$C$34)^J14,3) -> 0.366 | AW14: =ROUND(AV14*M14,0) -> 208 | AZ14: =ROUND(AR14+AS14+AU14+AW14+AY14,0) -> 2719 | BB14: =ROUND($F$13,0) -> 4119 | BC14: =ROUND((F15*F30)-Z14,0) -> 7840 | BD14: =BB14+BC14 -> 11959 | BE14: =AZ14-BD14 -> -9240 | BH14: =$C$47 -> 2016 | BI14: =+F12 -> 3920 | BJ14: =+M14 -> 568 | BK14: =ROUND($C$10*(1+$C$11)^J14,3) -> 7.042 | BL14: =ROUND(BJ14*BK14,0) -> 4000 | BM14: =ROUND($C$13*(1+$C$14)^J14,3) -> 0.156 | BN14: =ROUND(IF($C$47+$F$23>$BH14,$F$30*$F$27,0)*BM14,0) -> 64 | BP14: =BI14+BL14+BN14+BO14 -> 7984 | BR14: =ROUND(F15*F30,0) -> 11760 | BT14: =BP14-BR14 -> -3776 | BW14: =$C$47 -> 2016 | BX14: =$R14 -> 1690 | BY14: =U14 -> 809 | BZ14: =AU14 -> 12 | CA14: =SUM(BX14:BZ14) -> 2511 | CC14: =BB14 -> 4119 | CD14: =BC14 -> 7840 | CE14: =SUM(CC14:CD14) -> 11959 | CG14: =CA14-CE14 -> -9448
A15: Non-Gas Fuel Units (ie. kWh,Gallons, etc) = | C15: =+'Gas Input Table Summary'!$D$11 -> Kwh | E15: 17) Direct Participant Costs ($/Part.) = | F15: =ROUND('Database Inputs'!K12,0) -> 60 | J15: =J14+1 -> 3 | L15: =L14+1 -> 2017 | M15: =ROUND(IF($C$47+$F$23>L15,$F$25*$F$30,0)+IF($C$48+$G$23>L15,$G$25*$G$30,0),0) -> 568 | N15: =ROUND($C$17*(1+$C$18)^J14,3) -> 3.188 | O15: 1811 | P15: 0 | Q15: =ROUND(M15*P15,0) -> 0 | R15: 1811 | S15: 5.7 | T15: =ROUND($C$20*(1+$C$21)^J14,0) -> 145 | U15: =ROUND(S15*T15,0) -> 827 | V15: =ROUND(+U15+R15,0) -> 2638 | W15: 2.097 | X15: 774 | Y15: =ROUND($G$11,0) -> 0 | Z15: =ROUND($G$12,0) -> 0 | AA15: 774 | AB15: 1864 | AE15: =AE14+1 -> 2017 | AF15: 1811 | AG15: 827 | AH15: =+AG15+AF15 -> 2638 | AJ15: =ROUND(Y15,0) -> 0 | AK15: 0 | AL15: 0 | AN15: 2638 | AQ15: =AQ14+1 -> 2017 | AR15: 1811 | AS15: 827 | AT15: 0.03 | AU15: =ROUND((IF($C$47+$F$23>$AQ15,$F$27*$F$30,0)+IF($C$48+$G$23>AQ15,$G$27*$G$30,0))*AT15,0) -> 12 | AV15: 0.375 | AW15: 213 | AZ15: =ROUND(AR15+AS15+AU15+AW15+AY15,0) -> 2863 | BB15: =ROUND($G$13,0) -> 0 | BC15: =ROUND(($G$15*$G$30)-$Z$15,0) -> 0 | BD15: =BB15+BC15 -> 0 | BE15: 2863 | BH15: =BH14+1 -> 2017 | BI15: =+G12 -> 0 | BJ15: 568 | BK15: 7.289 | BL15: =ROUND(BJ15*BK15,0) -> 4140 | BM15: 0.162 | BN15: =ROUND((IF($C$47+$F$23>BH15,$F$27*$F$30,0)+IF($C$48+$G$23>BH15,$G$27*$G$30,0))*BM15,0) -> 67 | BP15: 4207 | BR15: =ROUND($G$15*$G$30,0) -> 0 | BT15: =BP15-BR15 -> 4207 | BW15: =BW14+1 -> 2017 | BX15: 1811 | BY15: =U15 -> 827 | BZ15: =AU15 -> 12 | CA15: =SUM(BX15:BZ15) -> 2650 | CC15: =BB15 -> 0 | CD15: 0 | CE15: =SUM(CC15:CD15) -> 0 | CG15: =CA15-CE15 -> 2650
J16: 4 | L16: 2018 | M16: =ROUND(IF($C$47+$F$23>L16,$F$25*$F$30,0)+IF($C$48+$G$23>L16,$G$25*$G$30,0)+IF($C$49+$H$23>L16,$H$25*$H$30,0),0) -> 568 | N16: =ROUND($C$17*(1+$C$18)^J15,3) -> 3.3 | O16: 1874 | P16: 0 | Q16: 0 | R16: 1874 | S16: 5.7 | T16: =ROUND($C$20*(1+$C$21)^J15,0) -> 147 | U16: =ROUND(S16*T16,0) -> 838 | V16: 2712 | W16: 2.17 | X16: 801 | Y16: =ROUND($H$11,0) -> 0 | Z16: =ROUND($H$12,0) -> 0 | AA16: 801 | AB16: 1911 | AE16: 2018 | AF16: 1874 | AG16: 838 | AH16: =+AG16+AF16 -> 2712 | AJ16: 0 | AK16: 0 | AL16: 0 | AN16: 2712 | AQ16: 2018 | AR16: 1874 | AS16: 838 | AT16: 0.031 | AU16: =ROUND((IF($C$47+$F$23>$AQ16,$F$27*$F$30,0)+IF($C$48+$G$23>AQ16,$G$27*$G$30,0)+IF($C$49+$H$23>AQ16,$H$27*$H$30,0))*AT16,0) -> 13 | AV16: 0.383 | AW16: 218 | AZ16: 2943 | BB16: =ROUND($H$13,0) -> 0 | BC16: =ROUND(($H$15*$H$30)-$Z$16,0) -> 0 | BD16: 0 | BE16: 2943 | BH16: 2018 | BI16: =ROUND(H12,0) -> 0 | BJ16: 568 | BK16: 7.544 | BL16: =ROUND(BJ16*BK16,0) -> 4285 | BM16: 0.168 | BN16: =ROUND((IF($C$47+$F$23>BH16,$F$27*$F$30,0)+IF($C$49+$H$23>BH16,$H$27*$H$30,0)+IF($C$48+$G$23>BH16,$G$27*$G$30,0))*BM16,0) -> 69 | BP16: 4354 | BR16: =ROUND($H$15*$H$30,0) -> 0 | BT16: 4354 | BW16: 2018 | BX16: 1874 | BY16: 838 | BZ16: 13 | CA16: 2725 | CC16: 0 | CD16: 0 | CE16: 0 | CG16: =CA16-CE16 -> 2725
A17: 3) Commodity Cost ($/Dk) = | C17: =+'Gas Input Table Summary'!$D$12 -> 2.976 | E17: 18) Participant Non-Energy Costs (Annual $/Part.) = | F17: =+'Gas Input Table Summary'!D35 -> 0 | J17: 5 | L17: 2019 | M17: =ROUND(IF($C$47+$F$23>L17,$F$25*$F$30,0)+IF($C$48+$G$23>L17,$G$25*$G$30,0)+IF($C$49+$H$23>L17,$H$25*$H$30,0),0) -> 568 | N17: 3.415 | O17: 1940 | P17: 0 | Q17: 0 | R17: 1940 | S17: 5.7 | T17: 148 | U17: 844 | V17: 2784 | W17: 2.246 | X17: 829 | Y17: 0 | Z17: 0 | AA17: 829 | AB17: 1955 | AE17: 2019 | AF17: 1940 | AG17: 844 | AH17: 2784 | AJ17: 0 | AK17: 0 | AL17: 0 | AN17: 2784 | AQ17: 2019 | AR17: 1940 | AS17: 844 | AT17: 0.032 | AU17: =ROUND((IF($C$47+$F$23>$AQ17,$F$27*$F$30,0)+IF($C$48+$G$23>AQ17,$G$27*$G$30,0)+IF($C$49+$H$23>AQ17,$H$27*$H$30,0))*AT17,0) -> 13 | AV17: 0.392 | AW17: 223 | AZ17: 3020 | BB17: 0 | BC17: 0 | BD17: 0 | BE17: 3020 | BH17: 2019 | BI17: 0 | BJ17: 568 | BK17: 7.808 | BL17: 4435 | BM17: 0.174 | BN17: =ROUND((IF($C$47+$F$23>BH17,$F$27*$F$30,0)+IF($C$49+$H$23>BH17,$H$27*$H$30,0)+IF($C$48+$G$23>BH17,$G$27*$G$30,0))*BM17,0) -> 72 | BP17: 4507 | BR17: =+BC17 -> 0 | BT17: 4507 | BW17: 2019 | BX17: 1940 | BY17: 844 | BZ17: 13 | CA17: 2797 | CC17: 0 | CD17: 0 | CE17: 0 | CG17: 2797
A18: Escalation Rate = | C18: =+'Gas Input Table Summary'!$D$13 -> 0.035 | E18: Escalation Rate = | F18: =+'Gas Input Table Summary'!D38 -> 0 | J18: 6 | L18: 2020 | M18: 568 | N18: 3.535 | O18: 2008 | P18: 0 | Q18: 0 | R18: 2008 | S18: 5.7 | T18: 150 | U18: 855 | V18: 2863 | W18: 2.325 | X18: 858 | Y18: 0 | Z18: 0 | AA18: 858 | AB18: 2005 | AE18: 2020 | AF18: 2008 | AG18: 855 | AH18: 2863 | AJ18: 0 | AK18: 0 | AL18: 0 | AN18: 2863 | AQ18: 2020 | AR18: 2008 | AS18: 855 | AT18: 0.034 | AU18: 14 | AV18: 0.401 | AW18: 228 | AZ18: 3105 | BB18: 0 | BC18: 0 | BD18: 0 | BE18: 3105 | BH18: 2020 | BI18: 0 | BJ18: 568 | BK18: 8.081 | BL18: 4590 | BM18: 0.18 | BN18: 74 | BP18: 4664 | BR18: 0 | BT18: 4664 | BW18: 2020 | BX18: 2008 | BY18: 855 | BZ18: 14 | CA18: 2877 | CC18: 0 | CD18: 0 | CE18: 0 | CG18: 2877 | DB18: t
J19: 7 | L19: 2021 | M19: 568 | N19: 3.658 | O19: 2078 | P19: 0 | Q19: 0 | R19: 2078 | S19: 5.7 | T19: 151 | U19: 861 | V19: 2939 | W19: 2.406 | X19: 888 | Y19: 0 | Z19: 0 | AA19: 888 | AB19: 2051 | AE19: 2021 | AF19: 2078 | AG19: 861 | AH19: 2939 | AJ19: 0 | AK19: 0 | AL19: 0 | AN19: 2939 | AQ19: 2021 | AR19: 2078 | AS19: 861 | AT19: 0.035 | AU19: 14 | AV19: 0.41 | AW19: 233 | AZ19: 3186 | BB19: 0 | BC19: 0 | BD19: 0 | BE19: 3186 | BH19: 2021 | BI19: 0 | BJ19: 568 | BK19: 8.364 | BL19: 4751 | BM19: 0.186 | BN19: 77 | BP19: 4828 | BR19: 0 | BT19: 4828 | BW19: 2021 | BX19: 2078 | BY19: 861 | BZ19: 14 | CA19: 2953 | CC19: 0 | CD19: 0 | CE19: 0 | CG19: 2953
A20: 4) Demand Cost ($/Unit/Yr) = | C20: =+'Gas Input Table Summary'!$D$14 -> 142.34 | E20: 19) Participant Non-Energy Savings (Annual $/Part) = | F20: =+'Gas Input Table Summary'!D41 -> 0 | J20: 8 | L20: 2022 | M20: 568 | N20: 3.786 | O20: 2150 | P20: 0 | Q20: 0 | R20: 2150 | S20: 5.7 | T20: 153 | U20: 872 | V20: 3022 | W20: 2.49 | X20: 919 | Y20: 0 | Z20: 0 | AA20: 919 | AB20: 2103 | AE20: 2022 | AF20: 2150 | AG20: 872 | AH20: 3022 | AJ20: 0 | AK20: 0 | AL20: 0 | AN20: 3022 | AQ20: 2022 | AR20: 2150 | AS20: 872 | AT20: 0.036 | AU20: 15 | AV20: 0.42 | AW20: 239 | AZ20: 3276 | BB20: 0 | BC20: 0 | BD20: 0 | BE20: 3276 | BH20: 2022 | BI20: 0 | BJ20: 568 | BK20: 8.657 | BL20: 4917 | BM20: 0.192 | BN20: 79 | BP20: 4996 | BR20: 0 | BT20: 4996 | BW20: 2022 | BX20: 2150 | BY20: 872 | BZ20: 15 | CA20: 3037 | CC20: 0 | CD20: 0 | CE20: 0 | CG20: 3037
A21: Escalation Rate = | C21: =+'Gas Input Table Summary'!$D$15 -> 0.01 | E21: Escalation Rate = | F21: =+'Gas Input Table Summary'!D44 -> 0 | J21: 9 | L21: 2023 | M21: 568 | N21: 3.919 | O21: 2226 | P21: 0 | Q21: 0 | R21: 2226 | S21: 5.7 | T21: 154 | U21: 878 | V21: 3104 | W21: 2.577 | X21: 951 | Y21: 0 | Z21: 0 | AA21: 951 | AB21: 2153 | AE21: 2023 | AF21: 2226 | AG21: 878 | AH21: 3104 | AJ21: 0 | AK21: 0 | AL21: 0 | AN21: 3104 | AQ21: 2023 | AR21: 2226 | AS21: 878 | AT21: 0.037 | AU21: 15 | AV21: 0.429 | AW21: 244 | AZ21: 3363 | BB21: 0 | BC21: 0 | BD21: 0 | BE21: 3363 | BH21: 2023 | BI21: 0 | BJ21: 568 | BK21: 8.96 | BL21: 5089 | BM21: 0.199 | BN21: 82 | BP21: 5171 | BR21: 0 | BT21: 5171 | BW21: 2023 | BX21: 2226 | BY21: 878 | BZ21: 15 | CA21: 3119 | CC21: 0 | CD21: 0 | CE21: 0 | CG21: 3119 | DB21: =$J14 -> 2
J22: 10 | L22: 2024 | M22: 568 | N22: 4.056 | O22: 2304 | P22: 0 | Q22: 0 | R22: 2304 | S22: 5.7 | T22: 156 | U22: 889 | V22: 3193 | W22: 2.667 | X22: 985 | Y22: 0 | Z22: 0 | AA22: 985 | AB22: 2208 | AE22: 2024 | AF22: 2304 | AG22: 889 | AH22: 3193 | AJ22: 0 | AK22: 0 | AL22: 0 | AN22: 3193 | AQ22: 2024 | AR22: 2304 | AS22: 889 | AT22: 0.038 | AU22: 16 | AV22: 0.439 | AW22: 249 | AZ22: 3458 | BB22: 0 | BC22: 0 | BD22: 0 | BE22: 3458 | BH22: 2024 | BI22: 0 | BJ22: 568 | BK22: 9.273 | BL22: 5267 | BM22: 0.206 | BN22: 85 | BP22: 5352 | BR22: 0 | BT22: 5352 | BW22: 2024 | BX22: 2304 | BY22: 889 | BZ22: 16 | CA22: 3209 | CC22: 0 | CD22: 0 | CE22: 0 | CG22: 3209 | DB22: =$J15 -> 3
A23: 5) Peak Reduction Factor = | C23: =+'Gas Input Table Summary'!$D$16 -> 0.01 | E23: 20) Project Life (Years) = | F23: =ROUND('Database Inputs'!D12,0) -> 10 | J23: 11 | L23: 2025 | M23: 568 | N23: 4.198 | O23: 2384 | P23: 0 | Q23: 0 | R23: 2384 | S23: 5.7 | T23: 157 | U23: 895 | V23: 3279 | W23: 2.761 | X23: 1019 | Y23: 0 | Z23: 0 | AA23: 1019 | AB23: 2260 | AE23: 2025 | AF23: 2384 | AG23: 895 | AH23: 3279 | AJ23: 0 | AK23: 0 | AL23: 0 | AN23: 3279 | AQ23: 2025 | AR23: 2384 | AS23: 895 | AT23: 0.04 | AU23: 16 | AV23: 0.449 | AW23: 255 | AZ23: 3550 | BB23: 0 | BC23: 0 | BD23: 0 | BE23: 3550 | BH23: 2025 | BI23: 0 | BJ23: 568 | BK23: 9.598 | BL23: 5452 | BM23: 0.213 | BN23: 88 | BP23: 5540 | BR23: 0 | BT23: 5540 | BW23: 2025 | BX23: 2384 | BY23: 895 | BZ23: 16 | CA23: 3295 | CC23: 0 | CD23: 0 | CE23: 0 | CG23: 3295 | DB23: =$J16 -> 4
J24: 12 | L24: 2026 | M24: 0 | N24: 4.345 | O24: 0 | P24: 0 | Q24: 0 | R24: 0 | S24: 0 | T24: 159 | U24: 0 | V24: 0 | W24: 2.857 | X24: 0 | Y24: 0 | Z24: 0 | AA24: 0 | AB24: 0 | AE24: 2026 | AF24: 0 | AG24: 0 | AH24: 0 | AJ24: 0 | AK24: 0 | AL24: 0 | AN24: 0 | AQ24: 2026 | AR24: 0 | AS24: 0 | AT24: 0.041 | AU24: 0 | AV24: 0.46 | AW24: 0 | AZ24: 0 | BB24: 0 | BC24: 0 | BD24: 0 | BE24: 0 | BH24: 2026 | BI24: 0 | BJ24: 0 | BK24: 9.934 | BL24: 0 | BM24: 0.221 | BN24: 0 | BP24: 0 | BR24: 0 | BT24: 0 | BW24: 2026 | BX24: 0 | BY24: 0 | BZ24: 0 | CA24: 0 | CC24: 0 | CD24: 0 | CE24: 0 | CG24: 0 | DB24: =$J17 -> 5
A25: 6) Variable O&M ($/Dk) = | C25: =+'Gas Input Table Summary'!$D$17 -> 0 | E25: 21) Avg. Dk/Part. Saved = | F25: =+ROUND(F32/F30,3) -> 2.898 | J25: 13 | L25: 2027 | M25: 0 | N25: 4.497 | O25: 0 | P25: 0 | Q25: 0 | R25: 0 | S25: 0 | T25: 160 | U25: 0 | V25: 0 | W25: 2.957 | X25: 0 | Y25: 0 | Z25: 0 | AA25: 0 | AB25: 0 | AE25: 2027 | AF25: 0 | AG25: 0 | AH25: 0 | AJ25: 0 | AK25: 0 | AL25: 0 | AN25: 0 | AQ25: 2027 | AR25: 0 | AS25: 0 | AT25: 0.043 | AU25: 0 | AV25: 0.47 | AW25: 0 | AZ25: 0 | BB25: 0 | BC25: 0 | BD25: 0 | BE25: 0 | BH25: 2027 | BI25: 0 | BJ25: 0 | BK25: 10.281 | BL25: 0 | BM25: 0.228 | BN25: 0 | BP25: 0 | BR25: 0 | BT25: 0 | BW25: 2027 | BX25: 0 | BY25: 0 | BZ25: 0 | CA25: 0 | CC25: 0 | CD25: 0 | CE25: 0 | CG25: 0
A26: Escalation Rate = | C26: =+'Gas Input Table Summary'!$D$18 -> 0 | J26: 14 | L26: 2028 | M26: 0 | N26: 4.654 | O26: 0 | P26: 0 | Q26: 0 | R26: 0 | S26: 0 | T26: 162 | U26: 0 | V26: 0 | W26: 3.061 | X26: 0 | Y26: 0 | Z26: 0 | AA26: 0 | AB26: 0 | AE26: 2028 | AF26: 0 | AG26: 0 | AH26: 0 | AJ26: 0 | AK26: 0 | AL26: 0 | AN26: 0 | AQ26: 2028 | AR26: 0 | AS26: 0 | AT26: 0.044 | AU26: 0 | AV26: 0.481 | AW26: 0 | AZ26: 0 | BB26: 0 | BC26: 0 | BD26: 0 | BE26: 0 | BH26: 2028 | BI26: 0 | BJ26: 0 | BK26: 10.641 | BL26: 0 | BM26: 0.236 | BN26: 0 | BP26: 0 | BR26: 0 | BT26: 0 | BW26: 2028 | BX26: 0 | BY26: 0 | BZ26: 0 | CA26: 0 | CC26: 0 | CD26: 0 | CE26: 0 | CG26: 0
E27: 22) Avg Non-Gas Fuel Units/Part. Saved = | F27: =+'Database Inputs'!H12 -> 2.1 | J27: 15 | L27: 2029 | M27: 0 | N27: 4.817 | O27: 0 | P27: 0 | Q27: 0 | R27: 0 | S27: 0 | T27: 164 | U27: 0 | V27: 0 | W27: 3.168 | X27: 0 | Y27: 0 | Z27: 0 | AA27: 0 | AB27: 0 | AE27: 2029 | AF27: 0 | AG27: 0 | AH27: 0 | AJ27: 0 | AK27: 0 | AL27: 0 | AN27: 0 | AQ27: 2029 | AR27: 0 | AS27: 0 | AT27: 0.046 | AU27: 0 | AV27: 0.492 | AW27: 0 | AZ27: 0 | BB27: 0 | BC27: 0 | BD27: 0 | BE27: 0 | BH27: 2029 | BI27: 0 | BJ27: 0 | BK27: 11.014 | BL27: 0 | BM27: 0.245 | BN27: 0 | BP27: 0 | BR27: 0 | BT27: 0 | BW27: 2029 | BX27: 0 | BY27: 0 | BZ27: 0 | CA27: 0 | CC27: 0 | CD27: 0 | CE27: 0 | CG27: 0
A28: 7) Non-Gas Fuel Cost ($/Fuel Unit) = | C28: =+'Gas Input Table Summary'!$D$19 -> 0.02589 | E28: 22a) Avg Additional Non-Gas Fuel Units/ Part. Used = | F28: 0 | J28: 16 | L28: 2030 | M28: 0 | N28: 4.986 | O28: 0 | P28: 0 | Q28: 0 | R28: 0 | S28: 0 | T28: 165 | U28: 0 | V28: 0 | W28: 3.279 | X28: 0 | Y28: 0 | Z28: 0 | AA28: 0 | AB28: 0 | AE28: 2030 | AF28: 0 | AG28: 0 | AH28: 0 | AJ28: 0 | AK28: 0 | AL28: 0 | AN28: 0 | AQ28: 2030 | AR28: 0 | AS28: 0 | AT28: 0.047 | AU28: 0 | AV28: 0.504 | AW28: 0 | AZ28: 0 | BB28: 0 | BC28: 0 | BD28: 0 | BE28: 0 | BH28: 2030 | BI28: 0 | BJ28: 0 | BK28: 11.399 | BL28: 0 | BM28: 0.253 | BN28: 0 | BP28: 0 | BR28: 0 | BT28: 0 | BW28: 2030 | BX28: 0 | BY28: 0 | BZ28: 0 | CA28: 0 | CC28: 0 | CD28: 0 | CE28: 0 | CG28: 0
A29: Escalation Rate = | C29: =+'Gas Input Table Summary'!$D$20 -> 0.035 | J29: 17 | L29: 2031 | M29: 0 | N29: 5.16 | O29: 0 | P29: 0 | Q29: 0 | R29: 0 | S29: 0 | T29: 167 | U29: 0 | V29: 0 | W29: 3.394 | X29: 0 | Y29: 0 | Z29: 0 | AA29: 0 | AB29: 0 | AE29: 2031 | AF29: 0 | AG29: 0 | AH29: 0 | AJ29: 0 | AK29: 0 | AL29: 0 | AN29: 0 | AQ29: 2031 | AR29: 0 | AS29: 0 | AT29: 0.049 | AU29: 0 | AV29: 0.515 | AW29: 0 | AZ29: 0 | BB29: 0 | BC29: 0 | BD29: 0 | BE29: 0 | BH29: 2031 | BI29: 0 | BJ29: 0 | BK29: 11.798 | BL29: 0 | BM29: 0.262 | BN29: 0 | BP29: 0 | BR29: 0 | BT29: 0 | BW29: 2031 | BX29: 0 | BY29: 0 | BZ29: 0 | CA29: 0 | CC29: 0 | CD29: 0 | CE29: 0 | CG29: 0
E30: 23) Number of Participants = | F30: =+'Total Program Inputs'!C12 -> 196 | J30: 18 | L30: 2032 | M30: 0 | N30: 5.341 | O30: 0 | P30: 0 | Q30: 0 | R30: 0 | S30: 0 | T30: 169 | U30: 0 | V30: 0 | W30: 3.513 | X30: 0 | Y30: 0 | Z30: 0 | AA30: 0 | AB30: 0 | AE30: 2032 | AF30: 0 | AG30: 0 | AH30: 0 | AJ30: 0 | AK30: 0 | AL30: 0 | AN30: 0 | AQ30: 2032 | AR30: 0 | AS30: 0 | AT30: 0.051 | AU30: 0 | AV30: 0.527 | AW30: 0 | AZ30: 0 | BB30: 0 | BC30: 0 | BD30: 0 | BE30: 0 | BH30: 2032 | BI30: 0 | BJ30: 0 | BK30: 12.211 | BL30: 0 | BM30: 0.271 | BN30: 0 | BP30: 0 | BR30: 0 | BT30: 0 | BW30: 2032 | BX30: 0 | BY30: 0 | BZ30: 0 | CA30: 0 | CC30: 0 | CD30: 0 | CE30: 0 | CG30: 0 | DB30: =$J18 -> 6
A31: 8) Non-Gas Fuel Loss Factor | C31: =+'Gas Input Table Summary'!$D$21 -> 0.051 | J31: 19 | L31: 2033 | M31: 0 | N31: 5.528 | O31: 0 | P31: 0 | Q31: 0 | R31: 0 | S31: 0 | T31: 170 | U31: 0 | V31: 0 | W31: 3.635 | X31: 0 | Y31: 0 | Z31: 0 | AA31: 0 | AB31: 0 | AE31: 2033 | AF31: 0 | AG31: 0 | AH31: 0 | AJ31: 0 | AK31: 0 | AL31: 0 | AN31: 0 | AQ31: 2033 | AR31: 0 | AS31: 0 | AT31: 0.052 | AU31: 0 | AV31: 0.539 | AW31: 0 | AZ31: 0 | BB31: 0 | BC31: 0 | BD31: 0 | BE31: 0 | BH31: 2033 | BI31: 0 | BJ31: 0 | BK31: 12.639 | BL31: 0 | BM31: 0.281 | BN31: 0 | BP31: 0 | BR31: 0 | BT31: 0 | BW31: 2033 | BX31: 0 | BY31: 0 | BZ31: 0 | CA31: 0 | CC31: 0 | CD31: 0 | CE31: 0 | CG31: 0 | DB31: =$J19 -> 7
E32: 24) Total Annual Dk Saved = | F32: =+'Total Program Inputs'!E12 -> 568 | J32: 20 | L32: 2034 | M32: 0 | N32: 5.721 | O32: 0 | P32: 0 | Q32: 0 | R32: 0 | S32: 0 | T32: 172 | U32: 0 | V32: 0 | W32: 3.763 | X32: 0 | Y32: 0 | Z32: 0 | AA32: 0 | AB32: 0 | AE32: 2034 | AF32: 0 | AG32: 0 | AH32: 0 | AJ32: 0 | AK32: 0 | AL32: 0 | AN32: 0 | AQ32: 2034 | AR32: 0 | AS32: 0 | AT32: 0.054 | AU32: 0 | AV32: 0.552 | AW32: 0 | AZ32: 0 | BB32: 0 | BC32: 0 | BD32: 0 | BE32: 0 | BH32: 2034 | BI32: 0 | BJ32: 0 | BK32: 13.081 | BL32: 0 | BM32: 0.291 | BN32: 0 | BP32: 0 | BR32: 0 | BT32: 0 | BW32: 2034 | BX32: 0 | BY32: 0 | BZ32: 0 | CA32: 0 | CC32: 0 | CD32: 0 | CE32: 0 | CG32: 0 | DB32: =$J20 -> 8
A33: 9) Gas Environmental Damage Factor = | C33: =+'Gas Input Table Summary'!$D$22 -> 0.35 | J33: 21 | L33: 2035 | M33: 0 | N33: 5.922 | O33: 0 | P33: 0 | Q33: 0 | R33: 0 | S33: 0 | T33: 174 | U33: 0 | V33: 0 | W33: 3.894 | X33: 0 | Y33: 0 | Z33: 0 | AA33: 0 | AB33: 0 | AE33: 2035 | AF33: 0 | AG33: 0 | AH33: 0 | AJ33: 0 | AK33: 0 | AL33: 0 | AN33: 0 | AQ33: 2035 | AR33: 0 | AS33: 0 | AT33: 0.056 | AU33: 0 | AV33: 0.564 | AW33: 0 | AZ33: 0 | BB33: 0 | BC33: 0 | BD33: 0 | BE33: 0 | BH33: 2035 | BI33: 0 | BJ33: 0 | BK33: 13.539 | BL33: 0 | BM33: 0.301 | BN33: 0 | BP33: 0 | BR33: 0 | BT33: 0 | BW33: 2035 | BX33: 0 | BY33: 0 | BZ33: 0 | CA33: 0 | CC33: 0 | CD33: 0 | CE33: 0 | CG33: 0
A34: Escalation Rate = | C34: =+'Gas Input Table Summary'!$D$23 -> 0.023 | E34: 25) Incentive/Participant = | F34: =+ROUND(F12/F30,0) -> 20 | J34: 22 | L34: 2036 | M34: 0 | N34: 6.129 | O34: 0 | P34: 0 | Q34: 0 | R34: 0 | S34: 0 | T34: 175 | U34: 0 | V34: 0 | W34: 4.031 | X34: 0 | Y34: 0 | Z34: 0 | AA34: 0 | AB34: 0 | AE34: 2036 | AF34: 0 | AG34: 0 | AH34: 0 | AJ34: 0 | AK34: 0 | AL34: 0 | AN34: 0 | AQ34: 2036 | AR34: 0 | AS34: 0 | AT34: 0.058 | AU34: 0 | AV34: 0.577 | AW34: 0 | AZ34: 0 | BB34: 0 | BC34: 0 | BD34: 0 | BE34: 0 | BH34: 2036 | BI34: 0 | BJ34: 0 | BK34: 14.013 | BL34: 0 | BM34: 0.311 | BN34: 0 | BP34: 0 | BR34: 0 | BT34: 0 | BW34: 2036 | BX34: 0 | BY34: 0 | BZ34: 0 | CA34: 0 | CC34: 0 | CD34: 0 | CE34: 0 | CG34: 0
DB35: =$J21 -> 9
A36: 10) Non Gas Fuel Environmental Damage Factor = | C36: =+'Gas Input Table Summary'!$D$24 -> 0 | E36: 26) Distribution Delivery Charge | F36: =+'Gas Input Table Summary'!D58 -> 1.891 | K36: Total = | M36: =SUM(M14:M34) -> 5680 | V36: =SUM(V14:V34) -> 29033 | AA36: =SUM(AA14:AA34) -> 12891 | AB36: =SUM(AB14:AB34) -> 16142 | AD36: Total = | AH36: =SUM(AH14:AH34) -> 29033 | AL36: =SUM(AL14:AL34) -> 4119 | AN36: =SUM(AN14:AN34) -> 24914 | AP36: Total = | AZ36: =SUM(AZ14:AZ34) -> 31483 | BD36: =SUM(BD14:BD34) -> 11959 | BE36: =SUM(BE14:BE34) -> 19524 | BG36: Total = | BJ36: =SUM(BJ14:BJ34) -> 5680 | BP36: =SUM(BP14:BP34) -> 51603 | BR36: =SUM(BR14:BR34) -> 11760 | BT36: =SUM(BT14:BT34) -> 39843 | BZ36: Total = | CA36: =SUM(CA14:CA34) -> 29173 | CE36: =SUM(CE14:CE34) -> 11959 | CG36: =SUM(CG14:CG34) -> 17214
A37: Escalation Rate = | C37: =+'Gas Input Table Summary'!$D$25 -> 0 | T37: NPV = | V37: =ROUND(V14+NPV($C$41,V15:V34),0) -> 21294 | AA37: =ROUND(AA14+NPV($C$41,AA15:AA34),0) -> 10532 | AB37: =ROUND(AB14+NPV($C$41,AB15:AB34),0) -> 10762 | AG37: NPV = | AH37: =ROUND(AH14+NPV($C$41,AH15:AH34),0) -> 21294 | AL37: =ROUND(AL14+NPV($C$41,AL15:AL34),0) -> 4119 | AN37: =+AH37-AL37 -> 17175 | AW37: NPV = | AZ37: =ROUND(AZ14+NPV($C$43,AZ15:AZ34),0) -> 26815 | BD37: =ROUND(BD14+NPV($C$43,BD15:BD34),0) -> 11959 | BE37: =AZ37-BD37 -> 14856 | BN37: NPV = | BP37: =ROUND(BP14+NPV($C$39,BP15:BP34),0) -> 35296 | BR37: =ROUND(BR14+NPV($C$39,BR15:BR34),0) -> 11760 | BT37: =ROUND(BT14+NPV($C$39,BT15:BT34),0) -> 23536 | BZ37: NPV = | CA37: =ROUND(CA14+NPV($C$41,CA15:CA34),0) -> 21396 | CE37: =ROUND(CE14+NPV($C$41,CE15:CE34),0) -> 11959 | CG37: =ROUND(CG14+NPV($C$41,CG15:CG34),0) -> 9437 | DB37: =$J22 -> 10
E38: 27) Effective Income Tax Rate = | F38: =+'Gas Input Table Summary'!D59 -> 0.35
A39: 11) Participant Discount Rate = | C39: =+'Gas Input Table Summary'!$D$26 -> 0.1 | E39: (Federal & State Taxes) | K39: Total NPV = | N39: =AB37 -> 10762 | AD39: Total NPV = | AG39: =AN37 -> 17175 | AP39: Total NPV = | AS39: =BE37 -> 14856 | BG39: Total NPV = | BJ39: =BT37 -> 23536 | BV39: Total NPV = | BY39: =CG37 -> 9437
K40: Benefit/Cost Ratio = | N40: =ROUND(V37/AA37,2) -> 2.02 | AD40: Benefit/Cost Ratio = | AG40: =ROUND(AH37/AL37,2) -> 5.17 | AP40: Benefit/Cost Ratio = | AS40: =ROUND(AZ37/BD37,2) -> 2.24 | BG40: Benefit/Cost Ratio = | BJ40: =ROUND(BP37/BR37,20) -> 3.001360544 | BV40: Benefit/Cost Ratio = | BY40: =ROUND(CA37/CE37,2) -> 1.79 | DB40: =$J23 -> 11
A41: 12) Utility Discount Rate = | C41: =+'Gas Input Table Summary'!$D$27 -> 0.07216 | E41: Test Results | F41: NPV | G41: B/C | DB41: =$J24 -> 12
E42: Ratepayer Impact Measure Test | F42: =N39 -> 10762 | G42: =N40 -> 2.02 | DB42: =$J25 -> 13
A43: 13) Societal Discount Rate = | C43: =+'Gas Input Table Summary'!$D$28 -> 0.0356 | E43: Utility Cost Test | F43: =AG39 -> 17175 | G43: =AG40 -> 5.17 | J43: Worksheet Calculations | AD43: Worksheet Calculations | AP43: Worksheet Calculations | BG43: Worksheet Calculations | BV43: Worksheet Calculations | DB43: =$J26 -> 14
E44: Societal Test | F44: =AS39 -> 14856 | G44: =AS40 -> 2.24 | J44: (A) | K44: = Average Dk/Participant Saved (21) x Number of Participants (23) for Project Life (20) | T44: (I) | U44: = (G) x (H) | AD44: (A) | AE44: = Table 1 (F) | AP44: (A) | AQ44: = Table 1 (F) | AW44: (H) | AZ44: = Table 2 (F) | BG44: (A) | BH44: = Table 1 (N) | BV44: (A) | BW44: = Table 1 (F)
A45: 14) General Input Data Year = | C45: =+'Res .95+% Res Furnace - NEW'!C45 -> 2014 | E45: Participant Test | F45: =BJ39 -> 23536 | G45: =BJ40 -> 3.001360544 | J45: (B) | K45: = Commodity Cost (3) escalated | T45: (J) | U45: = (F) + (I) | AD45: (B) | AE45: = Table 1 (I) | AP45: (G) | AQ45: = Table 1 (I) | AW45: (I) | AZ45: = Direct Part. Costs (17) x No. of Part. (23) - Table 1 (N) | BG45: (B) | BH45: = Table 1 (A) | BV45: (B) | BW45: = Table 1 (I)
E46: Total Resource Cost Test | F46: =BY39 -> 9437 | G46: =BY40 -> 1.79 | J46: (C) | K46: = (A) x (B) | T46: (K) | U46: = Distribution Delivery Charge (26) escalated. | AD46: (C) | AE46: = Table 1 (J) | AP46: (C) | AQ46: = Non-Gas Fuel Cost (7), adjusted for losses (8), escalated.. | AW46: (J) | AZ46: = (H) + (I) | BG46: (C) | BH46: = Retail Rate (1) escalated. | BV46: (C) | BW46: = Table 3 (D)
A47: 15) Project Analysis Year 1 = | C47: =+'Res .95+% Res Furnace - NEW'!C47 -> 2016 | J47: (D) | K47: = Variable O&M Cost (6), escalated | T47: (L) | U47: = (A) x (K) x (1-Inverse of Tax Rate (27) | AD47: (D) | AE47: = Table 1 (M) | AP47: (D) | AQ47: = (C) x [Avg. Non-Gas Fuel Units/Part.Saved (22) x No. of Part. (23) | AW47: (K) | AZ47: = (G) - (J) | BG47: (D) | BH47: =(B) x (C) | BV47: (D) | BW47: = (A) + (B) + (C)
J48: (E) | K48: = (A) x (D) | T48: (M) | U48: = Admin & Operating Costs (16a) | AD48: (E) | AE48: = Table 1 (N) | AP48: (E) | AQ48: = Gas Environmental Damage Factor (9), escalated | BG48: (E) | BH48: = Non-Gas Fuel Retail Rate (2), escalated. | BV48: (E) | BW48: = Table 3 (H)
J49: (F) | K49: = (C) + (E) | T49: (N) | U49: = Incentive Costs (16b) | AD49: (F) | AE49: = (D) + (E) | AP49: (F) | AQ49: = Table 1 (A) x (E) | BG49: (F) | BH49: = (E) x [Avg. Non-Gas Fuel Units/Part.Saved (22) x No. of Part. (23) | BV49: (F) | BW49: = Table 3 (I) | DB49: =$J27 -> 15
J50: (G) | K50: = (A) x Peak Reduction Factor (5) | T50: (O) | U50: = (L) + (M) + (N) | AD50: (G) | AE50: = (C) - (F) | AP50: (G) | AQ50: = (A) + (B) + (D) + (F) | BG50: (G) | BH50: = (A) + (D) + (F) | BV50: (G) | BW50: = (E) + (F) | DB50: =$J28 -> 16
J51: (H) | K51: = Demand Cost (4) escalated. | T51: (P) | U51: = (J) - (O) | BG51: (H) | BH51: = Direct Participant Costs (17) x Number of Participants (23) | BV51: (H) | BW51: = (D) - (G) | DB51: =$J29 -> 17
BG52: (I) | BH52: = (G) - (H)

Sheet Energy Audits
A1: NATURAL GAS CONSERVATION PROGRAMS/DEMAND-SIDE MANAGEMENT | K1: Table 1 | AD1: Table 2 | AP1: Table 3 | BG1: Table 4 | BV1: Table 5
A2: BEN/COST ANALYSIS FOR GAS CONSERVATION | K2: Ratepayer Impact Measure Test | AD2: Utility Cost Test | AP2: Societal Test | BG2: Participant Test | BV2: Total Resource Cost Test
A4: Company: | B4: Montana-Dakota Utilities Co. | K4: Company: | M4: =B4 -> Montana-Dakota Utilities Co. | AD4: Company: | AF4: =B4 -> Montana-Dakota Utilities Co. | AP4: Company: | AR4: =AF4 -> Montana-Dakota Utilities Co. | BH4: Company: | BI4: =AR4 -> Montana-Dakota Utilities Co. | BW4: Company: | BX4: =BI4 -> Montana-Dakota Utilities Co.
A5: Project: | B5: Energy Audit | K5: Project: | M5: =$B$5 -> Energy Audit | AD5: Project: | AF5: =$B$5 -> Energy Audit | AP5: Project: | AR5: =$B$5 -> Energy Audit | BH5: Project: | BI5: =$B$5 -> Energy Audit | BW5: Project: | BX5: =$B$5 -> Energy Audit
A6: Program Years: | B6: =+'Res .95+% Res Furnace - Replace'!B6 -> 2016 Actual
N7: Benefits | X7: Costs | AF7: Benefits | AJ7: Costs | AR7: Benefits | BB7: Costs | BI7: Benefits | BR7: Costs | BX7: Benefits | CC7: Costs
A8: Input Data | F8: 2016 | AB8: Annual | AN8: Annual | AT8: Non-Gas | BE8: Annual | BT8: Annual | CG8: Annual
M9: Total | N9: Gas | O9: Gas | P9: Variable | Q9: Variable | R9: Total | S9: Peak Dk | T9: Demand | U9: Total | W9: Distribution | Y9: Program | AA9: Total | AB9: Benefits | AF9: Total | AG9: Total | AH9: Annual | AJ9: Program | AL9: Utility | AN9: Benefits | AR9: Total | AS9: Total | AT9: Energy | AU9: Non-Gas | AV9: Environmental | AW9: Environmental | AZ9: Annual | BB9: Utility | BC9: Participants' | BD9: Annual | BE9: Benefits | BJ9: Total | BL9: Gas | BM9: Non-Gas | BN9: Non-Gas | BP9: Total | BR9: Direct | BT9: Benefits | BX9: Total | BY9: Total | BZ9: Non-Gas | CA9: Total | CC9: Utility | CD9: Participants' | CG9: Benefits
A10: 1) Retail Rate ($/Dk) = | C10: =+'Gas Input Table Summary'!$D$7 -> 6.574 | E10: 16) Utility Project Costs | M10: Energy | N10: Commodity | O10: Commodity | P10: O & M | Q10: O & M | R10: Energy | S10: Demand | T10: Savings | U10: Demand | V10: Total | W10: Delivery | X10: Lost | Y10: Admin | Z10: Incentive | AA10: Program | AB10: Less | AF10: Energy | AG10: Demand | AH10: Total | AJ10: Admin | AK10: Incentive | AL10: Program | AN10: Less | AR10: Energy | AS10: Demand | AT10: Savings | AU10: Energy | AV10: Damage | AW10: Damage | AZ10: Total | BB10: Program | BC10: Costs Net | BD10: Total | BE10: Less | BI10: Incentives | BJ10: Energy | BK10: Retail | BL10: Bill | BM10: Fuel | BN10: Energy | BP10: Annual | BR10: Participant | BT10: Less | BX10: Energy | BY10: Demand | BZ10: Energy | CA10: Annual | CC10: Program | CD10: Costs Net | CE10: Total | CG10: Less
A11: Escalation Rate = | C11: =+'Gas Input Table Summary'!$D$8 -> 0.035 | E11: 16a) Administrative & Operating Costs = | F11: =+'Total Program Inputs'!K23 -> 587 | J11: t | M11: Reduction | N11: Cost/Dk | O11: Savings | P11: Cost/Dk | Q11: Savings | R11: Savings | S11: Reduction | T11: Per Unit | U11: Savings | V11: Savings | W11: Charge | X11: Margin | Y11: Costs | Z11: Costs | AA11: Costs | AB11: Costs | AF11: Savings | AG11: Savings | AH11: Savings | AJ11: Costs | AK11: Costs | AL11: Costs | AN11: Costs | AR11: Savings | AS11: Savings | AT11: ($/Part.) | AU11: Savings | AV11: Savings/Dk | AW11: Savings | AZ11: Savings | BB11: Costs | BC11: of Rebate | BD11: Costs | BE11: Costs | BI11: Received | BJ11: Reduction | BK11: Rate | BL11: Savings | BM11: Retail Rate | BN11: Savings | BP11: Benefits | BR11: Costs | BT11: Costs | BX11: Savings | BY11: Savings | BZ11: Savings | CA11: Benefits | CC11: Costs | CD11: of Rebate | CE11: Costs | CG11: Costs
E12: 16b) Program Costs = | F12: =+'Total Program Inputs'!G23 -> 11559 | L12: Year | M12: (A) | N12: (B) | O12: (C) | P12: (D) | Q12: (E) | R12: (F) | S12: (G) | T12: (H) | U12: (I) | V12: (J) | W12: (K) | X12: (L) | Y12: (M) | Z12: (N) | AA12: (O) | AB12: (P) | AE12: Year | AF12: (A) | AG12: (B) | AH12: (C) | AJ12: (D) | AK12: (E) | AL12: (F) | AN12: (G) | AQ12: Year | AR12: (A) | AS12: (B) | AT12: (C) | AU12: (D) | AV12: (E) | AW12: (F) | AZ12: (G) | BB12: (H) | BC12: (I) | BD12: (J) | BE12: (K) | BH12: Year | BI12: (A) | BJ12: (B) | BK12: (C) | BL12: (D) | BM12: (E) | BN12: (F) | BP12: (G) | BR12: (H) | BT12: (I) | BW12: Year | BX12: (A) | BY12: (B) | BZ12: (C) | CA12: (D) | CC12: (E) | CD12: (F) | CE12: (G) | CG12: (H)
A13: 2) Non-Gas Fuel Retail Rate ($/Fuel Unit) = | C13: =+'Gas Input Table Summary'!$D$9 -> 0.14609 | E13: 16c) Total Utility Project Costs = | F13: =SUM(F11:F12) -> 12146
A14: Escalation Rate = | C14: =+'Gas Input Table Summary'!$D$10 -> 0.035 | J14: =$C$47-$C$45 -> 2 | L14: =$C$47 -> 2016 | M14: =ROUND(IF($C$47+$F$23>L14,F25*F30,0),0) -> 0 | N14: =ROUND($C$17*(1),3) -> 2.976 | O14: =ROUND(M14*N14,0) -> 0 | P14: =ROUND($C$25*(1+$C$26)^J14,3) -> 0 | Q14: =ROUND(M14*P14,0) -> 0 | R14: =O14+Q14 -> 0 | S14: =ROUND(M14*$C$23,1) -> 0 | T14: =ROUND($C$20*(1),0) -> 142 | U14: =ROUND(S14*T14,0) -> 0 | V14: =ROUND(+U14+R14,0) -> 0 | W14: =ROUND($F$36*(1+$C$11)^J14,3) -> 2.026 | X14: =ROUND((1-$F$38)*(W14*M14),0) -> 0 | Y14: =ROUND($F$11,0) -> 587 | Z14: =ROUND($F$12,0) -> 11559 | AA14: =SUM(X14:Z14) -> 12146 | AB14: =V14-AA14 -> -12146 | AE14: =$C$47 -> 2016 | AF14: =+R14 -> 0 | AG14: =+U14 -> 0 | AH14: =+AG14+AF14 -> 0 | AJ14: =ROUND(Y14,0) -> 587 | AK14: =ROUND(Z14,0) -> 11559 | AL14: =SUM(AJ14:AK14) -> 12146 | AN14: =+AH14-AL14 -> -12146 | AQ14: =$C$47 -> 2016 | AR14: =AF14 -> 0 | AS14: =+AG14 -> 0 | AT14: =ROUND(($C$28/(1-$C$31))*(1+$C$29)^J14,3) -> 0.029 | AU14: =ROUND(IF($C$47+$F$23>$AQ14,$F$30*$F$27,0)*AT14,0) -> 0 | AV14: =ROUND($C$33*(1+$C$34)^J14,3) -> 0.366 | AW14: =ROUND(AV14*M14,0) -> 0 | AZ14: =ROUND(AR14+AS14+AU14+AW14+AY14,0) -> 0 | BB14: =ROUND($F$13,0) -> 12146 | BC14: =ROUND((F15*F30),0) -> 1550 | BD14: =BB14+BC14 -> 13696 | BE14: =AZ14-BD14 -> -13696 | BH14: =$C$47 -> 2016 | BI14: 0 | BJ14: =+M14 -> 0 | BK14: =ROUND($C$10*(1+$C$11)^J14,3) -> 7.042 | BL14: =ROUND(BJ14*BK14,0) -> 0 | BM14: =ROUND($C$13*(1+$C$14)^J14,3) -> 0.156 | BN14: =ROUND(IF($C$47+$F$23>$BH14,$F$30*$F$27,0)*BM14,0) -> 0 | BP14: =BI14+BL14+BN14+BO14 -> 0 | BR14: =ROUND(F15*F30,0) -> 1550 | BT14: =BP14-BR14 -> -1550 | BW14: =$C$47 -> 2016 | BX14: =$R14 -> 0 | BY14: =U14 -> 0 | BZ14: =AU14 -> 0 | CA14: =SUM(BX14:BZ14) -> 0 | CC14: =BB14 -> 12146 | CD14: =BC14 -> 1550 | CE14: =SUM(CC14:CD14) -> 13696 | CG14: =CA14-CE14 -> -13696
A15: Non-Gas Fuel Units (ie. kWh,Gallons, etc) = | C15: =+'Gas Input Table Summary'!$D$11 -> Kwh | E15: 17) Direct Participant Costs ($/Part.) = | F15: =+'Database Inputs'!K13 -> 50 | J15: =J14+1 -> 3 | L15: =L14+1 -> 2017 | M15: =ROUND(IF($C$47+$F$23>L15,$F$25*$F$30,0)+IF($C$48+$G$23>L15,$G$25*$G$30,0),0) -> 0 | N15: =ROUND($C$17*(1+$C$18)^J14,3) -> 3.188 | O15: 0 | P15: 0 | Q15: =ROUND(M15*P15,0) -> 0 | R15: 0 | S15: 0 | T15: =ROUND($C$20*(1+$C$21)^J14,0) -> 145 | U15: =ROUND(S15*T15,0) -> 0 | V15: =ROUND(+U15+R15,0) -> 0 | W15: 2.097 | X15: 0 | Y15: =ROUND($G$11,0) -> 0 | Z15: =ROUND($G$12,0) -> 0 | AA15: 0 | AB15: 0 | AE15: =AE14+1 -> 2017 | AF15: 0 | AG15: 0 | AH15: =+AG15+AF15 -> 0 | AJ15: =ROUND(Y15,0) -> 0 | AK15: 0 | AL15: 0 | AN15: 0 | AQ15: =AQ14+1 -> 2017 | AR15: 0 | AS15: 0 | AT15: 0.03 | AU15: =ROUND((IF($C$47+$F$23>$AQ15,$F$27*$F$30,0)+IF($C$48+$G$23>AQ15,$G$27*$G$30,0))*AT15,0) -> 0 | AV15: 0.375 | AW15: 0 | AZ15: =ROUND(AR15+AS15+AU15+AW15+AY15,0) -> 0 | BB15: =ROUND($G$13,0) -> 0 | BC15: =ROUND(($G$15*$G$30)-$Z$15,0) -> 0 | BD15: =BB15+BC15 -> 0 | BE15: 0 | BH15: =BH14+1 -> 2017 | BI15: =+G12 -> 0 | BJ15: 0 | BK15: 7.289 | BL15: =ROUND(BJ15*BK15,0) -> 0 | BM15: 0.162 | BN15: =ROUND((IF($C$47+$F$23>BH15,$F$27*$F$30,0)+IF($C$48+$G$23>BH15,$G$27*$G$30,0))*BM15,0) -> 0 | BP15: 0 | BR15: =ROUND($G$15*$G$30,0) -> 0 | BT15: =BP15-BR15 -> 0 | BW15: =BW14+1 -> 2017 | BX15: 0 | BY15: =U15 -> 0 | BZ15: =AU15 -> 0 | CA15: =SUM(BX15:BZ15) -> 0 | CC15: =BB15 -> 0 | CD15: 0 | CE15: =SUM(CC15:CD15) -> 0 | CG15: =CA15-CE15 -> 0
J16: 4 | L16: 2018 | M16: =ROUND(IF($C$47+$F$23>L16,$F$25*$F$30,0)+IF($C$48+$G$23>L16,$G$25*$G$30,0)+IF($C$49+$H$23>L16,$H$25*$H$30,0),0) -> 0 | N16: =ROUND($C$17*(1+$C$18)^J15,3) -> 3.3 | O16: 0 | P16: 0 | Q16: 0 | R16: 0 | S16: 0 | T16: =ROUND($C$20*(1+$C$21)^J15,0) -> 147 | U16: =ROUND(S16*T16,0) -> 0 | V16: 0 | W16: 2.17 | X16: 0 | Y16: =ROUND($H$11,0) -> 0 | Z16: =ROUND($H$12,0) -> 0 | AA16: 0 | AB16: 0 | AE16: 2018 | AF16: 0 | AG16: 0 | AH16: =+AG16+AF16 -> 0 | AJ16: 0 | AK16: 0 | AL16: 0 | AN16: 0 | AQ16: 2018 | AR16: 0 | AS16: 0 | AT16: 0.031 | AU16: =ROUND((IF($C$47+$F$23>$AQ16,$F$27*$F$30,0)+IF($C$48+$G$23>AQ16,$G$27*$G$30,0)+IF($C$49+$H$23>AQ16,$H$27*$H$30,0))*AT16,0) -> 0 | AV16: 0.383 | AW16: 0 | AZ16: 0 | BB16: =ROUND($H$13,0) -> 0 | BC16: =ROUND(($H$15*$H$30)-$Z$16,0) -> 0 | BD16: 0 | BE16: 0 | BH16: 2018 | BI16: =ROUND(H12,0) -> 0 | BJ16: 0 | BK16: 7.544 | BL16: =ROUND(BJ16*BK16,0) -> 0 | BM16: 0.168 | BN16: =ROUND((IF($C$47+$F$23>BH16,$F$27*$F$30,0)+IF($C$49+$H$23>BH16,$H$27*$H$30,0)+IF($C$48+$G$23>BH16,$G$27*$G$30,0))*BM16,0) -> 0 | BP16: 0 | BR16: =ROUND($H$15*$H$30,0) -> 0 | BT16: 0 | BW16: 2018 | BX16: 0 | BY16: 0 | BZ16: 0 | CA16: 0 | CC16: 0 | CD16: 0 | CE16: 0 | CG16: =CA16-CE16 -> 0
A17: 3) Commodity Cost ($/Dk) = | C17: =+'Gas Input Table Summary'!$D$12 -> 2.976 | E17: 18) Participant Non-Energy Costs (Annual $/Part.) = | F17: =+'Gas Input Table Summary'!D35 -> 0 | J17: 5 | L17: 2019 | M17: =ROUND(IF($C$47+$F$23>L17,$F$25*$F$30,0)+IF($C$48+$G$23>L17,$G$25*$G$30,0)+IF($C$49+$H$23>L17,$H$25*$H$30,0),0) -> 0 | N17: 3.415 | O17: 0 | P17: 0 | Q17: 0 | R17: 0 | S17: 0 | T17: 148 | U17: 0 | V17: 0 | W17: 2.246 | X17: 0 | Y17: 0 | Z17: 0 | AA17: 0 | AB17: 0 | AE17: 2019 | AF17: 0 | AG17: 0 | AH17: 0 | AJ17: 0 | AK17: 0 | AL17: 0 | AN17: 0 | AQ17: 2019 | AR17: 0 | AS17: 0 | AT17: 0.032 | AU17: =ROUND((IF($C$47+$F$23>$AQ17,$F$27*$F$30,0)+IF($C$48+$G$23>AQ17,$G$27*$G$30,0)+IF($C$49+$H$23>AQ17,$H$27*$H$30,0))*AT17,0) -> 0 | AV17: 0.392 | AW17: 0 | AZ17: 0 | BB17: 0 | BC17: 0 | BD17: 0 | BE17: 0 | BH17: 2019 | BI17: 0 | BJ17: 0 | BK17: 7.808 | BL17: 0 | BM17: 0.174 | BN17: =ROUND((IF($C$47+$F$23>BH17,$F$27*$F$30,0)+IF($C$49+$H$23>BH17,$H$27*$H$30,0)+IF($C$48+$G$23>BH17,$G$27*$G$30,0))*BM17,0) -> 0 | BP17: 0 | BR17: =+BC17 -> 0 | BT17: 0 | BW17: 2019 | BX17: 0 | BY17: 0 | BZ17: 0 | CA17: 0 | CC17: 0 | CD17: 0 | CE17: 0 | CG17: 0
A18: Escalation Rate = | C18: =+'Gas Input Table Summary'!$D$13 -> 0.035 | E18: Escalation Rate = | F18: =+'Gas Input Table Summary'!D38 -> 0 | J18: 6 | L18: 2020 | M18: 0 | N18: 3.535 | O18: 0 | P18: 0 | Q18: 0 | R18: 0 | S18: 0 | T18: 150 | U18: 0 | V18: 0 | W18: 2.325 | X18: 0 | Y18: 0 | Z18: 0 | AA18: 0 | AB18: 0 | AE18: 2020 | AF18: 0 | AG18: 0 | AH18: 0 | AJ18: 0 | AK18: 0 | AL18: 0 | AN18: 0 | AQ18: 2020 | AR18: 0 | AS18: 0 | AT18: 0.034 | AU18: 0 | AV18: 0.401 | AW18: 0 | AZ18: 0 | BB18: 0 | BC18: 0 | BD18: 0 | BE18: 0 | BH18: 2020 | BI18: 0 | BJ18: 0 | BK18: 8.081 | BL18: 0 | BM18: 0.18 | BN18: 0 | BP18: 0 | BR18: 0 | BT18: 0 | BW18: 2020 | BX18: 0 | BY18: 0 | BZ18: 0 | CA18: 0 | CC18: 0 | CD18: 0 | CE18: 0 | CG18: 0 | DB18: t
J19: 7 | L19: 2021 | M19: 0 | N19: 3.658 | O19: 0 | P19: 0 | Q19: 0 | R19: 0 | S19: 0 | T19: 151 | U19: 0 | V19: 0 | W19: 2.406 | X19: 0 | Y19: 0 | Z19: 0 | AA19: 0 | AB19: 0 | AE19: 2021 | AF19: 0 | AG19: 0 | AH19: 0 | AJ19: 0 | AK19: 0 | AL19: 0 | AN19: 0 | AQ19: 2021 | AR19: 0 | AS19: 0 | AT19: 0.035 | AU19: 0 | AV19: 0.41 | AW19: 0 | AZ19: 0 | BB19: 0 | BC19: 0 | BD19: 0 | BE19: 0 | BH19: 2021 | BI19: 0 | BJ19: 0 | BK19: 8.364 | BL19: 0 | BM19: 0.186 | BN19: 0 | BP19: 0 | BR19: 0 | BT19: 0 | BW19: 2021 | BX19: 0 | BY19: 0 | BZ19: 0 | CA19: 0 | CC19: 0 | CD19: 0 | CE19: 0 | CG19: 0
A20: 4) Demand Cost ($/Unit/Yr) = | C20: =+'Gas Input Table Summary'!$D$14 -> 142.34 | E20: 19) Participant Non-Energy Savings (Annual $/Part) = | F20: =+'Gas Input Table Summary'!D41 -> 0 | J20: 8 | L20: 2022 | M20: 0 | N20: 3.786 | O20: 0 | P20: 0 | Q20: 0 | R20: 0 | S20: 0 | T20: 153 | U20: 0 | V20: 0 | W20: 2.49 | X20: 0 | Y20: 0 | Z20: 0 | AA20: 0 | AB20: 0 | AE20: 2022 | AF20: 0 | AG20: 0 | AH20: 0 | AJ20: 0 | AK20: 0 | AL20: 0 | AN20: 0 | AQ20: 2022 | AR20: 0 | AS20: 0 | AT20: 0.036 | AU20: 0 | AV20: 0.42 | AW20: 0 | AZ20: 0 | BB20: 0 | BC20: 0 | BD20: 0 | BE20: 0 | BH20: 2022 | BI20: 0 | BJ20: 0 | BK20: 8.657 | BL20: 0 | BM20: 0.192 | BN20: 0 | BP20: 0 | BR20: 0 | BT20: 0 | BW20: 2022 | BX20: 0 | BY20: 0 | BZ20: 0 | CA20: 0 | CC20: 0 | CD20: 0 | CE20: 0 | CG20: 0
A21: Escalation Rate = | C21: =+'Gas Input Table Summary'!$D$15 -> 0.01 | E21: Escalation Rate = | F21: =+'Gas Input Table Summary'!D44 -> 0 | J21: 9 | L21: 2023 | M21: 0 | N21: 3.919 | O21: 0 | P21: 0 | Q21: 0 | R21: 0 | S21: 0 | T21: 154 | U21: 0 | V21: 0 | W21: 2.577 | X21: 0 | Y21: 0 | Z21: 0 | AA21: 0 | AB21: 0 | AE21: 2023 | AF21: 0 | AG21: 0 | AH21: 0 | AJ21: 0 | AK21: 0 | AL21: 0 | AN21: 0 | AQ21: 2023 | AR21: 0 | AS21: 0 | AT21: 0.037 | AU21: 0 | AV21: 0.429 | AW21: 0 | AZ21: 0 | BB21: 0 | BC21: 0 | BD21: 0 | BE21: 0 | BH21: 2023 | BI21: 0 | BJ21: 0 | BK21: 8.96 | BL21: 0 | BM21: 0.199 | BN21: 0 | BP21: 0 | BR21: 0 | BT21: 0 | BW21: 2023 | BX21: 0 | BY21: 0 | BZ21: 0 | CA21: 0 | CC21: 0 | CD21: 0 | CE21: 0 | CG21: 0 | DB21: =$J14 -> 2
J22: 10 | L22: 2024 | M22: 0 | N22: 4.056 | O22: 0 | P22: 0 | Q22: 0 | R22: 0 | S22: 0 | T22: 156 | U22: 0 | V22: 0 | W22: 2.667 | X22: 0 | Y22: 0 | Z22: 0 | AA22: 0 | AB22: 0 | AE22: 2024 | AF22: 0 | AG22: 0 | AH22: 0 | AJ22: 0 | AK22: 0 | AL22: 0 | AN22: 0 | AQ22: 2024 | AR22: 0 | AS22: 0 | AT22: 0.038 | AU22: 0 | AV22: 0.439 | AW22: 0 | AZ22: 0 | BB22: 0 | BC22: 0 | BD22: 0 | BE22: 0 | BH22: 2024 | BI22: 0 | BJ22: 0 | BK22: 9.273 | BL22: 0 | BM22: 0.206 | BN22: 0 | BP22: 0 | BR22: 0 | BT22: 0 | BW22: 2024 | BX22: 0 | BY22: 0 | BZ22: 0 | CA22: 0 | CC22: 0 | CD22: 0 | CE22: 0 | CG22: 0 | DB22: =$J15 -> 3
A23: 5) Peak Reduction Factor = | C23: =+'Gas Input Table Summary'!$D$16 -> 0.01 | E23: 20) Project Life (Years) = | J23: 11 | L23: 2025 | M23: 0 | N23: 4.198 | O23: 0 | P23: 0 | Q23: 0 | R23: 0 | S23: 0 | T23: 157 | U23: 0 | V23: 0 | W23: 2.761 | X23: 0 | Y23: 0 | Z23: 0 | AA23: 0 | AB23: 0 | AE23: 2025 | AF23: 0 | AG23: 0 | AH23: 0 | AJ23: 0 | AK23: 0 | AL23: 0 | AN23: 0 | AQ23: 2025 | AR23: 0 | AS23: 0 | AT23: 0.04 | AU23: 0 | AV23: 0.449 | AW23: 0 | AZ23: 0 | BB23: 0 | BC23: 0 | BD23: 0 | BE23: 0 | BH23: 2025 | BI23: 0 | BJ23: 0 | BK23: 9.598 | BL23: 0 | BM23: 0.213 | BN23: 0 | BP23: 0 | BR23: 0 | BT23: 0 | BW23: 2025 | BX23: 0 | BY23: 0 | BZ23: 0 | CA23: 0 | CC23: 0 | CD23: 0 | CE23: 0 | CG23: 0 | DB23: =$J16 -> 4
J24: 12 | L24: 2026 | M24: 0 | N24: 4.345 | O24: 0 | P24: 0 | Q24: 0 | R24: 0 | S24: 0 | T24: 159 | U24: 0 | V24: 0 | W24: 2.857 | X24: 0 | Y24: 0 | Z24: 0 | AA24: 0 | AB24: 0 | AE24: 2026 | AF24: 0 | AG24: 0 | AH24: 0 | AJ24: 0 | AK24: 0 | AL24: 0 | AN24: 0 | AQ24: 2026 | AR24: 0 | AS24: 0 | AT24: 0.041 | AU24: 0 | AV24: 0.46 | AW24: 0 | AZ24: 0 | BB24: 0 | BC24: 0 | BD24: 0 | BE24: 0 | BH24: 2026 | BI24: 0 | BJ24: 0 | BK24: 9.934 | BL24: 0 | BM24: 0.221 | BN24: 0 | BP24: 0 | BR24: 0 | BT24: 0 | BW24: 2026 | BX24: 0 | BY24: 0 | BZ24: 0 | CA24: 0 | CC24: 0 | CD24: 0 | CE24: 0 | CG24: 0 | DB24: =$J17 -> 5
A25: 6) Variable O&M ($/Dk) = | C25: =+'Gas Input Table Summary'!$D$17 -> 0 | E25: 21) Avg. Dk/Part. Saved = | J25: 13 | L25: 2027 | M25: 0 | N25: 4.497 | O25: 0 | P25: 0 | Q25: 0 | R25: 0 | S25: 0 | T25: 160 | U25: 0 | V25: 0 | W25: 2.957 | X25: 0 | Y25: 0 | Z25: 0 | AA25: 0 | AB25: 0 | AE25: 2027 | AF25: 0 | AG25: 0 | AH25: 0 | AJ25: 0 | AK25: 0 | AL25: 0 | AN25: 0 | AQ25: 2027 | AR25: 0 | AS25: 0 | AT25: 0.043 | AU25: 0 | AV25: 0.47 | AW25: 0 | AZ25: 0 | BB25: 0 | BC25: 0 | BD25: 0 | BE25: 0 | BH25: 2027 | BI25: 0 | BJ25: 0 | BK25: 10.281 | BL25: 0 | BM25: 0.228 | BN25: 0 | BP25: 0 | BR25: 0 | BT25: 0 | BW25: 2027 | BX25: 0 | BY25: 0 | BZ25: 0 | CA25: 0 | CC25: 0 | CD25: 0 | CE25: 0 | CG25: 0
A26: Escalation Rate = | C26: =+'Gas Input Table Summary'!$D$18 -> 0 | J26: 14 | L26: 2028 | M26: 0 | N26: 4.654 | O26: 0 | P26: 0 | Q26: 0 | R26: 0 | S26: 0 | T26: 162 | U26: 0 | V26: 0 | W26: 3.061 | X26: 0 | Y26: 0 | Z26: 0 | AA26: 0 | AB26: 0 | AE26: 2028 | AF26: 0 | AG26: 0 | AH26: 0 | AJ26: 0 | AK26: 0 | AL26: 0 | AN26: 0 | AQ26: 2028 | AR26: 0 | AS26: 0 | AT26: 0.044 | AU26: 0 | AV26: 0.481 | AW26: 0 | AZ26: 0 | BB26: 0 | BC26: 0 | BD26: 0 | BE26: 0 | BH26: 2028 | BI26: 0 | BJ26: 0 | BK26: 10.641 | BL26: 0 | BM26: 0.236 | BN26: 0 | BP26: 0 | BR26: 0 | BT26: 0 | BW26: 2028 | BX26: 0 | BY26: 0 | BZ26: 0 | CA26: 0 | CC26: 0 | CD26: 0 | CE26: 0 | CG26: 0
E27: 22) Avg Non-Gas Fuel Units/Part. Saved = | F27: 0 | J27: 15 | L27: 2029 | M27: 0 | N27: 4.817 | O27: 0 | P27: 0 | Q27: 0 | R27: 0 | S27: 0 | T27: 164 | U27: 0 | V27: 0 | W27: 3.168 | X27: 0 | Y27: 0 | Z27: 0 | AA27: 0 | AB27: 0 | AE27: 2029 | AF27: 0 | AG27: 0 | AH27: 0 | AJ27: 0 | AK27: 0 | AL27: 0 | AN27: 0 | AQ27: 2029 | AR27: 0 | AS27: 0 | AT27: 0.046 | AU27: 0 | AV27: 0.492 | AW27: 0 | AZ27: 0 | BB27: 0 | BC27: 0 | BD27: 0 | BE27: 0 | BH27: 2029 | BI27: 0 | BJ27: 0 | BK27: 11.014 | BL27: 0 | BM27: 0.245 | BN27: 0 | BP27: 0 | BR27: 0 | BT27: 0 | BW27: 2029 | BX27: 0 | BY27: 0 | BZ27: 0 | CA27: 0 | CC27: 0 | CD27: 0 | CE27: 0 | CG27: 0
A28: 7) Non-Gas Fuel Cost ($/Fuel Unit) = | C28: =+'Gas Input Table Summary'!$D$19 -> 0.02589 | E28: 22a) Avg Additional Non-Gas Fuel Units/ Part. Used = | F28: 0 | J28: 16 | L28: 2030 | M28: 0 | N28: 4.986 | O28: 0 | P28: 0 | Q28: 0 | R28: 0 | S28: 0 | T28: 165 | U28: 0 | V28: 0 | W28: 3.279 | X28: 0 | Y28: 0 | Z28: 0 | AA28: 0 | AB28: 0 | AE28: 2030 | AF28: 0 | AG28: 0 | AH28: 0 | AJ28: 0 | AK28: 0 | AL28: 0 | AN28: 0 | AQ28: 2030 | AR28: 0 | AS28: 0 | AT28: 0.047 | AU28: 0 | AV28: 0.504 | AW28: 0 | AZ28: 0 | BB28: 0 | BC28: 0 | BD28: 0 | BE28: 0 | BH28: 2030 | BI28: 0 | BJ28: 0 | BK28: 11.399 | BL28: 0 | BM28: 0.253 | BN28: 0 | BP28: 0 | BR28: 0 | BT28: 0 | BW28: 2030 | BX28: 0 | BY28: 0 | BZ28: 0 | CA28: 0 | CC28: 0 | CD28: 0 | CE28: 0 | CG28: 0
A29: Escalation Rate = | C29: =+'Gas Input Table Summary'!$D$20 -> 0.035 | J29: 17 | L29: 2031 | M29: 0 | N29: 5.16 | O29: 0 | P29: 0 | Q29: 0 | R29: 0 | S29: 0 | T29: 167 | U29: 0 | V29: 0 | W29: 3.394 | X29: 0 | Y29: 0 | Z29: 0 | AA29: 0 | AB29: 0 | AE29: 2031 | AF29: 0 | AG29: 0 | AH29: 0 | AJ29: 0 | AK29: 0 | AL29: 0 | AN29: 0 | AQ29: 2031 | AR29: 0 | AS29: 0 | AT29: 0.049 | AU29: 0 | AV29: 0.515 | AW29: 0 | AZ29: 0 | BB29: 0 | BC29: 0 | BD29: 0 | BE29: 0 | BH29: 2031 | BI29: 0 | BJ29: 0 | BK29: 11.798 | BL29: 0 | BM29: 0.262 | BN29: 0 | BP29: 0 | BR29: 0 | BT29: 0 | BW29: 2031 | BX29: 0 | BY29: 0 | BZ29: 0 | CA29: 0 | CC29: 0 | CD29: 0 | CE29: 0 | CG29: 0
E30: 23) Number of Participants = | F30: =+'Total Program Inputs'!C23 -> 31 | J30: 18 | L30: 2032 | M30: 0 | N30: 5.341 | O30: 0 | P30: 0 | Q30: 0 | R30: 0 | S30: 0 | T30: 169 | U30: 0 | V30: 0 | W30: 3.513 | X30: 0 | Y30: 0 | Z30: 0 | AA30: 0 | AB30: 0 | AE30: 2032 | AF30: 0 | AG30: 0 | AH30: 0 | AJ30: 0 | AK30: 0 | AL30: 0 | AN30: 0 | AQ30: 2032 | AR30: 0 | AS30: 0 | AT30: 0.051 | AU30: 0 | AV30: 0.527 | AW30: 0 | AZ30: 0 | BB30: 0 | BC30: 0 | BD30: 0 | BE30: 0 | BH30: 2032 | BI30: 0 | BJ30: 0 | BK30: 12.211 | BL30: 0 | BM30: 0.271 | BN30: 0 | BP30: 0 | BR30: 0 | BT30: 0 | BW30: 2032 | BX30: 0 | BY30: 0 | BZ30: 0 | CA30: 0 | CC30: 0 | CD30: 0 | CE30: 0 | CG30: 0 | DB30: =$J18 -> 6
A31: 8) Non-Gas Fuel Loss Factor | C31: =+'Gas Input Table Summary'!$D$21 -> 0.051 | J31: 19 | L31: 2033 | M31: 0 | N31: 5.528 | O31: 0 | P31: 0 | Q31: 0 | R31: 0 | S31: 0 | T31: 170 | U31: 0 | V31: 0 | W31: 3.635 | X31: 0 | Y31: 0 | Z31: 0 | AA31: 0 | AB31: 0 | AE31: 2033 | AF31: 0 | AG31: 0 | AH31: 0 | AJ31: 0 | AK31: 0 | AL31: 0 | AN31: 0 | AQ31: 2033 | AR31: 0 | AS31: 0 | AT31: 0.052 | AU31: 0 | AV31: 0.539 | AW31: 0 | AZ31: 0 | BB31: 0 | BC31: 0 | BD31: 0 | BE31: 0 | BH31: 2033 | BI31: 0 | BJ31: 0 | BK31: 12.639 | BL31: 0 | BM31: 0.281 | BN31: 0 | BP31: 0 | BR31: 0 | BT31: 0 | BW31: 2033 | BX31: 0 | BY31: 0 | BZ31: 0 | CA31: 0 | CC31: 0 | CD31: 0 | CE31: 0 | CG31: 0 | DB31: =$J19 -> 7
E32: 24) Total Annual Dk Saved = | F32: =+'Total Program Inputs'!E23 -> 0 | J32: 20 | L32: 2034 | M32: 0 | N32: 5.721 | O32: 0 | P32: 0 | Q32: 0 | R32: 0 | S32: 0 | T32: 172 | U32: 0 | V32: 0 | W32: 3.763 | X32: 0 | Y32: 0 | Z32: 0 | AA32: 0 | AB32: 0 | AE32: 2034 | AF32: 0 | AG32: 0 | AH32: 0 | AJ32: 0 | AK32: 0 | AL32: 0 | AN32: 0 | AQ32: 2034 | AR32: 0 | AS32: 0 | AT32: 0.054 | AU32: 0 | AV32: 0.552 | AW32: 0 | AZ32: 0 | BB32: 0 | BC32: 0 | BD32: 0 | BE32: 0 | BH32: 2034 | BI32: 0 | BJ32: 0 | BK32: 13.081 | BL32: 0 | BM32: 0.291 | BN32: 0 | BP32: 0 | BR32: 0 | BT32: 0 | BW32: 2034 | BX32: 0 | BY32: 0 | BZ32: 0 | CA32: 0 | CC32: 0 | CD32: 0 | CE32: 0 | CG32: 0 | DB32: =$J20 -> 8
A33: 9) Gas Environmental Damage Factor = | C33: =+'Gas Input Table Summary'!$D$22 -> 0.35 | J33: 21 | L33: 2035 | M33: 0 | N33: 5.922 | O33: 0 | P33: 0 | Q33: 0 | R33: 0 | S33: 0 | T33: 174 | U33: 0 | V33: 0 | W33: 3.894 | X33: 0 | Y33: 0 | Z33: 0 | AA33: 0 | AB33: 0 | AE33: 2035 | AF33: 0 | AG33: 0 | AH33: 0 | AJ33: 0 | AK33: 0 | AL33: 0 | AN33: 0 | AQ33: 2035 | AR33: 0 | AS33: 0 | AT33: 0.056 | AU33: 0 | AV33: 0.564 | AW33: 0 | AZ33: 0 | BB33: 0 | BC33: 0 | BD33: 0 | BE33: 0 | BH33: 2035 | BI33: 0 | BJ33: 0 | BK33: 13.539 | BL33: 0 | BM33: 0.301 | BN33: 0 | BP33: 0 | BR33: 0 | BT33: 0 | BW33: 2035 | BX33: 0 | BY33: 0 | BZ33: 0 | CA33: 0 | CC33: 0 | CD33: 0 | CE33: 0 | CG33: 0
A34: Escalation Rate = | C34: =+'Gas Input Table Summary'!$D$23 -> 0.023 | E34: 25) Incentive/Participant = | F34: =+ROUND(F12/F30,0) -> 373 | J34: 22 | L34: 2036 | M34: 0 | N34: 6.129 | O34: 0 | P34: 0 | Q34: 0 | R34: 0 | S34: 0 | T34: 175 | U34: 0 | V34: 0 | W34: 4.031 | X34: 0 | Y34: 0 | Z34: 0 | AA34: 0 | AB34: 0 | AE34: 2036 | AF34: 0 | AG34: 0 | AH34: 0 | AJ34: 0 | AK34: 0 | AL34: 0 | AN34: 0 | AQ34: 2036 | AR34: 0 | AS34: 0 | AT34: 0.058 | AU34: 0 | AV34: 0.577 | AW34: 0 | AZ34: 0 | BB34: 0 | BC34: 0 | BD34: 0 | BE34: 0 | BH34: 2036 | BI34: 0 | BJ34: 0 | BK34: 14.013 | BL34: 0 | BM34: 0.311 | BN34: 0 | BP34: 0 | BR34: 0 | BT34: 0 | BW34: 2036 | BX34: 0 | BY34: 0 | BZ34: 0 | CA34: 0 | CC34: 0 | CD34: 0 | CE34: 0 | CG34: 0
DB35: =$J21 -> 9
A36: 10) Non Gas Fuel Environmental Damage Factor = | C36: =+'Gas Input Table Summary'!$D$24 -> 0 | E36: 26) Distribution Delivery Charge | F36: =+'Gas Input Table Summary'!D58 -> 1.891 | K36: Total = | M36: =SUM(M14:M34) -> 0 | V36: =SUM(V14:V34) -> 0 | AA36: =SUM(AA14:AA34) -> 12146 | AB36: =SUM(AB14:AB34) -> -12146 | AD36: Total = | AH36: =SUM(AH14:AH34) -> 0 | AL36: =SUM(AL14:AL34) -> 12146 | AN36: =SUM(AN14:AN34) -> -12146 | AP36: Total = | AZ36: =SUM(AZ14:AZ34) -> 0 | BD36: =SUM(BD14:BD34) -> 13696 | BE36: =SUM(BE14:BE34) -> -13696 | BG36: Total = | BJ36: =SUM(BJ14:BJ34) -> 0 | BP36: =SUM(BP14:BP34) -> 0 | BR36: =SUM(BR14:BR34) -> 1550 | BT36: =SUM(BT14:BT34) -> -1550 | BZ36: Total = | CA36: =SUM(CA14:CA34) -> 0 | CE36: =SUM(CE14:CE34) -> 13696 | CG36: =SUM(CG14:CG34) -> -13696
A37: Escalation Rate = | C37: =+'Gas Input Table Summary'!$D$25 -> 0 | T37: NPV = | V37: =ROUND(V14+NPV($C$41,V15:V34),0) -> 0 | AA37: =ROUND(AA14+NPV($C$41,AA15:AA34),0) -> 12146 | AB37: =ROUND(AB14+NPV($C$41,AB15:AB34),0) -> -12146 | AG37: NPV = | AH37: =ROUND(AH14+NPV($C$41,AH15:AH34),0) -> 0 | AL37: =ROUND(AL14+NPV($C$41,AL15:AL34),0) -> 12146 | AN37: =+AH37-AL37 -> -12146 | AW37: NPV = | AZ37: =ROUND(AZ14+NPV($C$43,AZ15:AZ34),0) -> 0 | BD37: =ROUND(BD14+NPV($C$43,BD15:BD34),0) -> 13696 | BE37: =AZ37-BD37 -> -13696 | BN37: NPV = | BP37: =ROUND(BP14+NPV($C$39,BP15:BP34),0) -> 0 | BR37: =ROUND(BR14+NPV($C$39,BR15:BR34),0) -> 1550 | BT37: =ROUND(BT14+NPV($C$39,BT15:BT34),0) -> -1550 | BZ37: NPV = | CA37: =ROUND(CA14+NPV($C$41,CA15:CA34),0) -> 0 | CE37: =ROUND(CE14+NPV($C$41,CE15:CE34),0) -> 13696 | CG37: =ROUND(CG14+NPV($C$41,CG15:CG34),0) -> -13696 | DB37: =$J22 -> 10
E38: 27) Effective Income Tax Rate = | F38: =+'Gas Input Table Summary'!D59 -> 0.35
A39: 11) Participant Discount Rate = | C39: =+'Gas Input Table Summary'!$D$26 -> 0.1 | E39: (Federal & State Taxes) | K39: Total NPV = | N39: =AB37 -> -12146 | AD39: Total NPV = | AG39: =AN37 -> -12146 | AP39: Total NPV = | AS39: =BE37 -> -13696 | BG39: Total NPV = | BJ39: =BT37 -> -1550 | BV39: Total NPV = | BY39: =CG37 -> -13696
K40: Benefit/Cost Ratio = | N40: =ROUND(V37/AA37,2) -> 0 | AD40: Benefit/Cost Ratio = | AG40: =ROUND(AH37/AL37,2) -> 0 | AP40: Benefit/Cost Ratio = | AS40: =ROUND(AZ37/BD37,2) -> 0 | BG40: Benefit/Cost Ratio = | BJ40: =ROUND(BP37/BR37,20) -> 0 | BV40: Benefit/Cost Ratio = | BY40: =ROUND(CA37/CE37,2) -> 0 | DB40: =$J23 -> 11
A41: 12) Utility Discount Rate = | C41: =+'Gas Input Table Summary'!$D$27 -> 0.07216 | E41: Test Results | F41: NPV | G41: B/C | DB41: =$J24 -> 12
E42: Ratepayer Impact Measure Test | F42: =N39 -> -12146 | G42: =N40 -> 0 | DB42: =$J25 -> 13
A43: 13) Societal Discount Rate = | C43: =+'Gas Input Table Summary'!$D$28 -> 0.0356 | E43: Utility Cost Test | F43: =AG39 -> -12146 | G43: =AG40 -> 0 | J43: Worksheet Calculations | AD43: Worksheet Calculations | AP43: Worksheet Calculations | BG43: Worksheet Calculations | BV43: Worksheet Calculations | DB43: =$J26 -> 14
E44: Societal Test | F44: =AS39 -> -13696 | G44: =AS40 -> 0 | J44: (A) | K44: = Average Dk/Participant Saved (21) x Number of Participants (23) for Project Life (20) | T44: (I) | U44: = (G) x (H) | AD44: (A) | AE44: = Table 1 (F) | AP44: (A) | AQ44: = Table 1 (F) | AW44: (H) | AZ44: = Table 2 (F) | BG44: (A) | BH44: = Table 1 (N) | BV44: (A) | BW44: = Table 1 (F)
A45: 14) General Input Data Year = | C45: =+'Res .95+% Res Furnace - NEW'!C45 -> 2014 | E45: Participant Test | F45: =BJ39 -> -1550 | G45: =BJ40 -> 0 | J45: (B) | K45: = Commodity Cost (3) escalated | T45: (J) | U45: = (F) + (I) | AD45: (B) | AE45: = Table 1 (I) | AP45: (G) | AQ45: = Table 1 (I) | AW45: (I) | AZ45: = Direct Part. Costs (17) x No. of Part. (23) - Table 1 (N) | BG45: (B) | BH45: = Table 1 (A) | BV45: (B) | BW45: = Table 1 (I)
E46: Total Resource Cost Test | F46: =BY39 -> -13696 | G46: =BY40 -> 0 | J46: (C) | K46: = (A) x (B) | T46: (K) | U46: = Distribution Delivery Charge (26) escalated. | AD46: (C) | AE46: = Table 1 (J) | AP46: (C) | AQ46: = Non-Gas Fuel Cost (7), adjusted for losses (8), escalated.. | AW46: (J) | AZ46: = (H) + (I) | BG46: (C) | BH46: = Retail Rate (1) escalated. | BV46: (C) | BW46: = Table 3 (D)
A47: 15) Project Analysis Year 1 = | C47: =+'Res .95+% Res Furnace - NEW'!C47 -> 2016 | J47: (D) | K47: = Variable O&M Cost (6), escalated | T47: (L) | U47: = (A) x (K) x (1-Inverse of Tax Rate (27) | AD47: (D) | AE47: = Table 1 (M) | AP47: (D) | AQ47: = (C) x [Avg. Non-Gas Fuel Units/Part.Saved (22) x No. of Part. (23) | AW47: (K) | AZ47: = (G) - (J) | BG47: (D) | BH47: =(B) x (C) | BV47: (D) | BW47: = (A) + (B) + (C)
J48: (E) | K48: = (A) x (D) | T48: (M) | U48: = Admin & Operating Costs (16a) | AD48: (E) | AE48: = Table 1 (N) | AP48: (E) | AQ48: = Gas Environmental Damage Factor (9), escalated | BG48: (E) | BH48: = Non-Gas Fuel Retail Rate (2), escalated. | BV48: (E) | BW48: = Table 3 (H)
J49: (F) | K49: = (C) + (E) | T49: (N) | U49: = Incentive Costs (16b) | AD49: (F) | AE49: = (D) + (E) | AP49: (F) | AQ49: = Table 1 (A) x (E) | BG49: (F) | BH49: = (E) x [Avg. Non-Gas Fuel Units/Part.Saved (22) x No. of Part. (23) | BV49: (F) | BW49: = Table 3 (I) | DB49: =$J27 -> 15
J50: (G) | K50: = (A) x Peak Reduction Factor (5) | T50: (O) | U50: = (L) + (M) + (N) | AD50: (G) | AE50: = (C) - (F) | AP50: (G) | AQ50: = (A) + (B) + (D) + (F) | BG50: (G) | BH50: = (A) + (D) + (F) | BV50: (G) | BW50: = (E) + (F) | DB50: =$J28 -> 16
J51: (H) | K51: = Demand Cost (4) escalated. | T51: (P) | U51: = (J) - (O) | BG51: (H) | BH51: = Direct Participant Costs (17) x Number of Participants (23) | BV51: (H) | BW51: = (D) - (G) | DB51: =$J29 -> 17
BG52: (I) | BH52: = (G) - (H)

Sheet Comm 95+ Furnace - New
A1: NATURAL GAS CONSERVATION PROGRAMS/DEMAND-SIDE MANAGEMENT | K1: Table 1 | AD1: Table 2 | AP1: Table 3 | BG1: Table 4 | BV1: Table 5
A2: BEN/COST ANALYSIS FOR GAS CONSERVATION | K2: Ratepayer Impact Measure Test | AD2: Utility Cost Test | AP2: Societal Test | BG2: Participant Test | BV2: Total Resource Cost Test
A4: Company: | B4: Montana-Dakota Utilities Co. | K4: Company: | M4: =B4 -> Montana-Dakota Utilities Co. | AD4: Company: | AF4: =B4 -> Montana-Dakota Utilities Co. | AP4: Company: | AR4: =AF4 -> Montana-Dakota Utilities Co. | BH4: Company: | BI4: =AR4 -> Montana-Dakota Utilities Co. | BW4: Company: | BX4: =BI4 -> Montana-Dakota Utilities Co.
A5: Project: | B5: Commercial 95+% AFUE Furnace - New | K5: Project: | M5: =$B$5 -> Commercial 95+% AFUE Furnace - New | AD5: Project: | AF5: =$B$5 -> Commercial 95+% AFUE Furnace - New | AP5: Project: | AR5: =$B$5 -> Commercial 95+% AFUE Furnace - New | BH5: Project: | BI5: =$B$5 -> Commercial 95+% AFUE Furnace - New | BW5: Project: | BX5: =$B$5 -> Commercial 95+% AFUE Furnace - New
A6: Program Years: | B6: =+'Programmable Thermostats'!B6 -> 2016 Actual
N7: Benefits | X7: Costs | AF7: Benefits | AJ7: Costs | AR7: Benefits | BB7: Costs | BI7: Benefits | BR7: Costs | BX7: Benefits | CC7: Costs
A8: Input Data | F8: 2016 | AB8: Annual | AN8: Annual | AT8: Non-Gas | BE8: Annual | BT8: Annual | CG8: Annual
M9: Total | N9: Gas | O9: Gas | P9: Variable | Q9: Variable | R9: Total | S9: Peak Dk | T9: Demand | U9: Total | W9: Distribution | Y9: Program | AA9: Total | AB9: Benefits | AF9: Total | AG9: Total | AH9: Annual | AJ9: Program | AL9: Utility | AN9: Benefits | AR9: Total | AS9: Total | AT9: Energy | AU9: Non-Gas | AV9: Environmental | AW9: Environmental | AZ9: Annual | BB9: Utility | BC9: Participants' | BD9: Annual | BE9: Benefits | BJ9: Total | BL9: Gas | BM9: Non-Gas | BN9: Non-Gas | BP9: Total | BR9: Direct | BT9: Benefits | BX9: Total | BY9: Total | BZ9: Non-Gas | CA9: Total | CC9: Utility | CD9: Participants' | CG9: Benefits
A10: 1) Retail Rate ($/Dk) = | C10: =+'Gas Input Table Summary'!$E$7 -> 5.663 | E10: 16) Utility Project Costs | M10: Energy | N10: Commodity | O10: Commodity | P10: O & M | Q10: O & M | R10: Energy | S10: Demand | T10: Savings | U10: Demand | V10: Total | W10: Delivery | X10: Lost | Y10: Admin | Z10: Incentive | AA10: Program | AB10: Less | AF10: Energy | AG10: Demand | AH10: Total | AJ10: Admin | AK10: Incentive | AL10: Program | AN10: Less | AR10: Energy | AS10: Demand | AT10: Savings | AU10: Energy | AV10: Damage | AW10: Damage | AZ10: Total | BB10: Program | BC10: Costs Net | BD10: Total | BE10: Less | BI10: Incentives | BJ10: Energy | BK10: Retail | BL10: Bill | BM10: Fuel | BN10: Energy | BP10: Annual | BR10: Participant | BT10: Less | BX10: Energy | BY10: Demand | BZ10: Energy | CA10: Annual | CC10: Program | CD10: Costs Net | CE10: Total | CG10: Less
A11: Escalation Rate = | C11: =+'Gas Input Table Summary'!$E$8 -> 0.035 | E11: 16a) Administrative & Operating Costs = | F11: =+'Total Program Inputs'!K16 -> 30 | J11: t | M11: Reduction | N11: Cost/Dk | O11: Savings | P11: Cost/Dk | Q11: Savings | R11: Savings | S11: Reduction | T11: Per Unit | U11: Savings | V11: Savings | W11: Charge | X11: Margin | Y11: Costs | Z11: Costs | AA11: Costs | AB11: Costs | AF11: Savings | AG11: Savings | AH11: Savings | AJ11: Costs | AK11: Costs | AL11: Costs | AN11: Costs | AR11: Savings | AS11: Savings | AT11: ($/Part.) | AU11: Savings | AV11: Savings/Dk | AW11: Savings | AZ11: Savings | BB11: Costs | BC11: of Rebate | BD11: Costs | BE11: Costs | BI11: Received | BJ11: Reduction | BK11: Rate | BL11: Savings | BM11: Retail Rate | BN11: Savings | BP11: Benefits | BR11: Costs | BT11: Costs | BX11: Savings | BY11: Savings | BZ11: Savings | CA11: Benefits | CC11: Costs | CD11: of Rebate | CE11: Costs | CG11: Costs
E12: 16b) Incentive Costs = | F12: =+'Total Program Inputs'!G16 -> 600 | L12: Year | M12: (A) | N12: (B) | O12: (C) | P12: (D) | Q12: (E) | R12: (F) | S12: (G) | T12: (H) | U12: (I) | V12: (J) | W12: (K) | X12: (L) | Y12: (M) | Z12: (N) | AA12: (O) | AB12: (P) | AE12: Year | AF12: (A) | AG12: (B) | AH12: (C) | AJ12: (D) | AK12: (E) | AL12: (F) | AN12: (G) | AQ12: Year | AR12: (A) | AS12: (B) | AT12: (C) | AU12: (D) | AV12: (E) | AW12: (F) | AZ12: (G) | BB12: (H) | BC12: (I) | BD12: (J) | BE12: (K) | BH12: Year | BI12: (A) | BJ12: (B) | BK12: (C) | BL12: (D) | BM12: (E) | BN12: (F) | BP12: (G) | BR12: (H) | BT12: (I) | BW12: Year | BX12: (A) | BY12: (B) | BZ12: (C) | CA12: (D) | CC12: (E) | CD12: (F) | CE12: (G) | CG12: (H)
A13: 2) Non-Gas Fuel Retail Rate ($/Fuel Unit) = | C13: =+'Gas Input Table Summary'!$E$9 -> 0.13915 | E13: 16c) Total Utility Project Costs = | F13: =SUM(F11:F12) -> 630
A14: Escalation Rate = | C14: =+'Gas Input Table Summary'!$E$10 -> 0.035 | J14: =$C$47-$C$45 -> 2 | L14: =$C$47 -> 2016 | M14: =ROUND(IF($C$47+$F$23>L14,F25*F30,0),0) -> 20 | N14: =ROUND($C$17*(1),3) -> 2.976 | O14: =ROUND(M14*N14,0) -> 60 | P14: =ROUND($C$25*(1+$C$26)^J14,3) -> 0 | Q14: =ROUND(M14*P14,0) -> 0 | R14: =O14+Q14 -> 60 | S14: =ROUND(M14*$C$23,1) -> 0.2 | T14: =ROUND($C$20*(1),0) -> 142 | U14: =ROUND(S14*T14,0) -> 28 | V14: =ROUND(+U14+R14,0) -> 88 | W14: =ROUND($F$36*(1+$C$11)^J14,3) -> 1.05 | X14: =ROUND((1-$F$38)*(W14*M14),0) -> 14 | Y14: =ROUND($F$11,0) -> 30 | Z14: =ROUND($F$12,0) -> 600 | AA14: =SUM(X14:Z14) -> 644 | AB14: =V14-AA14 -> -556 | AE14: =$C$47 -> 2016 | AF14: =+R14 -> 60 | AG14: =+U14 -> 28 | AH14: =+AG14+AF14 -> 88 | AJ14: =ROUND(Y14,0) -> 30 | AK14: =ROUND(Z14,0) -> 600 | AL14: =SUM(AJ14:AK14) -> 630 | AN14: =+AH14-AL14 -> -542 | AQ14: =$C$47 -> 2016 | AR14: =AF14 -> 60 | AS14: =+AG14 -> 28 | AT14: =ROUND(($C$28/(1-$C$31))*(1+$C$29)^J14,3) -> 0.029 | AU14: =ROUND(IF($C$47+$F$23>$AQ14,$F$30*$F$27,0)*AT14,0) -> 42 | AV14: =ROUND($C$33*(1+$C$34)^J14,3) -> 0.366 | AW14: =ROUND(AV14*M14,0) -> 7 | AZ14: =ROUND(AR14+AS14+AU14+AW14+AY14,0) -> 137 | BB14: =ROUND($F$13,0) -> 630 | BC14: =ROUND((F15*F30)-Z14,0) -> 4 | BD14: =BB14+BC14 -> 634 | BE14: =AZ14-BD14 -> -497 | BH14: =$C$47 -> 2016 | BI14: =+F12 -> 600 | BJ14: =+M14 -> 20 | BK14: =ROUND($C$10*(1+$C$11)^J14,3) -> 6.066 | BL14: =ROUND(BJ14*BK14,0) -> 121 | BM14: =ROUND($C$13*(1+$C$14)^J14,3) -> 0.149 | BN14: =ROUND(IF($C$47+$F$23>$BH14,$F$30*$F$27,0)*BM14,0) -> 218 | BP14: =BI14+BL14+BN14+BO14 -> 939 | BR14: =ROUND(F15*F30,0) -> 604 | BT14: =BP14-BR14 -> 335 | BW14: =$C$47 -> 2016 | BX14: =$R14 -> 60 | BY14: =U14 -> 28 | BZ14: =AU14 -> 42 | CA14: =SUM(BX14:BZ14) -> 130 | CC14: =BB14 -> 630 | CD14: =BC14 -> 4 | CE14: =SUM(CC14:CD14) -> 634 | CG14: =CA14-CE14 -> -504
A15: Non-Gas Fuel Units (ie. kWh,Gallons, etc) = | C15: =+'Gas Input Table Summary'!$E$11 -> Kwh | E15: 17) Direct Participant Costs ($/Part.) = | F15: =ROUND('Database Inputs'!K16,0) -> 302 | J15: =J14+1 -> 3 | L15: =L14+1 -> 2017 | M15: =ROUND(IF($C$47+$F$23>L15,$F$25*$F$30,0)+IF($C$48+$G$23>L15,$G$25*$G$30,0),0) -> 20 | N15: =ROUND($C$17*(1+$C$18)^J14,3) -> 3.188 | O15: 64 | P15: 0 | Q15: =ROUND(M15*P15,0) -> 0 | R15: 64 | S15: 0.2 | T15: =ROUND($C$20*(1+$C$21)^J14,0) -> 145 | U15: =ROUND(S15*T15,0) -> 29 | V15: =ROUND(+U15+R15,0) -> 93 | W15: 1.087 | X15: 14 | Y15: =ROUND($G$11,0) -> 0 | Z15: =ROUND($G$12,0) -> 0 | AA15: 14 | AB15: 79 | AE15: =AE14+1 -> 2017 | AF15: 64 | AG15: 29 | AH15: =+AG15+AF15 -> 93 | AJ15: =ROUND(Y15,0) -> 0 | AK15: 0 | AL15: 0 | AN15: 93 | AQ15: =AQ14+1 -> 2017 | AR15: 64 | AS15: 29 | AT15: 0.03 | AU15: =ROUND((IF($C$47+$F$23>$AQ15,$F$27*$F$30,0)+IF($C$48+$G$23>AQ15,$G$27*$G$30,0))*AT15,0) -> 44 | AV15: 0.375 | AW15: 8 | AZ15: =ROUND(AR15+AS15+AU15+AW15+AY15,0) -> 145 | BB15: =ROUND($G$13,0) -> 0 | BC15: =ROUND(($G$15*$G$30)-$Z$15,0) -> 0 | BD15: =BB15+BC15 -> 0 | BE15: 145 | BH15: =BH14+1 -> 2017 | BI15: =+G12 -> 0 | BJ15: 20 | BK15: 6.279 | BL15: =ROUND(BJ15*BK15,0) -> 126 | BM15: 0.154 | BN15: =ROUND((IF($C$47+$F$23>BH15,$F$27*$F$30,0)+IF($C$48+$G$23>BH15,$G$27*$G$30,0))*BM15,0) -> 225 | BP15: 351 | BR15: =ROUND($G$15*$G$30,0) -> 0 | BT15: =BP15-BR15 -> 351 | BW15: =BW14+1 -> 2017 | BX15: 64 | BY15: =U15 -> 29 | BZ15: =AU15 -> 44 | CA15: =SUM(BX15:BZ15) -> 137 | CC15: =BB15 -> 0 | CD15: 0 | CE15: =SUM(CC15:CD15) -> 0 | CG15: =CA15-CE15 -> 137
J16: 4 | L16: 2018 | M16: =ROUND(IF($C$47+$F$23>L16,$F$25*$F$30,0)+IF($C$48+$G$23>L16,$G$25*$G$30,0)+IF($C$49+$H$23>L16,$H$25*$H$30,0),0) -> 20 | N16: =ROUND($C$17*(1+$C$18)^J15,3) -> 3.3 | O16: 66 | P16: 0 | Q16: 0 | R16: 66 | S16: 0.2 | T16: =ROUND($C$20*(1+$C$21)^J15,0) -> 147 | U16: =ROUND(S16*T16,0) -> 29 | V16: 95 | W16: 1.125 | X16: 15 | Y16: =ROUND($H$11,0) -> 0 | Z16: =ROUND($H$12,0) -> 0 | AA16: 15 | AB16: 80 | AE16: 2018 | AF16: 66 | AG16: 29 | AH16: =+AG16+AF16 -> 95 | AJ16: 0 | AK16: 0 | AL16: 0 | AN16: 95 | AQ16: 2018 | AR16: 66 | AS16: 29 | AT16: 0.031 | AU16: =ROUND((IF($C$47+$F$23>$AQ16,$F$27*$F$30,0)+IF($C$48+$G$23>AQ16,$G$27*$G$30,0)+IF($C$49+$H$23>AQ16,$H$27*$H$30,0))*AT16,0) -> 45 | AV16: 0.383 | AW16: 8 | AZ16: 148 | BB16: =ROUND($H$13,0) -> 0 | BC16: =ROUND(($H$15*$H$30)-$Z$16,0) -> 0 | BD16: 0 | BE16: 148 | BH16: 2018 | BI16: =ROUND(H12,0) -> 0 | BJ16: 20 | BK16: 6.498 | BL16: =ROUND(BJ16*BK16,0) -> 130 | BM16: 0.16 | BN16: =ROUND((IF($C$47+$F$23>BH16,$F$27*$F$30,0)+IF($C$49+$H$23>BH16,$H$27*$H$30,0)+IF($C$48+$G$23>BH16,$G$27*$G$30,0))*BM16,0) -> 234 | BP16: 364 | BR16: =ROUND($H$15*$H$30,0) -> 0 | BT16: 364 | BW16: 2018 | BX16: 66 | BY16: 29 | BZ16: 45 | CA16: 140 | CC16: 0 | CD16: 0 | CE16: 0 | CG16: =CA16-CE16 -> 140
A17: 3) Commodity Cost ($/Dk) = | C17: =+'Gas Input Table Summary'!$E$12 -> 2.976 | E17: 18) Participant Non-Energy Costs (Annual $/Part.) = | F17: =+'Gas Input Table Summary'!$E$35 -> 0 | J17: 5 | L17: 2019 | M17: =ROUND(IF($C$47+$F$23>L17,$F$25*$F$30,0)+IF($C$48+$G$23>L17,$G$25*$G$30,0)+IF($C$49+$H$23>L17,$H$25*$H$30,0),0) -> 20 | N17: 3.415 | O17: 68 | P17: 0 | Q17: 0 | R17: 68 | S17: 0.2 | T17: 148 | U17: 30 | V17: 98 | W17: 1.164 | X17: 15 | Y17: 0 | Z17: 0 | AA17: 15 | AB17: 83 | AE17: 2019 | AF17: 68 | AG17: 30 | AH17: 98 | AJ17: 0 | AK17: 0 | AL17: 0 | AN17: 98 | AQ17: 2019 | AR17: 68 | AS17: 30 | AT17: 0.032 | AU17: =ROUND((IF($C$47+$F$23>$AQ17,$F$27*$F$30,0)+IF($C$48+$G$23>AQ17,$G$27*$G$30,0)+IF($C$49+$H$23>AQ17,$H$27*$H$30,0))*AT17,0) -> 47 | AV17: 0.392 | AW17: 8 | AZ17: 153 | BB17: 0 | BC17: 0 | BD17: 0 | BE17: 153 | BH17: 2019 | BI17: 0 | BJ17: 20 | BK17: 6.726 | BL17: 135 | BM17: 0.165 | BN17: =ROUND((IF($C$47+$F$23>BH17,$F$27*$F$30,0)+IF($C$49+$H$23>BH17,$H$27*$H$30,0)+IF($C$48+$G$23>BH17,$G$27*$G$30,0))*BM17,0) -> 242 | BP17: 377 | BR17: =+BC17 -> 0 | BT17: 377 | BW17: 2019 | BX17: 68 | BY17: 30 | BZ17: 47 | CA17: 145 | CC17: 0 | CD17: 0 | CE17: 0 | CG17: 145
A18: Escalation Rate = | C18: =+'Gas Input Table Summary'!$E$13 -> 0.035 | E18: Escalation Rate = | F18: =+'Gas Input Table Summary'!$E$38 -> 0 | J18: 6 | L18: 2020 | M18: 20 | N18: 3.535 | O18: 71 | P18: 0 | Q18: 0 | R18: 71 | S18: 0.2 | T18: 150 | U18: 30 | V18: 101 | W18: 1.205 | X18: 16 | Y18: 0 | Z18: 0 | AA18: 16 | AB18: 85 | AE18: 2020 | AF18: 71 | AG18: 30 | AH18: 101 | AJ18: 0 | AK18: 0 | AL18: 0 | AN18: 101 | AQ18: 2020 | AR18: 71 | AS18: 30 | AT18: 0.034 | AU18: 50 | AV18: 0.401 | AW18: 8 | AZ18: 159 | BB18: 0 | BC18: 0 | BD18: 0 | BE18: 159 | BH18: 2020 | BI18: 0 | BJ18: 20 | BK18: 6.961 | BL18: 139 | BM18: 0.171 | BN18: 250 | BP18: 389 | BR18: 0 | BT18: 389 | BW18: 2020 | BX18: 71 | BY18: 30 | BZ18: 50 | CA18: 151 | CC18: 0 | CD18: 0 | CE18: 0 | CG18: 151 | DB18: t
J19: 7 | L19: 2021 | M19: 20 | N19: 3.658 | O19: 73 | P19: 0 | Q19: 0 | R19: 73 | S19: 0.2 | T19: 151 | U19: 30 | V19: 103 | W19: 1.247 | X19: 16 | Y19: 0 | Z19: 0 | AA19: 16 | AB19: 87 | AE19: 2021 | AF19: 73 | AG19: 30 | AH19: 103 | AJ19: 0 | AK19: 0 | AL19: 0 | AN19: 103 | AQ19: 2021 | AR19: 73 | AS19: 30 | AT19: 0.035 | AU19: 51 | AV19: 0.41 | AW19: 8 | AZ19: 162 | BB19: 0 | BC19: 0 | BD19: 0 | BE19: 162 | BH19: 2021 | BI19: 0 | BJ19: 20 | BK19: 7.205 | BL19: 144 | BM19: 0.177 | BN19: 259 | BP19: 403 | BR19: 0 | BT19: 403 | BW19: 2021 | BX19: 73 | BY19: 30 | BZ19: 51 | CA19: 154 | CC19: 0 | CD19: 0 | CE19: 0 | CG19: 154
A20: 4) Demand Cost ($/Unit/Yr) = | C20: =+'Gas Input Table Summary'!$E$14 -> 142.34 | E20: 19) Participant Non-Energy Savings (Annual $/Part) = | F20: =+'Gas Input Table Summary'!$E$41 -> 0 | J20: 8 | L20: 2022 | M20: 20 | N20: 3.786 | O20: 76 | P20: 0 | Q20: 0 | R20: 76 | S20: 0.2 | T20: 153 | U20: 31 | V20: 107 | W20: 1.29 | X20: 17 | Y20: 0 | Z20: 0 | AA20: 17 | AB20: 90 | AE20: 2022 | AF20: 76 | AG20: 31 | AH20: 107 | AJ20: 0 | AK20: 0 | AL20: 0 | AN20: 107 | AQ20: 2022 | AR20: 76 | AS20: 31 | AT20: 0.036 | AU20: 53 | AV20: 0.42 | AW20: 8 | AZ20: 168 | BB20: 0 | BC20: 0 | BD20: 0 | BE20: 168 | BH20: 2022 | BI20: 0 | BJ20: 20 | BK20: 7.457 | BL20: 149 | BM20: 0.183 | BN20: 268 | BP20: 417 | BR20: 0 | BT20: 417 | BW20: 2022 | BX20: 76 | BY20: 31 | BZ20: 53 | CA20: 160 | CC20: 0 | CD20: 0 | CE20: 0 | CG20: 160
A21: Escalation Rate = | C21: =+'Gas Input Table Summary'!$E$15 -> 0.01 | E21: Escalation Rate = | F21: =+'Gas Input Table Summary'!$E$44 -> 0 | J21: 9 | L21: 2023 | M21: 20 | N21: 3.919 | O21: 78 | P21: 0 | Q21: 0 | R21: 78 | S21: 0.2 | T21: 154 | U21: 31 | V21: 109 | W21: 1.336 | X21: 17 | Y21: 0 | Z21: 0 | AA21: 17 | AB21: 92 | AE21: 2023 | AF21: 78 | AG21: 31 | AH21: 109 | AJ21: 0 | AK21: 0 | AL21: 0 | AN21: 109 | AQ21: 2023 | AR21: 78 | AS21: 31 | AT21: 0.037 | AU21: 54 | AV21: 0.429 | AW21: 9 | AZ21: 172 | BB21: 0 | BC21: 0 | BD21: 0 | BE21: 172 | BH21: 2023 | BI21: 0 | BJ21: 20 | BK21: 7.718 | BL21: 154 | BM21: 0.19 | BN21: 278 | BP21: 432 | BR21: 0 | BT21: 432 | BW21: 2023 | BX21: 78 | BY21: 31 | BZ21: 54 | CA21: 163 | CC21: 0 | CD21: 0 | CE21: 0 | CG21: 163 | DB21: =$J14 -> 2
J22: 10 | L22: 2024 | M22: 20 | N22: 4.056 | O22: 81 | P22: 0 | Q22: 0 | R22: 81 | S22: 0.2 | T22: 156 | U22: 31 | V22: 112 | W22: 1.382 | X22: 18 | Y22: 0 | Z22: 0 | AA22: 18 | AB22: 94 | AE22: 2024 | AF22: 81 | AG22: 31 | AH22: 112 | AJ22: 0 | AK22: 0 | AL22: 0 | AN22: 112 | AQ22: 2024 | AR22: 81 | AS22: 31 | AT22: 0.038 | AU22: 56 | AV22: 0.439 | AW22: 9 | AZ22: 177 | BB22: 0 | BC22: 0 | BD22: 0 | BE22: 177 | BH22: 2024 | BI22: 0 | BJ22: 20 | BK22: 7.988 | BL22: 160 | BM22: 0.196 | BN22: 287 | BP22: 447 | BR22: 0 | BT22: 447 | BW22: 2024 | BX22: 81 | BY22: 31 | BZ22: 56 | CA22: 168 | CC22: 0 | CD22: 0 | CE22: 0 | CG22: 168 | DB22: =$J15 -> 3
A23: 5) Peak Reduction Factor = | C23: =+'Gas Input Table Summary'!$E$16 -> 0.01 | E23: 20) Project Life (Years) = | F23: =ROUND('Database Inputs'!D16,0) -> 20 | J23: 11 | L23: 2025 | M23: 20 | N23: 4.198 | O23: 84 | P23: 0 | Q23: 0 | R23: 84 | S23: 0.2 | T23: 157 | U23: 31 | V23: 115 | W23: 1.431 | X23: 19 | Y23: 0 | Z23: 0 | AA23: 19 | AB23: 96 | AE23: 2025 | AF23: 84 | AG23: 31 | AH23: 115 | AJ23: 0 | AK23: 0 | AL23: 0 | AN23: 115 | AQ23: 2025 | AR23: 84 | AS23: 31 | AT23: 0.04 | AU23: 59 | AV23: 0.449 | AW23: 9 | AZ23: 183 | BB23: 0 | BC23: 0 | BD23: 0 | BE23: 183 | BH23: 2025 | BI23: 0 | BJ23: 20 | BK23: 8.268 | BL23: 165 | BM23: 0.203 | BN23: 297 | BP23: 462 | BR23: 0 | BT23: 462 | BW23: 2025 | BX23: 84 | BY23: 31 | BZ23: 59 | CA23: 174 | CC23: 0 | CD23: 0 | CE23: 0 | CG23: 174 | DB23: =$J16 -> 4
J24: 12 | L24: 2026 | M24: 20 | N24: 4.345 | O24: 87 | P24: 0 | Q24: 0 | R24: 87 | S24: 0.2 | T24: 159 | U24: 32 | V24: 119 | W24: 1.481 | X24: 19 | Y24: 0 | Z24: 0 | AA24: 19 | AB24: 100 | AE24: 2026 | AF24: 87 | AG24: 32 | AH24: 119 | AJ24: 0 | AK24: 0 | AL24: 0 | AN24: 119 | AQ24: 2026 | AR24: 87 | AS24: 32 | AT24: 0.041 | AU24: 60 | AV24: 0.46 | AW24: 9 | AZ24: 188 | BB24: 0 | BC24: 0 | BD24: 0 | BE24: 188 | BH24: 2026 | BI24: 0 | BJ24: 20 | BK24: 8.557 | BL24: 171 | BM24: 0.21 | BN24: 307 | BP24: 478 | BR24: 0 | BT24: 478 | BW24: 2026 | BX24: 87 | BY24: 32 | BZ24: 60 | CA24: 179 | CC24: 0 | CD24: 0 | CE24: 0 | CG24: 179 | DB24: =$J17 -> 5
A25: 6) Variable O&M ($/Dk) = | C25: =+'Gas Input Table Summary'!$E$17 -> 0 | E25: 21) Avg. Dk/Part. Saved = | F25: =+'Total Program Inputs'!Q16 -> 10 | J25: 13 | L25: 2027 | M25: 20 | N25: 4.497 | O25: 90 | P25: 0 | Q25: 0 | R25: 90 | S25: 0.2 | T25: 160 | U25: 32 | V25: 122 | W25: 1.533 | X25: 20 | Y25: 0 | Z25: 0 | AA25: 20 | AB25: 102 | AE25: 2027 | AF25: 90 | AG25: 32 | AH25: 122 | AJ25: 0 | AK25: 0 | AL25: 0 | AN25: 122 | AQ25: 2027 | AR25: 90 | AS25: 32 | AT25: 0.043 | AU25: 63 | AV25: 0.47 | AW25: 9 | AZ25: 194 | BB25: 0 | BC25: 0 | BD25: 0 | BE25: 194 | BH25: 2027 | BI25: 0 | BJ25: 20 | BK25: 8.857 | BL25: 177 | BM25: 0.218 | BN25: 319 | BP25: 496 | BR25: 0 | BT25: 496 | BW25: 2027 | BX25: 90 | BY25: 32 | BZ25: 63 | CA25: 185 | CC25: 0 | CD25: 0 | CE25: 0 | CG25: 185
A26: Escalation Rate = | C26: =+'Gas Input Table Summary'!$E$18 -> 0 | J26: 14 | L26: 2028 | M26: 20 | N26: 4.654 | O26: 93 | P26: 0 | Q26: 0 | R26: 93 | S26: 0.2 | T26: 162 | U26: 32 | V26: 125 | W26: 1.586 | X26: 21 | Y26: 0 | Z26: 0 | AA26: 21 | AB26: 104 | AE26: 2028 | AF26: 93 | AG26: 32 | AH26: 125 | AJ26: 0 | AK26: 0 | AL26: 0 | AN26: 125 | AQ26: 2028 | AR26: 93 | AS26: 32 | AT26: 0.044 | AU26: 64 | AV26: 0.481 | AW26: 10 | AZ26: 199 | BB26: 0 | BC26: 0 | BD26: 0 | BE26: 199 | BH26: 2028 | BI26: 0 | BJ26: 20 | BK26: 9.167 | BL26: 183 | BM26: 0.225 | BN26: 329 | BP26: 512 | BR26: 0 | BT26: 512 | BW26: 2028 | BX26: 93 | BY26: 32 | BZ26: 64 | CA26: 189 | CC26: 0 | CD26: 0 | CE26: 0 | CG26: 189
E27: 22) Avg Non-Gas Fuel Units/Part. Saved = | F27: =+'Database Inputs'!H16 -> 732 | J27: 15 | L27: 2029 | M27: 20 | N27: 4.817 | O27: 96 | P27: 0 | Q27: 0 | R27: 96 | S27: 0.2 | T27: 164 | U27: 33 | V27: 129 | W27: 1.642 | X27: 21 | Y27: 0 | Z27: 0 | AA27: 21 | AB27: 108 | AE27: 2029 | AF27: 96 | AG27: 33 | AH27: 129 | AJ27: 0 | AK27: 0 | AL27: 0 | AN27: 129 | AQ27: 2029 | AR27: 96 | AS27: 33 | AT27: 0.046 | AU27: 67 | AV27: 0.492 | AW27: 10 | AZ27: 206 | BB27: 0 | BC27: 0 | BD27: 0 | BE27: 206 | BH27: 2029 | BI27: 0 | BJ27: 20 | BK27: 9.488 | BL27: 190 | BM27: 0.233 | BN27: 341 | BP27: 531 | BR27: 0 | BT27: 531 | BW27: 2029 | BX27: 96 | BY27: 33 | BZ27: 67 | CA27: 196 | CC27: 0 | CD27: 0 | CE27: 0 | CG27: 196
A28: 7) Non-Gas Fuel Cost ($/Fuel Unit) = | C28: =+'Gas Input Table Summary'!$E$19 -> 0.02589 | E28: 22a) Avg Additional Non-Gas Fuel Units/ Part. Used = | F28: 0 | J28: 16 | L28: 2030 | M28: 20 | N28: 4.986 | O28: 100 | P28: 0 | Q28: 0 | R28: 100 | S28: 0.2 | T28: 165 | U28: 33 | V28: 133 | W28: 1.699 | X28: 22 | Y28: 0 | Z28: 0 | AA28: 22 | AB28: 111 | AE28: 2030 | AF28: 100 | AG28: 33 | AH28: 133 | AJ28: 0 | AK28: 0 | AL28: 0 | AN28: 133 | AQ28: 2030 | AR28: 100 | AS28: 33 | AT28: 0.047 | AU28: 69 | AV28: 0.504 | AW28: 10 | AZ28: 212 | BB28: 0 | BC28: 0 | BD28: 0 | BE28: 212 | BH28: 2030 | BI28: 0 | BJ28: 20 | BK28: 9.82 | BL28: 196 | BM28: 0.241 | BN28: 353 | BP28: 549 | BR28: 0 | BT28: 549 | BW28: 2030 | BX28: 100 | BY28: 33 | BZ28: 69 | CA28: 202 | CC28: 0 | CD28: 0 | CE28: 0 | CG28: 202
A29: Escalation Rate = | C29: =+'Gas Input Table Summary'!$E$20 -> 0.035 | J29: 17 | L29: 2031 | M29: 20 | N29: 5.16 | O29: 103 | P29: 0 | Q29: 0 | R29: 103 | S29: 0.2 | T29: 167 | U29: 33 | V29: 136 | W29: 1.759 | X29: 23 | Y29: 0 | Z29: 0 | AA29: 23 | AB29: 113 | AE29: 2031 | AF29: 103 | AG29: 33 | AH29: 136 | AJ29: 0 | AK29: 0 | AL29: 0 | AN29: 136 | AQ29: 2031 | AR29: 103 | AS29: 33 | AT29: 0.049 | AU29: 72 | AV29: 0.515 | AW29: 10 | AZ29: 218 | BB29: 0 | BC29: 0 | BD29: 0 | BE29: 218 | BH29: 2031 | BI29: 0 | BJ29: 20 | BK29: 10.163 | BL29: 203 | BM29: 0.25 | BN29: 366 | BP29: 569 | BR29: 0 | BT29: 569 | BW29: 2031 | BX29: 103 | BY29: 33 | BZ29: 72 | CA29: 208 | CC29: 0 | CD29: 0 | CE29: 0 | CG29: 208
E30: 23) Number of Participants = | F30: =+'Total Program Inputs'!C16 -> 2 | J30: 18 | L30: 2032 | M30: 20 | N30: 5.341 | O30: 107 | P30: 0 | Q30: 0 | R30: 107 | S30: 0.2 | T30: 169 | U30: 34 | V30: 141 | W30: 1.82 | X30: 24 | Y30: 0 | Z30: 0 | AA30: 24 | AB30: 117 | AE30: 2032 | AF30: 107 | AG30: 34 | AH30: 141 | AJ30: 0 | AK30: 0 | AL30: 0 | AN30: 141 | AQ30: 2032 | AR30: 107 | AS30: 34 | AT30: 0.051 | AU30: 75 | AV30: 0.527 | AW30: 11 | AZ30: 227 | BB30: 0 | BC30: 0 | BD30: 0 | BE30: 227 | BH30: 2032 | BI30: 0 | BJ30: 20 | BK30: 10.519 | BL30: 210 | BM30: 0.258 | BN30: 378 | BP30: 588 | BR30: 0 | BT30: 588 | BW30: 2032 | BX30: 107 | BY30: 34 | BZ30: 75 | CA30: 216 | CC30: 0 | CD30: 0 | CE30: 0 | CG30: 216 | DB30: =$J18 -> 6
A31: 8) Non-Gas Fuel Loss Factor | C31: =+'Gas Input Table Summary'!$E$21 -> 0.051 | J31: 19 | L31: 2033 | M31: 20 | N31: 5.528 | O31: 111 | P31: 0 | Q31: 0 | R31: 111 | S31: 0.2 | T31: 170 | U31: 34 | V31: 145 | W31: 1.884 | X31: 24 | Y31: 0 | Z31: 0 | AA31: 24 | AB31: 121 | AE31: 2033 | AF31: 111 | AG31: 34 | AH31: 145 | AJ31: 0 | AK31: 0 | AL31: 0 | AN31: 145 | AQ31: 2033 | AR31: 111 | AS31: 34 | AT31: 0.052 | AU31: 76 | AV31: 0.539 | AW31: 11 | AZ31: 232 | BB31: 0 | BC31: 0 | BD31: 0 | BE31: 232 | BH31: 2033 | BI31: 0 | BJ31: 20 | BK31: 10.887 | BL31: 218 | BM31: 0.268 | BN31: 392 | BP31: 610 | BR31: 0 | BT31: 610 | BW31: 2033 | BX31: 111 | BY31: 34 | BZ31: 76 | CA31: 221 | CC31: 0 | CD31: 0 | CE31: 0 | CG31: 221 | DB31: =$J19 -> 7
E32: 24) Total Annual Dk Saved = | F32: =+'Total Program Inputs'!E16 -> 20 | J32: 20 | L32: 2034 | M32: 20 | N32: 5.721 | O32: 114 | P32: 0 | Q32: 0 | R32: 114 | S32: 0.2 | T32: 172 | U32: 34 | V32: 148 | W32: 1.95 | X32: 25 | Y32: 0 | Z32: 0 | AA32: 25 | AB32: 123 | AE32: 2034 | AF32: 114 | AG32: 34 | AH32: 148 | AJ32: 0 | AK32: 0 | AL32: 0 | AN32: 148 | AQ32: 2034 | AR32: 114 | AS32: 34 | AT32: 0.054 | AU32: 79 | AV32: 0.552 | AW32: 11 | AZ32: 238 | BB32: 0 | BC32: 0 | BD32: 0 | BE32: 238 | BH32: 2034 | BI32: 0 | BJ32: 20 | BK32: 11.268 | BL32: 225 | BM32: 0.277 | BN32: 406 | BP32: 631 | BR32: 0 | BT32: 631 | BW32: 2034 | BX32: 114 | BY32: 34 | BZ32: 79 | CA32: 227 | CC32: 0 | CD32: 0 | CE32: 0 | CG32: 227 | DB32: =$J20 -> 8
A33: 9) Gas Environmental Damage Factor = | C33: =+'Gas Input Table Summary'!$E$22 -> 0.35 | J33: 21 | L33: 2035 | M33: 20 | N33: 5.922 | O33: 118 | P33: 0 | Q33: 0 | R33: 118 | S33: 0.2 | T33: 174 | U33: 35 | V33: 153 | W33: 2.018 | X33: 26 | Y33: 0 | Z33: 0 | AA33: 26 | AB33: 127 | AE33: 2035 | AF33: 118 | AG33: 35 | AH33: 153 | AJ33: 0 | AK33: 0 | AL33: 0 | AN33: 153 | AQ33: 2035 | AR33: 118 | AS33: 35 | AT33: 0.056 | AU33: 82 | AV33: 0.564 | AW33: 11 | AZ33: 246 | BB33: 0 | BC33: 0 | BD33: 0 | BE33: 246 | BH33: 2035 | BI33: 0 | BJ33: 20 | BK33: 11.663 | BL33: 233 | BM33: 0.287 | BN33: 420 | BP33: 653 | BR33: 0 | BT33: 653 | BW33: 2035 | BX33: 118 | BY33: 35 | BZ33: 82 | CA33: 235 | CC33: 0 | CD33: 0 | CE33: 0 | CG33: 235
A34: Escalation Rate = | C34: =+'Gas Input Table Summary'!$E$23 -> 0.023 | E34: 25) Incentive/Participant = | F34: 0 | J34: 22 | L34: 2036 | M34: 0 | N34: 6.129 | O34: 0 | P34: 0 | Q34: 0 | R34: 0 | S34: 0 | T34: 175 | U34: 0 | V34: 0 | W34: 2.089 | X34: 0 | Y34: 0 | Z34: 0 | AA34: 0 | AB34: 0 | AE34: 2036 | AF34: 0 | AG34: 0 | AH34: 0 | AJ34: 0 | AK34: 0 | AL34: 0 | AN34: 0 | AQ34: 2036 | AR34: 0 | AS34: 0 | AT34: 0.058 | AU34: 0 | AV34: 0.577 | AW34: 0 | AZ34: 0 | BB34: 0 | BC34: 0 | BD34: 0 | BE34: 0 | BH34: 2036 | BI34: 0 | BJ34: 0 | BK34: 12.071 | BL34: 0 | BM34: 0.297 | BN34: 0 | BP34: 0 | BR34: 0 | BT34: 0 | BW34: 2036 | BX34: 0 | BY34: 0 | BZ34: 0 | CA34: 0 | CC34: 0 | CD34: 0 | CE34: 0 | CG34: 0
DB35: =$J21 -> 9
A36: 10) Non Gas Fuel Environmental Damage Factor = | C36: =+'Gas Input Table Summary'!$E$24 -> 0 | E36: 26) Distribution Delivery Charge | F36: =+'Gas Input Table Summary'!E58 -> 0.98 | K36: Total = | M36: =SUM(M14:M34) -> 400 | V36: =SUM(V14:V34) -> 2372 | AA36: =SUM(AA14:AA34) -> 1016 | AB36: =SUM(AB14:AB34) -> 1356 | AD36: Total = | AH36: =SUM(AH14:AH34) -> 2372 | AL36: =SUM(AL14:AL34) -> 630 | AN36: =SUM(AN14:AN34) -> 1742 | AP36: Total = | AZ36: =SUM(AZ14:AZ34) -> 3764 | BD36: =SUM(BD14:BD34) -> 634 | BE36: =SUM(BE14:BE34) -> 3130 | BG36: Total = | BJ36: =SUM(BJ14:BJ34) -> 400 | BP36: =SUM(BP14:BP34) -> 10198 | BR36: =SUM(BR14:BR34) -> 604 | BT36: =SUM(BT14:BT34) -> 9594 | BZ36: Total = | CA36: =SUM(CA14:CA34) -> 3580 | CE36: =SUM(CE14:CE34) -> 634 | CG36: =SUM(CG14:CG34) -> 2946
A37: Escalation Rate = | C37: =+'Gas Input Table Summary'!$E$25 -> 0 | T37: NPV = | V37: =ROUND(V14+NPV($C$41,V15:V34),0) -> 1243 | AA37: =ROUND(AA14+NPV($C$41,AA15:AA34),0) -> 830 | AB37: =ROUND(AB14+NPV($C$41,AB15:AB34),0) -> 413 | AG37: NPV = | AH37: =ROUND(AH14+NPV($C$41,AH15:AH34),0) -> 1243 | AL37: =ROUND(AL14+NPV($C$41,AL15:AL34),0) -> 630 | AN37: =+AH37-AL37 -> 613 | AW37: NPV = | AZ37: =ROUND(AZ14+NPV($C$43,AZ15:AZ34),0) -> 2661 | BD37: =ROUND(BD14+NPV($C$43,BD15:BD34),0) -> 634 | BE37: =AZ37-BD37 -> 2027 | BN37: NPV = | BP37: =ROUND(BP14+NPV($C$39,BP15:BP34),0) -> 4644 | BR37: =ROUND(BR14+NPV($C$39,BR15:BR34),0) -> 604 | BT37: =ROUND(BT14+NPV($C$39,BT15:BT34),0) -> 4040 | BZ37: NPV = | CA37: =ROUND(CA14+NPV($C$41,CA15:CA34),0) -> 1866 | CE37: =ROUND(CE14+NPV($C$41,CE15:CE34),0) -> 634 | CG37: =ROUND(CG14+NPV($C$41,CG15:CG34),0) -> 1232 | DB37: =$J22 -> 10
E38: 27) Effective Income Tax Rate = | F38: =+'Gas Input Table Summary'!E59 -> 0.35
A39: 11) Participant Discount Rate = | C39: =+'Gas Input Table Summary'!$E$26 -> 0.1 | E39: (Federal & State Taxes) | K39: Total NPV = | N39: =AB37 -> 413 | AD39: Total NPV = | AG39: =AN37 -> 613 | AP39: Total NPV = | AS39: =BE37 -> 2027 | BG39: Total NPV = | BJ39: =BT37 -> 4040 | BV39: Total NPV = | BY39: =CG37 -> 1232
K40: Benefit/Cost Ratio = | N40: =ROUND(V37/AA37,2) -> 1.5 | AD40: Benefit/Cost Ratio = | AG40: =ROUND(AH37/AL37,2) -> 1.97 | AP40: Benefit/Cost Ratio = | AS40: =ROUND(AZ37/BD37,2) -> 4.2 | BG40: Benefit/Cost Ratio = | BJ40: =ROUND(BP37/BR37,20) -> 7.688741722 | BV40: Benefit/Cost Ratio = | BY40: =ROUND(CA37/CE37,2) -> 2.94 | DB40: =$J23 -> 11
A41: 12) Utility Discount Rate = | C41: =+'Gas Input Table Summary'!$E$27 -> 0.07216 | E41: Test Results | F41: NPV | G41: B/C | DB41: =$J24 -> 12
E42: Ratepayer Impact Measure Test | F42: =N39 -> 413 | G42: =N40 -> 1.5 | DB42: =$J25 -> 13
A43: 13) Societal Discount Rate = | C43: =+'Gas Input Table Summary'!$E$28 -> 0.0356 | E43: Utility Cost Test | F43: =AG39 -> 613 | G43: =AG40 -> 1.97 | J43: Worksheet Calculations | AD43: Worksheet Calculations | AP43: Worksheet Calculations | BG43: Worksheet Calculations | BV43: Worksheet Calculations | DB43: =$J26 -> 14
E44: Societal Test | F44: =AS39 -> 2027 | G44: =AS40 -> 4.2 | J44: (A) | K44: = Average Dk/Participant Saved (21) x Number of Participants (23) for Project Life (20) | T44: (I) | U44: = (G) x (H) | AD44: (A) | AE44: = Table 1 (F) | AP44: (A) | AQ44: = Table 1 (F) | AW44: (H) | AZ44: = Table 2 (F) | BG44: (A) | BH44: = Table 1 (N) | BV44: (A) | BW44: = Table 1 (F)
A45: 14) General Input Data Year = | C45: =+'Res .95+% Res Furnace - NEW'!C45 -> 2014 | E45: Participant Test | F45: =BJ39 -> 4040 | G45: =BJ40 -> 7.688741722 | J45: (B) | K45: = Commodity Cost (3) escalated | T45: (J) | U45: = (F) + (I) | AD45: (B) | AE45: = Table 1 (I) | AP45: (G) | AQ45: = Table 1 (I) | AW45: (I) | AZ45: = Direct Part. Costs (17) x No. of Part. (23) - Table 1 (N) | BG45: (B) | BH45: = Table 1 (A) | BV45: (B) | BW45: = Table 1 (I)
E46: Total Resource Cost Test | F46: =BY39 -> 1232 | G46: =BY40 -> 2.94 | J46: (C) | K46: = (A) x (B) | T46: (K) | U46: = Distribution Delivery Charge (26) escalated. | AD46: (C) | AE46: = Table 1 (J) | AP46: (C) | AQ46: = Non-Gas Fuel Cost (7), adjusted for losses (8), escalated.. | AW46: (J) | AZ46: = (H) + (I) | BG46: (C) | BH46: = Retail Rate (1) escalated. | BV46: (C) | BW46: = Table 3 (D)
A47: 15) Project Analysis Year 1 = | C47: =+'Res .95+% Res Furnace - NEW'!C47 -> 2016 | J47: (D) | K47: = Variable O&M Cost (6), escalated | T47: (L) | U47: = (A) x (K) x (1-Inverse of Tax Rate (27) | AD47: (D) | AE47: = Table 1 (M) | AP47: (D) | AQ47: = (C) x [Avg. Non-Gas Fuel Units/Part.Saved (22) x No. of Part. (23) | AW47: (K) | AZ47: = (G) - (J) | BG47: (D) | BH47: =(B) x (C) | BV47: (D) | BW47: = (A) + (B) + (C)
J48: (E) | K48: = (A) x (D) | T48: (M) | U48: = Admin & Operating Costs (16a) | AD48: (E) | AE48: = Table 1 (N) | AP48: (E) | AQ48: = Gas Environmental Damage Factor (9), escalated | BG48: (E) | BH48: = Non-Gas Fuel Retail Rate (2), escalated. | BV48: (E) | BW48: = Table 3 (H)
J49: (F) | K49: = (C) + (E) | T49: (N) | U49: = Incentive Costs (16b) | AD49: (F) | AE49: = (D) + (E) | AP49: (F) | AQ49: = Table 1 (A) x (E) | BG49: (F) | BH49: = (E) x [Avg. Non-Gas Fuel Units/Part.Saved (22) x No. of Part. (23) | BV49: (F) | BW49: = Table 3 (I) | DB49: =$J27 -> 15
J50: (G) | K50: = (A) x Peak Reduction Factor (5) | T50: (O) | U50: = (L) + (M) + (N) | AD50: (G) | AE50: = (C) - (F) | AP50: (G) | AQ50: = (A) + (B) + (D) + (F) | BG50: (G) | BH50: = (A) + (D) + (F) | BV50: (G) | BW50: = (E) + (F) | DB50: =$J28 -> 16
J51: (H) | K51: = Demand Cost (4) escalated. | T51: (P) | U51: = (J) - (O) | BG51: (H) | BH51: = Direct Participant Costs (17) x Number of Participants (23) | BV51: (H) | BW51: = (D) - (G) | DB51: =$J29 -> 17
BG52: (I) | BH52: = (G) - (H)

Sheet Comm 95+% Furnace - Replace
A1: NATURAL GAS CONSERVATION PROGRAMS/DEMAND-SIDE MANAGEMENT | K1: Table 1 | AD1: Table 2 | AP1: Table 3 | BG1: Table 4 | BV1: Table 5
A2: BEN/COST ANALYSIS FOR GAS CONSERVATION | K2: Ratepayer Impact Measure Test | AD2: Utility Cost Test | AP2: Societal Test | BG2: Participant Test | BV2: Total Resource Cost Test
A4: Company: | B4: Montana-Dakota Utilities Co. | K4: Company: | M4: =B4 -> Montana-Dakota Utilities Co. | AD4: Company: | AF4: =B4 -> Montana-Dakota Utilities Co. | AP4: Company: | AR4: =AF4 -> Montana-Dakota Utilities Co. | BH4: Company: | BI4: =AR4 -> Montana-Dakota Utilities Co. | BW4: Company: | BX4: =BI4 -> Montana-Dakota Utilities Co.
A5: Project: | B5: Commercial 95+% AFUE Furnace - Replacement | K5: Project: | M5: =$B$5 -> Commercial 95+% AFUE Furnace - Replacement | AD5: Project: | AF5: =$B$5 -> Commercial 95+% AFUE Furnace - Replacement | AP5: Project: | AR5: =$B$5 -> Commercial 95+% AFUE Furnace - Replacement | BH5: Project: | BI5: =$B$5 -> Commercial 95+% AFUE Furnace - Replacement | BW5: Project: | BX5: =$B$5 -> Commercial 95+% AFUE Furnace - Replacement
A6: Program Years: | B6: =+'Comm 95+ Furnace - New'!B6 -> 2016 Actual
N7: Benefits | X7: Costs | AF7: Benefits | AJ7: Costs | AR7: Benefits | BB7: Costs | BI7: Benefits | BR7: Costs | BX7: Benefits | CC7: Costs
A8: Input Data | F8: 2016 | AB8: Annual | AN8: Annual | AT8: Non-Gas | BE8: Annual | BT8: Annual | CG8: Annual
M9: Total | N9: Gas | O9: Gas | P9: Variable | Q9: Variable | R9: Total | S9: Peak Dk | T9: Demand | U9: Total | W9: Distribution | Y9: Program | AA9: Total | AB9: Benefits | AF9: Total | AG9: Total | AH9: Annual | AJ9: Program | AL9: Utility | AN9: Benefits | AR9: Total | AS9: Total | AT9: Energy | AU9: Non-Gas | AV9: Environmental | AW9: Environmental | AZ9: Annual | BB9: Utility | BC9: Participants' | BD9: Annual | BE9: Benefits | BJ9: Total | BL9: Gas | BM9: Non-Gas | BN9: Non-Gas | BP9: Total | BR9: Direct | BT9: Benefits | BX9: Total | BY9: Total | BZ9: Non-Gas | CA9: Total | CC9: Utility | CD9: Participants' | CG9: Benefits
A10: 1) Retail Rate ($/Dk) = | C10: =+'Gas Input Table Summary'!$E$7 -> 5.663 | E10: 16) Utility Project Costs | M10: Energy | N10: Commodity | O10: Commodity | P10: O & M | Q10: O & M | R10: Energy | S10: Demand | T10: Savings | U10: Demand | V10: Total | W10: Delivery | X10: Lost | Y10: Admin | Z10: Incentive | AA10: Program | AB10: Less | AF10: Energy | AG10: Demand | AH10: Total | AJ10: Admin | AK10: Incentive | AL10: Program | AN10: Less | AR10: Energy | AS10: Demand | AT10: Savings | AU10: Energy | AV10: Damage | AW10: Damage | AZ10: Total | BB10: Program | BC10: Costs Net | BD10: Total | BE10: Less | BI10: Incentives | BJ10: Energy | BK10: Retail | BL10: Bill | BM10: Fuel | BN10: Energy | BP10: Annual | BR10: Participant | BT10: Less | BX10: Energy | BY10: Demand | BZ10: Energy | CA10: Annual | CC10: Program | CD10: Costs Net | CE10: Total | CG10: Less
A11: Escalation Rate = | C11: =+'Gas Input Table Summary'!$E$8 -> 0.035 | E11: 16a) Administrative & Operating Costs = | F11: =+'Total Program Inputs'!K17 -> 107 | J11: t | M11: Reduction | N11: Cost/Dk | O11: Savings | P11: Cost/Dk | Q11: Savings | R11: Savings | S11: Reduction | T11: Per Unit | U11: Savings | V11: Savings | W11: Charge | X11: Margin | Y11: Costs | Z11: Costs | AA11: Costs | AB11: Costs | AF11: Savings | AG11: Savings | AH11: Savings | AJ11: Costs | AK11: Costs | AL11: Costs | AN11: Costs | AR11: Savings | AS11: Savings | AT11: ($/Part.) | AU11: Savings | AV11: Savings/Dk | AW11: Savings | AZ11: Savings | BB11: Costs | BC11: of Rebate | BD11: Costs | BE11: Costs | BI11: Received | BJ11: Reduction | BK11: Rate | BL11: Savings | BM11: Retail Rate | BN11: Savings | BP11: Benefits | BR11: Costs | BT11: Costs | BX11: Savings | BY11: Savings | BZ11: Savings | CA11: Benefits | CC11: Costs | CD11: of Rebate | CE11: Costs | CG11: Costs
E12: 16b) Incentive Costs = | F12: =+'Total Program Inputs'!G17 -> 2100 | L12: Year | M12: (A) | N12: (B) | O12: (C) | P12: (D) | Q12: (E) | R12: (F) | S12: (G) | T12: (H) | U12: (I) | V12: (J) | W12: (K) | X12: (L) | Y12: (M) | Z12: (N) | AA12: (O) | AB12: (P) | AE12: Year | AF12: (A) | AG12: (B) | AH12: (C) | AJ12: (D) | AK12: (E) | AL12: (F) | AN12: (G) | AQ12: Year | AR12: (A) | AS12: (B) | AT12: (C) | AU12: (D) | AV12: (E) | AW12: (F) | AZ12: (G) | BB12: (H) | BC12: (I) | BD12: (J) | BE12: (K) | BH12: Year | BI12: (A) | BJ12: (B) | BK12: (C) | BL12: (D) | BM12: (E) | BN12: (F) | BP12: (G) | BR12: (H) | BT12: (I) | BW12: Year | BX12: (A) | BY12: (B) | BZ12: (C) | CA12: (D) | CC12: (E) | CD12: (F) | CE12: (G) | CG12: (H)
A13: 2) Non-Gas Fuel Retail Rate ($/Fuel Unit) = | C13: =+'Gas Input Table Summary'!$E$9 -> 0.13915 | E13: 16c) Total Utility Project Costs = | F13: =SUM(F11:F12) -> 2207
A14: Escalation Rate = | C14: =+'Gas Input Table Summary'!$E$10 -> 0.035 | J14: =$C$47-$C$45 -> 2 | L14: =$C$47 -> 2016 | M14: =ROUND(IF($C$47+$F$23>L14,F25*F30,0),0) -> 162 | N14: =ROUND($C$17*(1),3) -> 2.976 | O14: =ROUND(M14*N14,0) -> 482 | P14: =ROUND($C$25*(1+$C$26)^J14,3) -> 0 | Q14: =ROUND(M14*P14,0) -> 0 | R14: =O14+Q14 -> 482 | S14: =ROUND(M14*$C$23,1) -> 1.6 | T14: =ROUND($C$20*(1),0) -> 142 | U14: =ROUND(S14*T14,0) -> 227 | V14: =ROUND(+U14+R14,0) -> 709 | W14: =ROUND($F$36*(1+$C$11)^J14,3) -> 1.05 | X14: =ROUND((1-$F$38)*(W14*M14),0) -> 111 | Y14: =ROUND($F$11,0) -> 107 | Z14: =ROUND($F$12,0) -> 2100 | AA14: =SUM(X14:Z14) -> 2318 | AB14: =V14-AA14 -> -1609 | AE14: =$C$47 -> 2016 | AF14: =+R14 -> 482 | AG14: =+U14 -> 227 | AH14: =+AG14+AF14 -> 709 | AJ14: =ROUND(Y14,0) -> 107 | AK14: =ROUND(Z14,0) -> 2100 | AL14: =SUM(AJ14:AK14) -> 2207 | AN14: =+AH14-AL14 -> -1498 | AQ14: =$C$47 -> 2016 | AR14: =AF14 -> 482 | AS14: =+AG14 -> 227 | AT14: =ROUND(($C$28/(1-$C$31))*(1+$C$29)^J14,3) -> 0.029 | AU14: =ROUND(IF($C$47+$F$23>$AQ14,$F$30*$F$27,0)*AT14,0) -> 149 | AV14: =ROUND($C$33*(1+$C$34)^J14,3) -> 0.366 | AW14: =ROUND(AV14*M14,0) -> 59 | AZ14: =ROUND(AR14+AS14+AU14+AW14+AY14,0) -> 917 | BB14: =ROUND($F$13,0) -> 2207 | BC14: =ROUND((F15*F30)-Z14,0) -> 2450 | BD14: =BB14+BC14 -> 4657 | BE14: =AZ14-BD14 -> -3740 | BH14: =$C$47 -> 2016 | BI14: =+F12 -> 2100 | BJ14: =+M14 -> 162 | BK14: =ROUND($C$10*(1+$C$11)^J14,3) -> 6.066 | BL14: =ROUND(BJ14*BK14,0) -> 983 | BM14: =ROUND($C$13*(1+$C$14)^J14,3) -> 0.149 | BN14: =ROUND(IF($C$47+$F$23>$BH14,$F$30*$F$27,0)*BM14,0) -> 763 | BP14: =BI14+BL14+BN14+BO14 -> 3846 | BR14: =ROUND(F15*F30,0) -> 4550 | BT14: =BP14-BR14 -> -704 | BW14: =$C$47 -> 2016 | BX14: =$R14 -> 482 | BY14: =U14 -> 227 | BZ14: =AU14 -> 149 | CA14: =SUM(BX14:BZ14) -> 858 | CC14: =BB14 -> 2207 | CD14: =BC14 -> 2450 | CE14: =SUM(CC14:CD14) -> 4657 | CG14: =CA14-CE14 -> -3799
A15: Non-Gas Fuel Units (ie. kWh,Gallons, etc) = | C15: =+'Gas Input Table Summary'!$E$11 -> Kwh | E15: 17) Direct Participant Costs ($/Part.) = | F15: =ROUND('Database Inputs'!K17,0) -> 650 | J15: =J14+1 -> 3 | L15: =L14+1 -> 2017 | M15: =ROUND(IF($C$47+$F$23>L15,$F$25*$F$30,0)+IF($C$48+$G$23>L15,$G$25*$G$30,0),0) -> 162 | N15: =ROUND($C$17*(1+$C$18)^J14,3) -> 3.188 | O15: 516 | P15: 0 | Q15: =ROUND(M15*P15,0) -> 0 | R15: 516 | S15: 1.6 | T15: =ROUND($C$20*(1+$C$21)^J14,0) -> 145 | U15: =ROUND(S15*T15,0) -> 232 | V15: =ROUND(+U15+R15,0) -> 748 | W15: 1.087 | X15: 114 | Y15: =ROUND($G$11,0) -> 0 | Z15: =ROUND($G$12,0) -> 0 | AA15: 114 | AB15: 634 | AE15: =AE14+1 -> 2017 | AF15: 516 | AG15: 232 | AH15: =+AG15+AF15 -> 748 | AJ15: =ROUND(Y15,0) -> 0 | AK15: 0 | AL15: 0 | AN15: 748 | AQ15: =AQ14+1 -> 2017 | AR15: 516 | AS15: 232 | AT15: 0.03 | AU15: =ROUND((IF($C$47+$F$23>$AQ15,$F$27*$F$30,0)+IF($C$48+$G$23>AQ15,$G$27*$G$30,0))*AT15,0) -> 154 | AV15: 0.375 | AW15: 61 | AZ15: =ROUND(AR15+AS15+AU15+AW15+AY15,0) -> 963 | BB15: =ROUND($G$13,0) -> 0 | BC15: =ROUND(($G$15*$G$30)-$Z$15,0) -> 0 | BD15: =BB15+BC15 -> 0 | BE15: 963 | BH15: =BH14+1 -> 2017 | BI15: =+G12 -> 0 | BJ15: 162 | BK15: 6.279 | BL15: =ROUND(BJ15*BK15,0) -> 1017 | BM15: 0.154 | BN15: =ROUND((IF($C$47+$F$23>BH15,$F$27*$F$30,0)+IF($C$48+$G$23>BH15,$G$27*$G$30,0))*BM15,0) -> 789 | BP15: 1806 | BR15: =ROUND($G$15*$G$30,0) -> 0 | BT15: =BP15-BR15 -> 1806 | BW15: =BW14+1 -> 2017 | BX15: 516 | BY15: =U15 -> 232 | BZ15: =AU15 -> 154 | CA15: =SUM(BX15:BZ15) -> 902 | CC15: =BB15 -> 0 | CD15: 0 | CE15: =SUM(CC15:CD15) -> 0 | CG15: =CA15-CE15 -> 902
J16: 4 | L16: 2018 | M16: =ROUND(IF($C$47+$F$23>L16,$F$25*$F$30,0)+IF($C$48+$G$23>L16,$G$25*$G$30,0)+IF($C$49+$H$23>L16,$H$25*$H$30,0),0) -> 162 | N16: =ROUND($C$17*(1+$C$18)^J15,3) -> 3.3 | O16: 535 | P16: 0 | Q16: 0 | R16: 535 | S16: 1.6 | T16: =ROUND($C$20*(1+$C$21)^J15,0) -> 147 | U16: =ROUND(S16*T16,0) -> 235 | V16: 770 | W16: 1.125 | X16: 118 | Y16: =ROUND($H$11,0) -> 0 | Z16: =ROUND($H$12,0) -> 0 | AA16: 118 | AB16: 652 | AE16: 2018 | AF16: 535 | AG16: 235 | AH16: =+AG16+AF16 -> 770 | AJ16: 0 | AK16: 0 | AL16: 0 | AN16: 770 | AQ16: 2018 | AR16: 535 | AS16: 235 | AT16: 0.031 | AU16: =ROUND((IF($C$47+$F$23>$AQ16,$F$27*$F$30,0)+IF($C$48+$G$23>AQ16,$G$27*$G$30,0)+IF($C$49+$H$23>AQ16,$H$27*$H$30,0))*AT16,0) -> 159 | AV16: 0.383 | AW16: 62 | AZ16: 991 | BB16: =ROUND($H$13,0) -> 0 | BC16: =ROUND(($H$15*$H$30)-$Z$16,0) -> 0 | BD16: 0 | BE16: 991 | BH16: 2018 | BI16: =ROUND(H12,0) -> 0 | BJ16: 162 | BK16: 6.498 | BL16: =ROUND(BJ16*BK16,0) -> 1053 | BM16: 0.16 | BN16: =ROUND((IF($C$47+$F$23>BH16,$F$27*$F$30,0)+IF($C$49+$H$23>BH16,$H$27*$H$30,0)+IF($C$48+$G$23>BH16,$G$27*$G$30,0))*BM16,0) -> 820 | BP16: 1873 | BR16: =ROUND($H$15*$H$30,0) -> 0 | BT16: 1873 | BW16: 2018 | BX16: 535 | BY16: 235 | BZ16: 159 | CA16: 929 | CC16: 0 | CD16: 0 | CE16: 0 | CG16: =CA16-CE16 -> 929
A17: 3) Commodity Cost ($/Dk) = | C17: =+'Gas Input Table Summary'!$E$12 -> 2.976 | E17: 18) Participant Non-Energy Costs (Annual $/Part.) = | F17: =+'Gas Input Table Summary'!$E$35 -> 0 | J17: 5 | L17: 2019 | M17: =ROUND(IF($C$47+$F$23>L17,$F$25*$F$30,0)+IF($C$48+$G$23>L17,$G$25*$G$30,0)+IF($C$49+$H$23>L17,$H$25*$H$30,0),0) -> 162 | N17: 3.415 | O17: 553 | P17: 0 | Q17: 0 | R17: 553 | S17: 1.6 | T17: 148 | U17: 237 | V17: 790 | W17: 1.164 | X17: 123 | Y17: 0 | Z17: 0 | AA17: 123 | AB17: 667 | AE17: 2019 | AF17: 553 | AG17: 237 | AH17: 790 | AJ17: 0 | AK17: 0 | AL17: 0 | AN17: 790 | AQ17: 2019 | AR17: 553 | AS17: 237 | AT17: 0.032 | AU17: =ROUND((IF($C$47+$F$23>$AQ17,$F$27*$F$30,0)+IF($C$48+$G$23>AQ17,$G$27*$G$30,0)+IF($C$49+$H$23>AQ17,$H$27*$H$30,0))*AT17,0) -> 164 | AV17: 0.392 | AW17: 64 | AZ17: 1018 | BB17: 0 | BC17: 0 | BD17: 0 | BE17: 1018 | BH17: 2019 | BI17: 0 | BJ17: 162 | BK17: 6.726 | BL17: 1090 | BM17: 0.165 | BN17: =ROUND((IF($C$47+$F$23>BH17,$F$27*$F$30,0)+IF($C$49+$H$23>BH17,$H$27*$H$30,0)+IF($C$48+$G$23>BH17,$G$27*$G$30,0))*BM17,0) -> 845 | BP17: 1935 | BR17: =+BC17 -> 0 | BT17: 1935 | BW17: 2019 | BX17: 553 | BY17: 237 | BZ17: 164 | CA17: 954 | CC17: 0 | CD17: 0 | CE17: 0 | CG17: 954
A18: Escalation Rate = | C18: =+'Gas Input Table Summary'!$E$13 -> 0.035 | E18: Escalation Rate = | F18: =+'Gas Input Table Summary'!$E$38 -> 0 | J18: 6 | L18: 2020 | M18: 162 | N18: 3.535 | O18: 573 | P18: 0 | Q18: 0 | R18: 573 | S18: 1.6 | T18: 150 | U18: 240 | V18: 813 | W18: 1.205 | X18: 127 | Y18: 0 | Z18: 0 | AA18: 127 | AB18: 686 | AE18: 2020 | AF18: 573 | AG18: 240 | AH18: 813 | AJ18: 0 | AK18: 0 | AL18: 0 | AN18: 813 | AQ18: 2020 | AR18: 573 | AS18: 240 | AT18: 0.034 | AU18: 174 | AV18: 0.401 | AW18: 65 | AZ18: 1052 | BB18: 0 | BC18: 0 | BD18: 0 | BE18: 1052 | BH18: 2020 | BI18: 0 | BJ18: 162 | BK18: 6.961 | BL18: 1128 | BM18: 0.171 | BN18: 876 | BP18: 2004 | BR18: 0 | BT18: 2004 | BW18: 2020 | BX18: 573 | BY18: 240 | BZ18: 174 | CA18: 987 | CC18: 0 | CD18: 0 | CE18: 0 | CG18: 987 | DB18: t
J19: 7 | L19: 2021 | M19: 162 | N19: 3.658 | O19: 593 | P19: 0 | Q19: 0 | R19: 593 | S19: 1.6 | T19: 151 | U19: 242 | V19: 835 | W19: 1.247 | X19: 131 | Y19: 0 | Z19: 0 | AA19: 131 | AB19: 704 | AE19: 2021 | AF19: 593 | AG19: 242 | AH19: 835 | AJ19: 0 | AK19: 0 | AL19: 0 | AN19: 835 | AQ19: 2021 | AR19: 593 | AS19: 242 | AT19: 0.035 | AU19: 179 | AV19: 0.41 | AW19: 66 | AZ19: 1080 | BB19: 0 | BC19: 0 | BD19: 0 | BE19: 1080 | BH19: 2021 | BI19: 0 | BJ19: 162 | BK19: 7.205 | BL19: 1167 | BM19: 0.177 | BN19: 907 | BP19: 2074 | BR19: 0 | BT19: 2074 | BW19: 2021 | BX19: 593 | BY19: 242 | BZ19: 179 | CA19: 1014 | CC19: 0 | CD19: 0 | CE19: 0 | CG19: 1014
A20: 4) Demand Cost ($/Unit/Yr) = | C20: =+'Gas Input Table Summary'!$E$14 -> 142.34 | E20: 19) Participant Non-Energy Savings (Annual $/Part) = | F20: =+'Gas Input Table Summary'!$E$41 -> 0 | J20: 8 | L20: 2022 | M20: 162 | N20: 3.786 | O20: 613 | P20: 0 | Q20: 0 | R20: 613 | S20: 1.6 | T20: 153 | U20: 245 | V20: 858 | W20: 1.29 | X20: 136 | Y20: 0 | Z20: 0 | AA20: 136 | AB20: 722 | AE20: 2022 | AF20: 613 | AG20: 245 | AH20: 858 | AJ20: 0 | AK20: 0 | AL20: 0 | AN20: 858 | AQ20: 2022 | AR20: 613 | AS20: 245 | AT20: 0.036 | AU20: 184 | AV20: 0.42 | AW20: 68 | AZ20: 1110 | BB20: 0 | BC20: 0 | BD20: 0 | BE20: 1110 | BH20: 2022 | BI20: 0 | BJ20: 162 | BK20: 7.457 | BL20: 1208 | BM20: 0.183 | BN20: 938 | BP20: 2146 | BR20: 0 | BT20: 2146 | BW20: 2022 | BX20: 613 | BY20: 245 | BZ20: 184 | CA20: 1042 | CC20: 0 | CD20: 0 | CE20: 0 | CG20: 1042
A21: Escalation Rate = | C21: =+'Gas Input Table Summary'!$E$15 -> 0.01 | E21: Escalation Rate = | F21: =+'Gas Input Table Summary'!$E$44 -> 0 | J21: 9 | L21: 2023 | M21: 162 | N21: 3.919 | O21: 635 | P21: 0 | Q21: 0 | R21: 635 | S21: 1.6 | T21: 154 | U21: 246 | V21: 881 | W21: 1.336 | X21: 141 | Y21: 0 | Z21: 0 | AA21: 141 | AB21: 740 | AE21: 2023 | AF21: 635 | AG21: 246 | AH21: 881 | AJ21: 0 | AK21: 0 | AL21: 0 | AN21: 881 | AQ21: 2023 | AR21: 635 | AS21: 246 | AT21: 0.037 | AU21: 190 | AV21: 0.429 | AW21: 69 | AZ21: 1140 | BB21: 0 | BC21: 0 | BD21: 0 | BE21: 1140 | BH21: 2023 | BI21: 0 | BJ21: 162 | BK21: 7.718 | BL21: 1250 | BM21: 0.19 | BN21: 974 | BP21: 2224 | BR21: 0 | BT21: 2224 | BW21: 2023 | BX21: 635 | BY21: 246 | BZ21: 190 | CA21: 1071 | CC21: 0 | CD21: 0 | CE21: 0 | CG21: 1071 | DB21: =$J14 -> 2
J22: 10 | L22: 2024 | M22: 162 | N22: 4.056 | O22: 657 | P22: 0 | Q22: 0 | R22: 657 | S22: 1.6 | T22: 156 | U22: 250 | V22: 907 | W22: 1.382 | X22: 146 | Y22: 0 | Z22: 0 | AA22: 146 | AB22: 761 | AE22: 2024 | AF22: 657 | AG22: 250 | AH22: 907 | AJ22: 0 | AK22: 0 | AL22: 0 | AN22: 907 | AQ22: 2024 | AR22: 657 | AS22: 250 | AT22: 0.038 | AU22: 195 | AV22: 0.439 | AW22: 71 | AZ22: 1173 | BB22: 0 | BC22: 0 | BD22: 0 | BE22: 1173 | BH22: 2024 | BI22: 0 | BJ22: 162 | BK22: 7.988 | BL22: 1294 | BM22: 0.196 | BN22: 1004 | BP22: 2298 | BR22: 0 | BT22: 2298 | BW22: 2024 | BX22: 657 | BY22: 250 | BZ22: 195 | CA22: 1102 | CC22: 0 | CD22: 0 | CE22: 0 | CG22: 1102 | DB22: =$J15 -> 3
A23: 5) Peak Reduction Factor = | C23: =+'Gas Input Table Summary'!$E$16 -> 0.01 | E23: 20) Project Life (Years) = | F23: =ROUND('Database Inputs'!D17,0) -> 20 | J23: 11 | L23: 2025 | M23: 162 | N23: 4.198 | O23: 680 | P23: 0 | Q23: 0 | R23: 680 | S23: 1.6 | T23: 157 | U23: 251 | V23: 931 | W23: 1.431 | X23: 151 | Y23: 0 | Z23: 0 | AA23: 151 | AB23: 780 | AE23: 2025 | AF23: 680 | AG23: 251 | AH23: 931 | AJ23: 0 | AK23: 0 | AL23: 0 | AN23: 931 | AQ23: 2025 | AR23: 680 | AS23: 251 | AT23: 0.04 | AU23: 205 | AV23: 0.449 | AW23: 73 | AZ23: 1209 | BB23: 0 | BC23: 0 | BD23: 0 | BE23: 1209 | BH23: 2025 | BI23: 0 | BJ23: 162 | BK23: 8.268 | BL23: 1339 | BM23: 0.203 | BN23: 1040 | BP23: 2379 | BR23: 0 | BT23: 2379 | BW23: 2025 | BX23: 680 | BY23: 251 | BZ23: 205 | CA23: 1136 | CC23: 0 | CD23: 0 | CE23: 0 | CG23: 1136 | DB23: =$J16 -> 4
J24: 12 | L24: 2026 | M24: 162 | N24: 4.345 | O24: 704 | P24: 0 | Q24: 0 | R24: 704 | S24: 1.6 | T24: 159 | U24: 254 | V24: 958 | W24: 1.481 | X24: 156 | Y24: 0 | Z24: 0 | AA24: 156 | AB24: 802 | AE24: 2026 | AF24: 704 | AG24: 254 | AH24: 958 | AJ24: 0 | AK24: 0 | AL24: 0 | AN24: 958 | AQ24: 2026 | AR24: 704 | AS24: 254 | AT24: 0.041 | AU24: 210 | AV24: 0.46 | AW24: 75 | AZ24: 1243 | BB24: 0 | BC24: 0 | BD24: 0 | BE24: 1243 | BH24: 2026 | BI24: 0 | BJ24: 162 | BK24: 8.557 | BL24: 1386 | BM24: 0.21 | BN24: 1076 | BP24: 2462 | BR24: 0 | BT24: 2462 | BW24: 2026 | BX24: 704 | BY24: 254 | BZ24: 210 | CA24: 1168 | CC24: 0 | CD24: 0 | CE24: 0 | CG24: 1168 | DB24: =$J17 -> 5
A25: 6) Variable O&M ($/Dk) = | C25: =+'Gas Input Table Summary'!$E$17 -> 0 | E25: 21) Avg. Dk/Part. Saved = | F25: =+ROUND(F32/F30,1) -> 23.1 | J25: 13 | L25: 2027 | M25: 162 | N25: 4.497 | O25: 729 | P25: 0 | Q25: 0 | R25: 729 | S25: 1.6 | T25: 160 | U25: 256 | V25: 985 | W25: 1.533 | X25: 161 | Y25: 0 | Z25: 0 | AA25: 161 | AB25: 824 | AE25: 2027 | AF25: 729 | AG25: 256 | AH25: 985 | AJ25: 0 | AK25: 0 | AL25: 0 | AN25: 985 | AQ25: 2027 | AR25: 729 | AS25: 256 | AT25: 0.043 | AU25: 220 | AV25: 0.47 | AW25: 76 | AZ25: 1281 | BB25: 0 | BC25: 0 | BD25: 0 | BE25: 1281 | BH25: 2027 | BI25: 0 | BJ25: 162 | BK25: 8.857 | BL25: 1435 | BM25: 0.218 | BN25: 1117 | BP25: 2552 | BR25: 0 | BT25: 2552 | BW25: 2027 | BX25: 729 | BY25: 256 | BZ25: 220 | CA25: 1205 | CC25: 0 | CD25: 0 | CE25: 0 | CG25: 1205
A26: Escalation Rate = | C26: =+'Gas Input Table Summary'!$E$18 -> 0 | J26: 14 | L26: 2028 | M26: 162 | N26: 4.654 | O26: 754 | P26: 0 | Q26: 0 | R26: 754 | S26: 1.6 | T26: 162 | U26: 259 | V26: 1013 | W26: 1.586 | X26: 167 | Y26: 0 | Z26: 0 | AA26: 167 | AB26: 846 | AE26: 2028 | AF26: 754 | AG26: 259 | AH26: 1013 | AJ26: 0 | AK26: 0 | AL26: 0 | AN26: 1013 | AQ26: 2028 | AR26: 754 | AS26: 259 | AT26: 0.044 | AU26: 225 | AV26: 0.481 | AW26: 78 | AZ26: 1316 | BB26: 0 | BC26: 0 | BD26: 0 | BE26: 1316 | BH26: 2028 | BI26: 0 | BJ26: 162 | BK26: 9.167 | BL26: 1485 | BM26: 0.225 | BN26: 1153 | BP26: 2638 | BR26: 0 | BT26: 2638 | BW26: 2028 | BX26: 754 | BY26: 259 | BZ26: 225 | CA26: 1238 | CC26: 0 | CD26: 0 | CE26: 0 | CG26: 1238
E27: 22) Avg Non-Gas Fuel Units/Part. Saved = | F27: =+'Database Inputs'!H17 -> 732 | J27: 15 | L27: 2029 | M27: 162 | N27: 4.817 | O27: 780 | P27: 0 | Q27: 0 | R27: 780 | S27: 1.6 | T27: 164 | U27: 262 | V27: 1042 | W27: 1.642 | X27: 173 | Y27: 0 | Z27: 0 | AA27: 173 | AB27: 869 | AE27: 2029 | AF27: 780 | AG27: 262 | AH27: 1042 | AJ27: 0 | AK27: 0 | AL27: 0 | AN27: 1042 | AQ27: 2029 | AR27: 780 | AS27: 262 | AT27: 0.046 | AU27: 236 | AV27: 0.492 | AW27: 80 | AZ27: 1358 | BB27: 0 | BC27: 0 | BD27: 0 | BE27: 1358 | BH27: 2029 | BI27: 0 | BJ27: 162 | BK27: 9.488 | BL27: 1537 | BM27: 0.233 | BN27: 1194 | BP27: 2731 | BR27: 0 | BT27: 2731 | BW27: 2029 | BX27: 780 | BY27: 262 | BZ27: 236 | CA27: 1278 | CC27: 0 | CD27: 0 | CE27: 0 | CG27: 1278
A28: 7) Non-Gas Fuel Cost ($/Fuel Unit) = | C28: =+'Gas Input Table Summary'!$E$19 -> 0.02589 | E28: 22a) Avg Additional Non-Gas Fuel Units/ Part. Used = | F28: 0 | J28: 16 | L28: 2030 | M28: 162 | N28: 4.986 | O28: 808 | P28: 0 | Q28: 0 | R28: 808 | S28: 1.6 | T28: 165 | U28: 264 | V28: 1072 | W28: 1.699 | X28: 179 | Y28: 0 | Z28: 0 | AA28: 179 | AB28: 893 | AE28: 2030 | AF28: 808 | AG28: 264 | AH28: 1072 | AJ28: 0 | AK28: 0 | AL28: 0 | AN28: 1072 | AQ28: 2030 | AR28: 808 | AS28: 264 | AT28: 0.047 | AU28: 241 | AV28: 0.504 | AW28: 82 | AZ28: 1395 | BB28: 0 | BC28: 0 | BD28: 0 | BE28: 1395 | BH28: 2030 | BI28: 0 | BJ28: 162 | BK28: 9.82 | BL28: 1591 | BM28: 0.241 | BN28: 1235 | BP28: 2826 | BR28: 0 | BT28: 2826 | BW28: 2030 | BX28: 808 | BY28: 264 | BZ28: 241 | CA28: 1313 | CC28: 0 | CD28: 0 | CE28: 0 | CG28: 1313
A29: Escalation Rate = | C29: =+'Gas Input Table Summary'!$E$20 -> 0.035 | J29: 17 | L29: 2031 | M29: 162 | N29: 5.16 | O29: 836 | P29: 0 | Q29: 0 | R29: 836 | S29: 1.6 | T29: 167 | U29: 267 | V29: 1103 | W29: 1.759 | X29: 185 | Y29: 0 | Z29: 0 | AA29: 185 | AB29: 918 | AE29: 2031 | AF29: 836 | AG29: 267 | AH29: 1103 | AJ29: 0 | AK29: 0 | AL29: 0 | AN29: 1103 | AQ29: 2031 | AR29: 836 | AS29: 267 | AT29: 0.049 | AU29: 251 | AV29: 0.515 | AW29: 83 | AZ29: 1437 | BB29: 0 | BC29: 0 | BD29: 0 | BE29: 1437 | BH29: 2031 | BI29: 0 | BJ29: 162 | BK29: 10.163 | BL29: 1646 | BM29: 0.25 | BN29: 1281 | BP29: 2927 | BR29: 0 | BT29: 2927 | BW29: 2031 | BX29: 836 | BY29: 267 | BZ29: 251 | CA29: 1354 | CC29: 0 | CD29: 0 | CE29: 0 | CG29: 1354
E30: 23) Number of Participants = | F30: =+'Total Program Inputs'!C17 -> 7 | J30: 18 | L30: 2032 | M30: 162 | N30: 5.341 | O30: 865 | P30: 0 | Q30: 0 | R30: 865 | S30: 1.6 | T30: 169 | U30: 270 | V30: 1135 | W30: 1.82 | X30: 192 | Y30: 0 | Z30: 0 | AA30: 192 | AB30: 943 | AE30: 2032 | AF30: 865 | AG30: 270 | AH30: 1135 | AJ30: 0 | AK30: 0 | AL30: 0 | AN30: 1135 | AQ30: 2032 | AR30: 865 | AS30: 270 | AT30: 0.051 | AU30: 261 | AV30: 0.527 | AW30: 85 | AZ30: 1481 | BB30: 0 | BC30: 0 | BD30: 0 | BE30: 1481 | BH30: 2032 | BI30: 0 | BJ30: 162 | BK30: 10.519 | BL30: 1704 | BM30: 0.258 | BN30: 1322 | BP30: 3026 | BR30: 0 | BT30: 3026 | BW30: 2032 | BX30: 865 | BY30: 270 | BZ30: 261 | CA30: 1396 | CC30: 0 | CD30: 0 | CE30: 0 | CG30: 1396 | DB30: =$J18 -> 6
A31: 8) Non-Gas Fuel Loss Factor | C31: =+'Gas Input Table Summary'!$E$21 -> 0.051 | J31: 19 | L31: 2033 | M31: 162 | N31: 5.528 | O31: 896 | P31: 0 | Q31: 0 | R31: 896 | S31: 1.6 | T31: 170 | U31: 272 | V31: 1168 | W31: 1.884 | X31: 198 | Y31: 0 | Z31: 0 | AA31: 198 | AB31: 970 | AE31: 2033 | AF31: 896 | AG31: 272 | AH31: 1168 | AJ31: 0 | AK31: 0 | AL31: 0 | AN31: 1168 | AQ31: 2033 | AR31: 896 | AS31: 272 | AT31: 0.052 | AU31: 266 | AV31: 0.539 | AW31: 87 | AZ31: 1521 | BB31: 0 | BC31: 0 | BD31: 0 | BE31: 1521 | BH31: 2033 | BI31: 0 | BJ31: 162 | BK31: 10.887 | BL31: 1764 | BM31: 0.268 | BN31: 1373 | BP31: 3137 | BR31: 0 | BT31: 3137 | BW31: 2033 | BX31: 896 | BY31: 272 | BZ31: 266 | CA31: 1434 | CC31: 0 | CD31: 0 | CE31: 0 | CG31: 1434 | DB31: =$J19 -> 7
E32: 24) Total Annual Dk Saved = | F32: =+'Total Program Inputs'!E17 -> 162 | J32: 20 | L32: 2034 | M32: 162 | N32: 5.721 | O32: 927 | P32: 0 | Q32: 0 | R32: 927 | S32: 1.6 | T32: 172 | U32: 275 | V32: 1202 | W32: 1.95 | X32: 205 | Y32: 0 | Z32: 0 | AA32: 205 | AB32: 997 | AE32: 2034 | AF32: 927 | AG32: 275 | AH32: 1202 | AJ32: 0 | AK32: 0 | AL32: 0 | AN32: 1202 | AQ32: 2034 | AR32: 927 | AS32: 275 | AT32: 0.054 | AU32: 277 | AV32: 0.552 | AW32: 89 | AZ32: 1568 | BB32: 0 | BC32: 0 | BD32: 0 | BE32: 1568 | BH32: 2034 | BI32: 0 | BJ32: 162 | BK32: 11.268 | BL32: 1825 | BM32: 0.277 | BN32: 1419 | BP32: 3244 | BR32: 0 | BT32: 3244 | BW32: 2034 | BX32: 927 | BY32: 275 | BZ32: 277 | CA32: 1479 | CC32: 0 | CD32: 0 | CE32: 0 | CG32: 1479 | DB32: =$J20 -> 8
A33: 9) Gas Environmental Damage Factor = | C33: =+'Gas Input Table Summary'!$E$22 -> 0.35 | J33: 21 | L33: 2035 | M33: 162 | N33: 5.922 | O33: 959 | P33: 0 | Q33: 0 | R33: 959 | S33: 1.6 | T33: 174 | U33: 278 | V33: 1237 | W33: 2.018 | X33: 212 | Y33: 0 | Z33: 0 | AA33: 212 | AB33: 1025 | AE33: 2035 | AF33: 959 | AG33: 278 | AH33: 1237 | AJ33: 0 | AK33: 0 | AL33: 0 | AN33: 1237 | AQ33: 2035 | AR33: 959 | AS33: 278 | AT33: 0.056 | AU33: 287 | AV33: 0.564 | AW33: 91 | AZ33: 1615 | BB33: 0 | BC33: 0 | BD33: 0 | BE33: 1615 | BH33: 2035 | BI33: 0 | BJ33: 162 | BK33: 11.663 | BL33: 1889 | BM33: 0.287 | BN33: 1471 | BP33: 3360 | BR33: 0 | BT33: 3360 | BW33: 2035 | BX33: 959 | BY33: 278 | BZ33: 287 | CA33: 1524 | CC33: 0 | CD33: 0 | CE33: 0 | CG33: 1524
A34: Escalation Rate = | C34: =+'Gas Input Table Summary'!$E$23 -> 0.023 | E34: 25) Incentive/Participant = | F34: =+ROUND(F12/F30,0) -> 300 | J34: 22 | L34: 2036 | M34: 0 | N34: 6.129 | O34: 0 | P34: 0 | Q34: 0 | R34: 0 | S34: 0 | T34: 175 | U34: 0 | V34: 0 | W34: 2.089 | X34: 0 | Y34: 0 | Z34: 0 | AA34: 0 | AB34: 0 | AE34: 2036 | AF34: 0 | AG34: 0 | AH34: 0 | AJ34: 0 | AK34: 0 | AL34: 0 | AN34: 0 | AQ34: 2036 | AR34: 0 | AS34: 0 | AT34: 0.058 | AU34: 0 | AV34: 0.577 | AW34: 0 | AZ34: 0 | BB34: 0 | BC34: 0 | BD34: 0 | BE34: 0 | BH34: 2036 | BI34: 0 | BJ34: 0 | BK34: 12.071 | BL34: 0 | BM34: 0.297 | BN34: 0 | BP34: 0 | BR34: 0 | BT34: 0 | BW34: 2036 | BX34: 0 | BY34: 0 | BZ34: 0 | CA34: 0 | CC34: 0 | CD34: 0 | CE34: 0 | CG34: 0
DB35: =$J21 -> 9
A36: 10) Non Gas Fuel Environmental Damage Factor = | C36: =+'Gas Input Table Summary'!$E$24 -> 0 | E36: 26) Distribution Delivery Charge | F36: =+'Gas Input Table Summary'!E58 -> 0.98 | K36: Total = | M36: =SUM(M14:M34) -> 3240 | V36: =SUM(V14:V34) -> 19157 | AA36: =SUM(AA14:AA34) -> 5333 | AB36: =SUM(AB14:AB34) -> 13824 | AD36: Total = | AH36: =SUM(AH14:AH34) -> 19157 | AL36: =SUM(AL14:AL34) -> 2207 | AN36: =SUM(AN14:AN34) -> 16950 | AP36: Total = | AZ36: =SUM(AZ14:AZ34) -> 24868 | BD36: =SUM(BD14:BD34) -> 4657 | BE36: =SUM(BE14:BE34) -> 20211 | BG36: Total = | BJ36: =SUM(BJ14:BJ34) -> 3240 | BP36: =SUM(BP14:BP34) -> 51488 | BR36: =SUM(BR14:BR34) -> 4550 | BT36: =SUM(BT14:BT34) -> 46938 | BZ36: Total = | CA36: =SUM(CA14:CA34) -> 23384 | CE36: =SUM(CE14:CE34) -> 4657 | CG36: =SUM(CG14:CG34) -> 18727
A37: Escalation Rate = | C37: =+'Gas Input Table Summary'!$E$25 -> 0 | T37: NPV = | V37: =ROUND(V14+NPV($C$41,V15:V34),0) -> 10034 | AA37: =ROUND(AA14+NPV($C$41,AA15:AA34),0) -> 3822 | AB37: =ROUND(AB14+NPV($C$41,AB15:AB34),0) -> 6212 | AG37: NPV = | AH37: =ROUND(AH14+NPV($C$41,AH15:AH34),0) -> 10034 | AL37: =ROUND(AL14+NPV($C$41,AL15:AL34),0) -> 2207 | AN37: =+AH37-AL37 -> 7827 | AW37: NPV = | AZ37: =ROUND(AZ14+NPV($C$43,AZ15:AZ34),0) -> 17602 | BD37: =ROUND(BD14+NPV($C$43,BD15:BD34),0) -> 4657 | BE37: =AZ37-BD37 -> 12945 | BN37: NPV = | BP37: =ROUND(BP14+NPV($C$39,BP15:BP34),0) -> 22912 | BR37: =ROUND(BR14+NPV($C$39,BR15:BR34),0) -> 4550 | BT37: =ROUND(BT14+NPV($C$39,BT15:BT34),0) -> 18362 | BZ37: NPV = | CA37: =ROUND(CA14+NPV($C$41,CA15:CA34),0) -> 12216 | CE37: =ROUND(CE14+NPV($C$41,CE15:CE34),0) -> 4657 | CG37: =ROUND(CG14+NPV($C$41,CG15:CG34),0) -> 7559 | DB37: =$J22 -> 10
E38: 27) Effective Income Tax Rate = | F38: =+'Gas Input Table Summary'!E59 -> 0.35
A39: 11) Participant Discount Rate = | C39: =+'Gas Input Table Summary'!$E$26 -> 0.1 | E39: (Federal & State Taxes) | K39: Total NPV = | N39: =AB37 -> 6212 | AD39: Total NPV = | AG39: =AN37 -> 7827 | AP39: Total NPV = | AS39: =BE37 -> 12945 | BG39: Total NPV = | BJ39: =BT37 -> 18362 | BV39: Total NPV = | BY39: =CG37 -> 7559
K40: Benefit/Cost Ratio = | N40: =ROUND(V37/AA37,2) -> 2.63 | AD40: Benefit/Cost Ratio = | AG40: =ROUND(AH37/AL37,2) -> 4.55 | AP40: Benefit/Cost Ratio = | AS40: =ROUND(AZ37/BD37,2) -> 3.78 | BG40: Benefit/Cost Ratio = | BJ40: =ROUND(BP37/BR37,20) -> 5.035604396 | BV40: Benefit/Cost Ratio = | BY40: =ROUND(CA37/CE37,2) -> 2.62 | DB40: =$J23 -> 11
A41: 12) Utility Discount Rate = | C41: =+'Gas Input Table Summary'!$E$27 -> 0.07216 | E41: Test Results | F41: NPV | G41: B/C | DB41: =$J24 -> 12
E42: Ratepayer Impact Measure Test | F42: =N39 -> 6212 | G42: =N40 -> 2.63 | DB42: =$J25 -> 13
A43: 13) Societal Discount Rate = | C43: =+'Gas Input Table Summary'!$E$28 -> 0.0356 | E43: Utility Cost Test | F43: =AG39 -> 7827 | G43: =AG40 -> 4.55 | J43: Worksheet Calculations | AD43: Worksheet Calculations | AP43: Worksheet Calculations | BG43: Worksheet Calculations | BV43: Worksheet Calculations | DB43: =$J26 -> 14
E44: Societal Test | F44: =AS39 -> 12945 | G44: =AS40 -> 3.78 | J44: (A) | K44: = Average Dk/Participant Saved (21) x Number of Participants (23) for Project Life (20) | T44: (I) | U44: = (G) x (H) | AD44: (A) | AE44: = Table 1 (F) | AP44: (A) | AQ44: = Table 1 (F) | AW44: (H) | AZ44: = Table 2 (F) | BG44: (A) | BH44: = Table 1 (N) | BV44: (A) | BW44: = Table 1 (F)
A45: 14) General Input Data Year = | C45: =+'Res .95+% Res Furnace - NEW'!C45 -> 2014 | E45: Participant Test | F45: =BJ39 -> 18362 | G45: =BJ40 -> 5.035604396 | J45: (B) | K45: = Commodity Cost (3) escalated | T45: (J) | U45: = (F) + (I) | AD45: (B) | AE45: = Table 1 (I) | AP45: (G) | AQ45: = Table 1 (I) | AW45: (I) | AZ45: = Direct Part. Costs (17) x No. of Part. (23) - Table 1 (N) | BG45: (B) | BH45: = Table 1 (A) | BV45: (B) | BW45: = Table 1 (I)
E46: Total Resource Cost Test | F46: =BY39 -> 7559 | G46: =BY40 -> 2.62 | J46: (C) | K46: = (A) x (B) | T46: (K) | U46: = Distribution Delivery Charge (26) escalated. | AD46: (C) | AE46: = Table 1 (J) | AP46: (C) | AQ46: = Non-Gas Fuel Cost (7), adjusted for losses (8), escalated.. | AW46: (J) | AZ46: = (H) + (I) | BG46: (C) | BH46: = Retail Rate (1) escalated. | BV46: (C) | BW46: = Table 3 (D)
A47: 15) Project Analysis Year 1 = | C47: =+'Res .95+% Res Furnace - NEW'!C47 -> 2016 | J47: (D) | K47: = Variable O&M Cost (6), escalated | T47: (L) | U47: = (A) x (K) x (1-Inverse of Tax Rate (27) | AD47: (D) | AE47: = Table 1 (M) | AP47: (D) | AQ47: = (C) x [Avg. Non-Gas Fuel Units/Part.Saved (22) x No. of Part. (23) | AW47: (K) | AZ47: = (G) - (J) | BG47: (D) | BH47: =(B) x (C) | BV47: (D) | BW47: = (A) + (B) + (C)
J48: (E) | K48: = (A) x (D) | T48: (M) | U48: = Admin & Operating Costs (16a) | AD48: (E) | AE48: = Table 1 (N) | AP48: (E) | AQ48: = Gas Environmental Damage Factor (9), escalated | BG48: (E) | BH48: = Non-Gas Fuel Retail Rate (2), escalated. | BV48: (E) | BW48: = Table 3 (H)
J49: (F) | K49: = (C) + (E) | T49: (N) | U49: = Incentive Costs (16b) | AD49: (F) | AE49: = (D) + (E) | AP49: (F) | AQ49: = Table 1 (A) x (E) | BG49: (F) | BH49: = (E) x [Avg. Non-Gas Fuel Units/Part.Saved (22) x No. of Part. (23) | BV49: (F) | BW49: = Table 3 (I) | DB49: =$J27 -> 15
J50: (G) | K50: = (A) x Peak Reduction Factor (5) | T50: (O) | U50: = (L) + (M) + (N) | AD50: (G) | AE50: = (C) - (F) | AP50: (G) | AQ50: = (A) + (B) + (D) + (F) | BG50: (G) | BH50: = (A) + (D) + (F) | BV50: (G) | BW50: = (E) + (F) | DB50: =$J28 -> 16
J51: (H) | K51: = Demand Cost (4) escalated. | T51: (P) | U51: = (J) - (O) | BG51: (H) | BH51: = Direct Participant Costs (17) x Number of Participants (23) | BV51: (H) | BW51: = (D) - (G) | DB51: =$J29 -> 17
BG52: (I) | BH52: = (G) - (H)

Sheet Custom
A1: NATURAL GAS CONSERVATION PROGRAMS/DEMAND-SIDE MANAGEMENT | K1: Table 1 | AD1: Table 2 | AP1: Table 3 | BG1: Table 4 | BV1: Table 5
A2: BEN/COST ANALYSIS FOR GAS CONSERVATION | K2: Ratepayer Impact Measure Test | AD2: Utility Cost Test | AP2: Societal Test | BG2: Participant Test | BV2: Total Resource Cost Test
A4: Company: | B4: Montana-Dakota Utilities Co. | K4: Company: | M4: =B4 -> Montana-Dakota Utilities Co. | AD4: Company: | AF4: =B4 -> Montana-Dakota Utilities Co. | AP4: Company: | AR4: =AF4 -> Montana-Dakota Utilities Co. | BH4: Company: | BI4: =AR4 -> Montana-Dakota Utilities Co. | BW4: Company: | BX4: =BI4 -> Montana-Dakota Utilities Co.
A5: Project: | B5: Commercial Custom Program | K5: Project: | M5: =$B$5 -> Commercial Custom Program | AD5: Project: | AF5: =$B$5 -> Commercial Custom Program | AP5: Project: | AR5: =$B$5 -> Commercial Custom Program | BH5: Project: | BI5: =$B$5 -> Commercial Custom Program | BW5: Project: | BX5: =$B$5 -> Commercial Custom Program
A6: Program Years: | B6: =+'Comm 95+% Furnace - Replace'!B6 -> 2016 Actual
N7: Benefits | X7: Costs | AF7: Benefits | AJ7: Costs | AR7: Benefits | BB7: Costs | BI7: Benefits | BR7: Costs | BX7: Benefits | CC7: Costs
A8: Input Data | F8: 2016 | AB8: Annual | AN8: Annual | AT8: Non-Gas | BE8: Annual | BT8: Annual | CG8: Annual
M9: Total | N9: Gas | O9: Gas | P9: Variable | Q9: Variable | R9: Total | S9: Peak Dk | T9: Demand | U9: Total | W9: Distribution | Y9: Program | AA9: Total | AB9: Benefits | AF9: Total | AG9: Total | AH9: Annual | AJ9: Program | AL9: Utility | AN9: Benefits | AR9: Total | AS9: Total | AT9: Energy | AU9: Non-Gas | AV9: Environmental | AW9: Environmental | AZ9: Annual | BB9: Utility | BC9: Participants' | BD9: Annual | BE9: Benefits | BJ9: Total | BL9: Gas | BM9: Non-Gas | BN9: Non-Gas | BP9: Total | BR9: Direct | BT9: Benefits | BX9: Total | BY9: Total | BZ9: Non-Gas | CA9: Total | CC9: Utility | CD9: Participants' | CG9: Benefits
A10: 1) Retail Rate ($/Dk) = | C10: =+'Gas Input Table Summary'!$E$7 -> 5.663 | E10: 16) Utility Project Costs | M10: Energy | N10: Commodity | O10: Commodity | P10: O & M | Q10: O & M | R10: Energy | S10: Demand | T10: Savings | U10: Demand | V10: Total | W10: Delivery | X10: Lost | Y10: Admin | Z10: Incentive | AA10: Program | AB10: Less | AF10: Energy | AG10: Demand | AH10: Total | AJ10: Admin | AK10: Incentive | AL10: Program | AN10: Less | AR10: Energy | AS10: Demand | AT10: Savings | AU10: Energy | AV10: Damage | AW10: Damage | AZ10: Total | BB10: Program | BC10: Costs Net | BD10: Total | BE10: Less | BI10: Incentives | BJ10: Energy | BK10: Retail | BL10: Bill | BM10: Fuel | BN10: Energy | BP10: Annual | BR10: Participant | BT10: Less | BX10: Energy | BY10: Demand | BZ10: Energy | CA10: Annual | CC10: Program | CD10: Costs Net | CE10: Total | CG10: Less
A11: Escalation Rate = | C11: =+'Gas Input Table Summary'!$E$8 -> 0.035 | E11: 16a) Administrative & Operating Costs = | F11: =+'Total Program Inputs'!K18 -> 0 | J11: t | M11: Reduction | N11: Cost/Dk | O11: Savings | P11: Cost/Dk | Q11: Savings | R11: Savings | S11: Reduction | T11: Per Unit | U11: Savings | V11: Savings | W11: Charge | X11: Margin | Y11: Costs | Z11: Costs | AA11: Costs | AB11: Costs | AF11: Savings | AG11: Savings | AH11: Savings | AJ11: Costs | AK11: Costs | AL11: Costs | AN11: Costs | AR11: Savings | AS11: Savings | AT11: ($/Part.) | AU11: Savings | AV11: Savings/Dk | AW11: Savings | AZ11: Savings | BB11: Costs | BC11: of Rebate | BD11: Costs | BE11: Costs | BI11: Received | BJ11: Reduction | BK11: Rate | BL11: Savings | BM11: Retail Rate | BN11: Savings | BP11: Benefits | BR11: Costs | BT11: Costs | BX11: Savings | BY11: Savings | BZ11: Savings | CA11: Benefits | CC11: Costs | CD11: of Rebate | CE11: Costs | CG11: Costs
E12: 16b) Incentive Costs = | F12: =+'Total Program Inputs'!G18 -> 0 | L12: Year | M12: (A) | N12: (B) | O12: (C) | P12: (D) | Q12: (E) | R12: (F) | S12: (G) | T12: (H) | U12: (I) | V12: (J) | W12: (K) | X12: (L) | Y12: (M) | Z12: (N) | AA12: (O) | AB12: (P) | AE12: Year | AF12: (A) | AG12: (B) | AH12: (C) | AJ12: (D) | AK12: (E) | AL12: (F) | AN12: (G) | AQ12: Year | AR12: (A) | AS12: (B) | AT12: (C) | AU12: (D) | AV12: (E) | AW12: (F) | AZ12: (G) | BB12: (H) | BC12: (I) | BD12: (J) | BE12: (K) | BH12: Year | BI12: (A) | BJ12: (B) | BK12: (C) | BL12: (D) | BM12: (E) | BN12: (F) | BP12: (G) | BR12: (H) | BT12: (I) | BW12: Year | BX12: (A) | BY12: (B) | BZ12: (C) | CA12: (D) | CC12: (E) | CD12: (F) | CE12: (G) | CG12: (H)
A13: 2) Non-Gas Fuel Retail Rate ($/Fuel Unit) = | C13: =+'Gas Input Table Summary'!$E$9 -> 0.13915 | E13: 16c) Total Utility Project Costs = | F13: =SUM(F11:F12) -> 0
A14: Escalation Rate = | C14: =+'Gas Input Table Summary'!$E$10 -> 0.035 | J14: =$C$47-$C$45 -> 2 | L14: =$C$47 -> 2016 | M14: =ROUND(IF($C$47+$F$23>L14,F25*F30,0),0) -> 0 | N14: =ROUND($C$17*(1),3) -> 2.976 | O14: =ROUND(M14*N14,0) -> 0 | P14: =ROUND($C$25*(1+$C$26)^J14,3) -> 0 | Q14: =ROUND(M14*P14,0) -> 0 | R14: =O14+Q14 -> 0 | S14: =ROUND(M14*$C$23,1) -> 0 | T14: =ROUND($C$20*(1),0) -> 142 | U14: =ROUND(S14*T14,0) -> 0 | V14: =ROUND(+U14+R14,0) -> 0 | W14: =ROUND($F$36*(1+$C$11)^J14,3) -> 1.05 | X14: =ROUND((1-$F$38)*(W14*M14),0) -> 0 | Y14: =ROUND($F$11,0) -> 0 | Z14: =ROUND($F$12,0) -> 0 | AA14: =SUM(X14:Z14) -> 0 | AB14: =V14-AA14 -> 0 | AE14: =$C$47 -> 2016 | AF14: =+R14 -> 0 | AG14: =+U14 -> 0 | AH14: =+AG14+AF14 -> 0 | AJ14: =ROUND(Y14,0) -> 0 | AK14: =ROUND(Z14,0) -> 0 | AL14: =SUM(AJ14:AK14) -> 0 | AN14: =+AH14-AL14 -> 0 | AQ14: =$C$47 -> 2016 | AR14: =AF14 -> 0 | AS14: =+AG14 -> 0 | AT14: =ROUND(($C$28/(1-$C$31))*(1+$C$29)^J14,3) -> 0.029 | AU14: =ROUND(IF($C$47+$F$23>$AQ14,$F$30*$F$27,0)*AT14,0) -> 0 | AV14: =ROUND($C$33*(1+$C$34)^J14,3) -> 0.366 | AW14: =ROUND(AV14*M14,0) -> 0 | AZ14: =ROUND(AR14+AS14+AU14+AW14+AY14,0) -> 0 | BB14: =ROUND($F$13,0) -> 0 | BC14: =ROUND((F15*F30)-Z14,0) -> 0 | BD14: =BB14+BC14 -> 0 | BE14: =AZ14-BD14 -> 0 | BH14: =$C$47 -> 2016 | BI14: =+F12 -> 0 | BJ14: =+M14 -> 0 | BK14: =ROUND($C$10*(1+$C$11)^J14,3) -> 6.066 | BL14: =ROUND(BJ14*BK14,0) -> 0 | BM14: =ROUND($C$13*(1+$C$14)^J14,3) -> 0.149 | BN14: =ROUND(IF($C$47+$F$23>$BH14,$F$30*$F$27,0)*BM14,0) -> 0 | BP14: =BI14+BL14+BN14+BO14 -> 0 | BR14: =ROUND(F15*F30,0) -> 0 | BT14: =BP14-BR14 -> 0 | BW14: =$C$47 -> 2016 | BX14: =$R14 -> 0 | BY14: =U14 -> 0 | BZ14: =AU14 -> 0 | CA14: =SUM(BX14:BZ14) -> 0 | CC14: =BB14 -> 0 | CD14: =BC14 -> 0 | CE14: =SUM(CC14:CD14) -> 0 | CG14: =CA14-CE14 -> 0
A15: Non-Gas Fuel Units (ie. kWh,Gallons, etc) = | C15: =+'Gas Input Table Summary'!$E$11 -> Kwh | E15: 17) Direct Participant Costs ($/Part.) = | F15: =ROUND('Database Inputs'!K18,0) -> 3000 | J15: =J14+1 -> 3 | L15: =L14+1 -> 2017 | M15: =ROUND(IF($C$47+$F$23>L15,$F$25*$F$30,0)+IF($C$48+$G$23>L15,$G$25*$G$30,0),0) -> 0 | N15: =ROUND($C$17*(1+$C$18)^J14,3) -> 3.188 | O15: 0 | P15: 0 | Q15: =ROUND(M15*P15,0) -> 0 | R15: 0 | S15: 0 | T15: =ROUND($C$20*(1+$C$21)^J14,0) -> 145 | U15: =ROUND(S15*T15,0) -> 0 | V15: =ROUND(+U15+R15,0) -> 0 | W15: 1.087 | X15: 0 | Y15: =ROUND($G$11,0) -> 0 | Z15: =ROUND($G$12,0) -> 0 | AA15: 0 | AB15: 0 | AE15: =AE14+1 -> 2017 | AF15: 0 | AG15: 0 | AH15: =+AG15+AF15 -> 0 | AJ15: =ROUND(Y15,0) -> 0 | AK15: 0 | AL15: 0 | AN15: 0 | AQ15: =AQ14+1 -> 2017 | AR15: 0 | AS15: 0 | AT15: 0.03 | AU15: =ROUND((IF($C$47+$F$23>$AQ15,$F$27*$F$30,0)+IF($C$48+$G$23>AQ15,$G$27*$G$30,0))*AT15,0) -> 0 | AV15: 0.375 | AW15: 0 | AZ15: =ROUND(AR15+AS15+AU15+AW15+AY15,0) -> 0 | BB15: =ROUND($G$13,0) -> 0 | BC15: =ROUND(($G$15*$G$30)-$Z$15,0) -> 0 | BD15: =BB15+BC15 -> 0 | BE15: 0 | BH15: =BH14+1 -> 2017 | BI15: =+G12 -> 0 | BJ15: 0 | BK15: 6.279 | BL15: =ROUND(BJ15*BK15,0) -> 0 | BM15: 0.154 | BN15: =ROUND((IF($C$47+$F$23>BH15,$F$27*$F$30,0)+IF($C$48+$G$23>BH15,$G$27*$G$30,0))*BM15,0) -> 0 | BP15: 0 | BR15: =ROUND($G$15*$G$30,0) -> 0 | BT15: =BP15-BR15 -> 0 | BW15: =BW14+1 -> 2017 | BX15: 0 | BY15: =U15 -> 0 | BZ15: =AU15 -> 0 | CA15: =SUM(BX15:BZ15) -> 0 | CC15: =BB15 -> 0 | CD15: 0 | CE15: =SUM(CC15:CD15) -> 0 | CG15: =CA15-CE15 -> 0
J16: 4 | L16: 2018 | M16: =ROUND(IF($C$47+$F$23>L16,$F$25*$F$30,0)+IF($C$48+$G$23>L16,$G$25*$G$30,0)+IF($C$49+$H$23>L16,$H$25*$H$30,0),0) -> 0 | N16: =ROUND($C$17*(1+$C$18)^J15,3) -> 3.3 | O16: 0 | P16: 0 | Q16: 0 | R16: 0 | S16: 0 | T16: =ROUND($C$20*(1+$C$21)^J15,0) -> 147 | U16: =ROUND(S16*T16,0) -> 0 | V16: 0 | W16: 1.125 | X16: 0 | Y16: =ROUND($H$11,0) -> 0 | Z16: =ROUND($H$12,0) -> 0 | AA16: 0 | AB16: 0 | AE16: 2018 | AF16: 0 | AG16: 0 | AH16: =+AG16+AF16 -> 0 | AJ16: 0 | AK16: 0 | AL16: 0 | AN16: 0 | AQ16: 2018 | AR16: 0 | AS16: 0 | AT16: 0.031 | AU16: =ROUND((IF($C$47+$F$23>$AQ16,$F$27*$F$30,0)+IF($C$48+$G$23>AQ16,$G$27*$G$30,0)+IF($C$49+$H$23>AQ16,$H$27*$H$30,0))*AT16,0) -> 0 | AV16: 0.383 | AW16: 0 | AZ16: 0 | BB16: =ROUND($H$13,0) -> 0 | BC16: =ROUND(($H$15*$H$30)-$Z$16,0) -> 0 | BD16: 0 | BE16: 0 | BH16: 2018 | BI16: =ROUND(H12,0) -> 0 | BJ16: 0 | BK16: 6.498 | BL16: =ROUND(BJ16*BK16,0) -> 0 | BM16: 0.16 | BN16: =ROUND((IF($C$47+$F$23>BH16,$F$27*$F$30,0)+IF($C$49+$H$23>BH16,$H$27*$H$30,0)+IF($C$48+$G$23>BH16,$G$27*$G$30,0))*BM16,0) -> 0 | BP16: 0 | BR16: =ROUND($H$15*$H$30,0) -> 0 | BT16: 0 | BW16: 2018 | BX16: 0 | BY16: 0 | BZ16: 0 | CA16: 0 | CC16: 0 | CD16: 0 | CE16: 0 | CG16: =CA16-CE16 -> 0
A17: 3) Commodity Cost ($/Dk) = | C17: =+'Gas Input Table Summary'!$E$12 -> 2.976 | E17: 18) Participant Non-Energy Costs (Annual $/Part.) = | F17: =+'Gas Input Table Summary'!$E$35 -> 0 | J17: 5 | L17: 2019 | M17: =ROUND(IF($C$47+$F$23>L17,$F$25*$F$30,0)+IF($C$48+$G$23>L17,$G$25*$G$30,0)+IF($C$49+$H$23>L17,$H$25*$H$30,0),0) -> 0 | N17: 3.415 | O17: 0 | P17: 0 | Q17: 0 | R17: 0 | S17: 0 | T17: 148 | U17: 0 | V17: 0 | W17: 1.164 | X17: 0 | Y17: 0 | Z17: 0 | AA17: 0 | AB17: 0 | AE17: 2019 | AF17: 0 | AG17: 0 | AH17: 0 | AJ17: 0 | AK17: 0 | AL17: 0 | AN17: 0 | AQ17: 2019 | AR17: 0 | AS17: 0 | AT17: 0.032 | AU17: =ROUND((IF($C$47+$F$23>$AQ17,$F$27*$F$30,0)+IF($C$48+$G$23>AQ17,$G$27*$G$30,0)+IF($C$49+$H$23>AQ17,$H$27*$H$30,0))*AT17,0) -> 0 | AV17: 0.392 | AW17: 0 | AZ17: 0 | BB17: 0 | BC17: 0 | BD17: 0 | BE17: 0 | BH17: 2019 | BI17: 0 | BJ17: 0 | BK17: 6.726 | BL17: 0 | BM17: 0.165 | BN17: =ROUND((IF($C$47+$F$23>BH17,$F$27*$F$30,0)+IF($C$49+$H$23>BH17,$H$27*$H$30,0)+IF($C$48+$G$23>BH17,$G$27*$G$30,0))*BM17,0) -> 0 | BP17: 0 | BR17: =+BC17 -> 0 | BT17: 0 | BW17: 2019 | BX17: 0 | BY17: 0 | BZ17: 0 | CA17: 0 | CC17: 0 | CD17: 0 | CE17: 0 | CG17: 0
A18: Escalation Rate = | C18: =+'Gas Input Table Summary'!$E$13 -> 0.035 | E18: Escalation Rate = | F18: =+'Gas Input Table Summary'!$E$38 -> 0 | J18: 6 | L18: 2020 | M18: 0 | N18: 3.535 | O18: 0 | P18: 0 | Q18: 0 | R18: 0 | S18: 0 | T18: 150 | U18: 0 | V18: 0 | W18: 1.205 | X18: 0 | Y18: 0 | Z18: 0 | AA18: 0 | AB18: 0 | AE18: 2020 | AF18: 0 | AG18: 0 | AH18: 0 | AJ18: 0 | AK18: 0 | AL18: 0 | AN18: 0 | AQ18: 2020 | AR18: 0 | AS18: 0 | AT18: 0.034 | AU18: 0 | AV18: 0.401 | AW18: 0 | AZ18: 0 | BB18: 0 | BC18: 0 | BD18: 0 | BE18: 0 | BH18: 2020 | BI18: 0 | BJ18: 0 | BK18: 6.961 | BL18: 0 | BM18: 0.171 | BN18: 0 | BP18: 0 | BR18: 0 | BT18: 0 | BW18: 2020 | BX18: 0 | BY18: 0 | BZ18: 0 | CA18: 0 | CC18: 0 | CD18: 0 | CE18: 0 | CG18: 0 | DB18: t
